Workbook

Sheet Sommaire (hidden)
A2: Rapport sur les finances communales - exercice 2024
B4: Sommaire
A6: 1 | B6: Population
A7: 1.1 | B7: Population | C7: Population
A9: 2 | B9: Compte de résultat
A10: 2.1 | B10: Compte de résultats par nature par commune | C10: Compte de résultats
A11: 2.2 | B11: Compte de résultats pas nature en Fr. par habitant | C11: Compte de résultats en Fr. par habitant
A12: 2.3 | B12: Compte de résultats par nature en Fr. par habitant par commune | C12: Compte de résultats en Fr. par commune
A13: 2.4 | B13: Vue d'ensemble | C13: Vue d'ensemble
A14: 2.5 | B14: Vue d'ensemble par commune | C14: Vue d'ensemble par commune
A15: 2.6 | B15: Résultats à 3 niveaux | C15: Résultats à 3 niveaux
A16: 2.7 | B16: Résultats à 3 nivaux par commune | C16: Résultats à 3 niveaux par commune
A17: 2.8 | B17: Autofinancement | C17: Autofinancement
A18: 2.9 | B18: Autofinancement par commune | C18: Autofinancement par commune
A19: 2.10 | B19: Compte de résultats par fonction | C19: Compte de résultats par fonction
A20: 2.11 | B20: Compte de résultats par fonction par commune | C20: Compte de résultats fonctionnel par commune
A22: 3 | B22: Bilan
A23: 3.2 | B23: Bilan de l'ensemble des communes | C23: Bilan de l'ensemble des communes
A24: 3.3 | B24: Bilan par commune | C24: Bilan par commune
A25: 3.4 | B25: Tableau du bilan | C25: Tableau du bilan
A26: 3.5 | B26: Tableau de l'endettement | C26: Endettement
A27: 3.6 | B27: Tableau de l'endettement par commune | C27: Endettement par commune
A29: 4 | B29: Comptes des investissements
A30: 4.1 | B30: Investissements de l'ensemble des communes | C30: Investissements
A31: 4.2 | B31: Investissements par commune | C31: Investissements par commune
A33: 5 | B33: Indicateurs financiers
A34: 5.1 | B34: Définition des indicateurs financiers | C34: Définition des indicateurs financiers
A35: 5.2 | B35: Quotient de l'endettement net et degré d'autofinancement | C35: Degré d'autofinancement
A36: 5.3 | B36: Quotité de la charge des intérêts et dette brute par rapport aux revenus | C36: Dette brute par rapport aux revenus
A37: 5.4 | B37: Quotité d'investissement et quotité de la charge financière | C37: Quotités d'investissement et charges financière
A38: 5.5 | B38: Quotité d'autofinancement et quotité de la charge des intérêts nets | C38: Quotité d''autofinancement
A39: 5.6 | B39: Quotient de l'excédent au bilan | C39: Quotient excédent du bilan
A40: 5.7 | B40: Récapitulatif de l'ensemble des communes | C40: Récapitulatif
A41: 5.8 | B41: Récapitulatif par commune | C41: Récapitulatif par commune

Sheet Base de données pop. (hidden)
A1: N° | B1: Communes | C1: 2024 | M1: N° | N1: Communes | O1: 2024
A2: 1 | B2: Boécourt | C2: 961 | G2: Ne pas effectuer de tri avec cette feuille, c'est la base de donnée. | M2: 1 | N2: Alle | O2: =C33 -> 1,946
A3: 2 | B3: Bourrignon | C3: 263 | M3: 2 | N3: Basse-Allaine | O3: =C35 -> 1,197
A4: 3 | B4: Châtillon | C4: 475 | M4: 3 | N4: Basse-Vendline | O4: =C36 -> 736
A5: 4 | B5: Courchapoix | C5: 449 | F5: Population par district | M5: 4 | N5: Boécourt | O5: =C2 -> 961
A6: 5 | B6: Courrendlin | C6: 3,687 | F6: Delémont | H6: =SUM(C2:C20) -> 39,997 | M6: 5 | N6: Boncourt | O6: =C37 -> 1,170
A7: 6 | B7: Courroux | C7: 3,443 | F7: Franches-Montagnes | H7: =SUM(C21:C32) -> 10,475 | M7: 6 | N7: Bourrignon | O7: =C3 -> 263
A8: 7 | B8: Courtételle | C8: 2,788 | F8: Porrentruy | H8: =SUM(C33:C51) -> 24,368 | M8: 7 | N8: Bure | O8: =C38 -> 645
A9: 8 | B9: Delémont | C9: 12,813 | H9: =SUM(H6:H8) -> 74,840 | M9: 8 | N9: Châtillon | O9: =C4 -> 475
A10: 9 | B10: Develier | C10: 1,393 | M10: 9 | N10: Clos du Doubs | O10: =C39 -> 1,304
A11: 10 | B11: Ederswiler | C11: 115 | M11: 10 | N11: Coeuve | O11: =C40 -> 717
A12: 11 | B12: Haute-Sorne | C12: 7,453 | M12: 11 | N12: Cornol | O12: =C41 -> 1,083
A13: 12 | B13: Mervelier | C13: 526 | M13: 12 | N13: Courchapoix | O13: =C5 -> 449
A14: 13 | B14: Mettembert | C14: 112 | M14: 13 | N14: Courchavon | O14: =C42 -> 323
A15: 14 | B15: Movelier | C15: 414 | M15: 14 | N15: Courgenay | O15: =C43 -> 2,439
A16: 15 | B16: Pleigne | C16: 365 | M16: 15 | N16: Courrendlin | O16: =C6 -> 3,687
A17: 16 | B17: Rossemaison | C17: 740 | M17: 16 | N17: Courroux | O17: =C7 -> 3,443
A18: 17 | B18: Saulcy | C18: 277 | M18: 17 | N18: Courtedoux | O18: =C44 -> 761
A19: 18 | B19: Soyhières | C19: 453 | M19: 18 | N19: Courtételle | O19: =C8 -> 2,788
A20: 19 | B20: Val Terbi | C20: 3,270 | M20: 19 | N20: Damphreux-Lugnez | O20: =C45 -> 370
A21: 20 | B21: Le Bémont | C21: 308 | M21: 20 | N21: Delémont | O21: =C9 -> 12,813
A22: 21 | B22: Les Bois | C22: 1,244 | M22: 21 | N22: Develier | O22: =C10 -> 1,393
A23: 22 | B23: Les Breuleux | C23: 1,627 | M23: 22 | N23: Ederswiler | O23: =C11 -> 115
A24: 23 | B24: Les Enfers | C24: 151 | M24: 23 | N24: Fahy | O24: =C46 -> 337
A25: 24 | B25: Les Genevez | C25: 516 | M25: 24 | N25: Fontenais | O25: =C47 -> 1,632
A26: 25 | B26: Lajoux | C26: 720 | M26: 25 | N26: Grandfontaine | O26: =C48 -> 378
A27: 26 | B27: Montfaucon | C27: 564 | M27: 26 | N27: Haute-Ajoie | O27: =C49 -> 1,064
A28: 27 | B28: Muriaux | C28: 518 | M28: 27 | N28: Haute-Sorne | O28: =C12 -> 7,453
A29: 28 | B29: Le Noirmont | C29: 1,934 | M29: 28 | N29: La Baroche | O29: =C34 -> 1,135
A30: 29 | B30: Saignelégier | C30: 2,531 | M30: 29 | N30: Lajoux | O30: =C26 -> 720
A31: 30 | B31: Saint-Brais | C31: 237 | M31: 30 | N31: Le Bémont | O31: =C21 -> 308
A32: 31 | B32: Soubey | C32: 125 | M32: 31 | N32: Le Noirmont | O32: =C29 -> 1,934
A33: 32 | B33: Alle | C33: 1,946 | M33: 32 | N33: Les Bois | O33: =C22 -> 1,244
A34: 33 | B34: La Baroche | C34: 1,135 | M34: 33 | N34: Les Breuleux | O34: =C23 -> 1,627
A35: 34 | B35: Basse-Allaine | C35: 1,197 | M35: 34 | N35: Les Enfers | O35: =C24 -> 151
A36: 35 | B36: Basse-Vendline | C36: 736 | M36: 35 | N36: Les Genevez | O36: =C25 -> 516
A37: 36 | B37: Boncourt | C37: 1,170 | M37: 36 | N37: Mervelier | O37: =C13 -> 526
A38: 37 | B38: Bure | C38: 645 | M38: 37 | N38: Mettembert | O38: =C14 -> 112
A39: 38 | B39: Clos du Doubs | C39: 1,304 | M39: 38 | N39: Montfaucon | O39: =C27 -> 564
A40: 39 | B40: Coeuve | C40: 717 | M40: 39 | N40: Movelier | O40: =C15 -> 414
A41: 40 | B41: Cornol | C41: 1,083 | M41: 40 | N41: Muriaux | O41: =C28 -> 518
A42: 41 | B42: Courchavon | C42: 323 | M42: 41 | N42: Pleigne | O42: =C16 -> 365
A43: 42 | B43: Courgenay | C43: 2,439 | M43: 42 | N43: Porrentruy | O43: =C50 -> 6,574
A44: 43 | B44: Courtedoux | C44: 761 | M44: 43 | N44: Rossemaison | O44: =C17 -> 740
A45: 44 | B45: Damphreux-Lugnez | C45: 370 | M45: 44 | N45: Saignelégier | O45: =C30 -> 2,531
A46: 45 | B46: Fahy | C46: 337 | M46: 45 | N46: Saint-Brais | O46: =C31 -> 237
A47: 46 | B47: Fontenais | C47: 1,632 | M47: 46 | N47: Saulcy | O47: =C18 -> 277
A48: 47 | B48: Grandfontaine | C48: 378 | M48: 47 | N48: Soubey | O48: =C32 -> 125
A49: 48 | B49: Haute-Ajoie | C49: 1,064 | M49: 48 | N49: Soyhières | O49: =C19 -> 453
A50: 49 | B50: Porrentruy | C50: 6,574 | M50: 49 | N50: Val Terbi | O50: =C20 -> 3,270
A51: 50 | B51: Vendlincourt | C51: 557 | M51: 50 | N51: Vendlincourt | O51: =C51 -> 557
B52: Total | C52: =SUM(C2:C51) -> 74,840 | N52: Total | O52: =SUM(O2:O51) -> 74,840
D55: Ok, contrôlé le 26.06.2023

Sheet Population (hidden)
B3: moins de 200 habitants | E3: 201 à 500 habitants | G3: 501 à 1'000 habitants | J3: 1'001 à 2'000 habitants | M3: 2001 à 3'000 habitant | P3: plus de 3'000 habitant
A5: 1 | B5: Mettembert | C5: ='Base de données pop.'!C14 -> 112 | D5: 5 | E5: Saint-Brais | F5: ='Base de données pop.'!C31 -> 237 | G5: 18.19 | H5: Les Genevez | I5: ='Base de données pop.'!C25 -> 516 | J5: 30 | K5: Haute-Ajoie | L5: ='Base de données pop.'!C49 -> 1,064 | M5: 42 | N5: Courgenay | O5: ='Base de données pop.'!C43 -> 2,439 | P5: 45 | Q5: Val Terbi | R5: ='Base de données pop.'!C20 -> 3,270
A6: 2 | B6: Ederswiler | C6: ='Base de données pop.'!C11 -> 115 | D6: 6 | E6: Bourrignon | F6: ='Base de données pop.'!C3 -> 263 | G6: 19 | H6: Muriaux | I6: ='Base de données pop.'!C28 -> 518 | J6: 31 | K6: Cornol | L6: ='Base de données pop.'!C41 -> 1,083 | M6: 43 | N6: Saignelégier | O6: ='Base de données pop.'!C30 -> 2,531 | P6: 46 | Q6: Courroux | R6: ='Base de données pop.'!C7 -> 3,443
A7: 3 | B7: Soubey | C7: ='Base de données pop.'!C32 -> 125 | D7: 7 | E7: Saulcy | F7: ='Base de données pop.'!C18 -> 277 | G7: 20 | H7: Mervelier | I7: ='Base de données pop.'!C13 -> 526 | J7: 32 | K7: La Baroche | L7: ='Base de données pop.'!C34 -> 1,135 | M7: 44 | N7: Courtételle | O7: ='Base de données pop.'!C8 -> 2,788 | P7: 47 | Q7: Courrendlin | R7: ='Base de données pop.'!C6 -> 3,687
A8: 4 | B8: Les Enfers | C8: ='Base de données pop.'!C24 -> 151 | D8: 8 | E8: Le Bémont | F8: ='Base de données pop.'!C21 -> 308 | G8: 21 | H8: Vendlincourt | I8: ='Base de données pop.'!C51 -> 557 | J8: 33 | K8: Boncourt | L8: ='Base de données pop.'!C37 -> 1,170 | O8: =SUM(O5:O7) -> 7,758 | P8: 48 | Q8: Porrentruy | R8: ='Base de données pop.'!C50 -> 6,574
C9: =SUM(C5:C8) -> 503 | D9: 9 | E9: Courchavon | F9: ='Base de données pop.'!C42 -> 323 | G9: 22 | H9: Montfaucon | I9: ='Base de données pop.'!C27 -> 564 | J9: 34 | K9: Basse-Allaine | L9: ='Base de données pop.'!C35 -> 1,197 | N9: moyenne | O9: =O8/5 -> 1,551.60 | P9: 49 | Q9: Haute-Sorne | R9: ='Base de données pop.'!C12 -> 7,453
B10: moyenne | C10: =C9/8 -> 62.88 | D10: 10 | E10: Fahy | F10: ='Base de données pop.'!C46 -> 337 | G10: 23 | H10: Bure | I10: ='Base de données pop.'!C38 -> 645 | J10: 35 | K10: Les Bois | L10: ='Base de données pop.'!C22 -> 1,244 | P10: 50 | Q10: Delémont | R10: ='Base de données pop.'!C9 -> 12,813
D11: 11 | E11: Pleigne | F11: ='Base de données pop.'!C16 -> 365 | G11: 24 | H11: Coeuve | I11: ='Base de données pop.'!C40 -> 717 | J11: 36 | K11: Clos du Doubs | L11: ='Base de données pop.'!C39 -> 1,304 | R11: =SUM(R5:R10) -> 37,240
D12: 12 | E12: Damphreux-Lugnez | F12: ='Base de données pop.'!C45 -> 370 | G12: 25 | H12: Lajoux | I12: ='Base de données pop.'!C26 -> 720 | J12: 37 | K12: Develier | L12: ='Base de données pop.'!C10 -> 1,393 | Q12: moyenne | R12: =R11/4 -> 9,310.00
D13: 13 | E13: Grandfontaine | F13: ='Base de données pop.'!C48 -> 378 | G13: 26 | H13: Basse-Vendline | I13: 736 | J13: 38 | K13: Les Breuleux | L13: ='Base de données pop.'!C23 -> 1,627
D14: 14 | E14: Movelier | F14: ='Base de données pop.'!C15 -> 414 | G14: 27 | H14: Rossemaison | I14: ='Base de données pop.'!C17 -> 740 | J14: 39 | K14: Fontenais | L14: ='Base de données pop.'!C47 -> 1,632 | S14: =C9+F18+I17+L17+O8+R11 -> 74,840
D15: 15 | E15: Courchapoix | F15: ='Base de données pop.'!C5 -> 449 | G15: 28 | H15: Courdedoux | I15: ='Base de données pop.'!C44 -> 761 | J15: 40 | K15: Le Noirmont | L15: ='Base de données pop.'!C29 -> 1,934 | S15: =S14/53 -> 1,412
D16: 16 | E16: Soyhières | F16: ='Base de données pop.'!C19 -> 453 | G16: 29 | H16: Boécourt | I16: ='Base de données pop.'!C2 -> 961 | J16: 41 | K16: Alle | L16: ='Base de données pop.'!C33 -> 1,946 | U16: MOINS DE 1000 HABITANTS
B17: =C9+F18+I17+L17+O8+R11 -> 74,840 | D17: 17 | E17: Châtillon | F17: ='Base de données pop.'!C4 -> 475 | I17: =SUM(I5:I16) -> 7,961 | L17: =SUM(L5:L16) -> 16,729 | R17: =C9+F18+I17+L17+O8+R11 -> 74,840 | U17: =C9+F18+I17 -> 13,113
F18: =SUM(F5:F17) -> 4,649 | H18: moyenne | I18: =I17/11 -> 723.73 | K18: moyenne | L18: =L17/12 -> 1,394.08
E19: moyenne | F19: =F18/13 -> 357.62
B22: 4 communes de moins 200 habitants | C22: =C9 -> 503 | E22: =C22*100/B17 -> 0.67
B23: 13 communes de 200 à 500 habitants | C23: =F18 -> 4,649 | E23: =C23*100/B17 -> 6.21
B24: 12 communes de 501 à 1'000 habitants | C24: =I17 -> 7,961 | E24: =C24*100/B17 -> 10.64
B25: 12 communes de 1'001 à 2'000 habitants | C25: =L17 -> 16,729 | E25: =C25*100/B17 -> 22.35 | K25: Par Disctrict | L25: Delémont | O25: 39,997
B26: 3 communes de 2'001 à 3'000 habitants | C26: =O8 -> 7,758 | E26: =C26*100/B17 -> 10.37 | L26: Franches-Montagnes | O26: 10,475
B27: 6 communes de plus 3'000 habitants | C27: =R11 -> 37,240 | E27: =C27*100/B17 -> 49.76 | L27: Porrentruy | O27: 24,368
C28: =SUM(C22:C27) -> 74,840 | E28: =C28*100/B17 -> 100.00 | F28: =E22+E23 -> 6.88 | L28: Total | O28: =SUM(O25:O27) -> 74,840

Sheet 4.1 Comptes 2024 natures (hidden)
A2: Comptes de résultats par natures 2024
A3: Comptes consolidés de l'ensemble des communes et par district | E3: ='Base de données pop.'!C2 -> 961 | F3: ='Base de données pop.'!C3 -> 263 | G3: ='Base de données pop.'!C4 -> 475 | H3: ='Base de données pop.'!C5 -> 449 | I3: ='Base de données pop.'!C6 -> 3,687 | J3: ='Base de données pop.'!C7 -> 3,443 | K3: ='Base de données pop.'!C8 -> 2,788 | L3: ='Base de données pop.'!C9 -> 12,813 | M3: ='Base de données pop.'!C10 -> 1,393 | N3: ='Base de données pop.'!C11 -> 115 | O3: ='Base de données pop.'!C12 -> 7,453 | P3: ='Base de données pop.'!C13 -> 526 | Q3: ='Base de données pop.'!C14 -> 112 | R3: ='Base de données pop.'!C15 -> 414 | S3: ='Base de données pop.'!C16 -> 365 | T3: ='Base de données pop.'!C17 -> 740 | U3: ='Base de données pop.'!C18 -> 277 | V3: ='Base de données pop.'!C19 -> 453 | W3: ='Base de données pop.'!C20 -> 3,270 | X3: ='Base de données pop.'!C21 -> 308 | Y3: ='Base de données pop.'!C22 -> 1,244 | Z3: ='Base de données pop.'!C23 -> 1,627 | AA3: ='Base de données pop.'!C24 -> 151 | AB3: ='Base de données pop.'!C25 -> 516 | AC3: ='Base de données pop.'!C26 -> 720 | AD3: ='Base de données pop.'!C27 -> 564 | AE3: ='Base de données pop.'!C28 -> 518 | AF3: ='Base de données pop.'!C29 -> 1,934 | AG3: ='Base de données pop.'!C30 -> 2,531 | AH3: ='Base de données pop.'!C31 -> 237 | AI3: ='Base de données pop.'!C32 -> 125 | AJ3: ='Base de données pop.'!C33 -> 1,946 | AK3: ='Base de données pop.'!C34 -> 1,135 | AL3: ='Base de données pop.'!C35 -> 1,197 | AM3: ='Base de données pop.'!C36 -> 736 | AN3: ='Base de données pop.'!C37 -> 1,170 | AO3: ='Base de données pop.'!C38 -> 645 | AP3: ='Base de données pop.'!C39 -> 1,304 | AQ3: ='Base de données pop.'!C40 -> 717 | AR3: ='Base de données pop.'!C41 -> 1,083 | AS3: ='Base de données pop.'!C42 -> 323 | AT3: ='Base de données pop.'!C43 -> 2,439 | AU3: ='Base de données pop.'!C44 -> 761 | AV3: ='Base de données pop.'!C45 -> 370 | AW3: ='Base de données pop.'!C46 -> 337 | AX3: ='Base de données pop.'!C47 -> 1,632 | AY3: ='Base de données pop.'!C48 -> 378 | AZ3: ='Base de données pop.'!C49 -> 1,064 | BA3: ='Base de données pop.'!C50 -> 6,574 | BB3: ='Base de données pop.'!C51 -> 557 | BC3: =SUM(E3:BB3) -> 74,840 | BD3: =SUM(E3:W3) -> 39,997 | BE3: =SUM(X3:AI3) -> 10,475 | BF3: =SUM(AJ3:BB3) -> 24,368
E4: Boécourt | F4: Bourrignon | G4: Châtillon | H4: Courchapoix | I4: Courrendlin | J4: Courroux | K4: Courtételle | L4: Delémont | M4: Develier | N4: Ederswiler | O4: Haute-Sorne | P4: Mervelier | Q4: Mettembert | R4: Movelier | S4: Pleigne | T4: Rossemaison | U4: Saulcy | V4: Soyhières | W4: Val Terbi | X4: Le Bémont | Y4: Les Bois | Z4: Les Breuleux | AA4: Les Enfers | AB4: Les Genevez | AC4: Lajoux | AD4: Montfaucon | AE4: Muriaux | AF4: Le Noirmont | AG4: Saignelégier | AH4: Saint-Brais | AI4: Soubey | AJ4: Alle | AK4: La Baroche | AL4: Basse-Allaine | AM4: Basse-Vendline | AN4: Boncourt | AO4: Bure | AP4: Clos du Doubs | AQ4: Coeuve | AR4: Cornol | AS4: Courchavon | AT4: Courgenay | AU4: Courtedoux | AV4: Damphreux-Lugnez | AW4: Fahy | AX4: Fontenais | AY4: Grandfontaine | AZ4: Haute-Ajoie | BA4: Porrentruy | BB4: Vendlincourt | BC4: Total | BD4: Delémont | BE4: Franches-Montagnes | BF4: Porrentruy
A5: 3 | D5: Charges | E5: =E6+E16+E28+E32+E40+E44+E54+E57+E65 -> 4,120,354.38 | F5: =F6+F16+F28+F32+F40+F44+F54+F57+F65 -> 1,233,945.31 | G5: 1,728,016.62 | H5: 2,334,780.60 | I5: 17,856,530.90 | J5: 14,651,486.05 | K5: 13,184,062.52 | L5: 122,001,588.83 | M5: 9,329,567.18 | N5: 479,757.36 | O5: 31,881,975.73 | P5: 1,862,614.08 | Q5: 436,355.69 | R5: 1,777,811.80 | S5: 1,974,831.44 | T5: 4,477,076.69 | U5: 1,149,255.04 | V5: 3,197,628.84 | W5: 13,280,987.37 | X5: 1,941,472.23 | Y5: 6,362,927.89 | Z5: 18,069,920.74 | AA5: 919,173.36 | AB5: 3,056,810.21 | AC5: 3,716,179.99 | AD5: 3,152,903.60 | AE5: 3,632,342.79 | AF5: 11,105,469.34 | AG5: 14,372,115.82 | AH5: 1,190,174.38 | AI5: 717,485.28 | AJ5: 8,363,263.43 | AK5: 5,979,591.69 | AL5: 6,043,380.65 | AM5: 5,272,907.49 | AN5: 10,342,799.60 | AO5: 3,353,645.94 | AP5: 8,464,383.96 | AQ5: 3,716,740.22 | AR5: 4,766,049.27 | AS5: 1,708,294.10 | AT5: 11,350,748.41 | AU5: 3,670,615.75 | AV5: 1,567,179.05 | AW5: 1,327,032.98 | AX5: 7,605,190.62 | AY5: 1,933,127.86 | AZ5: 6,143,635.46 | BA5: 45,270,444.28 | BB5: 2,368,445.48 | BC5: 454,443,078.30 | BD5: 246,958,626.43 | BE5: 68,236,975.63 | BF5: 139,247,476.24
B6: 30 | D6: Charges du personnel | E6: =E7+E8+E9+E10+E11+E12+E13+E14 -> 509,417.03 | F6: =F7+F8+F9+F10+F11+F12+F13+F14 -> 45,593.75 | G6: 142,775.80 | H6: 329,675.65 | I6: 2,965,308.22 | J6: 3,227,002.30 | K6: 1,321,725.20 | L6: 24,659,325.79 | M6: 1,322,433.90 | N6: 63,950.49 | O6: 4,561,006.40 | P6: 225,203.45 | Q6: 65,945.35 | R6: 238,268.60 | S6: 147,266.45 | T6: 371,775.20 | U6: 118,052.77 | V6: 348,397.90 | W6: 2,539,959.90 | X6: 155,848.95 | Y6: 1,527,649.50 | Z6: 2,107,274.91 | AA6: 68,995.10 | AB6: 421,765.80 | AC6: 494,881.38 | AD6: 406,133.00 | AE6: 392,279.30 | AF6: 1,130,156.90 | AG6: 2,222,114.55 | AH6: 101,781.80 | AI6: 78,676.00 | AJ6: 787,210.88 | AK6: 656,839.75 | AL6: 606,473.15 | AM6: 1,077,462.80 | AN6: 1,424,102.40 | AO6: 263,546.05 | AP6: 1,465,593.45 | AQ6: 482,252.40 | AR6: 777,913.95 | AS6: 134,999.80 | AT6: 1,123,470.95 | AU6: 549,646.35 | AV6: 107,457.55 | AW6: 157,871.85 | AX6: 945,920.30 | AY6: 134,211.95 | AZ6: 1,334,584.25 | BA6: 11,472,667.80 | BB6: 354,123.30 | BC6: 76,166,990.27 | BD6: 43,203,084.15 | BE6: 9,107,557.19 | BF6: 23,856,348.93
C7: 300 | D7: Autorités et commissions | E7: 41,005.10 | F7: 16,194.50 | G7: 34,375.55 | H7: 54,561.10 | I7: 150,240.60 | J7: 148,673.10 | K7: 164,752.55 | L7: 684,779.05 | M7: 63,095.00 | N7: 17,970.75 | O7: 413,611.25 | P7: 56,364.35 | Q7: 11,471.50 | R7: 21,186.25 | S7: 22,869.10 | T7: 61,587.50 | U7: 15,212.00 | V7: 49,254.70 | W7: 134,719.15 | X7: 66,053.95 | Y7: 75,167.30 | Z7: 93,332.50 | AA7: 11,209.30 | AB7: 27,705.00 | AC7: 30,253.00 | AD7: 51,153.75 | AE7: 36,323.40 | AF7: 115,488.75 | AG7: 112,317.95 | AH7: 17,756.45 | AI7: 15,515.00 | AJ7: 91,800.80 | AK7: 53,974.60 | AL7: 51,237.40 | AM7: 59,306.50 | AN7: 85,146.25 | AO7: 41,486.00 | AP7: 79,365.15 | AQ7: 42,899.00 | AR7: 46,877.75 | AS7: 16,763.35 | AT7: 64,010.00 | AU7: 59,992.70 | AV7: 16,185.00 | AW7: 13,505.00 | AX7: 57,038.35 | AY7: 18,886.25 | AZ7: 50,576.85 | BA7: 249,878.75 | BB7: 26,888.40 | BC7: =SUM(E7:BB7) -> 3,940,017.55 | BD7: =SUM(E7:W7) -> 2,161,923.10 | BE7: =SUM(X7:AI7) -> 652,276.35 | BF7: =SUM(AJ7:BB7) -> 1,125,818.10
C8: 301 | D8: Personnel administratif et d'exploitation | E8: 395,144.00 | F8: 26,181.25 | G8: 89,191.20 | H8: 222,311.25 | I8: 2,264,144.15 | J8: 2,454,635.00 | K8: 893,310.00 | L8: 19,713,406.20 | M8: 1,046,888.05 | N8: 36,204.20 | O8: 3,340,598.70 | P8: 143,321.45 | Q8: 43,902.60 | R8: 176,900.00 | S8: 101,216.15 | T8: 242,178.95 | U8: 86,831.60 | V8: 243,100.65 | W8: 1,983,795.45 | X8: 73,381.15 | Y8: 1,205,463.50 | Z8: 1,652,407.46 | AA8: 50,157.60 | AB8: 314,262.60 | AC8: 399,059.63 | AD8: 283,652.40 | AE8: 294,909.50 | AF8: 787,679.50 | AG8: 1,765,677.65 | AH8: 69,668.40 | AI8: 53,072.70 | AJ8: 590,811.56 | AK8: 497,327.20 | AL8: 462,525.14 | AM8: 853,052.35 | AN8: 1,113,885.20 | AO8: 179,614.15 | AP8: 1,154,332.55 | AQ8: 348,895.50 | AR8: 611,809.40 | AS8: 100,660.70 | AT8: 835,708.80 | AU8: 408,071.55 | AV8: 73,815.10 | AW8: 119,316.35 | AX8: 719,482.35 | AY8: 92,018.45 | AZ8: 1,040,377.15 | BA8: 9,122,410.25 | BB8: 268,649.80 | BC8: 59,045,416.49 | BD8: 33,503,260.85 | BE8: 6,949,392.09 | BF8: 18,592,763.55
C9: 302 | D9: Enseignants | E9: 0.00 | F9: 0.00 | G9: 0.00 | H9: 0.00 | I9: 0.00 | J9: 0.00 | K9: 0.00 | L9: 0.00 | M9: 0.00 | N9: 0.00 | O9: 0.00 | P9: 0.00 | Q9: 0.00 | R9: 0.00 | S9: 0.00 | T9: 0.00 | U9: 0.00 | V9: 49,858.60 | W9: 0.00 | X9: 0.00 | Y9: 0.00 | Z9: 0.00 | AA9: 0.00 | AB9: 0.00 | AC9: 0.00 | AD9: 0.00 | AE9: 0.00 | AF9: 5,228.00 | AG9: 0.00 | AH9: 0.00 | AI9: 0.00 | AJ9: 0.00 | AK9: 0.00 | AL9: 0.00 | AM9: 0.00 | AN9: 0.00 | AO9: 0.00 | AP9: 0.00 | AQ9: 0.00 | AR9: 0.00 | AS9: 0.00 | AT9: 0.00 | AU9: 0.00 | AV9: 0.00 | AW9: 0.00 | AX9: 0.00 | AY9: 0.00 | AZ9: 0.00 | BA9: 0.00 | BB9: 0.00 | BC9: 55,086.60 | BD9: 49,858.60 | BE9: 5,228.00 | BF9: 0.00
C10: 303 | D10: Personnel temporaire administratif et d'exploitation | E10: 0.00 | F10: 0.00 | G10: 0.00 | H10: 0.00 | I10: 0.00 | J10: 0.00 | K10: 0.00 | L10: 0.00 | M10: 3,577.05 | N10: 0.00 | O10: 14,137.10 | P10: 0.00 | Q10: 0.00 | R10: 0.00 | S10: 50.00 | T10: 0.00 | U10: 0.00 | V10: 0.00 | W10: 0.00 | X10: 0.00 | Y10: 0.00 | Z10: 0.00 | AA10: 0.00 | AB10: 0.00 | AC10: 0.00 | AD10: 0.00 | AE10: 0.00 | AF10: 0.00 | AG10: 0.00 | AH10: 0.00 | AI10: 212.50 | AJ10: 0.00 | AK10: 0.00 | AL10: 2,562.50 | AM10: 0.00 | AN10: 0.00 | AO10: 0.00 | AP10: 0.00 | AQ10: 5,985.00 | AR10: 0.00 | AS10: 0.00 | AT10: 0.00 | AU10: 232.50 | AV10: 0.00 | AW10: 0.00 | AX10: 0.00 | AY10: 0.00 | AZ10: 0.00 | BA10: 0.00 | BB10: 0.00 | BC10: 26,756.65 | BD10: 17,764.15 | BE10: 212.50 | BF10: 8,780.00
C11: 304 | D11: Allocations et indemnités | E11: 0.00 | F11: 0.00 | G11: 0.00 | H11: 0.00 | I11: 0.00 | J11: 16,115.75 | K11: 0.00 | L11: 0.00 | M11: 0.00 | N11: 0.00 | O11: 0.00 | P11: 0.00 | Q11: 0.00 | R11: 0.00 | S11: 0.00 | T11: 0.00 | U11: 0.00 | V11: 0.00 | W11: 0.00 | X11: 0.00 | Y11: 0.00 | Z11: 0.00 | AA11: 0.00 | AB11: 0.00 | AC11: 0.00 | AD11: 0.00 | AE11: 0.00 | AF11: 0.00 | AG11: -1,500.00 | AH11: 0.00 | AI11: 0.00 | AJ11: 0.00 | AK11: 0.00 | AL11: 0.00 | AM11: 0.00 | AN11: 0.00 | AO11: 0.00 | AP11: 0.00 | AQ11: 0.00 | AR11: 1,900.00 | AS11: 0.00 | AT11: 0.00 | AU11: 0.00 | AV11: 0.00 | AW11: 0.00 | AX11: 0.00 | AY11: 0.00 | AZ11: 0.00 | BA11: 0.00 | BB11: 0.00 | BC11: 16,515.75 | BD11: 16,115.75 | BE11: -1,500.00 | BF11: 1,900.00
C12: 305 | D12: Charges de l'employeur | E12: 70,799.93 | F12: 2,865.10 | G12: 16,542.45 | H12: 49,445.70 | I12: 533,007.60 | J12: 586,212.00 | K12: 226,499.90 | L12: 3,992,935.25 | M12: 178,600.10 | N12: 5,766.04 | O12: 741,799.05 | P12: 21,712.60 | Q12: 8,791.80 | R12: 36,755.45 | S12: 20,076.35 | T12: 46,084.55 | U12: 14,125.67 | V12: 0.00 | W12: 396,460.00 | X12: 12,318.00 | Y12: 211,952.20 | Z12: 311,941.50 | AA12: 7,401.55 | AB12: 67,539.70 | AC12: 50,593.40 | AD12: 53,973.15 | AE12: 53,098.15 | AF12: 183,414.90 | AG12: 333,007.40 | AH12: 11,396.05 | AI12: 9,649.15 | AJ12: 96,187.57 | AK12: 100,010.80 | AL12: 86,464.66 | AM12: 157,900.15 | AN12: 210,608.70 | AO12: 36,331.50 | AP12: 219,010.35 | AQ12: 82,009.65 | AR12: 112,394.50 | AS12: 14,410.70 | AT12: 209,655.35 | AU12: 75,317.50 | AV12: 16,162.45 | AW12: 23,482.85 | AX12: 160,208.40 | AY12: 21,270.45 | AZ12: 222,283.45 | BA12: 2,032,350.25 | BB12: 56,663.40 | BC12: 12,187,487.37 | BD12: 6,948,479.54 | BE12: 1,306,285.15 | BF12: 3,932,722.68
C13: 306 | D13: Prestations sociales de l'employeur | E13: 0.00 | F13: 0.00 | G13: 0.00 | H13: 0.00 | I13: 743.15 | J13: 0.00 | K13: 0.00 | L13: 42,859.25 | M13: 0.00 | N13: 0.00 | O13: 0.00 | P13: 0.00 | Q13: 0.00 | R13: 0.00 | S13: 0.00 | T13: 0.00 | U13: 0.00 | V13: 0.00 | W13: 0.00 | X13: 0.00 | Y13: 0.00 | Z13: 500.00 | AA13: 0.00 | AB13: 0.00 | AC13: 0.00 | AD13: 12,000.00 | AE13: 0.00 | AF13: 0.00 | AG13: 0.00 | AH13: 0.00 | AI13: 0.00 | AJ13: 0.00 | AK13: 0.00 | AL13: 0.00 | AM13: 0.00 | AN13: 0.00 | AO13: 0.00 | AP13: 0.00 | AQ13: 0.00 | AR13: 0.00 | AS13: 0.00 | AT13: 0.00 | AU13: 0.00 | AV13: 0.00 | AW13: 0.00 | AX13: 0.00 | AY13: 0.00 | AZ13: 0.00 | BA13: 0.00 | BB13: 0.00 | BC13: 56,102.40 | BD13: 43,602.40 | BE13: 12,500.00 | BF13: 0.00
C14: 309 | D14: Autres charges du personnel | E14: 2,468.00 | F14: 352.90 | G14: 2,666.60 | H14: 3,357.60 | I14: 17,172.72 | J14: 21,366.45 | K14: 37,162.75 | L14: 225,346.04 | M14: 30,273.70 | N14: 4,009.50 | O14: 50,860.30 | P14: 3,805.05 | Q14: 1,779.45 | R14: 3,426.90 | S14: 3,054.85 | T14: 21,924.20 | U14: 1,883.50 | V14: 6,183.95 | W14: 24,985.30 | X14: 4,095.85 | Y14: 35,066.50 | Z14: 49,093.45 | AA14: 226.65 | AB14: 12,258.50 | AC14: 14,975.35 | AD14: 5,353.70 | AE14: 7,948.25 | AF14: 38,345.75 | AG14: 12,611.55 | AH14: 2,960.90 | AI14: 226.65 | AJ14: 8,410.95 | AK14: 5,527.15 | AL14: 3,683.45 | AM14: 7,203.80 | AN14: 14,462.25 | AO14: 6,114.40 | AP14: 12,885.40 | AQ14: 2,463.25 | AR14: 4,932.30 | AS14: 3,165.05 | AT14: 14,096.80 | AU14: 6,032.10 | AV14: 1,295.00 | AW14: 1,567.65 | AX14: 9,191.20 | AY14: 2,036.80 | AZ14: 21,346.80 | BA14: 68,028.55 | BB14: 1,921.70 | BC14: 839,607.46 | BD14: 462,079.76 | BE14: 183,163.10 | BF14: 194,364.60
B16: 31 | D16: Charges de biens et de services et autres charges d'exploitation | E16: =E17+E18+E19+E20+E21+E22+E23+E24+E25+E26 -> 568,269.66 | F16: =F17+F18+F19+F20+F21+F22+F23+F24+F25+F26 -> 209,371.07 | G16: 201,320.41 | H16: 572,883.63 | I16: 3,631,920.52 | J16: 2,648,177.80 | K16: 1,829,163.03 | L16: 38,023,861.02 | M16: 3,333,120.09 | N16: 89,845.91 | O16: 5,044,870.93 | P16: 345,635.21 | Q16: 59,369.86 | R16: 243,703.70 | S16: 250,150.05 | T16: 812,609.68 | U16: 220,746.44 | V16: 673,128.88 | W16: 1,953,883.94 | X16: 443,795.52 | Y16: 1,449,666.19 | Z16: 2,887,368.40 | AA16: 171,395.68 | AB16: 778,155.96 | AC16: 783,405.36 | AD16: 737,173.82 | AE16: 868,167.72 | AF16: 2,097,418.52 | AG16: 2,971,543.58 | AH16: 371,855.35 | AI16: 197,284.58 | AJ16: 1,280,931.04 | AK16: 1,508,629.49 | AL16: 1,148,285.27 | AM16: 1,116,782.27 | AN16: 1,778,234.62 | AO16: 578,815.52 | AP16: 1,928,381.20 | AQ16: 669,286.33 | AR16: 889,152.11 | AS16: 324,856.49 | AT16: 1,817,141.61 | AU16: 583,083.36 | AV16: 356,209.61 | AW16: 326,891.85 | AX16: 1,387,060.64 | AY16: 462,882.88 | AZ16: 1,092,264.54 | BA16: 6,961,605.27 | BB16: 403,192.05 | BC16: 99,082,948.66 | BD16: 60,712,031.83 | BE16: 13,757,230.68 | BF16: 24,613,686.15
C17: 310 | D17: Charges de matériel et de marchandises | E17: 58,987.10 | F17: 12,245.80 | G17: 16,751.20 | H17: 33,024.96 | I17: 366,445.10 | J17: 320,068.25 | K17: 200,754.91 | L17: 1,995,857.88 | M17: 208,040.14 | N17: 2,457.40 | O17: 829,231.79 | P17: 62,471.98 | Q17: 6,359.24 | R17: 28,228.50 | S17: 12,623.45 | T17: 57,343.89 | U17: 18,249.20 | V17: 75,785.89 | W17: 300,537.22 | X17: 83,231.66 | Y17: 144,667.70 | Z17: 293,699.06 | AA17: 33,914.05 | AB17: 122,626.65 | AC17: 70,769.65 | AD17: 63,316.35 | AE17: 103,269.70 | AF17: 288,346.27 | AG17: 485,169.88 | AH17: 5,949.82 | AI17: 47,905.70 | AJ17: 281,241.05 | AK17: 79,898.59 | AL17: 67,333.59 | AM17: 121,761.14 | AN17: 170,661.81 | AO17: 18,291.65 | AP17: 125,701.15 | AQ17: 80,733.73 | AR17: 115,232.58 | AS17: 35,049.01 | AT17: 335,549.86 | AU17: 31,915.94 | AV17: 23,437.61 | AW17: 38,065.56 | AX17: 74,895.95 | AY17: 19,349.67 | AZ17: 111,024.36 | BA17: 809,250.27 | BB17: 54,568.89 | BC17: =SUM(E17:BB17) -> 8,942,292.80 | BD17: =SUM(E17:W17) -> 4,605,463.90 | BE17: =SUM(X17:AI17) -> 1,742,866.49 | BF17: =SUM(AJ17:BB17) -> 2,593,962.41
C18: 311 | D18: Immobilisations ne pouvant être portées à l'actif | E18: 54,649.55 | F18: 2,165.65 | G18: 3,001.15 | H18: 9,622.78 | I18: 82,672.93 | J18: 54,752.91 | K18: 38,664.86 | L18: 459,533.82 | M18: 58,636.19 | N18: 14,196.90 | O18: 126,510.90 | P18: 15,471.85 | Q18: 1,081.00 | R18: 5,285.25 | S18: 2,815.57 | T18: 55,077.55 | U18: 2,697.10 | V18: 32,413.55 | W18: 71,993.63 | X18: 9,994.14 | Y18: 87,391.75 | Z18: 112,614.46 | AA18: 1,092.00 | AB18: 16,560.43 | AC18: 34,538.83 | AD18: 13,330.75 | AE18: 13,723.70 | AF18: 96,000.75 | AG18: 107,951.52 | AH18: 6,507.75 | AI18: 1,259.00 | AJ18: 105,184.70 | AK18: 8,136.94 | AL18: 27,341.52 | AM18: 64,156.58 | AN18: 21,084.30 | AO18: 17,055.20 | AP18: 65,321.35 | AQ18: 31,316.18 | AR18: 61,287.00 | AS18: 13,780.60 | AT18: 94,611.56 | AU18: 14,532.70 | AV18: 4,900.00 | AW18: 6,500.99 | AX18: 73,547.25 | AY18: 5,467.35 | AZ18: 69,273.80 | BA18: 122,986.06 | BB18: 16,677.34 | BC18: 2,415,369.64 | BD18: 1,091,243.14 | BE18: 500,965.08 | BF18: 823,161.42
C19: 312 | D19: Alimentations et éliminations des biens-fonds du PA | E19: 76,002.79 | F19: 61,485.51 | G19: 18,976.25 | H19: 186,371.74 | I19: 1,425,373.97 | J19: 931,230.43 | K19: 360,175.89 | L19: 28,154,348.07 | M19: 2,304,561.22 | N19: 15,797.55 | O19: 664,069.02 | P19: 51,367.40 | Q19: 6,441.80 | R19: 28,497.10 | S19: 60,860.70 | T19: 215,945.30 | U19: 86,524.44 | V19: 54,576.00 | W19: 215,353.11 | X19: 148,454.00 | Y19: 270,250.30 | Z19: 445,561.45 | AA19: 35,180.55 | AB19: 127,898.50 | AC19: 139,788.42 | AD19: 171,826.65 | AE19: 131,131.00 | AF19: 442,949.10 | AG19: 548,064.80 | AH19: 103,714.20 | AI19: 27,765.95 | AJ19: 129,509.85 | AK19: 109,738.98 | AL19: 231,856.76 | AM19: 304,635.40 | AN19: 346,079.05 | AO19: 119,779.85 | AP19: 184,046.45 | AQ19: 146,672.25 | AR19: 201,039.39 | AS19: 54,707.40 | AT19: 246,729.77 | AU19: 42,373.80 | AV19: 112,106.35 | AW19: 83,061.55 | AX19: 256,210.20 | AY19: 63,686.25 | AZ19: 256,390.54 | BA19: 695,802.82 | BB19: 27,587.03 | BC19: 41,122,556.90 | BD19: 34,917,958.29 | BE19: 2,592,584.92 | BF19: 3,612,013.69
C20: 313 | D20: Prestations de services et honoraires | E20: 203,178.96 | F20: 82,782.07 | G20: 94,956.62 | H20: 95,785.78 | I20: 747,255.63 | J20: 758,772.00 | K20: 474,864.24 | L20: 3,482,733.56 | M20: 261,135.76 | N20: 24,526.02 | O20: 1,653,404.72 | P20: 97,797.39 | Q20: 21,949.64 | R20: 94,706.14 | S20: 81,449.14 | T20: 253,547.16 | U20: 52,551.63 | V20: 346,676.02 | W20: 645,043.63 | X20: 114,333.40 | Y20: 397,826.76 | Z20: 1,133,044.73 | AA20: 71,773.03 | AB20: 341,108.12 | AC20: 289,353.59 | AD20: 297,229.15 | AE20: 288,588.02 | AF20: 689,404.54 | AG20: 749,435.47 | AH20: 167,121.35 | AI20: 77,075.99 | AJ20: 334,019.78 | AK20: 813,890.13 | AL20: 463,542.01 | AM20: 212,222.19 | AN20: 358,510.50 | AO20: 159,281.31 | AP20: 915,677.98 | AQ20: 162,390.28 | AR20: 305,230.08 | AS20: 142,592.20 | AT20: 445,352.90 | AU20: 290,235.20 | AV20: 79,612.96 | AW20: 61,951.61 | AX20: 566,306.14 | AY20: 275,614.67 | AZ20: 297,870.93 | BA20: 2,286,840.41 | BB20: 131,878.93 | BC20: 22,392,430.47 | BD20: 9,473,116.11 | BE20: 4,616,294.15 | BF20: 8,303,020.21
C21: 314 | D21: Gros entretien et entretien courant du PA | E21: 93,059.75 | F21: 28,990.35 | G21: 58,014.25 | H21: 60,016.93 | I21: 371,423.83 | J21: 308,050.96 | K21: 492,958.07 | L21: 1,052,653.78 | M21: 234,223.45 | N21: 16,021.25 | O21: 975,099.29 | P21: 88,138.65 | Q21: 11,636.00 | R21: 32,930.65 | S21: 44,810.25 | T21: 165,384.90 | U21: 35,336.90 | V21: 81,638.25 | W21: 219,608.55 | X21: 29,969.45 | Y21: 301,952.80 | Z21: 592,774.26 | AA21: 12,983.80 | AB21: 107,219.65 | AC21: 99,981.55 | AD21: 84,601.45 | AE21: 274,827.22 | AF21: 393,928.15 | AG21: 668,463.42 | AH21: 22,081.05 | AI21: 28,544.65 | AJ21: 297,279.32 | AK21: 263,869.27 | AL21: 241,121.39 | AM21: 156,017.08 | AN21: 666,985.54 | AO21: 213,142.35 | AP21: 410,850.95 | AQ21: 93,997.27 | AR21: 113,817.30 | AS21: 43,007.20 | AT21: 393,830.54 | AU21: 76,295.00 | AV21: 76,792.70 | AW21: 84,822.30 | AX21: 232,982.15 | AY21: 49,876.60 | AZ21: 198,563.49 | BA21: 993,926.22 | BB21: 128,032.65 | BC21: 11,722,532.83 | BD21: 4,369,996.06 | BE21: 2,617,327.45 | BF21: 4,735,209.32
C22: 315 | D22: Entretien des biens mobiliers et des immobilisations corporelles du PA | E22: 45,162.00 | F22: 14,484.70 | G22: 5,803.10 | H22: 18,072.10 | I22: 208,420.55 | J22: 26,638.86 | K22: 110,114.95 | L22: 1,010,493.67 | M22: 94,594.65 | N22: 7,315.40 | O22: 263,992.05 | P22: 27,943.90 | Q22: 5,825.70 | R22: 21,180.69 | S22: 34,508.80 | T22: 17,408.35 | U22: 5,898.50 | V22: 47,837.85 | W22: 174,294.64 | X22: 520.00 | Y22: 81,068.45 | Z22: 130,961.33 | AA22: 8,083.15 | AB22: 36,490.85 | AC22: 73,516.10 | AD22: 44,706.21 | AE22: 24,745.40 | AF22: 104,472.50 | AG22: 48,061.05 | AH22: 7,953.67 | AI22: 11,190.90 | AJ22: 32,226.30 | AK22: 120,024.83 | AL22: 51,956.78 | AM22: 92,918.90 | AN22: 69,146.45 | AO22: 43,429.88 | AP22: 66,817.60 | AQ22: 43,333.27 | AR22: 39,552.25 | AS22: 6,739.90 | AT22: 38,601.25 | AU22: 47,700.05 | AV22: 11,355.35 | AW22: 38,247.95 | AX22: 62,913.05 | AY22: 18,961.25 | AZ22: 66,018.65 | BA22: 438,110.83 | BB22: 42,466.27 | BC22: 4,042,280.88 | BD22: 2,139,990.46 | BE22: 571,769.61 | BF22: 1,330,520.81
C23: 316 | D23: Loyers - crédits-bails (leasing) - baux à fermes - taxes d'utilisation | E23: 3,891.60 | F23: 2,817.40 | G23: 3,713.40 | H23: 91,433.20 | I23: 35,799.40 | J23: 35,108.07 | K23: 43,282.80 | L23: 774,088.50 | M23: 26,729.40 | N23: 5,694.30 | O23: 114,617.50 | P23: 0.00 | Q23: 850.00 | R23: 0.00 | S23: 0.00 | T23: 0.00 | U23: 0.00 | V23: 4,800.00 | W23: 133,446.05 | X23: 23,117.40 | Y23: 32,700.00 | Z23: 35,642.04 | AA23: 800.00 | AB23: 1,160.00 | AC23: 39,376.40 | AD23: 22,187.20 | AE23: 0.00 | AF23: 6,930.05 | AG23: 213,387.23 | AH23: 2,100.00 | AI23: 0.00 | AJ23: 0.00 | AK23: 7,537.25 | AL23: 18,596.50 | AM23: 34,662.00 | AN23: 48,000.00 | AO23: -20,000.00 | AP23: 94,824.15 | AQ23: 50,102.60 | AR23: 14,400.00 | AS23: 0.00 | AT23: 25,890.20 | AU23: 20,550.05 | AV23: 0.00 | AW23: 3,649.10 | AX23: 36,422.50 | AY23: 0.00 | AZ23: 4,868.75 | BA23: 729,322.77 | BB23: 600.00 | BC23: 2,723,097.81 | BD23: 1,276,271.62 | BE23: 377,400.32 | BF23: 1,069,425.87
C24: 317 | D24: Indemnités et dédommagements | E24: 17,661.10 | F24: 3,345.05 | G24: 268.25 | H24: 3,891.66 | I24: 106,854.75 | J24: 50,048.50 | K24: 27,144.30 | L24: 82,282.22 | M24: 26,599.55 | N24: 23.80 | O24: 72,894.30 | P24: 5,327.85 | Q24: 213.36 | R24: 2,407.40 | S24: 1,361.45 | T24: 7,823.10 | U24: 969.15 | V24: 7,843.90 | W24: 47,201.50 | X24: 10,375.90 | Y24: 24,661.65 | Z24: 62,236.25 | AA24: 613.70 | AB24: 5,814.20 | AC24: 3,703.45 | AD24: 6,558.18 | AE24: 797.30 | AF24: 23,487.35 | AG24: 36,658.40 | AH24: 1,464.40 | AI24: 936.70 | AJ24: 18,940.70 | AK24: 15,131.70 | AL24: 22,047.25 | AM24: 3,228.60 | AN24: 35,659.40 | AO24: 849.80 | AP24: 26,120.20 | AQ24: 37,504.25 | AR24: 13,788.90 | AS24: 1,500.80 | AT24: 59,037.40 | AU24: 6,857.15 | AV24: 593.95 | AW24: 3,881.96 | AX24: 24,265.20 | AY24: 3,557.65 | AZ24: 24,505.70 | BA24: 65,462.40 | BB24: 1,454.15 | BC24: 1,005,855.83 | BD24: 464,161.19 | BE24: 177,307.48 | BF24: 364,387.16
C25: 318 | D25: Réévaluations de créances | E25: 9,934.56 | F25: 248.14 | G25: -2,805.97 | H25: 71,297.43 | I25: 242,315.02 | J25: 139,707.42 | K25: 53,873.56 | L25: 847,075.16 | M25: 48,027.80 | N25: 1,403.49 | O25: 327,563.76 | P25: -4,959.56 | Q25: 2,617.42 | R25: 30,467.97 | S25: 10,145.19 | T25: 40,079.43 | U25: 16,721.27 | V25: 19,881.92 | W25: 136,413.05 | X25: 11,281.67 | Y25: 82,261.28 | Z25: 63,552.72 | AA25: 3,000.80 | AB25: 16,913.01 | AC25: 14,843.32 | AD25: 29,148.38 | AE25: 30,595.30 | AF25: -3,309.51 | AG25: 97,437.26 | AH25: 54,272.06 | AI25: -2,190.41 | AJ25: 63,370.14 | AK25: 70,446.45 | AL25: 24,489.47 | AM25: 123,849.05 | AN25: 29,987.57 | AO25: 26,717.43 | AP25: 13,993.77 | AQ25: 20,819.60 | AR25: 17,529.86 | AS25: 21,358.53 | AT25: 153,038.13 | AU25: 42,728.84 | AV25: 46,587.59 | AW25: 6,710.83 | AX25: 55,871.14 | AY25: 26,269.44 | AZ25: 53,562.37 | BA25: 666,298.55 | BB25: -5,516.31 | BC25: 3,845,925.39 | BD25: 1,990,007.06 | BE25: 397,805.88 | BF25: 1,458,112.45
C26: 319 | D26: Divers charges d'exploitation | E26: 5,742.25 | F26: 806.40 | G26: 2,642.16 | H26: 3,367.05 | I26: 45,359.34 | J26: 23,800.40 | K26: 27,329.45 | L26: 164,794.36 | M26: 70,571.93 | N26: 2,409.80 | O26: 17,487.60 | P26: 2,075.75 | Q26: 2,395.70 | R26: 0.00 | S26: 1,575.50 | T26: 0.00 | U26: 1,798.25 | V26: 1,675.50 | W26: 9,992.56 | X26: 12,517.90 | Y26: 26,885.50 | Z26: 17,282.10 | AA26: 3,954.60 | AB26: 2,364.55 | AC26: 17,534.05 | AD26: 4,269.50 | AE26: 490.08 | AF26: 55,209.32 | AG26: 16,914.55 | AH26: 691.05 | AI26: 4,796.10 | AJ26: 19,159.20 | AK26: 19,955.35 | AL26: 0.00 | AM26: 3,331.33 | AN26: 32,120.00 | AO26: 268.05 | AP26: 25,027.60 | AQ26: 2,416.90 | AR26: 7,274.75 | AS26: 6,120.85 | AT26: 24,500.00 | AU26: 9,894.63 | AV26: 823.10 | AW26: 0.00 | AX26: 3,647.06 | AY26: 100.00 | AZ26: 10,185.95 | BA26: 153,604.94 | BB26: 5,443.10 | BC26: 870,606.11 | BD26: 383,824.00 | BE26: 162,909.30 | BF26: 323,872.81
B28: 33 | D28: Amortissements du patrimoine administratif | E28: =E29+E30 -> 277,068.00 | F28: =F29+F30 -> 89,160.00 | G28: 83,585.16 | H28: 238,223.40 | I28: 1,184,075.67 | J28: 1,015,735.44 | K28: 713,304.91 | L28: 6,406,442.33 | M28: 383,425.40 | N28: 50,189.60 | O28: 1,601,561.90 | P28: 118,487.03 | Q28: 12,885.00 | R28: 57,700.00 | S28: 64,543.64 | T28: 128,943.45 | U28: 105,115.95 | V28: 133,572.90 | W28: 1,001,384.95 | X28: 82,124.00 | Y28: 326,119.15 | Z28: 541,867.15 | AA28: 13,700.00 | AB28: 107,250.00 | AC28: 255,896.36 | AD28: 156,260.00 | AE28: 87,124.00 | AF28: 576,659.40 | AG28: 814,914.08 | AH28: 70,024.66 | AI28: 16,038.60 | AJ28: 468,794.25 | AK28: 386,251.10 | AL28: 306,489.00 | AM28: 152,516.00 | AN28: 673,505.07 | AO28: 411,286.26 | AP28: 341,284.31 | AQ28: 155,650.00 | AR28: 280,685.80 | AS28: 70,603.75 | AT28: 615,969.00 | AU28: 124,221.32 | AV28: 50,247.00 | AW28: 96,465.00 | AX28: 592,779.00 | AY28: 51,800.00 | AZ28: 537,036.59 | BA28: 3,081,816.71 | BB28: 92,300.00 | BC28: 25,203,082.29 | BD28: 13,665,404.73 | BE28: 3,047,977.40 | BF28: 8,489,700.16
C29: 330 | D29: Amortissements des immobilisations corporelles du PA | E29: 277,068.00 | F29: 76,880.00 | G29: 81,838.66 | H29: 238,223.40 | I29: 1,184,075.67 | J29: 987,926.25 | K29: 497,734.96 | L29: 6,276,417.46 | M29: 371,595.40 | N29: 50,189.60 | O29: 1,487,339.25 | P29: 118,487.03 | Q29: 12,885.00 | R29: 57,700.00 | S29: 64,543.64 | T29: 123,301.27 | U29: 105,115.95 | V29: 112,230.00 | W29: 970,480.08 | X29: 77,624.00 | Y29: 324,137.25 | Z29: 541,867.15 | AA29: 13,700.00 | AB29: 95,850.00 | AC29: 255,896.36 | AD29: 138,558.00 | AE29: 87,124.00 | AF29: 565,256.90 | AG29: 785,914.08 | AH29: 61,574.66 | AI29: 16,038.60 | AJ29: 468,794.25 | AK29: 386,251.10 | AL29: 286,739.00 | AM29: 152,516.00 | AN29: 663,105.07 | AO29: 411,286.26 | AP29: 305,834.31 | AQ29: 155,650.00 | AR29: 279,685.80 | AS29: 68,380.00 | AT29: 586,935.40 | AU29: 124,221.32 | AV29: 50,247.00 | AW29: 96,465.00 | AX29: 526,358.85 | AY29: 50,840.00 | AZ29: 536,552.14 | BA29: 2,960,021.95 | BB29: 92,300.00 | BC29: =SUM(E29:BB29) -> 24,259,756.07 | BD29: =SUM(E29:W29) -> 13,094,031.62 | BE29: =SUM(X29:AI29) -> 2,963,541.00 | BF29: =SUM(AJ29:BB29) -> 8,202,183.45
C30: 332 | D30: Amortissements des immobilisations incorporelles du PA | E30: 0.00 | F30: 12,280.00 | G30: 1,746.50 | H30: 0.00 | I30: 0.00 | J30: 27,809.19 | K30: 215,569.95 | L30: 130,024.87 | M30: 11,830.00 | N30: 0.00 | O30: 114,222.65 | P30: 0.00 | Q30: 0.00 | R30: 0.00 | S30: 0.00 | T30: 5,642.18 | U30: 0.00 | V30: 21,342.90 | W30: 30,904.87 | X30: 4,500.00 | Y30: 1,981.90 | Z30: 0.00 | AA30: 0.00 | AB30: 11,400.00 | AC30: 0.00 | AD30: 17,702.00 | AE30: 0.00 | AF30: 11,402.50 | AG30: 29,000.00 | AH30: 8,450.00 | AI30: 0.00 | AJ30: 0.00 | AK30: 0.00 | AL30: 19,750.00 | AM30: 0.00 | AN30: 10,400.00 | AO30: 0.00 | AP30: 35,450.00 | AQ30: 0.00 | AR30: 1,000.00 | AS30: 2,223.75 | AT30: 29,033.60 | AU30: 0.00 | AV30: 0.00 | AW30: 0.00 | AX30: 66,420.15 | AY30: 960.00 | AZ30: 484.45 | BA30: 121,794.76 | BB30: 0.00 | BC30: =SUM(E30:BB30) -> 943,326.22 | BD30: =SUM(E30:W30) -> 571,373.11 | BE30: =SUM(X30:AI30) -> 84,436.40 | BF30: =SUM(AJ30:BB30) -> 287,516.71
B32: 34 | D32: Charges financières | E32: =E33+E34+E35+E36+E37+E38 -> 194,590.16 | F32: =F33+F34+F35+F36+F37+F38 -> 36,642.44 | G32: 86,715.09 | H32: 99,380.97 | I32: 524,625.45 | J32: 348,405.60 | K32: 250,738.45 | L32: 3,772,016.12 | M32: 149,778.14 | N32: 11,198.30 | O32: 740,582.74 | P32: 49,811.94 | Q32: 12,092.97 | R32: 65,635.60 | S32: 75,464.35 | T32: 79,191.46 | U32: 23,343.40 | V32: 36,697.45 | W32: 207,677.26 | X32: 9,567.21 | Y32: 101,745.57 | Z32: 27,950.24 | AA32: 20,339.95 | AB32: 81,994.54 | AC32: 81,273.80 | AD32: 51,019.09 | AE32: 18,196.72 | AF32: 149,523.18 | AG32: 182,227.73 | AH32: 21,255.85 | AI32: 26,606.91 | AJ32: 195,877.04 | AK32: 196,399.57 | AL32: 174,907.60 | AM32: 117,385.01 | AN32: 255,151.01 | AO32: 77,895.63 | AP32: 307,870.75 | AQ32: 95,201.09 | AR32: 184,292.39 | AS32: 27,378.13 | AT32: 226,104.20 | AU32: 71,000.37 | AV32: 16,322.80 | AW32: 22,453.81 | AX32: 320,036.33 | AY32: 61,209.31 | AZ32: 180,905.90 | BA32: 1,051,077.75 | BB32: 83,654.90 | BC32: 11,201,412.27 | BD32: 6,764,587.89 | BE32: 771,700.79 | BF32: 3,665,123.59
C33: 340 | D33: Charges d'intérets | E33: 194,590.16 | F33: 29,062.04 | G33: 52,300.29 | H33: 64,472.77 | I33: 354,698.02 | J33: 330,578.30 | K33: 181,688.95 | L33: 3,224,545.98 | M33: 124,223.56 | N33: 11,198.30 | O33: 672,055.44 | P33: 42,566.44 | Q33: 9,573.12 | R33: 53,626.40 | S33: 71,351.75 | T33: 50,819.51 | U33: 15,924.89 | V33: 33,962.25 | W33: 194,944.68 | X33: 6,912.16 | Y33: 101,745.57 | Z33: 11,605.94 | AA33: 6,149.85 | AB33: 63,223.79 | AC33: 75,820.20 | AD33: 50,769.09 | AE33: 2,409.27 | AF33: 45,198.92 | AG33: 163,532.88 | AH33: 20,884.60 | AI33: 4,195.96 | AJ33: 181,040.09 | AK33: 138,965.72 | AL33: 148,742.59 | AM33: 105,420.88 | AN33: 92,515.19 | AO33: 77,895.63 | AP33: 117,717.05 | AQ33: 86,400.63 | AR33: 131,814.84 | AS33: 27,378.13 | AT33: 226,104.20 | AU33: 61,865.32 | AV33: 6,982.85 | AW33: 22,453.81 | AX33: 319,181.73 | AY33: 60,357.01 | AZ33: 146,859.31 | BA33: 894,465.69 | BB33: 49,394.10 | BC33: =SUM(E33:BB33) -> 9,160,185.85 | BD33: =SUM(E33:W33) -> 5,712,182.85 | BE33: =SUM(X33:AI33) -> 552,448.23 | BF33: =SUM(AJ33:BB33) -> 2,895,554.77
C34: 341 | D34: Pertes sur les placements financiers et les immobilisations du PF | E34: 0.00 | F34: 0.00 | G34: 0.00 | H34: 0.00 | I34: 0.00 | J34: 0.00 | K34: 0.00 | L34: 0.00 | M34: 22,270.00 | N34: 0.00 | O34: 0.00 | P34: 0.00 | Q34: 0.00 | R34: 0.00 | S34: 0.00 | T34: 0.00 | U34: 0.00 | V34: 0.00 | W34: 0.00 | X34: 0.00 | Y34: 0.00 | Z34: 0.00 | AA34: 0.00 | AB34: 0.00 | AC34: 0.00 | AD34: 0.00 | AE34: 0.00 | AF34: 0.00 | AG34: 0.00 | AH34: 0.00 | AI34: 0.00 | AJ34: 0.00 | AK34: 2,940.15 | AL34: 0.00 | AM34: 0.00 | AN34: 0.00 | AO34: 0.00 | AP34: 0.00 | AQ34: 0.00 | AR34: 0.00 | AS34: 0.00 | AT34: 0.00 | AU34: 0.00 | AV34: 0.00 | AW34: 0.00 | AX34: 0.00 | AY34: 0.00 | AZ34: 0.00 | BA34: 0.00 | BB34: 0.00 | BC34: 25,210.15 | BD34: 22,270.00 | BE34: 0.00 | BF34: 2,940.15
C35: 342 | D35: Frais d'acquisitions des capitaux et frais administratifs | E35: 0.00 | F35: 0.00 | G35: 0.00 | H35: 0.00 | I35: 0.00 | J35: 0.00 | K35: 0.00 | L35: 0.00 | M35: 0.00 | N35: 0.00 | O35: 0.00 | P35: 0.00 | Q35: 0.00 | R35: 0.00 | S35: 0.00 | T35: 0.00 | U35: 0.00 | V35: 0.00 | W35: 126.69 | X35: 0.00 | Y35: 0.00 | Z35: 0.00 | AA35: 0.00 | AB35: 0.00 | AC35: 0.00 | AD35: 0.00 | AE35: 0.00 | AF35: 0.00 | AG35: 0.00 | AH35: 0.00 | AI35: 0.00 | AJ35: 0.00 | AK35: 0.00 | AL35: 0.00 | AM35: 0.00 | AN35: 0.00 | AO35: 0.00 | AP35: 0.00 | AQ35: 0.00 | AR35: 0.00 | AS35: 0.00 | AT35: 0.00 | AU35: 0.00 | AV35: 0.00 | AW35: 0.00 | AX35: 0.00 | AY35: 0.00 | AZ35: 0.00 | BA35: 0.00 | BB35: 0.00 | BC35: 126.69 | BD35: 126.69 | BE35: 0.00 | BF35: 0.00
C36: 343 | D36: Charges pour les biens-fonds du PF | E36: 0.00 | F36: 7,580.30 | G36: 34,414.80 | H36: 34,908.20 | I36: 149,868.43 | J36: 17,827.30 | K36: 69,049.50 | L36: 547,470.14 | M36: 3,275.70 | N36: 0.00 | O36: 68,527.30 | P36: 7,245.50 | Q36: 2,519.85 | R36: 12,009.20 | S36: 4,112.60 | T36: 26,042.45 | U36: 7,418.51 | V36: 2,735.20 | W36: 12,605.89 | X36: 0.00 | Y36: 0.00 | Z36: 16,344.30 | AA36: 13,265.90 | AB36: 18,770.75 | AC36: 5,453.60 | AD36: 0.00 | AE36: 15,787.45 | AF36: 35,841.10 | AG36: 18,694.85 | AH36: 371.25 | AI36: 22,160.95 | AJ36: 14,836.95 | AK36: 40,926.47 | AL36: 26,165.01 | AM36: 8,716.55 | AN36: 162,635.82 | AO36: 0.00 | AP36: 190,153.70 | AQ36: 6,151.01 | AR36: 52,477.55 | AS36: 0.00 | AT36: 0.00 | AU36: 6,468.60 | AV36: 8,024.25 | AW36: 0.00 | AX36: 854.60 | AY36: 852.30 | AZ36: 31,953.34 | BA36: 156,612.06 | BB36: 31,445.55 | BC36: 1,892,574.78 | BD36: 1,007,610.87 | BE36: 146,690.15 | BF36: 738,273.76
C37: 344 | D37: Réévaluations des immobilisations du PF | E37: 0.00 | F37: 0.00 | G37: 0.00 | H37: 0.00 | I37: 20,059.00 | J37: 0.00 | K37: 0.00 | L37: 0.00 | M37: 0.00 | N37: 0.00 | O37: 0.00 | P37: 0.00 | Q37: 0.00 | R37: 0.00 | S37: 0.00 | T37: 2,329.50 | U37: 0.00 | V37: 0.00 | W37: 0.00 | X37: 0.00 | Y37: 0.00 | Z37: 0.00 | AA37: 0.00 | AB37: 0.00 | AC37: 0.00 | AD37: 250.00 | AE37: 0.00 | AF37: 68,476.40 | AG37: 0.00 | AH37: 0.00 | AI37: 250.00 | AJ37: 0.00 | AK37: 0.00 | AL37: 0.00 | AM37: 0.00 | AN37: 0.00 | AO37: 0.00 | AP37: 0.00 | AQ37: 0.00 | AR37: 0.00 | AS37: 0.00 | AT37: 0.00 | AU37: 0.00 | AV37: 0.00 | AW37: 0.00 | AX37: 0.00 | AY37: 0.00 | AZ37: 2,093.25 | BA37: 0.00 | BB37: 0.00 | BC37: 93,458.15 | BD37: 22,388.50 | BE37: 68,976.40 | BF37: 2,093.25
C38: 349 | D38: Autres charges financières | E38: 0.00 | F38: 0.10 | G38: 0.00 | H38: 0.00 | I38: 0.00 | J38: 0.00 | K38: 0.00 | L38: 0.00 | M38: 8.88 | N38: 0.00 | O38: 0.00 | P38: 0.00 | Q38: 0.00 | R38: 0.00 | S38: 0.00 | T38: 0.00 | U38: 0.00 | V38: 0.00 | W38: 0.00 | X38: 2,655.05 | Y38: 0.00 | Z38: 0.00 | AA38: 924.20 | AB38: 0.00 | AC38: 0.00 | AD38: 0.00 | AE38: 0.00 | AF38: 6.76 | AG38: 0.00 | AH38: 0.00 | AI38: 0.00 | AJ38: 0.00 | AK38: 13,567.23 | AL38: 0.00 | AM38: 3,247.58 | AN38: 0.00 | AO38: 0.00 | AP38: 0.00 | AQ38: 2,649.45 | AR38: 0.00 | AS38: 0.00 | AT38: 0.00 | AU38: 2,666.45 | AV38: 1,315.70 | AW38: 0.00 | AX38: 0.00 | AY38: 0.00 | AZ38: 0.00 | BA38: 0.00 | BB38: 2,815.25 | BC38: 29,856.65 | BD38: 8.98 | BE38: 3,586.01 | BF38: 26,261.66
B40: 35 | D40: Attributions aux financements spéciaux des capitaux de tiers | E40: =E41+E42 -> 60,816.55 | F40: =F41+F42 -> 53,469.75 | G40: 64,150.55 | H40: 0.00 | I40: 436,845.50 | J40: 375,508.60 | K40: 210,911.53 | L40: 0.00 | M40: 107,549.60 | N40: 0.00 | O40: 1,032,750.45 | P40: 0.00 | Q40: 19,055.00 | R40: 126,370.00 | S40: 97,180.00 | T40: 94,394.00 | U40: 4,808.45 | V40: 68,680.00 | W40: 212,810.00 | X40: 26,919.85 | Y40: 0.00 | Z40: 376,485.15 | AA40: 5,730.00 | AB40: 76,822.55 | AC40: 53,868.60 | AD40: 0.00 | AE40: 19,480.00 | AF40: 503,926.50 | AG40: 182,239.75 | AH40: 3,213.67 | AI40: 50,290.00 | AJ40: 246,317.00 | AK40: 9,565.10 | AL40: 313,883.20 | AM40: 6,526.00 | AN40: 39,662.00 | AO40: 55,645.00 | AP40: 492,225.30 | AQ40: 106,583.60 | AR40: 158,594.64 | AS40: 85,478.90 | AT40: 205,825.03 | AU40: 132,932.00 | AV40: 87,281.84 | AW40: 0.00 | AX40: 15,180.70 | AY40: 146,711.27 | AZ40: 241,126.54 | BA40: 1,000,054.70 | BB40: 16,833.31 | BC40: 7,624,702.18 | BD40: 2,965,299.98 | BE40: 1,298,976.07 | BF40: 3,360,426.13
C41: 350 | D41: Attributions aux financements spéciaux des capitaux de tiers | E41: 0.00 | F41: 0.00 | G41: 0.00 | H41: 0.00 | I41: 0.00 | J41: 0.00 | K41: 0.00 | L41: 0.00 | M41: 0.00 | N41: 0.00 | O41: 0.00 | P41: 0.00 | Q41: 0.00 | R41: 0.00 | S41: 0.00 | T41: 0.00 | U41: 0.00 | V41: 0.00 | W41: 0.00 | X41: 0.00 | Y41: 0.00 | Z41: 270,000.00 | AA41: 0.00 | AB41: 0.00 | AC41: 0.00 | AD41: 0.00 | AE41: 0.00 | AF41: 0.00 | AG41: 0.00 | AH41: 1,636.59 | AI41: 0.00 | AJ41: 11,511.30 | AK41: 0.00 | AL41: 0.00 | AM41: 0.00 | AN41: 0.00 | AO41: 0.00 | AP41: 0.00 | AQ41: 0.00 | AR41: 0.00 | AS41: 0.00 | AT41: 93.15 | AU41: 0.00 | AV41: 0.00 | AW41: 0.00 | AX41: 0.00 | AY41: 0.00 | AZ41: 0.00 | BA41: 0.00 | BB41: 0.00 | BC41: =SUM(E41:BB41) -> 283,241.04 | BD41: =SUM(E41:W41) -> 0.00 | BE41: =SUM(X41:AI41) -> 271,636.59 | BF41: =SUM(AJ41:BB41) -> 11,604.45
C42: 351 | D42: Attributions aux financements spéciaux du capital propres | E42: 60,816.55 | F42: 53,469.75 | G42: 64,150.55 | H42: 0.00 | I42: 436,845.50 | J42: 375,508.60 | K42: 210,911.53 | L42: 0.00 | M42: 107,549.60 | N42: 0.00 | O42: 1,032,750.45 | P42: 0.00 | Q42: 19,055.00 | R42: 126,370.00 | S42: 97,180.00 | T42: 94,394.00 | U42: 4,808.45 | V42: 68,680.00 | W42: 212,810.00 | X42: 26,919.85 | Y42: 0.00 | Z42: 106,485.15 | AA42: 5,730.00 | AB42: 76,822.55 | AC42: 53,868.60 | AD42: 0.00 | AE42: 19,480.00 | AF42: 503,926.50 | AG42: 182,239.75 | AH42: 1,577.08 | AI42: 50,290.00 | AJ42: 234,805.70 | AK42: 9,565.10 | AL42: 313,883.20 | AM42: 6,526.00 | AN42: 39,662.00 | AO42: 55,645.00 | AP42: 492,225.30 | AQ42: 106,583.60 | AR42: 158,594.64 | AS42: 85,478.90 | AT42: 205,731.88 | AU42: 132,932.00 | AV42: 87,281.84 | AW42: 0.00 | AX42: 15,180.70 | AY42: 146,711.27 | AZ42: 241,126.54 | BA42: 1,000,054.70 | BB42: 16,833.31 | BC42: =SUM(E42:BB42) -> 7,341,461.14 | BD42: =SUM(E42:W42) -> 2,965,299.98 | BE42: =SUM(X42:AI42) -> 1,027,339.48 | BF42: =SUM(AJ42:BB42) -> 3,348,821.68
B44: 36 | D44: Charges de transferts | E44: =E45+E46+E47+E48+E49+E50+E51+E52 -> 2,509,583.33 | F44: =F45+F46+F47+F48+F49+F50+F51+F52 -> 773,691.40 | G44: 1,141,340.01 | H44: 1,036,687.00 | I44: 8,134,276.30 | J44: 6,913,486.31 | K44: 8,616,778.80 | L44: 43,727,740.80 | M44: 3,918,848.41 | N44: 264,573.06 | O44: 17,655,300.81 | P44: 1,108,330.45 | Q44: 267,007.51 | R44: 1,027,673.70 | S44: 890,226.95 | T44: 1,590,162.90 | U44: 672,188.03 | V44: 1,842,131.71 | W44: 6,403,773.06 | X44: 691,433.10 | Y44: 2,957,747.48 | Z44: 10,461,440.84 | AA44: 399,489.83 | AB44: 1,438,475.41 | AC44: 1,744,391.21 | AD44: 1,419,063.19 | AE44: 1,521,044.06 | AF44: 5,286,947.24 | AG44: 5,506,281.48 | AH44: 619,179.05 | AI44: 333,589.19 | AJ44: 4,358,133.22 | AK44: 3,083,788.32 | AL44: 3,036,435.58 | AM44: 2,731,565.46 | AN44: 4,740,274.60 | AO44: 1,856,457.48 | AP44: 2,698,335.85 | AQ44: 2,007,257.58 | AR44: 2,372,719.16 | AS44: 843,977.03 | AT44: 6,630,464.67 | AU44: 2,200,072.35 | AV44: 943,252.80 | AW44: 723,350.47 | AX44: 4,220,098.65 | AY44: 1,026,312.45 | AZ44: 2,608,127.02 | BA44: 18,668,947.06 | BB44: 1,402,841.92 | BC44: 207,025,294.29 | BD44: 108,493,800.54 | BE44: 32,379,082.08 | BF44: 66,152,411.67
C45: 360 | D45: Parts de revenus destinés à des collectivités publiques | E45: 5,843.75 | F45: 1,360.00 | G45: 1,700.00 | H45: 1,000.00 | I45: 18,324.85 | J45: 129,581.00 | K45: 4,440.00 | L45: 28,864.08 | M45: 2,840.00 | N45: 800.00 | O45: 96,918.15 | P45: 1,580.00 | Q45: 200.00 | R45: 1,440.00 | S45: 1,080.00 | T45: 6,330.40 | U45: 860.00 | V45: 1,240.00 | W45: 6,700.00 | X45: 2,320.00 | Y45: 11,502.90 | Z45: 0.00 | AA45: 1,626.25 | AB45: 3,585.00 | AC45: 15,674.60 | AD45: 4,955.00 | AE45: 5,321.20 | AF45: 17,460.00 | AG45: 23,405.00 | AH45: 2,360.00 | AI45: 2,789.00 | AJ45: 5,529.00 | AK45: 4,680.00 | AL45: 4,915.00 | AM45: 385.00 | AN45: 0.00 | AO45: 2,447.00 | AP45: 6,655.00 | AQ45: 2,310.00 | AR45: 3,020.00 | AS45: 1,400.00 | AT45: 5,640.00 | AU45: 2,482.10 | AV45: 0.00 | AW45: 1,760.00 | AX45: 3,580.00 | AY45: 1,580.00 | AZ45: 7,230.00 | BA45: 15,711.44 | BB45: 2,120.00 | BC45: =SUM(E45:BB45) -> 473,545.72 | BD45: =SUM(E45:W45) -> 311,102.23 | BE45: =SUM(X45:AI45) -> 90,998.95 | BF45: =SUM(AJ45:BB45) -> 71,444.54
C46: 361 | D46: Dédommagements aux collectivités publiques | E46: 1,972,307.59 | F46: 586,692.70 | G46: 926,890.86 | H46: 685,105.72 | I46: 4,840,662.80 | J46: 4,453,554.50 | K46: 6,575,972.27 | L46: 18,827,213.78 | M46: 2,729,072.65 | N46: 157,654.91 | O46: 12,468,548.29 | P46: 843,733.85 | Q46: 223,419.46 | R46: 855,420.50 | S46: 701,309.75 | T46: 1,241,626.96 | U46: 513,060.18 | V46: 970,967.92 | W46: 4,387,038.26 | X46: 470,128.00 | Y46: 2,136,162.71 | Z46: 2,638,039.42 | AA46: 287,043.03 | AB46: 1,079,683.36 | AC46: 1,277,982.41 | AD46: 974,554.68 | AE46: 1,184,442.47 | AF46: 3,482,253.61 | AG46: 3,199,579.39 | AH46: 489,546.28 | AI46: 227,376.15 | AJ46: 3,303,430.67 | AK46: 2,413,250.22 | AL46: 2,175,613.68 | AM46: 1,881,022.11 | AN46: 1,603,244.40 | AO46: 1,510,436.07 | AP46: 1,987,899.20 | AQ46: 1,472,463.35 | AR46: 1,509,017.71 | AS46: 642,440.33 | AT46: 4,977,083.14 | AU46: 1,737,952.60 | AV46: 652,282.00 | AW46: 551,364.37 | AX46: 3,254,666.30 | AY46: 835,901.05 | AZ46: 1,890,352.94 | BA46: 9,059,382.81 | BB46: 955,353.07 | BC46: 123,820,200.48 | BD46: 63,960,252.95 | BE46: 17,446,791.51 | BF46: 42,413,156.02
C47: 362 | D47: Péréquation financière et compensation de charges | E47: 23,962.00 | F47: 6,501.00 | G47: 15,823.00 | H47: 0.00 | I47: 155,540.00 | J47: 141,163.00 | K47: 394,401.00 | L47: 229,016.50 | M47: 58,108.00 | N47: 0.00 | O47: 244,473.00 | P47: 0.00 | Q47: 3,560.00 | R47: 0.00 | S47: 0.00 | T47: 31,279.00 | U47: 4,535.00 | V47: 32,762.00 | W47: 0.00 | X47: 0.00 | Y47: 73,637.00 | Z47: 6,786,913.00 | AA47: 0.00 | AB47: 0.00 | AC47: 0.00 | AD47: 0.00 | AE47: 31,946.00 | AF47: 251,486.00 | AG47: 0.00 | AH47: 0.00 | AI47: 0.00 | AJ47: 58,815.00 | AK47: 0.00 | AL47: 0.00 | AM47: 0.00 | AN47: 2,096,162.00 | AO47: 19,720.00 | AP47: 0.00 | AQ47: 0.00 | AR47: 0.00 | AS47: 13,382.00 | AT47: 0.00 | AU47: 24,564.00 | AV47: 0.00 | AW47: 0.00 | AX47: 52,283.00 | AY47: 6,047.00 | AZ47: 5,781.00 | BA47: 327,575.00 | BB47: 0.00 | BC47: 11,089,434.50 | BD47: 1,341,123.50 | BE47: 7,143,982.00 | BF47: 2,604,329.00
C48: 363 | D48: Subventions à des collectivités publiques et des tiers | E48: 499,564.70 | F48: 177,319.70 | G48: 196,926.15 | H48: 283,220.40 | I48: 3,104,779.95 | J48: 2,071,963.00 | K48: 1,627,497.78 | L48: 18,511,859.57 | M48: 779,557.85 | N48: 106,118.15 | O48: 4,652,005.98 | P48: 260,015.30 | Q48: 39,828.05 | R48: 167,132.20 | S48: 187,837.20 | T48: 310,926.54 | U48: 142,886.30 | V48: 837,161.79 | W48: 1,996,732.00 | X48: 218,983.10 | Y48: 728,947.87 | Z48: 1,023,177.42 | AA48: 110,820.55 | AB48: 355,207.05 | AC48: 434,384.95 | AD48: 435,827.51 | AE48: 292,014.39 | AF48: 1,520,213.63 | AG48: 2,262,012.09 | AH48: 126,075.77 | AI48: 103,424.04 | AJ48: 990,358.55 | AK48: 664,608.10 | AL48: 854,214.90 | AM48: 850,158.35 | AN48: 1,040,868.20 | AO48: 318,328.41 | AP48: 696,869.65 | AQ48: 525,672.23 | AR48: 860,681.45 | AS48: 186,386.70 | AT48: 1,647,741.53 | AU48: 434,440.65 | AV48: 287,396.80 | AW48: 167,125.10 | AX48: 894,972.35 | AY48: 182,465.40 | AZ48: 703,679.68 | BA48: 9,224,677.81 | BB48: 439,909.85 | BC48: 64,534,976.69 | BD48: 35,953,332.61 | BE48: 7,611,088.37 | BF48: 20,970,555.71
C49: 364 | D49: Réévaluations des prets du PA | E49: 0.00 | F49: 0.00 | G49: 0.00 | H49: 0.00 | I49: 0.00 | J49: 0.00 | K49: 0.00 | L49: 0.00 | M49: 0.00 | N49: 0.00 | O49: 82,000.00 | P49: 0.00 | Q49: 0.00 | R49: 0.00 | S49: 0.00 | T49: 0.00 | U49: 0.00 | V49: 0.00 | W49: 0.00 | X49: 0.00 | Y49: 0.00 | Z49: 0.00 | AA49: 0.00 | AB49: 0.00 | AC49: 0.00 | AD49: 0.00 | AE49: 0.00 | AF49: 0.00 | AG49: 0.00 | AH49: 0.00 | AI49: 0.00 | AJ49: 0.00 | AK49: 0.00 | AL49: 0.00 | AM49: 0.00 | AN49: 0.00 | AO49: 0.00 | AP49: 0.00 | AQ49: 0.00 | AR49: 0.00 | AS49: 0.00 | AT49: 0.00 | AU49: 0.00 | AV49: 0.00 | AW49: 0.00 | AX49: 0.00 | AY49: 0.00 | AZ49: 0.00 | BA49: 0.00 | BB49: 0.00 | BC49: 82,000.00 | BD49: 82,000.00 | BE49: 0.00 | BF49: 0.00
C50: 365 | D50: Réévaluations des participations du PA | E50: 0.00 | F50: 0.00 | G50: 0.00 | H50: 0.00 | I50: 0.00 | J50: 0.00 | K50: 0.00 | L50: 0.00 | M50: 0.00 | N50: 0.00 | O50: 10,000.00 | P50: 0.00 | Q50: 0.00 | R50: 0.00 | S50: 0.00 | T50: 0.00 | U50: 8,100.00 | V50: 0.00 | W50: 0.00 | X50: 2.00 | Y50: 0.00 | Z50: 0.00 | AA50: 0.00 | AB50: 0.00 | AC50: 0.00 | AD50: 0.00 | AE50: 0.00 | AF50: 0.00 | AG50: 0.00 | AH50: 0.00 | AI50: 0.00 | AJ50: 0.00 | AK50: 0.00 | AL50: 0.00 | AM50: 0.00 | AN50: 0.00 | AO50: 0.00 | AP50: 0.00 | AQ50: 0.00 | AR50: 0.00 | AS50: 0.00 | AT50: 0.00 | AU50: 0.00 | AV50: 0.00 | AW50: 0.00 | AX50: 13,000.00 | AY50: 0.00 | AZ50: 0.00 | BA50: 0.00 | BB50: 0.00 | BC50: 31,102.00 | BD50: 18,100.00 | BE50: 2.00 | BF50: 13,000.00
C51: 366 | D51: Amortissements des subventions des investissements | E51: 7,905.29 | F51: 0.00 | G51: 0.00 | H51: 2,572.45 | I51: 14,968.70 | J51: 0.00 | K51: 14,467.75 | L51: 78,641.00 | M51: 10,700.00 | N51: 0.00 | O51: 74,430.89 | P51: 3,001.30 | Q51: 0.00 | R51: 0.00 | S51: 0.00 | T51: 0.00 | U51: 667.55 | V51: 0.00 | W51: 13,302.80 | X51: 0.00 | Y51: 0.00 | Z51: 0.00 | AA51: 0.00 | AB51: 0.00 | AC51: 0.00 | AD51: 0.00 | AE51: 0.00 | AF51: 0.00 | AG51: 0.00 | AH51: 0.00 | AI51: 0.00 | AJ51: 0.00 | AK51: 1,250.00 | AL51: 0.00 | AM51: 0.00 | AN51: 0.00 | AO51: 0.00 | AP51: 0.00 | AQ51: 422.00 | AR51: 0.00 | AS51: 338.00 | AT51: 0.00 | AU51: 633.00 | AV51: 442.00 | AW51: 311.00 | AX51: 1,597.00 | AY51: 319.00 | AZ51: 1,083.40 | BA51: 41,600.00 | BB51: 590.00 | BC51: 269,243.13 | BD51: 220,657.73 | BE51: 0.00 | BF51: 48,585.40
C52: 369 | D52: Différentes charges de transfert à des collectivités publiques et tiers | E52: 0.00 | F52: 1,818.00 | G52: 0.00 | H52: 64,788.43 | I52: 0.00 | J52: 117,224.81 | K52: 0.00 | L52: 6,052,145.87 | M52: 338,569.91 | N52: 0.00 | O52: 26,924.50 | P52: 0.00 | Q52: 0.00 | R52: 3,681.00 | S52: 0.00 | T52: 0.00 | U52: 2,079.00 | V52: 0.00 | W52: 0.00 | X52: 0.00 | Y52: 7,497.00 | Z52: 13,311.00 | AA52: 0.00 | AB52: 0.00 | AC52: 16,349.25 | AD52: 3,726.00 | AE52: 7,320.00 | AF52: 15,534.00 | AG52: 21,285.00 | AH52: 1,197.00 | AI52: 0.00 | AJ52: 0.00 | AK52: 0.00 | AL52: 1,692.00 | AM52: 0.00 | AN52: 0.00 | AO52: 5,526.00 | AP52: 6,912.00 | AQ52: 6,390.00 | AR52: 0.00 | AS52: 30.00 | AT52: 0.00 | AU52: 0.00 | AV52: 3,132.00 | AW52: 2,790.00 | AX52: 0.00 | AY52: 0.00 | AZ52: 0.00 | BA52: 0.00 | BB52: 4,869.00 | BC52: 6,724,791.77 | BD52: 6,607,231.52 | BE52: 86,219.25 | BF52: 31,341.00
B54: 37 | D54: Subventions à redistribuer | E54: =E55 -> 0.00 | F54: =F55 -> 0.00 | G54: 0.00 | H54: 0.00 | I54: 0.00 | J54: 0.00 | K54: 0.00 | L54: 0.00 | M54: 0.00 | N54: 0.00 | O54: 0.00 | P54: 0.00 | Q54: 0.00 | R54: 0.00 | S54: 0.00 | T54: 0.00 | U54: 0.00 | V54: 0.00 | W54: 0.00 | X54: 431,783.60 | Y54: 0.00 | Z54: 583,534.05 | AA54: 174,522.80 | AB54: 152,345.95 | AC54: 0.00 | AD54: 248,254.50 | AE54: 613,271.00 | AF54: 350,772.85 | AG54: 462,715.20 | AH54: 2,864.00 | AI54: 0.00 | AJ54: 0.00 | AK54: 0.00 | AL54: 22,601.15 | AM54: 1,603.00 | AN54: 0.00 | AO54: 0.00 | AP54: 51,178.10 | AQ54: 0.00 | AR54: 0.00 | AS54: 0.00 | AT54: 40,035.65 | AU54: 9,660.00 | AV54: 0.00 | AW54: 0.00 | AX54: 0.00 | AY54: 0.00 | AZ54: 0.00 | BA54: 0.00 | BB54: 0.00 | BC54: 3,145,141.85 | BD54: 0.00 | BE54: 3,020,063.95 | BF54: 125,077.90
C55: 370 | D55: Subventions à redistribuer à des collectivités publiques et des tiers | E55: 0.00 | F55: 0.00 | G55: 0.00 | H55: 0.00 | I55: 0.00 | J55: 0.00 | K55: 0.00 | L55: 0.00 | M55: 0.00 | N55: 0.00 | O55: 0.00 | P55: 0.00 | Q55: 0.00 | R55: 0.00 | S55: 0.00 | T55: 0.00 | U55: 0.00 | V55: 0.00 | W55: 0.00 | X55: 431,783.60 | Y55: 0.00 | Z55: 583,534.05 | AA55: 174,522.80 | AB55: 152,345.95 | AC55: 0.00 | AD55: 248,254.50 | AE55: 613,271.00 | AF55: 350,772.85 | AG55: 462,715.20 | AH55: 2,864.00 | AI55: 0.00 | AJ55: 0.00 | AK55: 0.00 | AL55: 22,601.15 | AM55: 1,603.00 | AN55: 0.00 | AO55: 0.00 | AP55: 51,178.10 | AQ55: 0.00 | AR55: 0.00 | AS55: 0.00 | AT55: 40,035.65 | AU55: 9,660.00 | AV55: 0.00 | AW55: 0.00 | AX55: 0.00 | AY55: 0.00 | AZ55: 0.00 | BA55: 0.00 | BB55: 0.00 | BC55: =SUM(E55:BB55) -> 3,145,141.85 | BD55: =SUM(E55:W55) -> 0.00 | BE55: =SUM(X55:AI55) -> 3,020,063.95 | BF55: =SUM(AJ55:BB55) -> 125,077.90
B57: 38 | D57: Charges extraordinaires | E57: =E58+E59+E60+E61+E62+E63 -> 609.65 | F57: =F58+F59+F60+F61+F62+F63 -> 0.00 | G57: 0.00 | H57: 340.75 | I57: 609,979.24 | J57: 0.00 | K57: 0.00 | L57: 0.00 | M57: 0.00 | N57: 0.00 | O57: 832,100.00 | P57: 0.00 | Q57: 0.00 | R57: 0.00 | S57: 450,000.00 | T57: 1,400,000.00 | U57: 0.00 | V57: 30,000.00 | W57: 695,650.00 | X57: 100,000.00 | Y57: 0.00 | Z57: 1,000,000.00 | AA57: 65,000.00 | AB57: 0.00 | AC57: 250,000.00 | AD57: 135,000.00 | AE57: 0.00 | AF57: 1,000,000.00 | AG57: 2,000,000.00 | AH57: 0.00 | AI57: 15,000.00 | AJ57: 1,000,000.00 | AK57: 87,002.46 | AL57: 350,000.00 | AM57: 2,819.00 | AN57: 1,400,000.00 | AO57: 110,000.00 | AP57: 1,000,000.00 | AQ57: 150,000.00 | AR57: 57,450.12 | AS57: 220,000.00 | AT57: 550,000.00 | AU57: 0.00 | AV57: 0.00 | AW57: 0.00 | AX57: 0.00 | AY57: 50,000.00 | AZ57: 100,000.00 | BA57: 3,034,274.99 | BB57: 0.00 | BC57: 16,695,226.21 | BD57: 4,018,679.64 | BE57: 4,565,000.00 | BF57: 8,111,546.57
C58: 380 | D58: Charges extraordinaires du personnel administratif et d'exploitation | E58: 0.00 | F58: 0.00 | G58: 0.00 | H58: 340.75 | I58: 0.00 | J58: 0.00 | K58: 0.00 | L58: 0.00 | M58: 0.00 | N58: 0.00 | O58: 0.00 | P58: 0.00 | Q58: 0.00 | R58: 0.00 | S58: 0.00 | T58: 0.00 | U58: 0.00 | V58: 0.00 | W58: 0.00 | X58: 0.00 | Y58: 0.00 | Z58: 0.00 | AA58: 0.00 | AB58: 0.00 | AC58: 0.00 | AD58: 0.00 | AE58: 0.00 | AF58: 0.00 | AG58: 0.00 | AH58: 0.00 | AI58: 0.00 | AJ58: 0.00 | AK58: 0.00 | AL58: 0.00 | AM58: 0.00 | AN58: 0.00 | AO58: 0.00 | AP58: 0.00 | AQ58: 0.00 | AR58: 0.00 | AS58: 0.00 | AT58: 0.00 | AU58: 0.00 | AV58: 0.00 | AW58: 0.00 | AX58: 0.00 | AY58: 0.00 | AZ58: 0.00 | BA58: 0.00 | BB58: 0.00 | BC58: =SUM(E58:BB58) -> 340.75 | BD58: =SUM(E58:W58) -> 340.75 | BE58: =SUM(X58:AI58) -> 0.00 | BF58: =SUM(AJ58:BB58) -> 0.00
C59: 381 | D59: charges extraordinaires de biens et de services d'exploitation | E59: 0.00 | F59: 0.00 | G59: 0.00 | H59: 0.00 | I59: 0.00 | J59: 0.00 | K59: 0.00 | L59: 0.00 | M59: 0.00 | N59: 0.00 | O59: 0.00 | P59: 0.00 | Q59: 0.00 | R59: 0.00 | S59: 0.00 | T59: 0.00 | U59: 0.00 | V59: 0.00 | W59: 0.00 | X59: 0.00 | Y59: 0.00 | Z59: 0.00 | AA59: 0.00 | AB59: 0.00 | AC59: 0.00 | AD59: 0.00 | AE59: 0.00 | AF59: 0.00 | AG59: 0.00 | AH59: 0.00 | AI59: 0.00 | AJ59: 0.00 | AK59: 0.00 | AL59: 0.00 | AM59: 0.00 | AN59: 0.00 | AO59: 0.00 | AP59: 0.00 | AQ59: 0.00 | AR59: 57,450.12 | AS59: 0.00 | AT59: 0.00 | AU59: 0.00 | AV59: 0.00 | AW59: 0.00 | AX59: 0.00 | AY59: 0.00 | AZ59: 0.00 | BA59: 23,048.53 | BB59: 0.00 | BC59: 80,498.65 | BD59: 0.00 | BE59: 0.00 | BF59: 80,498.65
C60: 384 | D60: Charges extraordinaires financières et comptables | E60: 609.65 | F60: 0.00 | G60: 0.00 | H60: 0.00 | I60: -20.76 | J60: 0.00 | K60: 0.00 | L60: 0.00 | M60: 0.00 | N60: 0.00 | O60: 0.00 | P60: 0.00 | Q60: 0.00 | R60: 0.00 | S60: 0.00 | T60: 0.00 | U60: 0.00 | V60: 0.00 | W60: 0.00 | X60: 0.00 | Y60: 0.00 | Z60: 0.00 | AA60: 0.00 | AB60: 0.00 | AC60: 0.00 | AD60: 0.00 | AE60: 0.00 | AF60: 0.00 | AG60: 0.00 | AH60: 0.00 | AI60: 0.00 | AJ60: 0.00 | AK60: 0.00 | AL60: 0.00 | AM60: 2,819.00 | AN60: 0.00 | AO60: 0.00 | AP60: 0.00 | AQ60: 0.00 | AR60: 0.00 | AS60: 0.00 | AT60: 0.00 | AU60: 0.00 | AV60: 0.00 | AW60: 0.00 | AX60: 0.00 | AY60: 0.00 | AZ60: 0.00 | BA60: 11,226.46 | BB60: 0.00 | BC60: 14,634.35 | BD60: 588.89 | BE60: 0.00 | BF60: 14,045.46
C61: 385 | D61: Attributions extraordinaires aux financements spéciaux | E61: 0.00 | F61: 0.00 | G61: 0.00 | H61: 0.00 | I61: 0.00 | J61: 0.00 | K61: 0.00 | L61: 0.00 | M61: 0.00 | N61: 0.00 | O61: 0.00 | P61: 0.00 | Q61: 0.00 | R61: 0.00 | S61: 0.00 | T61: 0.00 | U61: 0.00 | V61: 0.00 | W61: 0.00 | X61: 0.00 | Y61: 0.00 | Z61: 0.00 | AA61: 0.00 | AB61: 0.00 | AC61: 0.00 | AD61: 0.00 | AE61: 0.00 | AF61: 0.00 | AG61: 0.00 | AH61: 0.00 | AI61: 0.00 | AJ61: 0.00 | AK61: 0.00 | AL61: 0.00 | AM61: 0.00 | AN61: 0.00 | AO61: 0.00 | AP61: 0.00 | AQ61: 0.00 | AR61: 0.00 | AS61: 0.00 | AT61: 0.00 | AU61: 0.00 | AV61: 0.00 | AW61: 0.00 | AX61: 0.00 | AY61: 0.00 | AZ61: 0.00 | BA61: 0.00 | BB61: 0.00 | BC61: 0.00 | BD61: 0.00 | BE61: 0.00 | BF61: 0.00
C62: 386 | D62: Charges de transfert extraordinaires au collectivités et aux tiers | E62: 0.00 | F62: 0.00 | G62: 0.00 | H62: 0.00 | I62: 0.00 | J62: 0.00 | K62: 0.00 | L62: 0.00 | M62: 0.00 | N62: 0.00 | O62: 0.00 | P62: 0.00 | Q62: 0.00 | R62: 0.00 | S62: 0.00 | T62: 0.00 | U62: 0.00 | V62: 0.00 | W62: 0.00 | X62: 0.00 | Y62: 0.00 | Z62: 0.00 | AA62: 0.00 | AB62: 0.00 | AC62: 0.00 | AD62: 0.00 | AE62: 0.00 | AF62: 0.00 | AG62: 0.00 | AH62: 0.00 | AI62: 0.00 | AJ62: 0.00 | AK62: 0.00 | AL62: 0.00 | AM62: 0.00 | AN62: 0.00 | AO62: 0.00 | AP62: 0.00 | AQ62: 0.00 | AR62: 0.00 | AS62: 0.00 | AT62: 0.00 | AU62: 0.00 | AV62: 0.00 | AW62: 0.00 | AX62: 0.00 | AY62: 0.00 | AZ62: 0.00 | BA62: 0.00 | BB62: 0.00 | BC62: 0.00 | BD62: 0.00 | BE62: 0.00 | BF62: 0.00
C63: 389 | D63: Attributions au capital propre | E63: 0.00 | F63: 0.00 | G63: 0.00 | H63: 0.00 | I63: 610,000.00 | J63: 0.00 | K63: 0.00 | L63: 0.00 | M63: 0.00 | N63: 0.00 | O63: 832,100.00 | P63: 0.00 | Q63: 0.00 | R63: 0.00 | S63: 450,000.00 | T63: 1,400,000.00 | U63: 0.00 | V63: 30,000.00 | W63: 695,650.00 | X63: 100,000.00 | Y63: 0.00 | Z63: 1,000,000.00 | AA63: 65,000.00 | AB63: 0.00 | AC63: 250,000.00 | AD63: 135,000.00 | AE63: 0.00 | AF63: 1,000,000.00 | AG63: 2,000,000.00 | AH63: 0.00 | AI63: 15,000.00 | AJ63: 1,000,000.00 | AK63: 87,002.46 | AL63: 350,000.00 | AM63: 0.00 | AN63: 1,400,000.00 | AO63: 110,000.00 | AP63: 1,000,000.00 | AQ63: 150,000.00 | AR63: 0.00 | AS63: 220,000.00 | AT63: 550,000.00 | AU63: 0.00 | AV63: 0.00 | AW63: 0.00 | AX63: 0.00 | AY63: 50,000.00 | AZ63: 100,000.00 | BA63: 3,000,000.00 | BB63: 0.00 | BC63: 16,599,752.46 | BD63: 4,017,750.00 | BE63: 4,565,000.00 | BF63: 8,017,002.46
B65: 39 | D65: Imputations internes | E65: =E66+E67+E68+E69+E70+E71+E72+E73 -> 0.00 | F65: =F66+F67+F68+F69+F70+F71+F72+F73 -> 26,016.90 | G65: 8,129.60 | H65: 57,589.20 | I65: 369,500.00 | J65: 123,170.00 | K65: 241,440.60 | L65: 5,412,202.77 | M65: 114,411.64 | N65: 0.00 | O65: 413,802.50 | P65: 15,146.00 | Q65: 0.00 | R65: 18,460.20 | S65: 0.00 | T65: 0.00 | U65: 5,000.00 | V65: 65,020.00 | W65: 265,848.26 | X65: 0.00 | Y65: 0.00 | Z65: 84,000.00 | AA65: 0.00 | AB65: 0.00 | AC65: 52,463.28 | AD65: 0.00 | AE65: 112,779.99 | AF65: 10,064.75 | AG65: 30,079.45 | AH65: 0.00 | AI65: 0.00 | AJ65: 26,000.00 | AK65: 51,115.90 | AL65: 84,305.70 | AM65: 66,247.95 | AN65: 31,869.90 | AO65: 0.00 | AP65: 179,515.00 | AQ65: 50,509.22 | AR65: 45,241.10 | AS65: 1,000.00 | AT65: 141,737.30 | AU65: 0.00 | AV65: 6,407.45 | AW65: 0.00 | AX65: 124,115.00 | AY65: 0.00 | AZ65: 49,590.62 | BA65: 0.00 | BB65: 15,500.00 | BC65: 8,298,280.28 | BD65: 7,135,737.67 | BE65: 289,387.47 | BF65: 873,155.14
C66: 390 | D66: Approvisionnement en matériel et en marchandises | E66: 0.00 | F66: 200.00 | G66: 0.00 | H66: 0.00 | I66: 0.00 | J66: 0.00 | K66: 0.00 | L66: 195,000.00 | M66: 1,200.00 | N66: 0.00 | O66: 105,925.50 | P66: 0.00 | Q66: 0.00 | R66: 0.00 | S66: 0.00 | T66: 0.00 | U66: 0.00 | V66: 0.00 | W66: 13,400.00 | X66: 0.00 | Y66: 0.00 | Z66: 0.00 | AA66: 0.00 | AB66: 0.00 | AC66: 1,150.00 | AD66: 0.00 | AE66: 0.00 | AF66: 5,583.75 | AG66: 1,109.45 | AH66: 0.00 | AI66: 0.00 | AJ66: 0.00 | AK66: 0.00 | AL66: 0.00 | AM66: 800.00 | AN66: 0.00 | AO66: 0.00 | AP66: 7,285.00 | AQ66: 0.00 | AR66: 0.00 | AS66: 0.00 | AT66: 0.00 | AU66: 0.00 | AV66: 0.00 | AW66: 0.00 | AX66: 0.00 | AY66: 0.00 | AZ66: 0.00 | BA66: 0.00 | BB66: 0.00 | BC66: =SUM(E66:BB66) -> 331,653.70 | BD66: =SUM(E66:W66) -> 315,725.50 | BE66: =SUM(X66:AI66) -> 7,843.20 | BF66: =SUM(AJ66:BB66) -> 8,085.00
C67: 391 | D67: Prestations de services | E67: 0.00 | F67: 5,289.50 | G67: 5,765.85 | H67: 57,233.20 | I67: 8,500.00 | J67: 123,170.00 | K67: 128,880.00 | L67: 1,648,198.05 | M67: 66,687.65 | N67: 0.00 | O67: 307,877.00 | P67: 15,146.00 | Q67: 0.00 | R67: 18,460.20 | S67: 0.00 | T67: 0.00 | U67: 5,000.00 | V67: 65,020.00 | W67: 94,850.00 | X67: 0.00 | Y67: 0.00 | Z67: 0.00 | AA67: 0.00 | AB67: 0.00 | AC67: 51,313.28 | AD67: 0.00 | AE67: 112,779.99 | AF67: 4,481.00 | AG67: 28,970.00 | AH67: 0.00 | AI67: 0.00 | AJ67: 26,000.00 | AK67: 0.00 | AL67: 84,305.70 | AM67: 65,447.95 | AN67: 31,869.90 | AO67: 0.00 | AP67: 122,385.00 | AQ67: 22,557.10 | AR67: 45,241.10 | AS67: 1,000.00 | AT67: 141,737.30 | AU67: 0.00 | AV67: 0.00 | AW67: 0.00 | AX67: 117,615.00 | AY67: 0.00 | AZ67: 49,590.62 | BA67: 0.00 | BB67: 15,500.00 | BC67: 3,470,871.39 | BD67: 2,550,077.45 | BE67: 197,544.27 | BF67: 723,249.67
C68: 392 | D68: Loyer, baux à ferme et frais d'utilisation | E68: 0.00 | F68: 0.00 | G68: 0.00 | H68: 0.00 | I68: 0.00 | J68: 0.00 | K68: 0.00 | L68: 120,000.00 | M68: 0.00 | N68: 0.00 | O68: 0.00 | P68: 0.00 | Q68: 0.00 | R68: 0.00 | S68: 0.00 | T68: 0.00 | U68: 0.00 | V68: 0.00 | W68: 0.00 | X68: 0.00 | Y68: 0.00 | Z68: 84,000.00 | AA68: 0.00 | AB68: 0.00 | AC68: 0.00 | AD68: 0.00 | AE68: 0.00 | AF68: 0.00 | AG68: 0.00 | AH68: 0.00 | AI68: 0.00 | AJ68: 0.00 | AK68: 0.00 | AL68: 0.00 | AM68: 0.00 | AN68: 0.00 | AO68: 0.00 | AP68: 0.00 | AQ68: 0.00 | AR68: 0.00 | AS68: 0.00 | AT68: 0.00 | AU68: 0.00 | AV68: 0.00 | AW68: 0.00 | AX68: 0.00 | AY68: 0.00 | AZ68: 0.00 | BA68: 0.00 | BB68: 0.00 | BC68: 204,000.00 | BD68: 120,000.00 | BE68: 84,000.00 | BF68: 0.00
C69: 393 | D69: Frais administratifs et d'exploitation | E69: 0.00 | F69: 0.00 | G69: 2,363.75 | H69: 0.00 | I69: 0.00 | J69: 0.00 | K69: 12,415.00 | L69: 0.00 | M69: 0.00 | N69: 0.00 | O69: 0.00 | P69: 0.00 | Q69: 0.00 | R69: 0.00 | S69: 0.00 | T69: 0.00 | U69: 0.00 | V69: 0.00 | W69: 6,000.00 | X69: 0.00 | Y69: 0.00 | Z69: 0.00 | AA69: 0.00 | AB69: 0.00 | AC69: 0.00 | AD69: 0.00 | AE69: 0.00 | AF69: 0.00 | AG69: 0.00 | AH69: 0.00 | AI69: 0.00 | AJ69: 0.00 | AK69: 0.00 | AL69: 0.00 | AM69: 0.00 | AN69: 0.00 | AO69: 0.00 | AP69: 5,645.00 | AQ69: 2,250.00 | AR69: 0.00 | AS69: 0.00 | AT69: 0.00 | AU69: 0.00 | AV69: 0.00 | AW69: 0.00 | AX69: 0.00 | AY69: 0.00 | AZ69: 0.00 | BA69: 0.00 | BB69: 0.00 | BC69: 28,673.75 | BD69: 20,778.75 | BE69: 0.00 | BF69: 7,895.00
C70: 394 | D70: Intérêts et charges financières théoriques | E70: 0.00 | F70: 20,527.40 | G70: 0.00 | H70: 0.00 | I70: 361,000.00 | J70: 0.00 | K70: 100,145.60 | L70: 1,113,589.00 | M70: 46,523.99 | N70: 0.00 | O70: 0.00 | P70: 0.00 | Q70: 0.00 | R70: 0.00 | S70: 0.00 | T70: 0.00 | U70: 0.00 | V70: 0.00 | W70: 146,098.26 | X70: 0.00 | Y70: 0.00 | Z70: 0.00 | AA70: 0.00 | AB70: 0.00 | AC70: 0.00 | AD70: 0.00 | AE70: 0.00 | AF70: 0.00 | AG70: 0.00 | AH70: 0.00 | AI70: 0.00 | AJ70: 0.00 | AK70: 51,115.90 | AL70: 0.00 | AM70: 0.00 | AN70: 0.00 | AO70: 0.00 | AP70: 44,200.00 | AQ70: 25,702.12 | AR70: 0.00 | AS70: 0.00 | AT70: 0.00 | AU70: 0.00 | AV70: 6,407.45 | AW70: 0.00 | AX70: 0.00 | AY70: 0.00 | AZ70: 0.00 | BA70: 0.00 | BB70: 0.00 | BC70: 1,915,309.72 | BD70: 1,787,884.25 | BE70: 0.00 | BF70: 127,425.47
C71: 395 | D71: Amortissements planifiés et non planifiés du PA | E71: 0.00 | F71: 0.00 | G71: 0.00 | H71: 356.00 | I71: 0.00 | J71: 0.00 | K71: 0.00 | L71: 0.00 | M71: 0.00 | N71: 0.00 | O71: 0.00 | P71: 0.00 | Q71: 0.00 | R71: 0.00 | S71: 0.00 | T71: 0.00 | U71: 0.00 | V71: 0.00 | W71: 0.00 | X71: 0.00 | Y71: 0.00 | Z71: 0.00 | AA71: 0.00 | AB71: 0.00 | AC71: 0.00 | AD71: 0.00 | AE71: 0.00 | AF71: 0.00 | AG71: 0.00 | AH71: 0.00 | AI71: 0.00 | AJ71: 0.00 | AK71: 0.00 | AL71: 0.00 | AM71: 0.00 | AN71: 0.00 | AO71: 0.00 | AP71: 0.00 | AQ71: 0.00 | AR71: 0.00 | AS71: 0.00 | AT71: 0.00 | AU71: 0.00 | AV71: 0.00 | AW71: 0.00 | AX71: 0.00 | AY71: 0.00 | AZ71: 0.00 | BA71: 0.00 | BB71: 0.00 | BC71: 356.00 | BD71: 356.00 | BE71: 0.00 | BF71: 0.00
C72: 398 | D72: Virements comptables | E72: 0.00 | F72: 0.00 | G72: 0.00 | H72: 0.00 | I72: 0.00 | J72: 0.00 | K72: 0.00 | L72: 2,335,415.72 | M72: 0.00 | N72: 0.00 | O72: 0.00 | P72: 0.00 | Q72: 0.00 | R72: 0.00 | S72: 0.00 | T72: 0.00 | U72: 0.00 | V72: 0.00 | W72: 0.00 | X72: 0.00 | Y72: 0.00 | Z72: 0.00 | AA72: 0.00 | AB72: 0.00 | AC72: 0.00 | AD72: 0.00 | AE72: 0.00 | AF72: 0.00 | AG72: 0.00 | AH72: 0.00 | AI72: 0.00 | AJ72: 0.00 | AK72: 0.00 | AL72: 0.00 | AM72: 0.00 | AN72: 0.00 | AO72: 0.00 | AP72: 0.00 | AQ72: 0.00 | AR72: 0.00 | AS72: 0.00 | AT72: 0.00 | AU72: 0.00 | AV72: 0.00 | AW72: 0.00 | AX72: 0.00 | AY72: 0.00 | AZ72: 0.00 | BA72: 0.00 | BB72: 0.00 | BC72: 2,335,415.72 | BD72: 2,335,415.72 | BE72: 0.00 | BF72: 0.00
C73: 399 | D73: Autres imputations internes | E73: 0.00 | F73: 0.00 | G73: 0.00 | H73: 0.00 | I73: 0.00 | J73: 0.00 | K73: 0.00 | L73: 0.00 | M73: 0.00 | N73: 0.00 | O73: 0.00 | P73: 0.00 | Q73: 0.00 | R73: 0.00 | S73: 0.00 | T73: 0.00 | U73: 0.00 | V73: 0.00 | W73: 5,500.00 | X73: 0.00 | Y73: 0.00 | Z73: 0.00 | AA73: 0.00 | AB73: 0.00 | AC73: 0.00 | AD73: 0.00 | AE73: 0.00 | AF73: 0.00 | AG73: 0.00 | AH73: 0.00 | AI73: 0.00 | AJ73: 0.00 | AK73: 0.00 | AL73: 0.00 | AM73: 0.00 | AN73: 0.00 | AO73: 0.00 | AP73: 0.00 | AQ73: 0.00 | AR73: 0.00 | AS73: 0.00 | AT73: 0.00 | AU73: 0.00 | AV73: 0.00 | AW73: 0.00 | AX73: 6,500.00 | AY73: 0.00 | AZ73: 0.00 | BA73: 0.00 | BB73: 0.00 | BC73: 12,000.00 | BD73: 5,500.00 | BE73: 0.00 | BF73: 6,500.00
A76: 4 | D76: Revenus | E76: =E77+E83+E89+E100+E106+E118+E122+E129+E132+E141 -> 4,256,690.07 | F76: =F77+F83+F89+F100+F106+F118+F122+F129+F132+F141 -> 1,274,190.09 | G76: 1,614,418.12 | H76: 2,356,668.41 | I76: 18,211,053.39 | J76: 14,703,589.71 | K76: 13,151,835.77 | L76: 128,548,103.46 | M76: 9,288,040.02 | N76: 470,024.83 | O76: 33,182,833.58 | P76: 2,023,475.74 | Q76: 392,879.44 | R76: 1,592,605.04 | S76: 1,996,318.19 | T76: 4,557,411.68 | U76: 1,135,123.93 | V76: 3,249,401.90 | W76: 13,510,975.25 | X76: 1,951,123.56 | Y76: 7,470,336.52 | Z76: 19,493,843.87 | AA76: 973,922.89 | AB76: 2,936,671.70 | AC76: 3,731,054.08 | AD76: 3,418,561.00 | AE76: 3,641,799.01 | AF76: 14,051,937.49 | AG76: 15,209,797.80 | AH76: 1,187,096.98 | AI76: 763,670.15 | AJ76: 8,621,811.68 | AK76: 6,000,109.04 | AL76: 6,177,619.96 | AM76: 5,499,986.96 | AN76: 10,895,605.06 | AO76: 3,427,177.71 | AP76: 8,387,630.66 | AQ76: 3,724,189.17 | AR76: 4,777,735.64 | AS76: 1,876,218.91 | AT76: 11,630,563.85 | AU76: 3,400,202.58 | AV76: 1,543,482.48 | AW76: 1,506,874.19 | AX76: 7,654,020.47 | AY76: 2,000,598.78 | AZ76: 6,237,079.19 | BA76: 45,887,439.88 | BB76: 2,352,962.81 | BC76: 471,946,762.69 | BD76: 255,515,638.62 | BE76: 74,829,815.05 | BF76: 141,601,309.02
B77: 40 | D77: Revenus fiscaux | E77: =E78+E79+E80+E81 -> 3,025,807.96 | F77: =F78+F79+F80+F81 -> 639,061.94 | G77: 1,151,437.91 | H77: 1,152,945.64 | I77: 10,725,672.49 | J77: 9,734,504.06 | K77: 8,670,362.11 | L77: 45,917,322.07 | M77: 3,915,774.85 | N77: 264,527.28 | O77: 22,150,039.06 | P77: 1,417,809.90 | Q77: 241,404.57 | R77: 995,933.92 | S77: 865,038.65 | T77: 2,422,593.76 | U77: 565,239.90 | V77: 1,593,722.31 | W77: 8,631,337.90 | X77: 976,520.73 | Y77: 5,329,706.12 | Z77: 13,732,499.77 | AA77: 417,500.77 | AB77: 1,592,552.45 | AC77: 2,225,981.54 | AD77: 1,971,706.77 | AE77: 1,632,604.00 | AF77: 10,412,220.32 | AG77: 9,418,261.77 | AH77: 665,006.11 | AI77: 404,735.52 | AJ77: 6,717,270.83 | AK77: 3,132,892.48 | AL77: 3,335,948.14 | AM77: 2,289,140.30 | AN77: 8,720,997.84 | AO77: 2,367,804.16 | AP77: 3,511,624.85 | AQ77: 2,008,897.98 | AR77: 2,933,298.84 | AS77: 1,351,660.67 | AT77: 7,803,913.56 | AU77: 2,491,884.23 | AV77: 819,245.59 | AW77: 972,302.65 | AX77: 5,147,742.71 | AY77: 955,454.88 | AZ77: 3,600,166.99 | BA77: 26,785,632.86 | BB77: 1,515,826.72 | BC77: 259,321,538.43 | BD77: 124,080,536.28 | BE77: 48,779,295.87 | BF77: 86,461,706.28
C78: 400 | D78: Impôts directs des personnes physiques | E78: 2,527,511.91 | F78: 445,844.74 | G78: 1,008,824.81 | H78: 831,988.44 | I78: 8,270,436.61 | J78: 8,110,568.76 | K78: 7,299,849.81 | L78: 33,461,491.51 | M78: 3,172,901.45 | N78: 202,740.95 | O78: 16,549,304.75 | P78: 1,097,677.27 | Q78: 202,819.30 | R78: 796,778.77 | S78: 713,203.25 | T78: 2,160,801.20 | U78: 467,412.20 | V78: 1,101,718.51 | W78: 6,922,354.25 | X78: 806,141.33 | Y78: 4,692,950.77 | Z78: 1,544,364.42 | AA78: 335,319.82 | AB78: 1,236,245.75 | AC78: 1,807,492.59 | AD78: 1,647,647.44 | AE78: 1,373,155.03 | AF78: 4,553,334.97 | AG78: 7,110,629.57 | AH78: 480,998.41 | AI78: 213,461.52 | AJ78: 5,216,719.40 | AK78: 2,390,817.29 | AL78: 2,795,194.97 | AM78: 1,738,904.88 | AN78: 5,276,297.44 | AO78: 1,822,720.41 | AP78: 2,494,021.90 | AQ78: 1,643,401.21 | AR78: 2,404,873.95 | AS78: 1,067,152.07 | AT78: 5,394,327.11 | AU78: 1,967,468.88 | AV78: 649,987.62 | AW78: 693,721.48 | AX78: 4,118,093.42 | AY78: 762,305.29 | AZ78: 2,858,471.52 | BA78: 19,359,411.71 | BB78: 1,199,139.32 | BC78: =SUM(E78:BB78) -> 184,998,999.98 | BD78: =SUM(E78:W78) -> 95,344,228.49 | BE78: =SUM(X78:AI78) -> 25,801,741.62 | BF78: =SUM(AJ78:BB78) -> 63,853,029.87
C79: 401 | D79: Impôts directs des personnes morales | E79: 189,924.85 | F79: 50,155.75 | G79: 8,663.45 | H79: 31,520.90 | I79: 608,325.58 | J79: 681,730.05 | K79: 334,004.05 | L79: 7,017,666.50 | M79: 377,957.70 | N79: 9,732.59 | O79: 2,699,456.95 | P79: 23,584.75 | Q79: 45.15 | R79: 29,586.35 | S79: 10,559.80 | T79: 31,165.85 | U79: 14,144.20 | V79: 269,555.25 | W79: 481,979.85 | X79: -931.20 | Y79: 252,125.35 | Z79: 11,577,186.80 | AA79: 5,789.90 | AB79: 156,454.40 | AC79: 90,213.35 | AD79: 16,491.75 | AE79: 52,529.60 | AF79: 4,886,974.80 | AG79: 1,149,168.20 | AH79: 48,325.25 | AI79: 11,251.70 | AJ79: 635,761.10 | AK79: 112,498.94 | AL79: 137,177.86 | AM79: 187,628.85 | AN79: 2,913,964.10 | AO79: 238,533.50 | AP79: 228,211.10 | AQ79: 57,851.17 | AR79: 129,092.35 | AS79: 167,435.40 | AT79: 1,297,134.15 | AU79: 136,872.25 | AV79: 14,697.05 | AW79: 98,965.45 | AX79: 360,975.59 | AY79: 5,395.40 | AZ79: 194,400.10 | BA79: 4,359,563.00 | BB79: 120,514.80 | BC79: =SUM(E79:BB79) -> 42,512,011.63 | BD79: =SUM(E79:W79) -> 12,869,759.57 | BE79: =SUM(X79:AI79) -> 18,245,579.90 | BF79: =SUM(AJ79:BB79) -> 11,396,672.16
C80: 402 | D80: Autres impôts directs | E80: 294,456.80 | F80: 138,198.45 | G80: 127,589.65 | H80: 286,716.30 | I80: 1,786,424.80 | J80: 920,669.65 | K80: 1,013,806.25 | L80: 5,331,134.76 | M80: 359,178.30 | N80: 49,185.34 | O80: 2,846,557.36 | P80: 292,559.08 | Q80: 33,628.45 | R80: 153,121.20 | S80: 129,134.75 | T80: 227,086.71 | U80: 71,868.10 | V80: 217,215.55 | W80: 1,177,371.45 | X80: 142,355.00 | Y80: 352,039.60 | Z80: 591,195.05 | AA80: 73,187.05 | AB80: 189,205.90 | AC80: 311,809.60 | AD80: 276,461.78 | AE80: 192,867.17 | AF80: 947,175.15 | AG80: 1,080,085.65 | AH80: 129,774.25 | AI80: 137,634.15 | AJ80: 853,115.53 | AK80: 577,428.35 | AL80: 381,975.31 | AM80: 342,745.42 | AN80: 528,535.70 | AO80: 298,234.25 | AP80: 669,665.60 | AQ80: 300,650.80 | AR80: 385,099.34 | AS80: 113,070.40 | AT80: 1,099,355.30 | AU80: 382,047.10 | AV80: 152,173.12 | AW80: 172,095.72 | AX80: 644,628.10 | AY80: 172,032.04 | AZ80: 481,071.72 | BA80: 3,009,987.35 | BB80: 188,072.60 | BC80: =SUM(E80:BB80) -> 30,631,677.05 | BD80: =SUM(E80:W80) -> 15,455,902.95 | BE80: =SUM(X80:AI80) -> 4,423,790.35 | BF80: =SUM(AJ80:BB80) -> 10,751,983.75
C81: 403 | D81: Impôts sur la possession et les dépenses | E81: 13,914.40 | F81: 4,863.00 | G81: 6,360.00 | H81: 2,720.00 | I81: 60,485.50 | J81: 21,535.60 | K81: 22,702.00 | L81: 107,029.30 | M81: 5,737.40 | N81: 2,868.40 | O81: 54,720.00 | P81: 3,988.80 | Q81: 4,911.67 | R81: 16,447.60 | S81: 12,140.85 | T81: 3,540.00 | U81: 11,815.40 | V81: 5,233.00 | W81: 49,632.35 | X81: 28,955.60 | Y81: 32,590.40 | Z81: 19,753.50 | AA81: 3,204.00 | AB81: 10,646.40 | AC81: 16,466.00 | AD81: 31,105.80 | AE81: 14,052.20 | AF81: 24,735.40 | AG81: 78,378.35 | AH81: 5,908.20 | AI81: 42,388.15 | AJ81: 11,674.80 | AK81: 52,147.90 | AL81: 21,600.00 | AM81: 19,861.15 | AN81: 2,200.60 | AO81: 8,316.00 | AP81: 119,726.25 | AQ81: 6,994.80 | AR81: 14,233.20 | AS81: 4,002.80 | AT81: 13,097.00 | AU81: 5,496.00 | AV81: 2,387.80 | AW81: 7,520.00 | AX81: 24,045.60 | AY81: 15,722.15 | AZ81: 66,223.65 | BA81: 56,670.80 | BB81: 8,100.00 | BC81: =SUM(E81:BB81) -> 1,178,849.77 | BD81: =SUM(E81:W81) -> 410,645.27 | BE81: =SUM(X81:AI81) -> 308,184.00 | BF81: =SUM(AJ81:BB81) -> 460,020.50
B83: 41 | D83: Revenus de patentes et de concessions | E83: =E84+E85+E86+E87 -> 0.00 | F83: =F84+F85+F86+F87 -> 12,919.50 | G83: 0.00 | H83: 0.00 | I83: 6,427.10 | J83: 0.00 | K83: 0.00 | L83: 0.00 | M83: 43,865.20 | N83: 0.00 | O83: 89,417.20 | P83: 10,735.00 | Q83: 0.00 | R83: 0.00 | S83: 13,944.40 | T83: 0.00 | U83: 0.00 | V83: 0.00 | W83: 7,233.00 | X83: 0.00 | Y83: 0.00 | Z83: 643,637.05 | AA83: 292.00 | AB83: 0.00 | AC83: 0.00 | AD83: 0.00 | AE83: 16,873.35 | AF83: 3,000.00 | AG83: 84,565.35 | AH83: 25,465.05 | AI83: 10,173.95 | AJ83: 0.00 | AK83: 0.00 | AL83: 0.00 | AM83: 0.00 | AN83: 0.00 | AO83: 0.00 | AP83: 239.45 | AQ83: 0.00 | AR83: 41,451.65 | AS83: 0.00 | AT83: 8,500.00 | AU83: 0.00 | AV83: 8,770.65 | AW83: 0.00 | AX83: 6,959.25 | AY83: 0.00 | AZ83: 93,757.95 | BA83: 3,480.00 | BB83: 325.00 | BC83: 1,132,032.10 | BD83: 184,541.40 | BE83: 784,006.75 | BF83: 163,483.95
C84: 410 | D84: Revenus de patentes | E84: 0.00 | F84: 0.00 | G84: 0.00 | H84: 0.00 | I84: 0.00 | J84: 0.00 | K84: 0.00 | L84: 0.00 | M84: 0.00 | N84: 0.00 | O84: 0.00 | P84: 0.00 | Q84: 0.00 | R84: 0.00 | S84: 0.00 | T84: 0.00 | U84: 0.00 | V84: 0.00 | W84: 0.00 | X84: 0.00 | Y84: 0.00 | Z84: 0.00 | AA84: 0.00 | AB84: 0.00 | AC84: 0.00 | AD84: 0.00 | AE84: 0.00 | AF84: 0.00 | AG84: 3,212.00 | AH84: 0.00 | AI84: 0.00 | AJ84: 0.00 | AK84: 0.00 | AL84: 0.00 | AM84: 0.00 | AN84: 0.00 | AO84: 0.00 | AP84: 0.00 | AQ84: 0.00 | AR84: 0.00 | AS84: 0.00 | AT84: 0.00 | AU84: 0.00 | AV84: 0.00 | AW84: 0.00 | AX84: 0.00 | AY84: 0.00 | AZ84: 0.00 | BA84: 0.00 | BB84: 325.00 | BC84: =SUM(E84:BB84) -> 3,537.00 | BD84: =SUM(E84:W84) -> 0.00 | BE84: =SUM(X84:AI84) -> 3,212.00 | BF84: =SUM(AJ84:BB84) -> 325.00
C85: 411 | D85: Revenus de la Banque Nationale | E85: 0.00 | F85: 0.00 | G85: 0.00 | H85: 0.00 | I85: 0.00 | J85: 0.00 | K85: 0.00 | L85: 0.00 | M85: 0.00 | N85: 0.00 | O85: 0.00 | P85: 0.00 | Q85: 0.00 | R85: 0.00 | S85: 0.00 | T85: 0.00 | U85: 0.00 | V85: 0.00 | W85: 0.00 | X85: 0.00 | Y85: 0.00 | Z85: 0.00 | AA85: 0.00 | AB85: 0.00 | AC85: 0.00 | AD85: 0.00 | AE85: 0.00 | AF85: 0.00 | AG85: 81,353.35 | AH85: 0.00 | AI85: 0.00 | AJ85: 0.00 | AK85: 0.00 | AL85: 0.00 | AM85: 0.00 | AN85: 0.00 | AO85: 0.00 | AP85: 0.00 | AQ85: 0.00 | AR85: 0.00 | AS85: 0.00 | AT85: 0.00 | AU85: 0.00 | AV85: 0.00 | AW85: 0.00 | AX85: 0.00 | AY85: 0.00 | AZ85: 0.00 | BA85: 0.00 | BB85: 0.00 | BC85: =SUM(E85:BB85) -> 81,353.35 | BD85: =SUM(E85:W85) -> 0.00 | BE85: =SUM(X85:AI85) -> 81,353.35 | BF85: =SUM(AJ85:BB85) -> 0.00
C86: 412 | D86: Revenus des concessions | E86: 0.00 | F86: 12,919.50 | G86: 0.00 | H86: 0.00 | I86: 6,427.10 | J86: 0.00 | K86: 0.00 | L86: 0.00 | M86: 43,865.20 | N86: 0.00 | O86: 89,417.20 | P86: 10,735.00 | Q86: 0.00 | R86: 0.00 | S86: 13,944.40 | T86: 0.00 | U86: 0.00 | V86: 0.00 | W86: 7,233.00 | X86: 0.00 | Y86: 0.00 | Z86: 643,637.05 | AA86: 292.00 | AB86: 0.00 | AC86: 0.00 | AD86: 0.00 | AE86: 16,873.35 | AF86: 3,000.00 | AG86: 0.00 | AH86: 25,465.05 | AI86: 10,173.95 | AJ86: 0.00 | AK86: 0.00 | AL86: 0.00 | AM86: 0.00 | AN86: 0.00 | AO86: 0.00 | AP86: 239.45 | AQ86: 0.00 | AR86: 41,451.65 | AS86: 0.00 | AT86: 8,500.00 | AU86: 0.00 | AV86: 8,770.65 | AW86: 0.00 | AX86: 6,959.25 | AY86: 0.00 | AZ86: 93,757.95 | BA86: 3,480.00 | BB86: 0.00 | BC86: =SUM(E86:BB86) -> 1,047,141.75 | BD86: =SUM(E86:W86) -> 184,541.40 | BE86: =SUM(X86:AI86) -> 699,441.40 | BF86: =SUM(AJ86:BB86) -> 163,158.95
C87: 413 | D87: Parts des revenus de loterie et paris | E87: 0.00 | F87: 0.00 | G87: 0.00 | H87: 0.00 | I87: 0.00 | J87: 0.00 | K87: 0.00 | L87: 0.00 | M87: 0.00 | N87: 0.00 | O87: 0.00 | P87: 0.00 | Q87: 0.00 | R87: 0.00 | S87: 0.00 | T87: 0.00 | U87: 0.00 | V87: 0.00 | W87: 0.00 | X87: 0.00 | Y87: 0.00 | Z87: 0.00 | AA87: 0.00 | AB87: 0.00 | AC87: 0.00 | AD87: 0.00 | AE87: 0.00 | AF87: 0.00 | AG87: 0.00 | AH87: 0.00 | AI87: 0.00 | AJ87: 0.00 | AK87: 0.00 | AL87: 0.00 | AM87: 0.00 | AN87: 0.00 | AO87: 0.00 | AP87: 0.00 | AQ87: 0.00 | AR87: 0.00 | AS87: 0.00 | AT87: 0.00 | AU87: 0.00 | AV87: 0.00 | AW87: 0.00 | AX87: 0.00 | AY87: 0.00 | AZ87: 0.00 | BA87: 0.00 | BB87: 0.00 | BC87: =SUM(E87:BB87) -> 0.00 | BD87: =SUM(E87:W87) -> 0.00 | BE87: =SUM(X87:AI87) -> 0.00 | BF87: =SUM(AJ87:BB87) -> 0.00
B89: 42 | D89: Taxes | E89: =E90+E91+E92+E93+E94+E95+E96+E97+E98 -> 721,130.67 | F89: =F90+F91+F92+F93+F94+F95+F96+F97+F98 -> 215,709.10 | G89: 288,417.66 | H89: 617,396.16 | I89: 3,793,745.93 | J89: 3,005,271.45 | K89: 2,003,633.29 | L89: 45,287,913.31 | M89: 3,579,836.46 | N89: 48,637.70 | O89: 5,021,206.87 | P89: 217,930.69 | Q89: 56,747.30 | R89: 313,608.58 | S89: 250,996.78 | T89: 806,411.02 | U89: 204,715.90 | V89: 287,383.44 | W89: 1,917,717.30 | X89: 336,681.27 | Y89: 1,283,728.97 | Z89: 1,830,415.10 | AA89: 154,199.20 | AB89: 765,394.85 | AC89: 688,194.25 | AD89: 616,576.40 | AE89: 651,492.06 | AF89: 1,679,596.14 | AG89: 2,998,900.19 | AH89: 241,711.84 | AI89: 154,538.30 | AJ89: 1,442,085.04 | AK89: 1,251,884.42 | AL89: 919,831.65 | AM89: 1,269,765.60 | AN89: 1,420,444.47 | AO89: 483,106.20 | AP89: 1,580,367.23 | AQ89: 677,232.08 | AR89: 927,925.65 | AS89: 355,635.86 | AT89: 1,478,287.97 | AU89: 545,518.23 | AV89: 382,421.90 | AW89: 248,714.95 | AX89: 1,253,402.76 | AY89: 339,776.45 | AZ89: 1,215,893.16 | BA89: 7,203,662.49 | BB89: 468,777.68 | BC89: 103,504,571.97 | BD89: 68,638,409.61 | BE89: 11,401,428.57 | BF89: 23,464,733.79
C90: 420 | D90: Taxes d'exemption et de compensation | E90: 41,596.15 | F90: 9,545.20 | G90: 22,666.95 | H90: 15,818.90 | I90: 168,829.00 | J90: 158,196.70 | K90: 144,652.45 | L90: 582,335.30 | M90: 57,929.55 | N90: 1,618.25 | O90: 322,781.15 | P90: 16,465.70 | Q90: 2,753.65 | R90: 15,123.95 | S90: 11,679.85 | T90: 44,841.95 | U90: 11,345.00 | V90: 19,795.20 | W90: 122,144.25 | X90: 9,054.40 | Y90: 50,761.05 | Z90: 77,265.70 | AA90: 4,538.10 | AB90: 18,819.80 | AC90: 45,278.45 | AD90: 19,072.05 | AE90: 15,211.50 | AF90: 94,719.75 | AG90: 115,779.55 | AH90: 7,434.10 | AI90: 2,364.10 | AJ90: 78,512.65 | AK90: 30,531.60 | AL90: 32,728.55 | AM90: 15,264.30 | AN90: 26,469.35 | AO90: 18,375.40 | AP90: 36,363.80 | AQ90: 30,533.75 | AR90: 40,787.60 | AS90: 11,777.50 | AT90: 0.00 | AU90: 23,686.10 | AV90: 8,495.90 | AW90: 6,013.15 | AX90: 60,674.55 | AY90: 9,314.60 | AZ90: 31,975.05 | BA90: 210,233.85 | BB90: 16,442.85 | BC90: =SUM(E90:BB90) -> 2,918,598.25 | BD90: =SUM(E90:W90) -> 1,770,119.15 | BE90: =SUM(X90:AI90) -> 460,298.55 | BF90: =SUM(AJ90:BB90) -> 688,180.55
C91: 421 | D91: Emoluments administratif | E91: 17,362.57 | F91: 3,680.80 | G91: 3,599.00 | H91: 11,918.54 | I91: 94,193.43 | J91: 43,545.06 | K91: 32,749.90 | L91: 1,204,186.96 | M91: 20,682.36 | N91: 763.05 | O91: 246,720.50 | P91: 13,592.60 | Q91: 4,369.75 | R91: 6,096.80 | S91: 35,933.58 | T91: 9,690.02 | U91: 1,471.80 | V91: 15,452.95 | W91: 41,329.15 | X91: 5,423.55 | Y91: 19,580.25 | Z91: 9,715.95 | AA91: 1,367.25 | AB91: 0.00 | AC91: 10,456.85 | AD91: 6,926.50 | AE91: 5,910.03 | AF91: 35,709.20 | AG91: 30,098.05 | AH91: 1,867.75 | AI91: 2,499.00 | AJ91: 53,875.00 | AK91: 18,591.50 | AL91: 14,745.25 | AM91: 19,885.60 | AN91: 59,748.52 | AO91: 14,507.70 | AP91: 27,383.92 | AQ91: 5,089.15 | AR91: 29,108.30 | AS91: 1,785.42 | AT91: 48,017.27 | AU91: 11,966.73 | AV91: 8,457.25 | AW91: 646.60 | AX91: 27,320.05 | AY91: 4,691.25 | AZ91: 17,767.95 | BA91: 613,993.55 | BB91: 6,672.90 | BC91: 2,921,147.11 | BD91: 1,807,338.82 | BE91: 129,554.38 | BF91: 984,253.91
C92: 422 | D92: Taxes et émoluments hospitaliers et médico-sociaux et foyers | E92: 0.00 | F92: 0.00 | G92: 0.00 | H92: 0.00 | I92: 0.00 | J92: 0.00 | K92: 0.00 | L92: 0.00 | M92: 0.00 | N92: 0.00 | O92: 0.00 | P92: 0.00 | Q92: 0.00 | R92: 0.00 | S92: 0.00 | T92: 0.00 | U92: 0.00 | V92: 0.00 | W92: 0.00 | X92: 0.00 | Y92: 0.00 | Z92: 0.00 | AA92: 0.00 | AB92: 0.00 | AC92: 0.00 | AD92: 0.00 | AE92: 0.00 | AF92: 0.00 | AG92: 0.00 | AH92: 0.00 | AI92: 0.00 | AJ92: 0.00 | AK92: 0.00 | AL92: 0.00 | AM92: 0.00 | AN92: 0.00 | AO92: 0.00 | AP92: 0.00 | AQ92: 0.00 | AR92: 0.00 | AS92: 10,790.00 | AT92: 0.00 | AU92: 0.00 | AV92: 0.00 | AW92: 0.00 | AX92: 0.00 | AY92: 0.00 | AZ92: 0.00 | BA92: 0.00 | BB92: 0.00 | BC92: 10,790.00 | BD92: 0.00 | BE92: 0.00 | BF92: 10,790.00
C93: 423 | D93: Frais d'écolage | E93: 1,360.00 | F93: 0.00 | G93: 0.00 | H93: 0.00 | I93: 0.00 | J93: 0.00 | K93: 0.00 | L93: 45,090.00 | M93: 57.75 | N93: 0.00 | O93: 0.00 | P93: 0.00 | Q93: 0.00 | R93: 0.00 | S93: 0.00 | T93: 0.00 | U93: 1,090.90 | V93: 0.00 | W93: 12,000.00 | X93: 32,444.90 | Y93: 0.00 | Z93: 212,510.90 | AA93: 0.00 | AB93: 0.00 | AC93: 0.00 | AD93: 0.00 | AE93: 0.00 | AF93: 0.00 | AG93: 148,716.30 | AH93: 0.00 | AI93: 0.00 | AJ93: 0.00 | AK93: 4,000.00 | AL93: 21,834.90 | AM93: 0.00 | AN93: 0.00 | AO93: 0.00 | AP93: 12,132.00 | AQ93: 36,125.00 | AR93: 0.00 | AS93: 0.00 | AT93: 0.00 | AU93: 0.00 | AV93: 0.00 | AW93: 0.00 | AX93: 2,400.00 | AY93: 5,370.35 | AZ93: 15,209.55 | BA93: 59,900.00 | BB93: 0.00 | BC93: 610,242.55 | BD93: 59,598.65 | BE93: 393,672.10 | BF93: 156,971.80
C94: 424 | D94: Taxes d'utilisation et de prestation de services | E94: 602,854.55 | F94: 198,848.20 | G94: 220,592.35 | H94: 529,065.28 | I94: 3,296,934.46 | J94: 2,715,864.36 | K94: 1,464,981.27 | L94: 42,787,344.74 | M94: 3,288,936.15 | N94: 46,256.40 | O94: 3,672,201.55 | P94: 125,349.25 | Q94: 46,172.65 | R94: 190,273.75 | S94: 185,856.80 | T94: 602,331.70 | U94: 155,240.25 | V94: 229,514.25 | W94: 1,643,577.70 | X94: 231,576.05 | Y94: 1,157,053.40 | Z94: 1,403,308.95 | AA94: 100,276.05 | AB94: 504,783.25 | AC94: 447,297.05 | AD94: 484,156.10 | AE94: 398,737.75 | AF94: 1,288,614.20 | AG94: 2,371,645.15 | AH94: 164,894.20 | AI94: 127,548.30 | AJ94: 1,122,476.68 | AK94: 550,813.30 | AL94: 755,806.60 | AM94: 740,907.05 | AN94: 1,319,646.80 | AO94: 343,998.15 | AP94: 992,005.20 | AQ94: 396,830.80 | AR94: 760,223.30 | AS94: 228,153.70 | AT94: 1,249,571.30 | AU94: 399,321.15 | AV94: 239,616.50 | AW94: 219,673.70 | AX94: 740,480.21 | AY94: 286,671.35 | AZ94: 995,971.18 | BA94: 5,796,456.37 | BB94: 228,849.50 | BC94: 88,049,558.95 | BD94: 62,002,195.66 | BE94: 8,679,890.45 | BF94: 17,367,472.84
C95: 425 | D95: Revenus des ventes | E95: 8,371.30 | F95: 2,020.65 | G95: 0.00 | H95: 414.00 | I95: 41,179.69 | J95: 46,188.62 | K95: 14,377.07 | L95: 238,303.27 | M95: 38,452.85 | N95: 0.00 | O95: 347,702.11 | P95: 8,742.39 | Q95: 711.40 | R95: 13,821.63 | S95: 414.10 | T95: 0.00 | U95: 2,337.60 | V95: 15,325.69 | W95: 50,306.85 | X95: 50,838.67 | Y95: 32,487.02 | Z95: 10,239.90 | AA95: 42,563.35 | AB95: 202,117.80 | AC95: 159,263.20 | AD95: 82,859.15 | AE95: 221,955.33 | AF95: 248,963.19 | AG95: 215,026.03 | AH95: 35,046.15 | AI95: 0.00 | AJ95: 182,220.71 | AK95: 582,385.30 | AL95: 282.50 | AM95: 417,410.75 | AN95: 3,844.00 | AO95: 7,950.80 | AP95: 420,771.81 | AQ95: 194,070.85 | AR95: 72,267.80 | AS95: 101,683.94 | AT95: 116,164.10 | AU95: 102,994.75 | AV95: 122,144.20 | AW95: 1,768.50 | AX95: 340,053.80 | AY95: 4,195.50 | AZ95: 7,311.78 | BA95: 89,165.45 | BB95: 144,857.03 | BC95: 5,041,572.58 | BD95: 828,669.22 | BE95: 1,301,359.79 | BF95: 2,911,543.57
C96: 426 | D96: remboursements | E96: 49,386.10 | F96: 1,614.25 | G96: 41,559.36 | H96: 60,179.44 | I96: 187,569.35 | J96: 41,476.71 | K96: 345,787.30 | L96: 333,596.92 | M96: 173,777.80 | N96: 0.00 | O96: 369,199.86 | P96: 53,780.75 | Q96: 2,739.85 | R96: 88,292.45 | S96: 17,012.45 | T96: 149,487.35 | U96: 32,595.85 | V96: 7,295.35 | W96: 48,359.35 | X96: 6,116.20 | Y96: 23,847.25 | Z96: 12,811.55 | AA96: 4,540.45 | AB96: 39,674.00 | AC96: 25,558.70 | AD96: 23,062.60 | AE96: 9,677.45 | AF96: 9,603.80 | AG96: 99,741.61 | AH96: 32,469.64 | AI96: 18,751.70 | AJ96: 5,000.00 | AK96: 65,562.72 | AL96: 94,433.85 | AM96: 76,297.90 | AN96: 1,335.00 | AO96: 98,274.15 | AP96: 91,130.50 | AQ96: 14,582.53 | AR96: 25,538.65 | AS96: 1,445.30 | AT96: 62,185.30 | AU96: 6,980.95 | AV96: 3,708.05 | AW96: 20,513.00 | AX96: 81,874.15 | AY96: 29,533.40 | AZ96: 147,507.65 | BA96: 277,783.78 | BB96: 71,955.40 | BC96: 3,485,207.72 | BD96: 2,003,710.49 | BE96: 305,854.95 | BF96: 1,175,642.28
C97: 427 | D97: Amendes | E97: 200.00 | F97: 0.00 | G97: 0.00 | H97: 0.00 | I97: 5,040.00 | J97: 0.00 | K97: 1,085.30 | L97: 97,056.12 | M97: 0.00 | N97: 0.00 | O97: 52,525.00 | P97: 0.00 | Q97: 0.00 | R97: 0.00 | S97: 100.00 | T97: 60.00 | U97: 0.00 | V97: 0.00 | W97: 0.00 | X97: 350.00 | Y97: 0.00 | Z97: 0.00 | AA97: 0.00 | AB97: 0.00 | AC97: 0.00 | AD97: 500.00 | AE97: 0.00 | AF97: 1,986.00 | AG97: 17,893.50 | AH97: 0.00 | AI97: 0.00 | AJ97: 0.00 | AK97: 0.00 | AL97: 0.00 | AM97: 0.00 | AN97: 410.00 | AO97: 0.00 | AP97: 580.00 | AQ97: 0.00 | AR97: 0.00 | AS97: 0.00 | AT97: 2,350.00 | AU97: 0.00 | AV97: 0.00 | AW97: 0.00 | AX97: 600.00 | AY97: 0.00 | AZ97: 150.00 | BA97: 156,129.49 | BB97: 0.00 | BC97: 337,015.41 | BD97: 156,066.42 | BE97: 20,729.50 | BF97: 160,219.49
C98: 429 | D98: Autres taxes et compensations | E98: 0.00 | F98: 0.00 | G98: 0.00 | H98: 0.00 | I98: 0.00 | J98: 0.00 | K98: 0.00 | L98: 0.00 | M98: 0.00 | N98: 0.00 | O98: 10,076.70 | P98: 0.00 | Q98: 0.00 | R98: 0.00 | S98: 0.00 | T98: 0.00 | U98: 634.50 | V98: 0.00 | W98: 0.00 | X98: 877.50 | Y98: 0.00 | Z98: 104,562.15 | AA98: 914.00 | AB98: 0.00 | AC98: 340.00 | AD98: 0.00 | AE98: 0.00 | AF98: 0.00 | AG98: 0.00 | AH98: 0.00 | AI98: 3,375.20 | AJ98: 0.00 | AK98: 0.00 | AL98: 0.00 | AM98: 0.00 | AN98: 8,990.80 | AO98: 0.00 | AP98: 0.00 | AQ98: 0.00 | AR98: 0.00 | AS98: 0.00 | AT98: 0.00 | AU98: 568.55 | AV98: 0.00 | AW98: 100.00 | AX98: 0.00 | AY98: 0.00 | AZ98: 0.00 | BA98: 0.00 | BB98: 0.00 | BC98: 130,439.40 | BD98: 10,711.20 | BE98: 110,068.85 | BF98: 9,659.35
B100: 43 | D100: Revenus divers | E100: =E101+E102+E103+E104 -> 0.00 | F100: =F101+F102+F103+F104 -> 0.00 | G100: 0.00 | H100: 0.00 | I100: 0.00 | J100: 0.00 | K100: 0.00 | L100: 4,409,596.39 | M100: 7,085.40 | N100: 15,788.65 | O100: 97,395.20 | P100: 0.00 | Q100: 0.00 | R100: 0.00 | S100: 0.00 | T100: 784.00 | U100: 2,990.82 | V100: 6,419.60 | W100: 9,910.22 | X100: 0.00 | Y100: -34,522.30 | Z100: 0.00 | AA100: 3,867.75 | AB100: 0.00 | AC100: 3,257.32 | AD100: 4,146.80 | AE100: 1,598.55 | AF100: 11,820.00 | AG100: 61,784.45 | AH100: 0.00 | AI100: 4,030.20 | AJ100: 0.00 | AK100: 0.00 | AL100: 0.00 | AM100: 0.00 | AN100: 0.00 | AO100: 0.00 | AP100: 135.00 | AQ100: 0.00 | AR100: 0.00 | AS100: 0.00 | AT100: 0.00 | AU100: 1,600.00 | AV100: 0.00 | AW100: 0.00 | AX100: 0.00 | AY100: 0.00 | AZ100: 2,435.00 | BA100: 1,276.60 | BB100: 0.00 | BC100: 4,611,399.65 | BD100: 4,549,970.28 | BE100: 55,982.77 | BF100: 5,446.60
C101: 430 | D101: Revenus divers d'exploitation | E101: 0.00 | F101: 0.00 | G101: 0.00 | H101: 0.00 | I101: 0.00 | J101: 0.00 | K101: 0.00 | L101: 2,024,306.39 | M101: 7,085.40 | N101: 0.00 | O101: 0.00 | P101: 0.00 | Q101: 0.00 | R101: 0.00 | S101: 0.00 | T101: 0.00 | U101: 0.00 | V101: 4,200.00 | W101: 9,910.22 | X101: 0.00 | Y101: 100.00 | Z101: 0.00 | AA101: 2,050.00 | AB101: 0.00 | AC101: 3,257.32 | AD101: 0.00 | AE101: 0.00 | AF101: 0.00 | AG101: 61,784.45 | AH101: 0.00 | AI101: 0.00 | AJ101: 0.00 | AK101: 0.00 | AL101: 0.00 | AM101: 0.00 | AN101: 0.00 | AO101: 0.00 | AP101: 135.00 | AQ101: 0.00 | AR101: 0.00 | AS101: 0.00 | AT101: 0.00 | AU101: 0.00 | AV101: 0.00 | AW101: 0.00 | AX101: 0.00 | AY101: 0.00 | AZ101: 2,435.00 | BA101: 1,276.60 | BB101: 0.00 | BC101: =SUM(E101:BB101) -> 2,116,540.38 | BD101: =SUM(E101:W101) -> 2,045,502.01 | BE101: =SUM(X101:AI101) -> 67,191.77 | BF101: =SUM(AJ101:BB101) -> 3,846.60
C102: 431 | D102: Inscriptions de prestations propres portées à l'actif | E102: 0.00 | F102: 0.00 | G102: 0.00 | H102: 0.00 | I102: 0.00 | J102: 0.00 | K102: 0.00 | L102: 0.00 | M102: 0.00 | N102: 0.00 | O102: 97,395.20 | P102: 0.00 | Q102: 0.00 | R102: 0.00 | S102: 0.00 | T102: 0.00 | U102: 0.00 | V102: 0.00 | W102: 0.00 | X102: 0.00 | Y102: 0.00 | Z102: 0.00 | AA102: 0.00 | AB102: 0.00 | AC102: 0.00 | AD102: 0.00 | AE102: 1,598.55 | AF102: 0.00 | AG102: 0.00 | AH102: 0.00 | AI102: 0.00 | AJ102: 0.00 | AK102: 0.00 | AL102: 0.00 | AM102: 0.00 | AN102: 0.00 | AO102: 0.00 | AP102: 0.00 | AQ102: 0.00 | AR102: 0.00 | AS102: 0.00 | AT102: 0.00 | AU102: 0.00 | AV102: 0.00 | AW102: 0.00 | AX102: 0.00 | AY102: 0.00 | AZ102: 0.00 | BA102: 0.00 | BB102: 0.00 | BC102: =SUM(E102:BB102) -> 98,993.75 | BD102: =SUM(E102:W102) -> 97,395.20 | BE102: =SUM(X102:AI102) -> 1,598.55 | BF102: =SUM(AJ102:BB102) -> 0.00
C103: 432 | D103: Variation de stock | E103: 0.00 | F103: 0.00 | G103: 0.00 | H103: 0.00 | I103: 0.00 | J103: 0.00 | K103: 0.00 | L103: 0.00 | M103: 0.00 | N103: 0.00 | O103: 0.00 | P103: 0.00 | Q103: 0.00 | R103: 0.00 | S103: 0.00 | T103: 0.00 | U103: 0.00 | V103: 486.60 | W103: 0.00 | X103: 0.00 | Y103: -34,622.30 | Z103: 0.00 | AA103: 1,767.75 | AB103: 0.00 | AC103: 0.00 | AD103: 0.00 | AE103: 0.00 | AF103: 0.00 | AG103: 0.00 | AH103: 0.00 | AI103: 3,980.20 | AJ103: 0.00 | AK103: 0.00 | AL103: 0.00 | AM103: 0.00 | AN103: 0.00 | AO103: 0.00 | AP103: 0.00 | AQ103: 0.00 | AR103: 0.00 | AS103: 0.00 | AT103: 0.00 | AU103: 0.00 | AV103: 0.00 | AW103: 0.00 | AX103: 0.00 | AY103: 0.00 | AZ103: 0.00 | BA103: 0.00 | BB103: 0.00 | BC103: =SUM(E103:BB103) -> -28,387.75 | BD103: =SUM(E103:W103) -> 486.60 | BE103: =SUM(X103:AI103) -> -28,874.35 | BF103: =SUM(AJ103:BB103) -> 0.00
C104: 439 | D104: Autres revenus divers | E104: 0.00 | F104: 0.00 | G104: 0.00 | H104: 0.00 | I104: 0.00 | J104: 0.00 | K104: 0.00 | L104: 2,385,290.00 | M104: 0.00 | N104: 15,788.65 | O104: 0.00 | P104: 0.00 | Q104: 0.00 | R104: 0.00 | S104: 0.00 | T104: 784.00 | U104: 2,990.82 | V104: 1,733.00 | W104: 0.00 | X104: 0.00 | Y104: 0.00 | Z104: 0.00 | AA104: 50.00 | AB104: 0.00 | AC104: 0.00 | AD104: 4,146.80 | AE104: 0.00 | AF104: 11,820.00 | AG104: 0.00 | AH104: 0.00 | AI104: 50.00 | AJ104: 0.00 | AK104: 0.00 | AL104: 0.00 | AM104: 0.00 | AN104: 0.00 | AO104: 0.00 | AP104: 0.00 | AQ104: 0.00 | AR104: 0.00 | AS104: 0.00 | AT104: 0.00 | AU104: 1,600.00 | AV104: 0.00 | AW104: 0.00 | AX104: 0.00 | AY104: 0.00 | AZ104: 0.00 | BA104: 0.00 | BB104: 0.00 | BC104: =SUM(E104:BB104) -> 2,424,253.27 | BD104: =SUM(E104:W104) -> 2,406,586.47 | BE104: =SUM(X104:AI104) -> 16,066.80 | BF104: =SUM(AJ104:BB104) -> 1,600.00
B106: 44 | D106: Revenus financiers | E106: =E107+E108+E109+E110+E111+E112+E113+E114+E115+E116 -> 68,631.02 | F106: =F107+F108+F109+F110+F111+F112+F113+F114+F115+F116 -> 35,702.30 | G106: 142,093.85 | H106: 139,219.20 | I106: 825,166.76 | J106: 497,781.38 | K106: 358,434.32 | L106: 4,792,628.87 | M106: 217,274.09 | N106: 23,887.70 | O106: 854,385.16 | P106: 80,293.15 | Q106: 17,147.32 | R106: 53,376.93 | S106: 570,727.21 | T106: 1,216,778.90 | U106: 52,720.66 | V106: 83,145.78 | W106: 648,783.71 | X106: 82,659.71 | Y106: 131,671.19 | Z106: 314,658.54 | AA106: 35,055.47 | AB106: 108,210.54 | AC106: 161,376.16 | AD106: 91,123.63 | AE106: 158,692.16 | AF106: 419,685.43 | AG106: 780,157.19 | AH106: 47,714.20 | AI106: 33,949.38 | AJ106: 239,221.21 | AK106: 715,137.28 | AL106: 206,416.20 | AM106: 189,721.57 | AN106: 384,219.55 | AO106: 187,316.49 | AP106: 662,565.22 | AQ106: 90,029.29 | AR106: 241,599.35 | AS106: 71,579.13 | AT106: 205,062.31 | AU106: 90,758.08 | AV106: 44,538.34 | AW106: 94,734.39 | AX106: 185,575.70 | AY106: 60,577.11 | AZ106: 318,367.20 | BA106: 1,942,812.42 | BB106: 78,099.17 | BC106: 19,051,461.92 | BD106: 10,678,178.31 | BE106: 2,364,953.60 | BF106: 6,008,330.01
C107: 440 | D107: Revenus des intérets | E107: 45,009.97 | F107: 5,777.30 | G107: 14,139.45 | H107: 10,419.30 | I107: 143,869.39 | J107: 119,029.86 | K107: 93,488.82 | L107: 1,216,568.37 | M107: 48,609.19 | N107: 2,887.70 | O107: 365,376.89 | P107: 16,780.10 | Q107: 3,323.82 | R107: 23,030.53 | S107: 20,506.21 | T107: 37,418.67 | U107: 6,830.66 | V107: 23,878.78 | W107: 111,238.00 | X107: 14,967.11 | Y107: 59,922.74 | Z107: 270,606.84 | AA107: 9,015.47 | AB107: 21,161.69 | AC107: 17,361.76 | AD107: 65,036.63 | AE107: 26,675.11 | AF107: 87,850.14 | AG107: 114,884.44 | AH107: 16,556.36 | AI107: 6,059.38 | AJ107: 99,067.17 | AK107: 167,097.78 | AL107: 66,785.10 | AM107: 42,398.07 | AN107: 83,330.15 | AO107: 35,619.19 | AP107: 43,776.88 | AQ107: 28,900.69 | AR107: 87,640.20 | AS107: 13,817.03 | AT107: 110,807.98 | AU107: 35,062.33 | AV107: 19,932.69 | AW107: 19,810.14 | AX107: 84,105.76 | AY107: 21,584.21 | AZ107: 61,141.37 | BA107: 323,471.91 | BB107: 23,909.07 | BC107: =SUM(E107:BB107) -> 4,386,538.40 | BD107: =SUM(E107:W107) -> 2,308,183.01 | BE107: =SUM(X107:AI107) -> 710,097.67 | BF107: =SUM(AJ107:BB107) -> 1,368,257.72
C108: 441 | D108: Gains réalisés du PF | E108: 0.00 | F108: 0.00 | G108: 0.00 | H108: 0.00 | I108: 0.00 | J108: 0.00 | K108: 0.00 | L108: 0.00 | M108: 127,892.10 | N108: 0.00 | O108: 0.00 | P108: 0.00 | Q108: 0.00 | R108: 0.00 | S108: 0.00 | T108: 0.00 | U108: 0.00 | V108: 0.00 | W108: 53,955.00 | X108: 2,260.00 | Y108: 0.00 | Z108: 0.00 | AA108: 0.00 | AB108: 0.00 | AC108: 0.00 | AD108: 0.00 | AE108: 597.00 | AF108: 113,662.65 | AG108: 18,600.00 | AH108: 0.00 | AI108: 0.00 | AJ108: 0.00 | AK108: 0.00 | AL108: 0.00 | AM108: 0.00 | AN108: -7,535.00 | AO108: 0.00 | AP108: 0.00 | AQ108: 0.00 | AR108: 0.00 | AS108: 5,729.00 | AT108: 0.00 | AU108: 0.00 | AV108: 0.00 | AW108: 0.00 | AX108: 0.00 | AY108: 3,500.00 | AZ108: 5,060.00 | BA108: 0.00 | BB108: 0.00 | BC108: 323,720.75 | BD108: 181,847.10 | BE108: 135,119.65 | BF108: 6,754.00
C109: 442 | D109: Revenus de participations du PF | E109: -907.85 | F109: 0.00 | G109: 0.00 | H109: 0.00 | I109: 10,601.50 | J109: 3,050.00 | K109: 0.00 | L109: 27,253.50 | M109: 0.00 | N109: 0.00 | O109: 5,907.00 | P109: 0.00 | Q109: 28.50 | R109: 0.00 | S109: 6.00 | T109: 390.04 | U109: 0.00 | V109: 0.00 | W109: 285.00 | X109: 5.00 | Y109: 0.00 | Z109: 0.00 | AA109: 0.00 | AB109: 0.00 | AC109: 22.50 | AD109: 112.50 | AE109: 0.00 | AF109: 11,275.00 | AG109: 369,788.40 | AH109: 0.00 | AI109: 0.00 | AJ109: 0.00 | AK109: 1,326.00 | AL109: 0.00 | AM109: 80.00 | AN109: 0.00 | AO109: 0.00 | AP109: 10,457.75 | AQ109: 8,500.00 | AR109: 386.00 | AS109: 0.00 | AT109: 1,697.50 | AU109: 2,847.20 | AV109: 0.00 | AW109: 0.00 | AX109: 0.00 | AY109: 0.00 | AZ109: 946.88 | BA109: 52,479.88 | BB109: 20.00 | BC109: 506,558.30 | BD109: 46,613.69 | BE109: 381,203.40 | BF109: 78,741.21
C110: 443 | D110: Revenus des biens-fonds, des bâtiments et immeubles du PF | E110: 23,511.50 | F110: 22,230.00 | G110: 105,524.40 | H110: 77,719.90 | I110: 381,829.00 | J110: 137,710.00 | K110: 127,831.25 | L110: 1,096,542.59 | M110: 17,679.50 | N110: 21,000.00 | O110: 106,907.50 | P110: 24,520.00 | Q110: 10,140.00 | R110: 28,680.00 | S110: 14,480.00 | T110: 53,942.96 | U110: 0.00 | V110: 20,308.00 | W110: 222,409.35 | X110: 1,210.00 | Y110: 41,765.00 | Z110: 10,050.00 | AA110: 25,760.00 | AB110: 52,679.20 | AC110: 80,879.70 | AD110: 2,561.00 | AE110: 16,249.00 | AF110: 94,909.60 | AG110: 52,010.60 | AH110: 778.04 | AI110: 27,760.00 | AJ110: 0.00 | AK110: 250,289.10 | AL110: 81,297.60 | AM110: 35,943.50 | AN110: 265,114.30 | AO110: 16,068.55 | AP110: 423,750.03 | AQ110: 29,522.40 | AR110: 79,688.80 | AS110: 40,033.10 | AT110: 0.00 | AU110: 25,428.55 | AV110: 12,901.55 | AW110: 39,581.80 | AX110: 62,397.80 | AY110: 33,816.70 | AZ110: 98,472.75 | BA110: 433,352.44 | BB110: 35,332.60 | BC110: 4,862,569.66 | BD110: 2,492,965.95 | BE110: 406,612.14 | BF110: 1,962,991.57
C111: 444 | D111: Réévaluations des immobilisations du PF | E111: 0.00 | F111: 0.00 | G111: 19,800.00 | H111: 0.00 | I111: 182,680.49 | J111: 145,681.67 | K111: 21,728.25 | L111: 688,400.00 | M111: 40.00 | N111: 0.00 | O111: 4,028.00 | P111: 0.00 | Q111: 20.00 | R111: 0.00 | S111: 530,000.00 | T111: 1,119,415.73 | U111: 28,200.00 | V111: 0.00 | W111: 200.00 | X111: 0.00 | Y111: 0.00 | Z111: 0.00 | AA111: 280.00 | AB111: 0.00 | AC111: 20.00 | AD111: 0.00 | AE111: 0.00 | AF111: 2,240.00 | AG111: 880.00 | AH111: 0.00 | AI111: 0.00 | AJ111: 0.00 | AK111: 420.00 | AL111: 0.00 | AM111: 34,187.32 | AN111: 0.00 | AO111: 9,065.00 | AP111: 0.00 | AQ111: 7,532.00 | AR111: 0.00 | AS111: 0.00 | AT111: 0.00 | AU111: 15,680.00 | AV111: 0.00 | AW111: 0.00 | AX111: 1,200.00 | AY111: 40.00 | AZ111: 820.00 | BA111: 8,000.00 | BB111: 0.00 | BC111: 2,820,558.46 | BD111: 2,740,194.14 | BE111: 3,420.00 | BF111: 76,944.32
C112: 445 | D112: Revenus financiers de prêts et de participation du PA | E112: 0.00 | F112: 0.00 | G112: 0.00 | H112: 0.00 | I112: 0.00 | J112: 0.00 | K112: 0.00 | L112: 146,511.00 | M112: 0.00 | N112: 0.00 | O112: 0.00 | P112: 0.00 | Q112: 0.00 | R112: 0.00 | S112: 0.00 | T112: 0.00 | U112: 0.00 | V112: 0.00 | W112: 0.00 | X112: 0.00 | Y112: 0.00 | Z112: 0.00 | AA112: 0.00 | AB112: 0.00 | AC112: 0.00 | AD112: 0.00 | AE112: 0.00 | AF112: 0.00 | AG112: 0.00 | AH112: 0.00 | AI112: 0.00 | AJ112: 0.00 | AK112: 0.00 | AL112: 0.00 | AM112: 0.00 | AN112: 0.00 | AO112: 0.00 | AP112: 0.00 | AQ112: 0.00 | AR112: 0.00 | AS112: 0.00 | AT112: 0.00 | AU112: 0.00 | AV112: 0.00 | AW112: 0.00 | AX112: 0.00 | AY112: 0.00 | AZ112: 0.00 | BA112: 0.00 | BB112: 0.00 | BC112: 146,511.00 | BD112: 146,511.00 | BE112: 0.00 | BF112: 0.00
C113: 446 | D113: Revenus financiers d'entreprises publiques | E113: 0.00 | F113: 0.00 | G113: 0.00 | H113: 0.00 | I113: 0.00 | J113: 0.00 | K113: 0.00 | L113: 0.00 | M113: 0.00 | N113: 0.00 | O113: 0.00 | P113: 0.00 | Q113: 0.00 | R113: 0.00 | S113: 0.00 | T113: 0.00 | U113: 0.00 | V113: 0.00 | W113: 0.00 | X113: 0.00 | Y113: 0.00 | Z113: 0.00 | AA113: 0.00 | AB113: 0.00 | AC113: 0.00 | AD113: 0.00 | AE113: 0.00 | AF113: 0.00 | AG113: 0.00 | AH113: 0.00 | AI113: 0.00 | AJ113: 0.00 | AK113: 0.00 | AL113: 0.00 | AM113: 0.00 | AN113: 0.00 | AO113: 0.00 | AP113: 0.00 | AQ113: 0.00 | AR113: 0.00 | AS113: 0.00 | AT113: 0.00 | AU113: 0.00 | AV113: 0.00 | AW113: 0.00 | AX113: 0.00 | AY113: 0.00 | AZ113: 0.00 | BA113: 0.00 | BB113: 0.00 | BC113: 0.00 | BD113: 0.00 | BE113: 0.00 | BF113: 0.00
C114: 447 | D114: Revenus des biens-fonds, des bâtiments et immeubles du PA | E114: 1,017.40 | F114: 7,695.00 | G114: 2,630.00 | H114: 51,080.00 | I114: 106,186.38 | J114: 92,309.85 | K114: 115,386.00 | L114: 1,617,353.41 | M114: 23,053.00 | N114: 0.00 | O114: 372,135.72 | P114: 38,993.05 | Q114: 3,635.00 | R114: 1,666.40 | S114: 5,735.00 | T114: 5,611.50 | U114: 17,690.00 | V114: 38,959.00 | W114: 259,886.36 | X114: 64,067.60 | Y114: 29,983.45 | Z114: 34,001.70 | AA114: 0.00 | AB114: 34,369.65 | AC114: 63,092.20 | AD114: 23,413.50 | AE114: 115,171.05 | AF114: 109,744.00 | AG114: 223,993.75 | AH114: 30,379.80 | AI114: 120.00 | AJ114: 140,154.04 | AK114: 291,719.15 | AL114: 58,333.50 | AM114: 79,740.00 | AN114: 43,310.10 | AO114: 126,563.75 | AP114: 184,580.56 | AQ114: 15,574.20 | AR114: 73,884.35 | AS114: 12,000.00 | AT114: 90,034.75 | AU114: 11,740.00 | AV114: 11,704.10 | AW114: 35,342.45 | AX114: 37,872.14 | AY114: 1,636.20 | AZ114: 151,926.20 | BA114: 1,125,508.19 | BB114: 18,837.50 | BC114: 5,999,820.95 | BD114: 2,761,023.07 | BE114: 728,336.70 | BF114: 2,510,461.18
C115: 448 | D115: Revenus des biens-fonds loués | E115: 0.00 | F115: 0.00 | G115: 0.00 | H115: 0.00 | I115: 0.00 | J115: 0.00 | K115: 0.00 | L115: 0.00 | M115: 0.00 | N115: 0.00 | O115: 0.00 | P115: 0.00 | Q115: 0.00 | R115: 0.00 | S115: 0.00 | T115: 0.00 | U115: 0.00 | V115: 0.00 | W115: 810.00 | X115: 150.00 | Y115: 0.00 | Z115: 0.00 | AA115: 0.00 | AB115: 0.00 | AC115: 0.00 | AD115: 0.00 | AE115: 0.00 | AF115: 0.00 | AG115: 0.00 | AH115: 0.00 | AI115: 0.00 | AJ115: 0.00 | AK115: 0.00 | AL115: 0.00 | AM115: 2,341.75 | AN115: 0.00 | AO115: 0.00 | AP115: 0.00 | AQ115: 0.00 | AR115: 0.00 | AS115: 0.00 | AT115: 0.00 | AU115: 0.00 | AV115: 0.00 | AW115: 0.00 | AX115: 0.00 | AY115: 0.00 | AZ115: 0.00 | BA115: 0.00 | BB115: 0.00 | BC115: 3,301.75 | BD115: 810.00 | BE115: 150.00 | BF115: 2,341.75
C116: 449 | D116: Autres revenus financiers | E116: 0.00 | F116: 0.00 | G116: 0.00 | H116: 0.00 | I116: 0.00 | J116: 0.00 | K116: 0.00 | L116: 0.00 | M116: 0.30 | N116: 0.00 | O116: 30.05 | P116: 0.00 | Q116: 0.00 | R116: 0.00 | S116: 0.00 | T116: 0.00 | U116: 0.00 | V116: 0.00 | W116: 0.00 | X116: 0.00 | Y116: 0.00 | Z116: 0.00 | AA116: 0.00 | AB116: 0.00 | AC116: 0.00 | AD116: 0.00 | AF116: 4.04 | AG116: 0.00 | AH116: 0.00 | AI116: 10.00 | AJ116: 0.00 | AK116: 4,285.25 | AL116: 0.00 | AM116: -4,969.07 | AN116: 0.00 | AO116: 0.00 | AP116: 0.00 | AQ116: 0.00 | AR116: 0.00 | AS116: 0.00 | AT116: 2,522.08 | AU116: 0.00 | AV116: 0.00 | AW116: 0.00 | AX116: 0.00 | AY116: 0.00 | AZ116: 0.00 | BA116: 0.00 | BB116: 0.00 | BC116: 1,882.65 | BD116: 30.35 | BE116: 14.04 | BF116: 1,838.26
B118: 45 | D118: Prélèvements sur les financements spéciaux | E118: =E119+E120 -> 11,979.94 | F118: =F119+F120 -> 18,662.65 | G118: 1,173.65 | H118: 150,254.51 | I118: 168,863.65 | J118: 160,199.77 | K118: 57,291.00 | L118: 29,494.75 | M118: 244,135.68 | N118: 0.00 | O118: 382,575.80 | P118: 0.00 | Q118: 10,875.00 | R118: 14,077.06 | S118: 42,185.50 | T118: 31,442.89 | U118: 60,682.90 | V118: 0.00 | W118: 81,372.76 | X118: 7,142.80 | Y118: -15.55 | Z118: 28,092.63 | AA118: 348.85 | AB118: 1,206.75 | AC118: 0.00 | AD118: 2,084.70 | AE118: 1,202.50 | AF118: 138,402.77 | AG118: 8,436.35 | AH118: 573.55 | AI118: 0.00 | AJ118: 0.00 | AK118: 3,641.85 | AL118: 128,184.87 | AM118: 6,138.50 | AN118: 0.00 | AO118: 1,495.95 | AP118: 332,760.61 | AQ118: 18,502.65 | AR118: 8,175.95 | AS118: 34,094.65 | AT118: 2,749.08 | AU118: 65,105.19 | AV118: 6,906.35 | AW118: 786.50 | AX118: 3,864.35 | AY118: 44,528.18 | AZ118: 160,491.45 | BA118: 239,079.32 | BB118: 120.00 | BC118: 2,709,368.31 | BD118: 1,465,267.51 | BE118: 187,475.35 | BF118: 1,056,625.45
C119: 450 | D119: Prélèvements sur les financements spéciaux des capitaux de tiers | E119: 11,381.65 | F119: 0.00 | G119: 1,173.65 | H119: 1,057.20 | I119: 8,566.85 | J119: 7,989.25 | K119: 14,676.75 | L119: 29,494.75 | M119: 3,237.55 | N119: 0.00 | O119: 17,264.30 | P119: 0.00 | Q119: 0.00 | R119: 992.60 | S119: 817.80 | T119: 1,724.05 | U119: 684.00 | V119: 0.00 | W119: 7,728.20 | X119: 0.00 | Y119: -15.55 | Z119: 3,894.35 | AA119: 348.85 | AB119: 1,206.75 | AC119: 0.00 | AD119: 1,335.85 | AE119: 1,202.50 | AF119: 4,579.50 | AG119: 6,070.85 | AH119: 573.55 | AI119: 0.00 | AJ119: 0.00 | AK119: 0.00 | AL119: 0.00 | AM119: 0.00 | AN119: 0.00 | AO119: 1,495.95 | AP119: 3,074.55 | AQ119: 0.00 | AR119: 2,530.45 | AS119: 754.65 | AT119: 2,749.08 | AU119: 1,827.45 | AV119: 853.20 | AW119: 786.50 | AX119: 3,864.35 | AY119: 0.00 | AZ119: 491.45 | BA119: 14,939.75 | BB119: 0.00 | BC119: =SUM(E119:BB119) -> 159,352.63 | BD119: =SUM(E119:W119) -> 106,788.60 | BE119: =SUM(X119:AI119) -> 19,196.65 | BF119: =SUM(AJ119:BB119) -> 33,367.38
C120: 451 | D120: Prélèvements sur les financements spéciaux du capital propre | E120: 598.29 | F120: 18,662.65 | G120: 0.00 | H120: 149,197.31 | I120: 160,296.80 | J120: 152,210.52 | K120: 42,614.25 | L120: 0.00 | M120: 240,898.13 | N120: 0.00 | O120: 365,311.50 | P120: 0.00 | Q120: 10,875.00 | R120: 13,084.46 | S120: 41,367.70 | T120: 29,718.84 | U120: 59,998.90 | V120: 0.00 | W120: 73,644.56 | X120: 7,142.80 | Y120: 0.00 | Z120: 24,198.28 | AA120: 0.00 | AB120: 0.00 | AC120: 0.00 | AD120: 748.85 | AE120: 0.00 | AF120: 133,823.27 | AG120: 2,365.50 | AH120: 0.00 | AI120: 0.00 | AJ120: 0.00 | AK120: 3,641.85 | AL120: 128,184.87 | AM120: 6,138.50 | AN120: 0.00 | AO120: 0.00 | AP120: 329,686.06 | AQ120: 18,502.65 | AR120: 5,645.50 | AS120: 33,340.00 | AT120: 0.00 | AU120: 63,277.74 | AV120: 6,053.15 | AW120: 0.00 | AX120: 0.00 | AY120: 44,528.18 | AZ120: 160,000.00 | BA120: 224,139.57 | BB120: 120.00 | BC120: =SUM(E120:BB120) -> 2,550,015.68 | BD120: =SUM(E120:W120) -> 1,358,478.91 | BE120: =SUM(X120:AI120) -> 168,278.70 | BF120: =SUM(AJ120:BB120) -> 1,023,258.07
B122: 46 | D122: Revenus de transfert | E122: =E123+E124+E125+E126+E127 -> 410,940.39 | F122: =F123+F124+F125+F126+F127 -> 326,117.70 | G122: 23,165.45 | H122: 236,691.25 | I122: 2,306,709.21 | J122: 1,182,663.05 | K122: 1,806,206.70 | L122: 22,628,701.30 | M122: 1,154,956.70 | N122: 107,807.45 | O122: 3,757,497.25 | P122: 278,559.70 | Q122: 49,665.25 | R122: 197,148.35 | S122: 253,425.65 | T122: 70,701.11 | U122: 243,106.20 | V122: 1,213,710.77 | W122: 1,935,469.30 | X122: 116,335.45 | Y122: 759,768.09 | Z122: 2,175,314.84 | AA122: 163,303.60 | AB122: 231,961.16 | AC122: 599,781.53 | AD122: 484,668.20 | AE122: 255,734.75 | AF122: 960,835.33 | AG122: 1,355,835.05 | AH122: 203,762.23 | AI122: 156,242.80 | AJ122: 197,234.60 | AK122: 845,437.11 | AL122: 1,502,933.40 | AM122: 1,678,973.04 | AN122: 338,073.30 | AO122: 386,887.91 | AP122: 1,069,244.80 | AQ122: 476,324.10 | AR122: 555,117.23 | AS122: 61,910.60 | AT122: 1,914,950.98 | AU122: 195,043.85 | AV122: 274,750.20 | AW122: 190,024.70 | AX122: 730,763.70 | AY122: 599,943.16 | AZ122: 795,293.42 | BA122: 8,730,717.49 | BB122: 274,314.24 | BC122: 66,464,723.64 | BD122: 38,183,242.78 | BE122: 7,463,543.03 | BF122: 20,817,937.83
C123: 460 | D123: Parts à des revenus des collectivités publiques | E123: 9,995.00 | F123: 7,259.50 | G123: 165.00 | H123: 0.00 | I123: 29,892.00 | J123: 126,946.00 | K123: 48,150.00 | L123: 420,079.00 | M123: 56,660.00 | N123: 418.00 | O123: 0.00 | P123: 0.00 | Q123: 3,626.80 | R123: 0.00 | S123: 0.00 | T123: 2,573.00 | U123: 0.00 | V123: 30,974.90 | W123: 117,493.75 | X123: 318.00 | Y123: 9,295.00 | Z123: 670,944.00 | AA123: 661.00 | AB123: 6,646.60 | AC123: 4,346.00 | AD123: 1,300.00 | AE123: 0.00 | AF123: 135,534.00 | AG123: 49,267.00 | AH123: 0.00 | AI123: 125.00 | AJ123: 1,000.00 | AK123: 0.00 | AL123: 5,412.00 | AM123: 5,946.00 | AN123: 170,614.00 | AO123: 6,187.00 | AP123: 0.00 | AQ123: 1,294.00 | AR123: 2,531.00 | AS123: 9,966.00 | AT123: 42,744.00 | AU123: 23,435.00 | AV123: 1,262.00 | AW123: 527.00 | AX123: 2,722.00 | AY123: 292.00 | AZ123: 10,734.00 | BA123: 215,120.00 | BB123: 5,643.00 | BC123: =SUM(E123:BB123) -> 2,238,098.55 | BD123: =SUM(E123:W123) -> 854,232.95 | BE123: =SUM(X123:AI123) -> 878,436.60 | BF123: =SUM(AJ123:BB123) -> 505,429.00
C124: 461 | D124: Dédommagements des collectivités publiques | E124: 214,629.59 | F124: 8,423.35 | G124: 2,463.60 | H124: 2,440.00 | I124: 293,064.31 | J124: 326,059.80 | K124: 1,500,101.30 | L124: 10,149,558.66 | M124: 424,807.30 | N124: 8,997.40 | O124: 1,319,978.65 | P124: 5,595.00 | Q124: 10,820.00 | R124: 51,010.85 | S124: 62,199.35 | T124: 40,902.31 | U124: 7,728.60 | V124: 1,076,818.57 | W124: 420,156.70 | X124: 15,538.45 | Y124: 648,800.30 | Z124: 1,075,632.17 | AA124: 56,254.75 | AB124: 66,287.66 | AC124: 410,853.58 | AD124: 164,496.60 | AE124: 611.00 | AF124: 548,233.95 | AG124: 466,841.45 | AH124: 68,716.28 | AI124: 40,041.45 | AJ124: 70,952.00 | AK124: 74,758.66 | AL124: 623,892.25 | AM124: 934,016.91 | AN124: 76,477.00 | AO124: 37,872.70 | AP124: 336,166.80 | AQ124: 93,857.25 | AR124: 158,759.01 | AS124: 12,475.75 | AT124: 1,679,397.73 | AU124: 71,671.30 | AV124: 2,509.00 | AW124: 11,311.75 | AX124: 144,684.20 | AY124: 223,389.26 | AZ124: 667,587.22 | BA124: 6,540,805.65 | BB124: 82,322.40 | BC124: =SUM(E124:BB124) -> 31,330,969.82 | BD124: =SUM(E124:W124) -> 15,925,755.34 | BE124: =SUM(X124:AI124) -> 3,562,307.64 | BF124: =SUM(AJ124:BB124) -> 11,842,906.84
C125: 462 | D125: Péréquation financière et compensation de charges | E125: 0.00 | F125: 278,147.00 | G125: 0.00 | H125: 155,990.00 | I125: 1,284,942.00 | J125: 316,347.00 | K125: 0.00 | L125: 1,034,544.54 | M125: 49,843.00 | N125: 87,730.00 | O125: 1,480,997.00 | P125: 243,182.00 | Q125: 29,286.00 | R125: 119,912.00 | S125: 170,278.00 | T125: 0.00 | U125: 212,706.00 | V125: 0.00 | W125: 1,071,534.00 | X125: 9,924.00 | Y125: 0.00 | Z125: 29,505.00 | AA125: 85,944.00 | AB125: 10,620.00 | AC125: 88,752.00 | AD125: 195,454.00 | AE125: 0.00 | AF125: 0.00 | AG125: 334,686.00 | AH125: 107,292.00 | AI125: 81,662.00 | AJ125: 0.00 | AK125: 510,778.00 | AL125: 653,812.00 | AM125: 579,697.00 | AN125: 0.00 | AO125: 160,144.00 | AP125: 533,324.00 | AQ125: 300,548.00 | AR125: 222,044.00 | AS125: 0.00 | AT125: 41,286.00 | AU125: 0.00 | AV125: 209,120.00 | AW125: 157,078.00 | AX125: 383,149.00 | AY125: 284,045.00 | AZ125: 0.00 | BA125: 440,269.00 | BB125: 125,736.00 | BC125: =SUM(E125:BB125) -> 12,080,307.54 | BD125: =SUM(E125:W125) -> 6,535,438.54 | BE125: =SUM(X125:AI125) -> 943,839.00 | BF125: =SUM(AJ125:BB125) -> 4,601,030.00
C126: 463 | D126: Subventions de collectivités publiques et de tiers | E126: 185,756.90 | F126: 32,262.30 | G126: 20,536.85 | H126: 78,112.90 | I126: 696,524.00 | J126: 411,620.55 | K126: 257,341.85 | L126: 2,397,756.53 | M126: 187,189.65 | N126: 10,662.05 | O126: 920,515.85 | P126: 29,782.70 | Q126: 5,906.70 | R126: 26,088.25 | S126: 20,859.55 | T126: 27,072.25 | U126: 22,610.20 | V126: 105,753.55 | W126: 324,898.05 | X126: 89,201.95 | Y126: 95,534.34 | Z126: 398,169.37 | AA126: 19,392.85 | AB126: 146,835.30 | AC126: 93,847.25 | AD126: 122,441.60 | AE126: 255,123.75 | AF126: 272,213.48 | AG126: 503,973.05 | AH126: 27,417.20 | AI126: 34,385.40 | AJ126: 123,437.05 | AK126: 231,537.00 | AL126: 216,618.70 | AM126: 156,802.23 | AN126: 90,167.15 | AO126: 177,027.81 | AP126: 196,682.90 | AQ126: 78,809.05 | AR126: 170,523.32 | AS126: 38,512.80 | AT126: 148,433.25 | AU126: 98,947.35 | AV126: 57,704.85 | AW126: 18,259.05 | AX126: 197,161.60 | AY126: 92,142.40 | AZ126: 116,219.35 | BA126: 1,460,835.89 | BB126: 53,362.49 | BC126: =SUM(E126:BB126) -> 11,542,970.46 | BD126: =SUM(E126:W126) -> 5,761,250.68 | BE126: =SUM(X126:AI126) -> 2,058,535.54 | BF126: =SUM(AJ126:BB126) -> 3,723,184.24
C127: 469 | D127: Différents revenus et transferts de collectivités publiques et de tiers | E127: 558.90 | F127: 25.55 | G127: 0.00 | H127: 148.35 | I127: 2,286.90 | J127: 1,689.70 | K127: 613.55 | L127: 8,626,762.57 | M127: 436,456.75 | N127: 0.00 | O127: 36,005.75 | P127: 0.00 | Q127: 25.75 | R127: 137.25 | S127: 88.75 | T127: 153.55 | U127: 61.40 | V127: 163.75 | W127: 1,386.80 | X127: 1,353.05 | Y127: 6,138.45 | Z127: 1,064.30 | AA127: 1,051.00 | AB127: 1,571.60 | AC127: 1,982.70 | AD127: 976.00 | AE127: 0.00 | AF127: 4,853.90 | AG127: 1,067.55 | AH127: 336.75 | AI127: 28.95 | AJ127: 1,845.55 | AK127: 28,363.45 | AL127: 3,198.45 | AM127: 2,510.90 | AN127: 815.15 | AO127: 5,656.40 | AP127: 3,071.10 | AQ127: 1,815.80 | AR127: 1,259.90 | AS127: 956.05 | AT127: 3,090.00 | AU127: 990.20 | AV127: 4,154.35 | AW127: 2,848.90 | AX127: 3,046.90 | AY127: 74.50 | AZ127: 752.85 | BA127: 73,686.95 | BB127: 7,250.35 | BC127: =SUM(E127:BB127) -> 9,272,377.27 | BD127: =SUM(E127:W127) -> 9,106,565.27 | BE127: =SUM(X127:AI127) -> 20,424.25 | BF127: =SUM(AJ127:BB127) -> 145,387.75
B129: 47 | D129: Subventions à redistribuer | E129: =E130 -> 0.00 | F129: =F130 -> 0.00 | G129: 0.00 | H129: 0.00 | I129: 0.00 | J129: 0.00 | K129: 0.00 | L129: 0.00 | M129: 0.00 | N129: 0.00 | O129: 0.00 | P129: 0.00 | Q129: 0.00 | R129: 0.00 | S129: 0.00 | T129: 0.00 | U129: 0.00 | V129: 0.00 | W129: 0.00 | X129: 431,783.60 | Y129: 0.00 | Z129: 583,534.05 | AA129: 199,355.25 | AB129: 152,345.95 | AC129: 0.00 | AD129: 248,254.50 | AE129: 613,271.00 | AF129: 416,312.75 | AG129: 462,715.25 | AH129: 2,864.00 | AI129: 0.00 | AJ129: 0.00 | AK129: 0.00 | AL129: 0.00 | AM129: 0.00 | AN129: 0.00 | AO129: 0.00 | AP129: 51,178.50 | AQ129: 0.00 | AR129: 0.00 | AS129: 0.00 | AT129: 75,362.65 | AU129: 9,660.00 | AV129: 0.00 | AW129: 0.00 | AX129: 0.00 | AY129: 0.00 | AZ129: 0.00 | BA129: 0.00 | BB129: 0.00 | BC129: 3,246,637.50 | BD129: 0.00 | BE129: 3,110,436.35 | BF129: 136,201.15
C130: 470 | D130: Subventions à redistribuer des collectivités publiques et de tiers | E130: 0.00 | F130: 0.00 | G130: 0.00 | H130: 0.00 | I130: 0.00 | J130: 0.00 | K130: 0.00 | L130: 0.00 | M130: 0.00 | N130: 0.00 | O130: 0.00 | P130: 0.00 | Q130: 0.00 | R130: 0.00 | S130: 0.00 | T130: 0.00 | U130: 0.00 | V130: 0.00 | W130: 0.00 | X130: 431,783.60 | Y130: 0.00 | Z130: 583,534.05 | AA130: 199,355.25 | AB130: 152,345.95 | AC130: 0.00 | AD130: 248,254.50 | AE130: 613,271.00 | AF130: 416,312.75 | AG130: 462,715.25 | AH130: 2,864.00 | AI130: 0.00 | AJ130: 0.00 | AK130: 0.00 | AL130: 0.00 | AM130: 0.00 | AN130: 0.00 | AO130: 0.00 | AP130: 51,178.50 | AQ130: 0.00 | AR130: 0.00 | AS130: 0.00 | AT130: 75,362.65 | AU130: 9,660.00 | AV130: 0.00 | AW130: 0.00 | AX130: 0.00 | AY130: 0.00 | AZ130: 0.00 | BA130: 0.00 | BB130: 0.00 | BC130: =SUM(E130:BB130) -> 3,246,637.50 | BD130: =SUM(E130:W130) -> 0.00 | BE130: =SUM(X130:AI130) -> 3,110,436.35 | BF130: =SUM(AJ130:BB130) -> 136,201.15
B132: 48 | D132: Revenus extraordinaires | E132: =E133+E134+E135+E136+E137+E138+E139 -> 18,200.09 | F132: =F133+F134+F135+F136+F137+F138+F139 -> 0.00 | G132: 0.00 | H132: 2,572.45 | I132: 14,968.25 | J132: 0.00 | K132: 14,467.75 | L132: 70,244.00 | M132: 10,700.00 | N132: 0.00 | O132: 416,514.54 | P132: 3,001.30 | Q132: 17,040.00 | R132: 18,460.20 | S132: 0.00 | T132: 8,700.00 | U132: 667.55 | V132: 0.00 | W132: 13,302.80 | X132: 0.00 | Y132: 0.00 | Z132: 101,691.89 | AA132: 0.00 | AB132: 85,000.00 | AC132: 0.00 | AD132: 0.00 | AE132: 197,550.65 | AF132: 0.00 | AG132: 10,172.20 | AH132: 0.00 | AI132: 0.00 | AJ132: 0.00 | AK132: 0.00 | AL132: 0.00 | AM132: 0.00 | AN132: 0.00 | AO132: 567.00 | AP132: 1,000,000.00 | AQ132: 402,693.85 | AR132: 23,132.37 | AS132: 338.00 | AT132: 0.00 | AU132: 633.00 | AV132: 442.00 | AW132: 311.00 | AX132: 201,597.00 | AY132: 319.00 | AZ132: 1,083.40 | BA132: 980,778.70 | BB132: 0.00 | BC132: 3,615,148.99 | BD132: 608,838.93 | BE132: 394,414.74 | BF132: 2,611,895.32
C133: 481 | D133: Revenus extraordinaires de patentes et de concessions | E133: 0.00 | F133: 0.00 | G133: 0.00 | H133: 0.00 | I133: 0.00 | J133: 0.00 | K133: 0.00 | L133: 0.00 | M133: 0.00 | N133: 0.00 | O133: 0.00 | P133: 0.00 | Q133: 0.00 | R133: 0.00 | S133: 0.00 | T133: 0.00 | U133: 0.00 | V133: 0.00 | W133: 0.00 | X133: 0.00 | Y133: 0.00 | Z133: 0.00 | AA133: 0.00 | AB133: 0.00 | AC133: 0.00 | AD133: 0.00 | AE133: 0.00 | AF133: 0.00 | AG133: 0.00 | AH133: 0.00 | AI133: 0.00 | AJ133: 0.00 | AK133: 0.00 | AL133: 0.00 | AM133: 0.00 | AN133: 0.00 | AO133: 0.00 | AP133: 0.00 | AQ133: 0.00 | AR133: 23,132.37 | AS133: 0.00 | AT133: 0.00 | AU133: 0.00 | AV133: 0.00 | AW133: 0.00 | AX133: 0.00 | AY133: 0.00 | AZ133: 0.00 | BA133: 31,551.70 | BB133: 0.00 | BC133: =SUM(E133:BB133) -> 54,684.07 | BD133: =SUM(E133:W133) -> 0.00 | BE133: =SUM(X133:AI133) -> 0.00 | BF133: =SUM(AJ133:BB133) -> 54,684.07
C134: 482 | D134: Contributions extraordinaires | E134: 0.00 | F134: 0.00 | G134: 0.00 | H134: 0.00 | I134: 0.00 | J134: 0.00 | K134: 0.00 | L134: 0.00 | M134: 0.00 | N134: 0.00 | O134: 0.00 | P134: 0.00 | Q134: 0.00 | R134: 18,460.20 | S134: 0.00 | T134: 0.00 | U134: 0.00 | V134: 0.00 | W134: 0.00 | X134: 0.00 | Y134: 0.00 | Z134: 0.00 | AA134: 0.00 | AB134: 0.00 | AC134: 0.00 | AD134: 0.00 | AE134: 0.00 | AF134: 0.00 | AG134: 0.00 | AH134: 0.00 | AI134: 0.00 | AJ134: 0.00 | AK134: 0.00 | AL134: 0.00 | AM134: 0.00 | AN134: 0.00 | AO134: 0.00 | AP134: 0.00 | AQ134: 0.00 | AR134: 0.00 | AS134: 0.00 | AT134: 0.00 | AU134: 0.00 | AV134: 0.00 | AW134: 0.00 | AX134: 0.00 | AY134: 0.00 | AZ134: 0.00 | BA134: 0.00 | BB134: 0.00 | BC134: 18,460.20 | BD134: 18,460.20 | BE134: 0.00 | BF134: 0.00
C135: 483 | D135: Revenus divers extraordinaires | E135: 0.00 | F135: 0.00 | G135: 0.00 | H135: 0.00 | I135: 0.00 | J135: 0.00 | K135: 0.00 | L135: 0.00 | M135: 0.00 | N135: 0.00 | O135: 100,000.00 | P135: 0.00 | Q135: 0.00 | R135: 0.00 | S135: 0.00 | T135: 0.00 | U135: 0.00 | V135: 0.00 | W135: 0.00 | X135: 0.00 | Y135: 0.00 | Z135: 100,291.89 | AA135: 0.00 | AB135: 0.00 | AC135: 0.00 | AD135: 0.00 | AE135: 0.00 | AF135: 0.00 | AG135: 0.00 | AH135: 0.00 | AI135: 0.00 | AJ135: 0.00 | AK135: 0.00 | AL135: 0.00 | AM135: 0.00 | AN135: 0.00 | AO135: 0.00 | AP135: 0.00 | AQ135: 402,271.85 | AR135: 0.00 | AS135: 0.00 | AT135: 0.00 | AU135: 0.00 | AV135: 0.00 | AW135: 0.00 | AX135: 0.00 | AY135: 0.00 | AZ135: 0.00 | BA135: 0.00 | BB135: 0.00 | BC135: 602,563.74 | BD135: 100,000.00 | BE135: 100,291.89 | BF135: 402,271.85
C136: 484 | D136: Revenus financiers extraordinaires | E136: 10,294.80 | F136: 0.00 | G136: 0.00 | H136: 0.00 | I136: 0.00 | J136: 0.00 | K136: 0.00 | L136: 0.00 | M136: 0.00 | N136: 0.00 | O136: 253,415.00 | P136: 0.00 | Q136: 2,040.00 | R136: 0.00 | S136: 0.00 | T136: 0.00 | U136: 0.00 | V136: 0.00 | W136: 0.00 | X136: 0.00 | Y136: 0.00 | Z136: 1,400.00 | AA136: 0.00 | AB136: 0.00 | AC136: 0.00 | AD136: 0.00 | AE136: 0.00 | AF136: 0.00 | AG136: 0.00 | AH136: 0.00 | AI136: 0.00 | AJ136: 0.00 | AK136: 0.00 | AL136: 0.00 | AM136: 0.00 | AN136: 0.00 | AO136: 0.00 | AP136: 0.00 | AQ136: 0.00 | AR136: 0.00 | AS136: 0.00 | AT136: 0.00 | AU136: 0.00 | AV136: 0.00 | AW136: 0.00 | AX136: 0.00 | AY136: 0.00 | AZ136: 0.00 | BA136: 949,227.00 | BB136: 0.00 | BC136: 1,216,376.80 | BD136: 265,749.80 | BE136: 1,400.00 | BF136: 949,227.00
C137: 485 | D137: Prélèvements extraordinaires sur les financements spéciaux | E137: 0.00 | F137: 0.00 | G137: 0.00 | H137: 0.00 | I137: 0.00 | J137: 0.00 | K137: 0.00 | L137: 0.00 | M137: 0.00 | N137: 0.00 | O137: 0.00 | P137: 0.00 | Q137: 0.00 | R137: 0.00 | S137: 0.00 | T137: 0.00 | U137: 0.00 | V137: 0.00 | W137: 13,302.80 | X137: 0.00 | Y137: 0.00 | Z137: 0.00 | AA137: 0.00 | AB137: 0.00 | AC137: 0.00 | AD137: 0.00 | AE137: 0.00 | AF137: 0.00 | AG137: 0.00 | AH137: 0.00 | AI137: 0.00 | AJ137: 0.00 | AK137: 0.00 | AL137: 0.00 | AM137: 0.00 | AN137: 0.00 | AO137: 0.00 | AP137: 0.00 | AQ137: 422.00 | AR137: 0.00 | AS137: 0.00 | AT137: 0.00 | AU137: 0.00 | AV137: 0.00 | AW137: 0.00 | AX137: 0.00 | AY137: 0.00 | AZ137: 0.00 | BA137: 0.00 | BB137: 0.00 | BC137: 13,724.80 | BD137: 13,302.80 | BE137: 0.00 | BF137: 422.00
C138: 486 | D138: Parts aux revenus extraordinaires de transferts des collectivités et tiers | E138: 0.00 | F138: 0.00 | G138: 0.00 | H138: 0.00 | I138: 0.00 | J138: 0.00 | K138: 0.00 | L138: 0.00 | M138: 0.00 | N138: 0.00 | O138: 0.00 | P138: 0.00 | Q138: 0.00 | R138: 0.00 | S138: 0.00 | T138: 0.00 | U138: 0.00 | V138: 0.00 | W138: 0.00 | X138: 0.00 | Y138: 0.00 | Z138: 0.00 | AA138: 0.00 | AB138: 0.00 | AC138: 0.00 | AD138: 0.00 | AE138: 0.00 | AF138: 0.00 | AG138: 10,172.20 | AH138: 0.00 | AI138: 0.00 | AJ138: 0.00 | AK138: 0.00 | AL138: 0.00 | AM138: 0.00 | AN138: 0.00 | AO138: 0.00 | AP138: 0.00 | AQ138: 0.00 | AR138: 0.00 | AS138: 0.00 | AT138: 0.00 | AU138: 0.00 | AV138: 0.00 | AW138: 0.00 | AX138: 0.00 | AY138: 0.00 | AZ138: 0.00 | BA138: 0.00 | BB138: 0.00 | BC138: 10,172.20 | BD138: 0.00 | BE138: 10,172.20 | BF138: 0.00
C139: 489 | D139: Prélèvement sur le capital propre | E139: 7,905.29 | F139: 0.00 | G139: 0.00 | H139: 2,572.45 | I139: 14,968.25 | J139: 0.00 | K139: 14,467.75 | L139: 70,244.00 | M139: 10,700.00 | N139: 0.00 | O139: 63,099.54 | P139: 3,001.30 | Q139: 15,000.00 | R139: 0.00 | S139: 0.00 | T139: 8,700.00 | U139: 667.55 | V139: 0.00 | W139: 0.00 | X139: 0.00 | Y139: 0.00 | Z139: 0.00 | AA139: 0.00 | AB139: 85,000.00 | AC139: 0.00 | AD139: 0.00 | AE139: 197,550.65 | AF139: 0.00 | AG139: 0.00 | AH139: 0.00 | AI139: 0.00 | AJ139: 0.00 | AK139: 0.00 | AL139: 0.00 | AM139: 0.00 | AN139: 0.00 | AO139: 567.00 | AP139: 1,000,000.00 | AQ139: 0.00 | AR139: 0.00 | AS139: 338.00 | AT139: 0.00 | AU139: 633.00 | AV139: 442.00 | AW139: 311.00 | AX139: 201,597.00 | AY139: 319.00 | AZ139: 1,083.40 | BA139: 0.00 | BB139: 0.00 | BC139: 1,699,167.18 | BD139: 211,326.13 | BE139: 282,550.65 | BF139: 1,205,290.40
B141: 49 | D141: Imputations internes | E141: =E142+E143+E144+E145+E146+E147+E148+E149 -> 0.00 | F141: =F142+F143+F144+F145+F146+F147+F148+F149 -> 26,016.90 | G141: 8,129.60 | H141: 57,589.20 | I141: 369,500.00 | J141: 123,170.00 | K141: 241,440.60 | L141: 5,412,202.77 | M141: 114,411.64 | N141: 9,376.05 | O141: 413,802.50 | P141: 15,146.00 | Q141: 0.00 | R141: 0.00 | S141: 0.00 | T141: 0.00 | U141: 5,000.00 | V141: 65,020.00 | W141: 265,848.26 | X141: 0.00 | Y141: 0.00 | Z141: 84,000.00 | AA141: 0.00 | AB141: 0.00 | AC141: 52,463.28 | AD141: 0.00 | AE141: 112,779.99 | AF141: 10,064.75 | AG141: 28,970.00 | AH141: 0.00 | AI141: 0.00 | AJ141: 26,000.00 | AK141: 51,115.90 | AL141: 84,305.70 | AM141: 66,247.95 | AN141: 31,869.90 | AO141: 0.00 | AP141: 179,515.00 | AQ141: 50,509.22 | AR141: 47,034.60 | AS141: 1,000.00 | AT141: 141,737.30 | AU141: 0.00 | AV141: 6,407.45 | AW141: 0.00 | AX141: 124,115.00 | AY141: 0.00 | AZ141: 49,590.62 | BA141: 0.00 | BB141: 15,500.00 | BC141: 8,289,880.18 | BD141: 7,126,653.52 | BE141: 288,278.02 | BF141: 874,948.64
C142: 490 | D142: Approvisionnement en matériel et en marchandises | E142: 0.00 | F142: 200.00 | G142: 0.00 | H142: 0.00 | I142: 0.00 | J142: 0.00 | K142: 0.00 | L142: 288,750.00 | M142: 1,200.00 | N142: 0.00 | O142: 105,925.50 | P142: 0.00 | Q142: 0.00 | R142: 0.00 | S142: 0.00 | T142: 0.00 | U142: 0.00 | V142: 0.00 | W142: 0.00 | X142: 0.00 | Y142: 0.00 | Z142: 0.00 | AA142: 0.00 | AB142: 0.00 | AC142: 1,150.00 | AD142: 0.00 | AE142: 0.00 | AF142: 5,583.75 | AG142: 0.00 | AH142: 0.00 | AI142: 0.00 | AJ142: 0.00 | AK142: 0.00 | AL142: 0.00 | AM142: 800.00 | AN142: 0.00 | AO142: 0.00 | AP142: 7,285.00 | AQ142: 0.00 | AR142: 0.00 | AS142: 0.00 | AT142: 0.00 | AU142: 0.00 | AV142: 0.00 | AW142: 0.00 | AX142: 0.00 | AY142: 0.00 | AZ142: 0.00 | BA142: 0.00 | BB142: 0.00 | BC142: =SUM(E142:BB142) -> 410,894.25 | BD142: =SUM(E142:W142) -> 396,075.50 | BE142: =SUM(X142:AI142) -> 6,733.75 | BF142: =SUM(AJ142:BB142) -> 8,085.00
C143: 491 | D143: Prestations de services | E143: 0.00 | F143: 5,289.50 | G143: 5,765.85 | H143: 57,233.20 | I143: 369,500.00 | J143: 123,170.00 | K143: 128,880.00 | L143: 1,554,448.05 | M143: 66,687.65 | N143: 9,376.05 | O143: 307,877.00 | P143: 15,146.00 | Q143: 0.00 | R143: 0.00 | S143: 0.00 | T143: 0.00 | U143: 5,000.00 | V143: 65,020.00 | W143: 94,850.00 | X143: 0.00 | Y143: 0.00 | Z143: 0.00 | AA143: 0.00 | AB143: 0.00 | AC143: 51,313.28 | AD143: 0.00 | AE143: 112,779.99 | AF143: 4,481.00 | AG143: 28,970.00 | AH143: 0.00 | AI143: 0.00 | AJ143: 26,000.00 | AK143: 0.00 | AL143: 3,784.00 | AM143: 65,447.95 | AN143: 31,869.90 | AO143: 0.00 | AP143: 122,385.00 | AQ143: 22,557.10 | AR143: 47,034.60 | AS143: 1,000.00 | AT143: 141,737.30 | AU143: 0.00 | AV143: 0.00 | AW143: 0.00 | AX143: 117,615.00 | AY143: 0.00 | AZ143: 49,590.62 | BA143: 0.00 | BB143: 15,500.00 | BC143: 3,650,309.04 | BD143: 2,808,243.30 | BE143: 197,544.27 | BF143: 644,521.47
C144: 492 | D144: Fermages, loyers et frais d'utilisation | E144: 0.00 | F144: 0.00 | G144: 0.00 | H144: 0.00 | I144: 0.00 | J144: 0.00 | K144: 0.00 | L144: 120,000.00 | M144: 0.00 | N144: 0.00 | O144: 0.00 | P144: 0.00 | Q144: 0.00 | R144: 0.00 | S144: 0.00 | T144: 0.00 | U144: 0.00 | V144: 0.00 | W144: 8,500.00 | X144: 0.00 | Y144: 0.00 | Z144: 84,000.00 | AA144: 0.00 | AB144: 0.00 | AC144: 0.00 | AD144: 0.00 | AE144: 0.00 | AF144: 0.00 | AG144: 0.00 | AH144: 0.00 | AI144: 0.00 | AJ144: 0.00 | AK144: 0.00 | AL144: 0.00 | AM144: 0.00 | AN144: 0.00 | AO144: 0.00 | AP144: 0.00 | AQ144: 0.00 | AR144: 0.00 | AS144: 0.00 | AT144: 0.00 | AU144: 0.00 | AV144: 0.00 | AW144: 0.00 | AX144: 0.00 | AY144: 0.00 | AZ144: 0.00 | BA144: 0.00 | BB144: 0.00 | BC144: 212,500.00 | BD144: 128,500.00 | BE144: 84,000.00 | BF144: 0.00
C145: 493 | D145: Frais administratifs et d'exploitations | E145: 0.00 | F145: 0.00 | G145: 2,363.75 | H145: 0.00 | I145: 0.00 | J145: 0.00 | K145: 12,415.00 | L145: 0.00 | M145: 0.00 | N145: 0.00 | O145: 0.00 | P145: 0.00 | Q145: 0.00 | R145: 0.00 | S145: 0.00 | T145: 0.00 | U145: 0.00 | V145: 0.00 | W145: 13,400.00 | X145: 0.00 | Y145: 0.00 | Z145: 0.00 | AA145: 0.00 | AB145: 0.00 | AC145: 0.00 | AD145: 0.00 | AE145: 0.00 | AF145: 0.00 | AG145: 0.00 | AH145: 0.00 | AI145: 0.00 | AJ145: 0.00 | AK145: 0.00 | AL145: 0.00 | AM145: 0.00 | AN145: 0.00 | AO145: 0.00 | AP145: 5,645.00 | AQ145: 2,250.00 | AR145: 0.00 | AS145: 0.00 | AT145: 0.00 | AU145: 0.00 | AV145: 0.00 | AW145: 0.00 | AX145: 0.00 | AY145: 0.00 | AZ145: 0.00 | BA145: 0.00 | BB145: 0.00 | BC145: 36,073.75 | BD145: 28,178.75 | BE145: 0.00 | BF145: 7,895.00
C146: 494 | D146: Intérêts et charges financières théoriques | E146: 0.00 | F146: 20,527.40 | G146: 0.00 | H146: 0.00 | I146: 0.00 | J146: 0.00 | K146: 100,145.60 | L146: 1,113,589.00 | M146: 46,523.99 | N146: 0.00 | O146: 0.00 | P146: 0.00 | Q146: 0.00 | R146: 0.00 | S146: 0.00 | T146: 0.00 | U146: 0.00 | V146: 0.00 | W146: 146,098.26 | X146: 0.00 | Y146: 0.00 | Z146: 0.00 | AA146: 0.00 | AB146: 0.00 | AC146: 0.00 | AD146: 0.00 | AE146: 0.00 | AF146: 0.00 | AG146: 0.00 | AH146: 0.00 | AI146: 0.00 | AJ146: 0.00 | AK146: 51,115.90 | AL146: 0.00 | AM146: 0.00 | AN146: 0.00 | AO146: 0.00 | AP146: 44,200.00 | AQ146: 25,702.12 | AR146: 0.00 | AS146: 0.00 | AT146: 0.00 | AU146: 0.00 | AV146: 6,407.45 | AW146: 0.00 | AX146: 0.00 | AY146: 0.00 | AZ146: 0.00 | BA146: 0.00 | BB146: 0.00 | BC146: 1,554,309.72 | BD146: 1,426,884.25 | BE146: 0.00 | BF146: 127,425.47
C147: 495 | D147: Amortissements planifiés et non planifiés | E147: 0.00 | F147: 0.00 | G147: 0.00 | H147: 356.00 | I147: 0.00 | J147: 0.00 | K147: 0.00 | L147: 0.00 | M147: 0.00 | N147: 0.00 | O147: 0.00 | P147: 0.00 | Q147: 0.00 | R147: 0.00 | S147: 0.00 | T147: 0.00 | U147: 0.00 | V147: 0.00 | W147: 0.00 | X147: 0.00 | Y147: 0.00 | Z147: 0.00 | AA147: 0.00 | AB147: 0.00 | AC147: 0.00 | AD147: 0.00 | AE147: 0.00 | AF147: 0.00 | AG147: 0.00 | AH147: 0.00 | AI147: 0.00 | AJ147: 0.00 | AK147: 0.00 | AL147: 0.00 | AM147: 0.00 | AN147: 0.00 | AO147: 0.00 | AP147: 0.00 | AQ147: 0.00 | AR147: 0.00 | AS147: 0.00 | AT147: 0.00 | AU147: 0.00 | AV147: 0.00 | AW147: 0.00 | AX147: 0.00 | AY147: 0.00 | AZ147: 0.00 | BA147: 0.00 | BB147: 0.00 | BC147: 356.00 | BD147: 356.00 | BE147: 0.00 | BF147: 0.00
C148: 498 | D148: Virements comptables | E148: 0.00 | F148: 0.00 | G148: 0.00 | H148: 0.00 | I148: 0.00 | J148: 0.00 | K148: 0.00 | L148: 2,335,415.72 | M148: 0.00 | N148: 0.00 | O148: 0.00 | P148: 0.00 | Q148: 0.00 | R148: 0.00 | S148: 0.00 | T148: 0.00 | U148: 0.00 | V148: 0.00 | W148: 0.00 | X148: 0.00 | Y148: 0.00 | Z148: 0.00 | AA148: 0.00 | AB148: 0.00 | AC148: 0.00 | AD148: 0.00 | AE148: 0.00 | AF148: 0.00 | AG148: 0.00 | AH148: 0.00 | AI148: 0.00 | AJ148: 0.00 | AK148: 0.00 | AL148: 0.00 | AM148: 0.00 | AN148: 0.00 | AO148: 0.00 | AP148: 0.00 | AQ148: 0.00 | AR148: 0.00 | AS148: 0.00 | AT148: 0.00 | AU148: 0.00 | AV148: 0.00 | AW148: 0.00 | AX148: 0.00 | AY148: 0.00 | AZ148: 0.00 | BA148: 0.00 | BB148: 0.00 | BC148: 2,335,415.72 | BD148: 2,335,415.72 | BE148: 0.00 | BF148: 0.00
C149: 499 | D149: Autres imputations internes | E149: 0.00 | F149: 0.00 | G149: 0.00 | H149: 0.00 | I149: 0.00 | J149: 0.00 | K149: 0.00 | L149: 0.00 | M149: 0.00 | N149: 0.00 | O149: 0.00 | P149: 0.00 | Q149: 0.00 | R149: 0.00 | S149: 0.00 | T149: 0.00 | U149: 0.00 | V149: 0.00 | W149: 3,000.00 | X149: 0.00 | Y149: 0.00 | Z149: 0.00 | AA149: 0.00 | AB149: 0.00 | AC149: 0.00 | AD149: 0.00 | AE149: 0.00 | AF149: 0.00 | AG149: 0.00 | AH149: 0.00 | AI149: 0.00 | AJ149: 0.00 | AK149: 0.00 | AL149: 80,521.70 | AM149: 0.00 | AN149: 0.00 | AO149: 0.00 | AP149: 0.00 | AQ149: 0.00 | AR149: 0.00 | AS149: 0.00 | AT149: 0.00 | AU149: 0.00 | AV149: 0.00 | AW149: 0.00 | AX149: 6,500.00 | AY149: 0.00 | AZ149: 0.00 | BA149: 0.00 | BB149: 0.00 | BC149: 90,021.70 | BD149: 3,000.00 | BE149: 0.00 | BF149: 87,021.70
BA150: 0.00 | BB150: 0.00 | BC150: 0.00 | BD150: 0.00
A153: 9 | D153: Comptes de clôture
B154: 90 | D154: Clôture du compte de résultats | E154: =E155+E156 -> 136,335.69 | F154: =F155+F156 -> 40,244.78 | G154: -113,598.50 | H154: 21,887.81 | I154: 354,522.49 | J154: 52,103.66 | K154: -32,226.75 | L154: 6,546,514.63 | M154: -41,527.16 | N154: -9,732.53 | O154: 1,300,857.85 | P154: 160,861.66 | Q154: -43,476.25 | R154: -185,206.76 | S154: 21,486.75 | T154: 80,334.99 | U154: -14,131.11 | V154: 51,773.06 | W154: 229,987.88 | X154: 9,651.33 | Y154: 1,107,408.63 | Z154: 1,423,923.13 | AA154: 54,749.53 | AB154: -120,138.51 | AC154: 14,874.09 | AD154: 265,657.40 | AE154: 9,456.22 | AF154: 2,946,468.15 | AG154: 837,681.98 | AH154: -3,077.40 | AI154: 46,184.87 | AJ154: 258,548.25 | AK154: 20,517.35 | AL154: 134,239.31 | AM154: 227,079.47 | AN154: 552,805.46 | AO154: 73,531.77 | AP154: -76,753.30 | AQ154: 7,448.95 | AR154: 11,686.37 | AS154: 167,924.81 | AT154: 279,815.44 | AU154: -270,413.17 | AV154: -23,696.57 | AW154: 179,841.21 | AX154: 48,829.85 | AY154: 67,470.92 | AZ154: 93,443.73 | BA154: 616,995.60 | BB154: -15,482.67 | BC154: 17,503,684.39 | BD154: 8,557,012.19 | BE154: 6,592,839.42 | BF154: 2,353,832.78
C155: 900 | D155: Compte général (+ / -) | E155: 32,723.24 | F155: -2,170.01 | G155: -192,123.55 | H155: 18,230.22 | I155: 21,004.33 | J155: 162,638.14 | K155: -247,867.12 | L155: 5,177,998.41 | M155: -177,051.96 | N155: 292.31 | O155: 976,090.13 | P155: 70,942.47 | Q155: -53,582.05 | R155: -155,034.05 | S155: 41,772.67 | T155: 50,752.03 | U155: -44,574.54 | V155: 53,635.71 | W155: 62,227.48 | X155: 34,361.58 | Y155: 891,933.95 | Z155: 1,228,353.08 | AA155: 28,176.98 | AB155: 0.00 | AC155: -4,960.09 | AD155: 169,417.60 | AE155: -48,613.72 | AF155: 3,148,278.18 | AG155: 425,728.62 | AH155: 2,868.61 | AI155: 5,500.12 | AJ155: 177,079.52 | AK155: 14,244.46 | AL155: 82,478.11 | AM155: 233,883.72 | AN155: 450,029.45 | AO155: 137,524.69 | AP155: 22,421.25 | AQ155: 77,138.99 | AR155: -36,451.42 | AS155: 118,134.73 | AT155: 172,836.65 | AU155: -268,688.69 | AV155: 14,129.83 | AW155: 99,021.92 | AX155: 17,714.54 | AY155: 20,150.17 | AZ155: 113,129.94 | BA155: 304,062.89 | BB155: 11,261.70 | BC155: =SUM(E155:BB155) -> 13,437,051.22 | BD155: =SUM(E155:W155) -> 5,795,903.86 | BE155: =SUM(X155:AI155) -> 5,881,044.91 | BF155: =SUM(AJ155:BB155) -> 1,760,102.45
C156: 901 | D156: Financements spéciaux (+ / -) | E156: 103,612.45 | F156: 42,414.79 | G156: 78,525.05 | H156: 3,657.59 | I156: 333,518.16 | J156: -110,534.48 | K156: 215,640.37 | L156: 1,368,516.22 | M156: 135,524.80 | N156: -10,024.84 | O156: 324,767.72 | P156: 89,919.19 | Q156: 10,105.80 | R156: -30,172.71 | S156: -20,285.92 | T156: 29,582.96 | U156: 30,443.43 | V156: -1,862.65 | W156: 167,760.40 | X156: -24,710.25 | Y156: 215,474.68 | Z156: 195,570.05 | AA156: 26,572.55 | AB156: -120,138.51 | AC156: 19,834.18 | AD156: 96,239.80 | AE156: 58,069.94 | AF156: -201,810.03 | AG156: 411,953.36 | AH156: -5,946.01 | AI156: 40,684.75 | AJ156: 81,468.73 | AK156: 6,272.89 | AL156: 51,761.20 | AM156: -6,804.25 | AN156: 102,776.01 | AO156: -63,992.92 | AP156: -99,174.55 | AQ156: -69,690.04 | AR156: 48,137.79 | AS156: 49,790.08 | AT156: 106,978.79 | AU156: -1,724.48 | AV156: -37,826.40 | AW156: 80,819.29 | AX156: 31,115.31 | AY156: 47,320.75 | AZ156: -19,686.21 | BA156: 312,932.71 | BB156: -26,744.37 | BC156: =SUM(E156:BB156) -> 4,066,633.17 | BD156: =SUM(E156:W156) -> 2,761,108.33 | BE156: =SUM(X156:AI156) -> 711,794.51 | BF156: =SUM(AJ156:BB156) -> 593,730.33
D158: Résultat global | E158: =E155+E156 -> 136,335.69 | F158: =F155+F156 -> 40,244.78 | G158: -113,598.50 | H158: 21,887.81 | I158: 354,522.49 | J158: 52,103.66 | K158: -32,226.75 | L158: 6,546,514.63 | M158: -41,527.16 | N158: -9,732.53 | O158: 1,300,857.85 | P158: 160,861.66 | Q158: -43,476.25 | R158: -185,206.76 | S158: 21,486.75 | T158: 80,334.99 | U158: -14,131.11 | V158: 51,773.06 | W158: 229,987.88 | X158: 9,651.33 | Y158: 1,107,408.63 | Z158: 1,423,923.13 | AA158: 54,749.53 | AB158: -120,138.51 | AC158: 14,874.09 | AD158: 265,657.40 | AE158: 9,456.22 | AF158: 2,946,468.15 | AG158: 837,681.98 | AH158: -3,077.40 | AI158: 46,184.87 | AJ158: 258,548.25 | AK158: 20,517.35 | AL158: 134,239.31 | AM158: 227,079.47 | AN158: 552,805.46 | AO158: 73,531.77 | AP158: -76,753.30 | AQ158: 7,448.95 | AR158: 11,686.37 | AS158: 167,924.81 | AT158: 279,815.44 | AU158: -270,413.17 | AV158: -23,696.57 | AW158: 179,841.21 | AX158: 48,829.85 | AY158: 67,470.92 | AZ158: 93,443.73 | BA158: 616,995.60 | BB158: -15,482.67 | BC158: 17,503,684.39 | BD158: 8,557,012.19 | BE158: 6,592,839.42 | BF158: 2,353,832.78
E160: =E76-E5 -> 136,335.69 | F160: 40,244.78 | G160: -113,598.50 | H160: 21,887.81 | I160: 354,522.49 | J160: 52,103.66 | K160: -32,226.75 | L160: 6,546,514.63 | M160: -41,527.16 | N160: -9,732.53 | O160: 1,300,857.85 | P160: 160,861.66 | Q160: -43,476.25 | R160: -185,206.76 | S160: 21,486.75 | T160: 80,334.99 | U160: -14,131.11 | V160: 51,773.06 | W160: 229,987.88 | X160: 9,651.33 | Y160: 1,107,408.63 | Z160: 1,423,923.13 | AA160: 54,749.53 | AB160: -120,138.51 | AC160: 14,874.09 | AD160: 265,657.40 | AE160: 9,456.22 | AF160: 2,946,468.15 | AG160: 837,681.98 | AH160: -3,077.40 | AI160: 46,184.87 | AJ160: =AJ76-AJ5 -> 258,548.25 | AK160: 20,517.35 | AL160: 134,239.31 | AM160: 227,079.47 | AN160: 552,805.46 | AO160: 73,531.77 | AP160: -76,753.30 | AQ160: 7,448.95 | AR160: 11,686.37 | AS160: 167,924.81 | AT160: 279,815.44 | AU160: -270,413.17 | AV160: -23,696.57 | AW160: 179,841.21 | AX160: 48,829.85 | AY160: 67,470.92 | AZ160: 93,443.73 | BA160: 616,995.60 | BB160: -15,482.67 | BC160: 17,503,684.39 | BD160: 8,557,012.19 | BE160: 6,592,839.42 | BF160: 2,353,832.78
D161: Contrôle | E161: =E158-E160 -> 0.00 | F161: 0.00 | G161: 0.00 | H161: -0.00 | I161: -0.00 | J161: -0.00 | K161: -0.00 | L161: 0.00 | M161: 0.00 | N161: -0.00 | O161: 0.00 | P161: 0.00 | Q161: 0.00 | R161: 0.00 | S161: 0.00 | T161: -0.00 | U161: -0.00 | V161: -0.00 | W161: -0.00 | X161: -0.00 | Y161: 0.00 | Z161: 0.00 | AA161: 0.00 | AB161: 0.00 | AC161: 0.00 | AD161: 0.00 | AE161: -0.00 | AF161: 0.00 | AG161: 0.00 | AH161: -0.00 | AI161: 0.00 | AJ161: =AJ158-AJ160 -> 0.00 | AK161: -0.00 | AL161: 0.00 | AM161: 0.00 | AN161: -0.00 | AO161: -0.00 | AP161: -0.00 | AQ161: -0.00 | AR161: -0.00 | AS161: 0.00 | AT161: 0.00 | AU161: 0.00 | AV161: -0.00 | AW161: 0.00 | AX161: 0.00 | AY161: -0.00 | AZ161: -0.00 | BA161: -0.00 | BB161: -0.00 | BC161: -0.00 | BD161: -0.00 | BE161: 0.00 | BF161: -0.00
D163: Comptes supplémentaires pour les indicateurs financiers
C164: 4021 | D164: Impôts fonciers | E164: 155,267.90 | F164: 112656.05 | G164: 67,810.10 | H164: 94,695.70 | I164: 725,786.70 | J164: 535,330.20 | K164: 414,845.05 | L164: 3,260,782.84 | M164: 244,659.80 | N164: 12,118.55 | O164: 1,309,348.65 | P164: 145,811.65 | Q164: 21,614.50 | R164: 70,719.30 | S164: 73,872.35 | T164: 111,704.10 | U164: 43,731.45 | V164: 102,371.55 | W164: 616,410.60 | X164: 59,114.65 | Y164: 185,867.60 | Z164: 283,906.60 | AA164: 40,067.65 | AB164: 96,778.75 | AC164: 185,835.80 | AD164: 140,931.40 | AE164: 157,099.60 | AF164: 474,886.85 | AG164: 610,088.85 | AH164: 37,104.95 | AI164: 66,846.55 | AJ164: 480,804.35 | AK164: 291,507.90 | AL164: 259,791.85 | AM164: 175,028.05 | AN164: 282,466.60 | AO164: 115,474.50 | AP164: 409,419.65 | AQ164: 178,837.90 | AR164: 211,849.05 | AS164: 47,663.10 | AT164: 564,257.10 | AU164: 185,524.40 | AV164: 95,668.95 | AW164: 89,037.67 | AX164: 356,105.50 | AY164: 123,865.80 | AZ164: 310,532.27 | BA164: 1,775,497.85 | BB164: 127,835.65 | BC164: =SUM(E164:BB164) -> 16,539,234.43 | BD164: =SUM(E164:W164) -> 8,119,537.04 | BE164: =SUM(X164:AI164) -> 2,338,529.25 | BF164: =SUM(AJ164:BB164) -> 6,081,168.14
C165: 4490 | D165: Revalorisation du PF | E165: 0.00 | F165: 0.00 | G165: 0.00 | H165: 0.00 | I165: 0.00 | J165: 0.00 | K165: 0.00 | L165: 0.00 | M165: 0.00 | N165: 0.00 | O165: 0.00 | P165: 0.00 | Q165: 0.00 | R165: 0.00 | S165: 0.00 | T165: 0.00 | U165: 0.00 | V165: 0.00 | W165: 0.00 | X165: 0.00 | Y165: 0.00 | Z165: 0.00 | AA165: 0.00 | AB165: 0.00 | AC165: 0.00 | AD165: 0.00 | AE165: 0.00 | AF165: 0.00 | AG165: 0.00 | AH165: 0.00 | AI165: 0.00 | AJ165: 0.00 | AK165: 0.00 | AL165: 0.00 | AM165: 0.00 | AN165: 0.00 | AO165: 0.00 | AP165: 0.00 | AQ165: 0.00 | AR165: 0.00 | AS165: 0.00 | AT165: 0.00 | AU165: 0.00 | AV165: 0.00 | AW165: 0.00 | AX165: 0.00 | AY165: 0.00 | AZ165: 0.00 | BA165: 0.00 | BB165: 0.00 | BC165: =SUM(E165:BB165) -> 0.00 | BD165: =SUM(E165:W165) -> 0.00 | BE165: =SUM(X165:AI165) -> 0.00 | BF165: =SUM(AJ165:BB165) -> 0.00
A166: 4 | B166: 40 | C166: 40330 | D166: Taxe des chiens | E166: 8,400.00 | F166: 3,360.00 | G166: 5,160.00 | H166: 2,720.00 | I166: 24,500.00 | J166: 20,335.00 | K166: 22,114.00 | L166: 69,279.30 | M166: 5,640.00 | N166: 1,920.00 | O166: 54,720.00 | P166: 3,930.00 | Q166: 300.00 | R166: 4,447.60 | S166: 2,300.85 | T166: 3,540.00 | U166: 3,360.00 | V166: 4,200.00 | W166: 26,800.00 | X166: 3,360.00 | Y166: 10,720.00 | Z166: 10,240.00 | AA166: 1,410.00 | AB166: 5,520.00 | AC166: 7,020.00 | AD166: 4,550.00 | AE166: 4,185.00 | AF166: 11,060.00 | AG166: 17,125.80 | AH166: 2,620.00 | AI166: 1,450.00 | AJ166: 10,200.00 | AK166: 16,030.00 | AL166: 7,680.00 | AM166: 9,900.00 | AN166: 1,510.00 | AO166: 4,920.00 | AP166: 10,440.00 | AQ166: 5,460.00 | AR166: 13,880.00 | AS166: 2,800.00 | AT166: 12,260.00 | AU166: 4,650.00 | AV166: 2,065.40 | AW166: 5,520.00 | AX166: 13,860.00 | AY166: 4,680.00 | AZ166: 16,972.00 | BA166: 41,800.00 | BB166: 4,950.00 | BC166: =SUM(E166:BB166) -> 535,864.95 | BD166: =SUM(E166:W166) -> 267,026.75 | BE166: =SUM(X166:AI166) -> 79,260.80 | BF166: =SUM(AJ166:BB166) -> 189,577.40
C168: 690-590 | D168: Investissements nets | E168: ='6.1 Investissements'!E183 -> 263,175.39 | F168: ='6.1 Investissements'!F183 -> 16,823.65 | G168: ='6.1 Investissements'!G183 -> 173,184.05 | H168: ='6.1 Investissements'!H183 -> 138,142.25 | I168: ='6.1 Investissements'!I183 -> 504,139.07 | J168: ='6.1 Investissements'!J183 -> -547,471.29 | K168: ='6.1 Investissements'!K183 -> 2,316,037.50 | L168: ='6.1 Investissements'!L183 -> 4,560,502.84 | M168: ='6.1 Investissements'!M183 -> 1,092,517.21 | N168: ='6.1 Investissements'!N183 -> 0.00 | O168: ='6.1 Investissements'!O183 -> 2,332,153.55 | P168: ='6.1 Investissements'!P183 -> -67,545.30 | Q168: ='6.1 Investissements'!Q183 -> 4,483.80 | R168: ='6.1 Investissements'!R183 -> 216,928.71 | S168: ='6.1 Investissements'!S183 -> -16,199.22 | T168: ='6.1 Investissements'!T183 -> 130,374.28 | U168: ='6.1 Investissements'!U183 -> 142,837.75 | V168: ='6.1 Investissements'!V183 -> -6,985.10 | W168: ='6.1 Investissements'!W183 -> 1,557,825.90 | X168: ='6.1 Investissements'!X183 -> 217,929.85 | Y168: ='6.1 Investissements'!Y183 -> 551,507.80 | Z168: ='6.1 Investissements'!Z183 -> 776,345.50 | AA168: ='6.1 Investissements'!AA183 -> 49,737.05 | AB168: ='6.1 Investissements'!AB183 -> 104,776.00 | AC168: ='6.1 Investissements'!AC183 -> -10,477.35 | AD168: ='6.1 Investissements'!AD183 -> 165,022.55 | AE168: ='6.1 Investissements'!AE183 -> 117,839.70 | AF168: ='6.1 Investissements'!AF183 -> 1,542,435.30 | AG168: ='6.1 Investissements'!AG183 -> 1,441,466.72 | AH168: ='6.1 Investissements'!AH183 -> -36,503.30 | AI168: ='6.1 Investissements'!AI183 -> 600,106.00 | AJ168: ='6.1 Investissements'!AJ183 -> 1,460,393.60 | AK168: ='6.1 Investissements'!AK183 -> 157,267.05 | AL168: ='6.1 Investissements'!AL183 -> 584,017.50 | AM168: ='6.1 Investissements'!AM183 -> 2,784,298.37 | AN168: ='6.1 Investissements'!AN183 -> 1,110,521.75 | AO168: ='6.1 Investissements'!AO183 -> 456,656.95 | AP168: ='6.1 Investissements'!AP183 -> 767,941.65 | AQ168: ='6.1 Investissements'!AQ183 -> 834,809.02 | AR168: ='6.1 Investissements'!AR183 -> 45,773.10 | AS168: ='6.1 Investissements'!AS183 -> 1,303,091.95 | AT168: ='6.1 Investissements'!AT183 -> 170,148.55 | AU168: ='6.1 Investissements'!AU183 -> 1,791,858.61 | AV168: ='6.1 Investissements'!AV183 -> 2,259.65 | AW168: ='6.1 Investissements'!AW183 -> 242,935.24 | AX168: ='6.1 Investissements'!AX183 -> 83,087.60 | AY168: ='6.1 Investissements'!AY183 -> 119,553.59 | AZ168: ='6.1 Investissements'!AZ183 -> 161,224.76 | BA168: ='6.1 Investissements'!BA183 -> 2,614,540.42 | BB168: ='6.1 Investissements'!BB183 -> -2,745.87 | BC168: ='6.1 Investissements'!BC183 -> 33,018,744.35 | BD168: ='6.1 Investissements'!BD183 -> 12,810,925.04 | BE168: ='6.1 Investissements'!BE183 -> 5,520,185.82 | BF168: ='6.1 Investissements'!BF183 -> 14,687,633.49
D170: Contrôle des imputations internes | E170: =E65-E141 -> 0.00 | F170: =F65-F141 -> 0.00 | G170: 0.00 | H170: 0.00 | I170: 0.00 | J170: 0.00 | K170: 0.00 | L170: 0.00 | M170: 0.00 | N170: -9,376.05 | O170: 0.00 | P170: 0.00 | Q170: 0.00 | R170: 18,460.20 | S170: 0.00 | T170: 0.00 | U170: 0.00 | V170: 0.00 | W170: 0.00 | X170: 0.00 | Y170: 0.00 | Z170: 0.00 | AA170: 0.00 | AB170: 0.00 | AC170: 0.00 | AD170: 0.00 | AE170: 0.00 | AF170: 0.00 | AG170: 1,109.45 | AH170: 0.00 | AI170: 0.00 | AJ170: 0.00 | AK170: 0.00 | AL170: 0.00 | AM170: 0.00 | AN170: 0.00 | AO170: 0.00 | AP170: 0.00 | AQ170: 0.00 | AR170: -1,793.50 | AS170: 0.00 | AT170: 0.00 | AU170: 0.00 | AV170: 0.00 | AW170: 0.00 | AX170: 0.00 | AY170: 0.00 | AZ170: 0.00 | BA170: 0.00 | BB170: 0.00 | BC170: 8,400.10 | BD170: 9,084.15 | BE170: 1,109.45 | BF170: -1,793.50
D172: Charges d'exploitation (30, 31, 33, 35, 36, 37) | E172: =E6+E16+E28+E40+E44+E54 -> 3,925,154.57 | F172: =F6+F16+F28+F40+F44+F54 -> 1,171,285.97 | G172: 1,633,171.93 | H172: 2,177,469.68 | I172: 16,352,426.21 | J172: 14,179,910.45 | K172: 12,691,883.47 | L172: 112,817,369.94 | M172: 9,065,377.40 | N172: 468,559.06 | O172: 29,895,490.49 | P172: 1,797,656.14 | Q172: 424,262.72 | R172: 1,693,716.00 | S172: 1,449,367.09 | T172: 2,997,885.23 | U172: 1,120,911.64 | V172: 3,065,911.39 | W172: 12,111,811.85 | X172: 1,831,905.02 | Y172: 6,261,182.32 | Z172: 16,957,970.50 | AA172: 833,833.41 | AB172: 2,974,815.67 | AC172: 3,332,442.91 | AD172: 2,966,884.51 | AE172: 3,501,366.08 | AF172: 9,945,881.41 | AG172: 12,159,808.64 | AH172: 1,168,918.53 | AI172: 675,878.37 | AJ172: 7,141,386.39 | AK172: 5,645,073.76 | AL172: 5,434,167.35 | AM172: 5,086,455.53 | AN172: 8,655,778.69 | AO172: 3,165,750.31 | AP172: 6,976,998.21 | AQ172: 3,421,029.91 | AR172: 4,479,065.66 | AS172: 1,459,915.97 | AT172: 10,432,906.91 | AU172: 3,599,615.38 | AV172: 1,544,448.80 | AW172: 1,304,579.17 | AX172: 7,161,039.29 | AY172: 1,821,918.55 | AZ172: 5,813,138.94 | BA172: 41,185,091.54 | BB172: 2,269,290.58 | BC172: 418,248,159.54 | BD172: 229,039,621.23 | BE172: 62,610,887.37 | BF172: 126,597,650.94
D173: Revenus d'exploitation (40, 41, 42, 43, 45, 46, 47) | E173: =E77+E83+E89+E100+E118+E122+E129 -> 4,169,858.96 | F173: =F77+F83+F89+F100+F118+F122+F129 -> 1,212,470.89 | G173: 1,464,194.67 | H173: 2,157,287.56 | I173: 17,001,418.38 | J173: 14,082,638.33 | K173: 12,537,493.10 | L173: 118,273,027.82 | M173: 8,945,654.29 | N173: 436,761.08 | O173: 31,498,131.38 | P173: 1,925,035.29 | Q173: 358,692.12 | R173: 1,520,767.91 | S173: 1,425,590.98 | T173: 3,331,932.78 | U173: 1,076,735.72 | V173: 3,101,236.12 | W173: 12,583,040.48 | X173: 1,868,463.85 | Y173: 7,338,665.33 | Z173: 18,993,493.44 | AA173: 938,867.42 | AB173: 2,743,461.16 | AC173: 3,517,214.64 | AD173: 3,327,437.37 | AE173: 3,172,776.21 | AF173: 13,622,187.31 | AG173: 14,390,498.41 | AH173: 1,139,382.78 | AI173: 729,720.77 | AJ173: 8,356,590.47 | AK173: 5,233,855.86 | AL173: 5,886,898.06 | AM173: 5,244,017.44 | AN173: 10,479,515.61 | AO173: 3,239,294.22 | AP173: 6,545,550.44 | AQ173: 3,180,956.81 | AR173: 4,465,969.32 | AS173: 1,803,301.78 | AT173: 11,283,764.24 | AU173: 3,308,811.50 | AV173: 1,492,094.69 | AW173: 1,411,828.80 | AX173: 7,142,732.77 | AY173: 1,939,702.67 | AZ173: 5,868,037.97 | BA173: 42,963,848.76 | BB173: 2,259,363.64 | BC173: 440,990,271.60 | BD173: 237,101,967.86 | BE173: 71,782,168.69 | BF173: 132,106,135.05
D178: Comptes supplémentaires pour les indicateurs financiers
A179: 3 | B179: 31 | C179: 3180 | D179: Réévaluations de créances | E179: 2,642.40 | F179: -1,121.15 | G179: 0.00 | H179: =H25 -> 71,297.43 | I179: 183,673.63 | J179: 34,000.00 | K179: 53,873.56 | L179: 376,362.10 | M179: -5,986.18 | N179: 0.00 | O179: 82,619.00 | P179: -6,600.19 | Q179: 0.00 | R179: 4,193.19 | S179: 10,145.19 | T179: 5,699.40 | U179: -150.20 | V179: -6,407.85 | W179: 45,743.56 | X179: 9,442.45 | Y179: 1,197.85 | Z179: 12,501.28 | AA179: 2,982.75 | AB179: 9,600.00 | AC179: 5,100.00 | AD179: 700.00 | AE179: 7,545.50 | AF179: -56,640.00 | AG179: 44,984.83 | AH179: 6,733.65 | AI179: -9,946.75 | AJ179: 8,966.92 | AK179: 70,446.45 | AL179: 10,371.71 | AM179: 46,292.55 | AN179: 10,141.30 | AO179: 0.00 | AP179: 0.00 | AQ179: -13,169.90 | AR179: -25,124.17 | AS179: 1,898.42 | AT179: 53,178.90 | AU179: -20,550.03 | AV179: 3,504.75 | AW179: 1,616.98 | AX179: 3,270.00 | AY179: 3,143.73 | AZ179: 35,235.29 | BA179: 0.00 | BB179: 11,300.84 | BC179: =SUM(E179:BB179) -> 1,084,709.19 | BD179: =SUM(E179:W179) -> 849,983.89 | BE179: =SUM(X179:AI179) -> 34,201.56 | BF179: =SUM(AJ179:BB179) -> 200,523.74
B180: 36 | C180: 36227 | D180: Péréquation financière horizontale | E180: =E47 -> 23,962.00 | F180: 0.00 | G180: =G47 -> 15,823.00 | H180: 0.00 | I180: 0.00 | J180: 0.00 | K180: 394,401.00 | L180: 0.00 | M180: 0.00 | N180: 0.00 | O180: 0.00 | P180: 0.00 | Q180: 0.00 | R180: 0.00 | S180: 0.00 | T180: 0.00 | U180: 0.00 | V180: 32,762.00 | W180: 0.00 | X180: 0.00 | Y180: 73,637.00 | Z180: 6,786,913.00 | AA180: 0.00 | AB180: 0.00 | AC180: 0.00 | AD180: 0.00 | AE180: 31,946.00 | AF180: 251,486.00 | AG180: 0.00 | AH180: 0.00 | AI180: 0.00 | AJ180: 58,815.00 | AK180: 0.00 | AL180: 0.00 | AM180: 0.00 | AN180: 2,096,162.00 | AO180: 0.00 | AP180: 0.00 | AQ180: 0.00 | AR180: 0.00 | AS180: 13,382.00 | AT180: 0.00 | AU180: 24,564.00 | AV180: 0.00 | AW180: 0.00 | AX180: 52,283.00 | AY180: 6,047.00 | AZ180: 5,781.00 | BA180: 327,575.00 | BB180: 0.00 | BC180: =SUM(E180:BB180) -> 10,195,539.00 | BD180: =SUM(E180:W180) -> 466,948.00 | BE180: =SUM(X180:AI180) -> 7,143,982.00 | BF180: =SUM(AJ180:BB180) -> 2,584,609.00
C181: 36228 | D181: Contributions aux communes-centres | E181: 0.00 | F181: 6,501.00 | G181: 0.00 | H181: 0.00 | I181: 155,540.00 | J181: 141,163.00 | K181: 0.00 | L181: 229,016.50 | M181: 58,108.00 | N181: 0.00 | O181: 244,473.00 | P181: 0.00 | Q181: 3,560.00 | R181: 0.00 | S181: 0.00 | T181: 31,279.00 | U181: 4,535.00 | V181: 0.00 | W181: 0.00 | X181: 0.00 | Y181: 0.00 | Z181: 0.00 | AA181: 0.00 | AB181: 0.00 | AC181: 0.00 | AD181: 0.00 | AE181: 0.00 | AF181: 0.00 | AG181: 0.00 | AH181: 0.00 | AI181: 0.00 | AJ181: 0.00 | AK181: 0.00 | AL181: 0.00 | AM181: 0.00 | AN181: 0.00 | AO181: 19,720.00 | AP181: 0.00 | AQ181: 0.00 | AR181: 0.00 | AS181: 0.00 | AT181: 0.00 | AU181: 0.00 | AV181: 0.00 | AW181: 0.00 | AX181: 0.00 | AY181: 0.00 | AZ181: 0.00 | BA181: 0.00 | BB181: 0.00 | BC181: =SUM(E181:BB181) -> 893,895.50 | BD181: =SUM(E181:W181) -> 874,175.50 | BE181: =SUM(X181:AI181) -> 0.00 | BF181: 19,720.00
B182: 38 | C182: 389 | D182: Attributions aux capitaux propres | E182: =E63 -> 0.00 | F182: =F63 -> 0.00 | G182: 0.00 | H182: 0.00 | I182: 610,000.00 | J182: 0.00 | K182: 0.00 | L182: 0.00 | M182: 0.00 | N182: 0.00 | O182: 832,100.00 | P182: 0.00 | Q182: 0.00 | R182: 0.00 | S182: 450,000.00 | T182: 1,400,000.00 | U182: 0.00 | V182: 30,000.00 | W182: 695,650.00 | X182: 100,000.00 | Y182: 0.00 | Z182: 1,000,000.00 | AA182: 65,000.00 | AB182: 0.00 | AC182: 250,000.00 | AD182: 135,000.00 | AE182: 0.00 | AF182: 1,000,000.00 | AG182: 2,000,000.00 | AH182: 0.00 | AI182: 15,000.00 | AJ182: 1,000,000.00 | AK182: 87,002.46 | AL182: 350,000.00 | AM182: 0.00 | AN182: 1,400,000.00 | AO182: 110,000.00 | AP182: 1,000,000.00 | AQ182: 150,000.00 | AR182: 0.00 | AS182: 220,000.00 | AT182: 550,000.00 | AU182: 0.00 | AV182: 0.00 | AW182: 0.00 | AX182: 0.00 | AY182: 50,000.00 | AZ182: 100,000.00 | BA182: 3,000,000.00 | BB182: 0.00 | BC182: =SUM(E182:BB182) -> 16,599,752.46 | BD182: =SUM(E182:W182) -> 4,017,750.00 | BE182: =SUM(X182:AI182) -> 4,565,000.00 | BF182: 8,017,002.46
A184: 4 | B184: 44 | C184: 4490 | D184: Réévaluation du patrimoine administratif | E184: =E116 -> 0.00 | F184: =F116 -> 0.00 | G184: 0.00 | H184: 0.00 | I184: 0.00 | J184: 0.00 | K184: 0.00 | L184: 0.00 | M184: 0.30 | N184: 0.00 | O184: 30.05 | P184: 0.00 | Q184: 0.00 | R184: 0.00 | S184: 0.00 | T184: 0.00 | U184: 0.00 | V184: 0.00 | W184: 0.00 | X184: 0.00 | Y184: 0.00 | Z184: 0.00 | AA184: 0.00 | AB184: 0.00 | AC184: 0.00 | AD184: 0.00 | AE184: 0.00 | AF184: 4.04 | AG184: 0.00 | AH184: 0.00 | AI184: 10.00 | AJ184: 0.00 | AK184: 4,285.25 | AL184: 0.00 | AM184: -4,969.07 | AN184: 0.00 | AO184: 0.00 | AP184: 0.00 | AQ184: 0.00 | AR184: 0.00 | AS184: 0.00 | AT184: 2,522.08 | AU184: 0.00 | AV184: 0.00 | AW184: 0.00 | AX184: 0.00 | AY184: 0.00 | AZ184: 0.00 | BA184: 0.00 | BB184: 0.00 | BC184: =SUM(E184:BB184) -> 1,882.65 | BD184: =SUM(E184:W184) -> 30.35 | BE184: =SUM(X184:AI184) -> 14.04 | BF184: 1,838.26
B185: 46 | C185: 46227 | D185: Péréquation financière horizontale | E185: =E125 -> 0.00 | F185: =F125 -> 278,147.00 | G185: 0.00 | H185: 155,990.00 | I185: 1,284,942.00 | J185: 316,347.00 | K185: 0.00 | L185: 1,034,544.54 | M185: 49,843.00 | N185: 87,730.00 | O185: 1,480,997.00 | P185: 243,182.00 | Q185: 29,286.00 | R185: 119,912.00 | S185: 170,278.00 | T185: 0.00 | U185: 212,706.00 | V185: 0.00 | W185: 1,071,534.00 | X185: 9,924.00 | Y185: 0.00 | Z185: 29,505.00 | AA185: 85,944.00 | AB185: 10,620.00 | AC185: 88,752.00 | AD185: 195,454.00 | AE185: 0.00 | AF185: 0.00 | AG185: 334,686.00 | AH185: 107,292.00 | AI185: 81,662.00 | AJ185: 0.00 | AK185: 510,778.00 | AL185: 653,812.00 | AM185: 579,697.00 | AN185: 0.00 | AO185: 160,144.00 | AP185: 533,324.00 | AQ185: 300,548.00 | AR185: 222,044.00 | AS185: 0.00 | AT185: 41,286.00 | AU185: 0.00 | AV185: 209,120.00 | AW185: 157,078.00 | AX185: 383,149.00 | AY185: 284,045.00 | AZ185: 0.00 | BA185: 0.00 | BB185: 125,736.00 | BC185: =SUM(E185:BB185) -> 11,640,038.54 | BD185: =SUM(E185:W185) -> 6,535,438.54 | BE185: =SUM(X185:AI185) -> 943,839.00 | BF185: 4,160,761.00
C186: 46228 | D186: Contributions aux communes-centres | E186: 0.00 | F186: 0.00 | G186: 0.00 | H186: 0.00 | I186: 0.00 | J186: 0.00 | K186: 0.00 | L186: 0.00 | M186: 0.00 | N186: 0.00 | O186: 0.00 | P186: 0.00 | Q186: 0.00 | R186: 0.00 | S186: 0.00 | T186: 0.00 | U186: 0.00 | V186: 0.00 | W186: 0.00 | X186: 0.00 | Y186: 0.00 | Z186: 0.00 | AA186: 0.00 | AB186: 0.00 | AC186: 0.00 | AD186: 0.00 | AE186: 0.00 | AF186: 0.00 | AG186: 0.00 | AH186: 0.00 | AI186: 0.00 | AJ186: 0.00 | AK186: 0.00 | AL186: 0.00 | AM186: 0.00 | AN186: 0.00 | AO186: 0.00 | AP186: 0.00 | AQ186: 0.00 | AR186: 0.00 | AS186: 0.00 | AT186: 0.00 | AU186: 0.00 | AV186: 0.00 | AW186: 0.00 | AX186: 0.00 | AY186: 0.00 | AZ186: 0.00 | BA186: 440,269.00 | BB186: 0.00 | BC186: =SUM(E186:BB186) -> 440,269.00 | BD186: =SUM(E186:W186) -> 0.00 | BE186: =SUM(X186:AI186) -> 0.00 | BF186: 440,269.00
B187: 48 | C187: 4896 | D187: Prélèvement sur la réserve liée de réévaluation | E187: 0.00 | F187: 0.00 | G187: 0.00 | H187: 2,572.45 | I187: 0.00 | J187: 0.00 | K187: 0.00 | L187: 0.00 | M187: 0.00 | N187: 0.00 | O187: 0.00 | P187: 0.00 | Q187: 0.00 | R187: 0.00 | S187: 0.00 | T187: 0.00 | U187: 0.00 | V187: 0.00 | W187: 0.00 | X187: 0.00 | Y187: 0.00 | Z187: 0.00 | AA187: 0.00 | AB187: 0.00 | AC187: 0.00 | AD187: 0.00 | AE187: 0.00 | AF187: 0.00 | AG187: 0.00 | AH187: 0.00 | AI187: 0.00 | AJ187: 0.00 | AK187: 0.00 | AL187: 0.00 | AM187: 0.00 | AN187: 0.00 | AO187: 0.00 | AP187: 0.00 | AQ187: 422.00 | AR187: 0.00 | AS187: 0.00 | AT187: 0.00 | AU187: 633.00 | AV187: 0.00 | AW187: 0.00 | AX187: 0.00 | AY187: 0.00 | AZ187: 0.00 | BA187: 0.00 | BB187: 0.00 | BC187: =SUM(E187:BB187) -> 3,627.45 | BD187: =SUM(E187:W187) -> 2,572.45 | BE187: =SUM(X187:AI187) -> 0.00 | BF187: 1,055.00
A189: 9 | B189: 90 | C189: 9031 | D189: Clôture d'autres capitaux propres / excédent de charges | E189: 0.00 | F189: 0.00 | G189: 0.00 | H189: 0.00 | I189: 0.00 | J189: 0.00 | K189: 0.00 | L189: 0.00 | M189: 0.00 | N189: 0.00 | O189: 0.00 | P189: 0.00 | Q189: 0.00 | R189: 0.00 | S189: 0.00 | T189: 0.00 | U189: 0.00 | V189: 0.00 | W189: 0.00 | X189: 0.00 | Y189: 0.00 | Z189: 0.00 | AA189: 0.00 | AB189: 0.00 | AC189: 0.00 | AD189: 0.00 | AE189: 0.00 | AF189: 0.00 | AG189: 0.00 | AH189: 0.00 | AI189: 0.00 | AJ189: 0.00 | AK189: 0.00 | AL189: 0.00 | AM189: 0.00 | AN189: 0.00 | AO189: 0.00 | AP189: 0.00 | AQ189: 0.00 | AR189: 0.00 | AS189: 0.00 | AT189: 0.00 | AU189: 0.00 | AV189: 0.00 | AW189: 0.00 | AX189: 0.00 | AY189: 0.00 | AZ189: 0.00 | BA189: 0.00 | BB189: 0.00 | BC189: =SUM(E189:BB189) -> 0.00 | BD189: =SUM(E189:W189) -> 0.00 | BE189: =SUM(X189:AI189) -> 0.00 | BF189: 0.00
A191: 9 | B191: 90 | C191: 9029 | D191: Clôture d'autres capitaux propres / excédent de produits | E191: 0.00 | F191: 0.00 | G191: 0.00 | H191: 0.00 | I191: 0.00 | J191: 0.00 | K191: 0.00 | L191: 0.00 | M191: 0.00 | N191: 0.00 | O191: 0.00 | P191: 0.00 | Q191: 0.00 | R191: 0.00 | S191: 0.00 | T191: 0.00 | U191: 0.00 | V191: 0.00 | W191: 0.00 | X191: 0.00 | Y191: 0.00 | Z191: 0.00 | AA191: 0.00 | AB191: 0.00 | AC191: 0.00 | AD191: 0.00 | AE191: 0.00 | AF191: 0.00 | AG191: 0.00 | AH191: 0.00 | AI191: 0.00 | AJ191: 0.00 | AK191: 0.00 | AL191: 0.00 | AM191: 0.00 | AN191: 0.00 | AO191: 0.00 | AP191: 0.00 | AQ191: 0.00 | AR191: 0.00 | AS191: 0.00 | AT191: 0.00 | AU191: 0.00 | AV191: 0.00 | AW191: 0.00 | AX191: 0.00 | AY191: 0.00 | AZ191: 0.00 | BA191: 0.00 | BB191: 0.00 | BC191: =SUM(E191:BB191) -> 0.00 | BD191: =SUM(E191:W191) -> 0.00 | BE191: =SUM(X191:AI191) -> 0.00 | BF191: 0.00

Sheet Résultats 2020-2024 (hidden)
A1: Comptes de résultats par natures | E1: 2020 | F1: 2021 | G1: 2022 | H1: 2023 | I1: =H1+1 -> 2024 | J1: Variation
A2: Boécourt | E2: 923 | F2: 947 | G2: 951 | H2: 961 | I2: ='Base de données pop.'!$C$2 -> 961 | J2: =H2-E2 -> 38
E3: Boécourt | F3: Boécourt | G3: Boécourt | H3: Boécourt | I3: =H3 -> Boécourt | J3: Boécourt
A4: 3 | D4: Charges | E4: =E5+E15+E27+E31+E39+E43+E53+E56+E64 -> 4,023,666.78 | F4: =F5+F15+F27+F31+F39+F43+F53+F56+F64 -> 3,547,928.06 | G4: 3,735,431.19 | H4: 3,875,935.65 | I4: 4,120,354.38 | J4: =I4-E4 -> 96,687.60
B5: 30 | D5: Charges du personnel | E5: =E6+E7+E8+E9+E10+E11+E12+E13 -> 469,778.30 | F5: =F6+F7+F8+F9+F10+F11+F12+F13 -> 450,690.30 | G5: 474,056.55 | H5: 482,187.45 | I5: 509,417.03 | J5: 39,638.73
C6: 300 | D6: Autorités et commissions | E6: 39,726.80 | F6: 40,562.00 | G6: 44,845.00 | H6: 42,148.35 | I6: 41,005.10 | J6: 1,278.30
C7: 301 | D7: Personnel administratif et d'exploitation | E7: 353,234.50 | F7: 342,108.95 | G7: 356,986.40 | H7: 368,947.05 | I7: 395,144.00 | J7: 41,909.50
C8: 302 | D8: Enseignants | E8: 0.00 | F8: 0.00 | G8: 0.00 | H8: 0.00 | I8: 0.00 | J8: 0.00
C9: 303 | D9: Personnel temporaire administratif et d'exploitation | E9: 0.00 | F9: 0.00 | G9: 0.00 | H9: 0.00 | I9: 0.00 | J9: 0.00
C10: 304 | D10: Allocations et indemnités | E10: 0.00 | F10: 0.00 | G10: 0.00 | H10: 0.00 | I10: 0.00 | J10: 0.00
C11: 305 | D11: Charges de l'employeur | E11: 71,655.30 | F11: 67,257.35 | G11: 71,318.15 | H11: 66,948.50 | I11: 70,799.93 | J11: -855.37
C12: 306 | D12: Prestations sociales de l'employeur | E12: 0.00 | F12: 0.00 | G12: 0.00 | H12: 0.00 | I12: 0.00 | J12: 0.00
C13: 309 | D13: Autres charges du personnel | E13: 5,161.70 | F13: 762.00 | G13: 907.00 | H13: 4,143.55 | I13: 2,468.00 | J13: -2,693.70
B15: 31 | D15: Charges de biens et de services et autres charges d'exploitation | E15: =E16+E17+E18+E19+E20+E21+E22+E23+E24+E25 -> 519,678.63 | F15: =F16+F17+F18+F19+F20+F21+F22+F23+F24+F25 -> 549,823.39 | G15: 583,887.39 | H15: 597,375.05 | I15: 568,269.66 | J15: =I15-E15 -> 48,591.03
C16: 310 | D16: Charges de matériel et de marchandises | E16: 55,216.90 | F16: 82,979.55 | G16: 71,520.05 | H16: 60,361.57 | I16: 58,987.10 | J16: 3,770.20
C17: 311 | D17: Immobilisations ne pouvant être portées à l'actif | E17: 56,305.05 | F17: 30,604.40 | G17: 23,290.60 | H17: 44,414.85 | I17: 54,649.55 | J17: -1,655.50
C18: 312 | D18: Alimentations et éliminations des biens-fonds du PA | E18: 66,682.35 | F18: 83,786.70 | G18: 109,076.90 | H18: 90,500.75 | I18: 76,002.79 | J18: 9,320.44
C19: 313 | D19: Prestations de services et honoraires | E19: 79,418.28 | F19: 137,664.14 | G19: 201,212.12 | H19: 167,671.21 | I19: 203,178.96 | J19: 123,760.68
C20: 314 | D20: Gros entretien et entretien courtant du PA | E20: 115,774.20 | F20: 183,317.00 | G20: 117,627.35 | H20: 131,974.35 | I20: 93,059.75 | J20: -22,714.45
C21: 315 | D21: Entretien des biens mobiliers et des immobilisations corporelles du PA | E21: 33,160.45 | F21: 49,935.55 | G21: 50,105.40 | H21: 55,447.55 | I21: 45,162.00 | J21: 12,001.55
C22: 316 | D22: Loyers - crédits-bails (leasing) - baux à fermes - taxes d'utilisation | E22: 3,877.20 | F22: 3,877.20 | G22: 3,877.20 | H22: 3,877.20 | I22: 3,891.60 | J22: 14.40
C23: 317 | D23: Indemnités et dédommagements | E23: 17,503.35 | F23: 23,606.65 | G23: 22,594.15 | H23: 20,034.30 | I23: 17,661.10 | J23: 157.75
C24: 318 | D24: Réévaluations de créances | E24: 89,412.95 | F24: -46,864.30 | G24: -25,400.88 | H24: 21,664.77 | I24: 9,934.56 | J24: -79,478.39
C25: 319 | D25: Divers charges d'exploitation | E25: 2,327.90 | F25: 916.50 | G25: 9,984.50 | H25: 1,428.50 | I25: 5,742.25 | J25: 3,414.35
B27: 33 | D27: Amortissements du patrimoine administratif | E27: =E28+E29 -> 505,358.98 | F27: =F28+F29 -> 282,130.74 | G27: 273,439.17 | H27: 271,969.69 | I27: 277,068.00 | J27: =I27-E27 -> -228,290.98
C28: 330 | D28: Amortissements des immobilisations corporelles du PA | E28: 472,574.35 | F28: 282,130.74 | G28: 273,439.17 | H28: 271,969.69 | I28: 277,068.00 | J28: =I28-E28 -> -195,506.35
C29: 332 | D29: Amortissements des immobilisations incorporelles du PA | E29: 32,784.63 | F29: 0.00 | G29: 0.00 | H29: 0.00 | I29: 0.00 | J29: =I29-E29 -> -32,784.63
B31: 34 | D31: Charges financières | E31: =E32+E33+E34+E35+E36+E37 -> 37,127.64 | F31: =F32+F33+F34+F35+F36+F37 -> 38,934.65 | G31: 54,405.36 | H31: 156,645.15 | I31: 194,590.16 | J31: =I31-E31 -> 157,462.52
C32: 340 | D32: Charges d'intérets | E32: 37,127.64 | F32: 38,934.65 | G32: 54,405.36 | H32: 156,645.15 | I32: 194,590.16 | J32: 157,462.52
C33: 341 | D33: Pertes sur les placements financiers et les immobilisations du PF | E33: 0.00 | F33: 0.00 | G33: 0.00 | H33: 0.00 | I33: 0.00 | J33: 0.00
C34: 342 | D34: Frais d'acquisitions des capitaux et frais administratifs | E34: 0.00 | F34: 0.00 | G34: 0.00 | H34: 0.00 | I34: 0.00 | J34: 0.00
C35: 343 | D35: Charges pour les biens-fonds du PF | E35: 0.00 | F35: 0.00 | G35: 0.00 | H35: 0.00 | I35: 0.00 | J35: 0.00
C36: 344 | D36: Réévaluations des immobilisations du PF | E36: 0.00 | F36: 0.00 | G36: 0.00 | H36: 0.00 | I36: 0.00 | J36: 0.00
C37: 349 | D37: Autres charges financières | E37: 0.00 | F37: 0.00 | G37: 0.00 | H37: 0.00 | I37: 0.00 | J37: 0.00
B39: 35 | D39: Attributions aux financements spéciaux des capitaux de tiers | E39: =E40+E41 -> 21,282.55 | F39: =F40+F41 -> 16,978.75 | G39: 13,669.95 | H39: 9,169.55 | I39: 60,816.55 | J39: =I39-E39 -> 39,534.00
C40: 350 | D40: Attributions aux financements spéciaux des capitaux de tiers | E40: 0.00 | F40: 0.00 | G40: 0.00 | H40: 0.00 | I40: 0.00 | J40: =I40-E40 -> 0.00
C41: 351 | D41: Attributions aux financements spéciaux du capital propres | E41: 21,282.55 | F41: 16,978.75 | G41: 13,669.95 | H41: 9,169.55 | I41: 60,816.55 | J41: =I41-E41 -> 39,534.00
B43: 36 | D43: Charges de transferts | E43: =E44+E45+E46+E47+E48+E49+E50+E51 -> 2,101,514.68 | F43: =F44+F45+F46+F47+F48+F49+F50+F51 -> 2,209,370.23 | G43: 2,335,972.77 | H43: 2,345,563.26 | I43: 2,509,583.33 | J43: =I43-E43 -> 408,068.65
C44: 360 | D44: Parts de revenus destinés à des collectivités publiques | E44: 1,410.10 | F44: 4,379.60 | G44: 5,823.35 | H44: 5,729.80 | I44: 5,843.75 | J44: 4,433.65
C45: 361 | D45: Dédommagements aux collectivités publiques | E45: 1,617,649.88 | F45: 1,642,996.43 | G45: 1,730,003.38 | H45: 1,790,032.22 | I45: 1,972,307.59 | J45: 354,657.71
C46: 362 | D46: Péréquation financière et compensation de charges | E46: 0.00 | F46: 22,114.00 | G46: 38,535.00 | H46: 0.00 | I46: 23,962.00 | J46: 23,962.00
C47: 363 | D47: Subventions à des collectivités publiques et des tiers | E47: 474,228.70 | F47: 531,555.20 | G47: 553,705.75 | H47: 541,895.95 | I47: 499,564.70 | J47: 25,336.00
C48: 364 | D48: Réévaluations des prets du PA | E48: 0.00 | F48: 0.00 | G48: 0.00 | H48: 0.00 | I48: 0.00 | J48: 0.00
C49: 365 | D49: Réévaluations des participations du PA | E49: 0.00 | F49: 0.00 | G49: 0.00 | H49: 0.00 | I49: 0.00 | J49: 0.00
C50: 366 | D50: Amortissements des subventions des investissements | E50: 0.00 | F50: 0.00 | G50: 7,905.29 | H50: 7,905.29 | I50: 7,905.29 | J50: 7,905.29
C51: 369 | D51: Différentes charges de transfert à des collectivités publiques et tiers | E51: 8,226.00 | F51: 8,325.00 | G51: 0.00 | H51: 0.00 | I51: 0.00 | J51: -8,226.00
B53: 37 | D53: Subventions à redistribuer | E53: =E54 -> 0.00 | F53: =F54 -> 0.00 | G53: 0.00 | H53: 0.00 | I53: 0.00 | J53: =I53-E53 -> 0.00
C54: 370 | D54: Subventions à redistribuer à des collectivités publiques et des tiers | E54: 0.00 | F54: 0.00 | G54: 0.00 | H54: 0.00 | I54: 0.00 | J54: 0.00
J55: 0.00
B56: 38 | D56: Charges extraordinaires | E56: =E57+E58+E59+E60+E61+E62 -> 320,000.00 | F56: =F57+F58+F59+F60+F61+F62 -> 0.00 | G56: 0.00 | H56: 13,025.50 | I56: 609.65 | J56: -319,390.35
C57: 380 | D57: Charges extraordinaires du personnel administratif et d'exploitation | E57: 0.00 | F57: 0.00 | G57: 0.00 | H57: 0.00 | I57: 0.00 | J57: 0.00
C58: 381 | D58: charges extraordinaires de biens et de services d'exploitation | E58: 0.00 | F58: 0.00 | G58: 0.00 | H58: 0.00 | I58: 0.00 | J58: 0.00
C59: 384 | D59: Charges extraordinaires financières et comptables | E59: 0.00 | F59: 0.00 | G59: 0.00 | H59: 13,025.50 | I59: 609.65 | J59: 609.65
C60: 385 | D60: Attributions extraordinaires aux financements spéciaux | E60: 0.00 | F60: 0.00 | G60: 0.00 | H60: 0.00 | I60: 0.00 | J60: 0.00
C61: 386 | D61: Charges de transfert extraordinaires au collectivités et aux tiers | E61: 0.00 | F61: 0.00 | G61: 0.00 | H61: 0.00 | I61: 0.00 | J61: 0.00
C62: 389 | D62: Attributions au capital propre | E62: 320,000.00 | F62: 0.00 | G62: 0.00 | H62: 0.00 | I62: 0.00 | J62: -320,000.00
B64: 39 | D64: Imputations internes | E64: =E65+E66+E67+E68+E69+E70+E71+E72 -> 48,926.00 | F64: =F65+F66+F67+F68+F69+F70+F71+F72 -> 0.00 | G64: 0.00 | H64: 0.00 | I64: 0.00 | J64: =I64-E64 -> -48,926.00
C65: 390 | D65: Approvisionnement en matériel et en marchandises | E65: 0.00 | F65: 0.00 | G65: 0.00 | H65: 0.00 | I65: 0.00 | J65: 0.00
C66: 391 | D66: Prestations de services | E66: 48,926.00 | F66: 0.00 | G66: 0.00 | H66: 0.00 | I66: 0.00 | J66: -48,926.00
C67: 392 | D67: Loyer, baux à ferme et frais d'utilisation | E67: 0.00 | F67: 0.00 | G67: 0.00 | H67: 0.00 | I67: 0.00 | J67: 0.00
C68: 393 | D68: Frais administratifs et d'exploitation | E68: 0.00 | F68: 0.00 | G68: 0.00 | H68: 0.00 | I68: 0.00 | J68: 0.00
C69: 394 | D69: Intérêts et charges financières théoriques | E69: 0.00 | F69: 0.00 | G69: 0.00 | H69: 0.00 | I69: 0.00 | J69: 0.00
C70: 395 | D70: Amortissements planifiés et non planifiés du PA | E70: 0.00 | F70: 0.00 | G70: 0.00 | H70: 0.00 | I70: 0.00 | J70: 0.00
C71: 398 | D71: Virements comptabiles | E71: 0.00 | F71: 0.00 | G71: 0.00 | H71: 0.00 | I71: 0.00 | J71: 0.00
C72: 399 | D72: Autres imputations internes | E72: 0.00 | F72: 0.00 | G72: 0.00 | H72: 0.00 | I72: 0.00 | J72: 0.00
A75: 4 | D75: Revenus | E75: =E76+E82+E88+E99+E105+E117+E121+E128+E131+E140 -> 4,361,735.78 | F75: =F76+F82+F88+F99+F105+F117+F121+F128+F131+F140 -> 3,592,856.16 | G75: 3,851,613.95 | H75: 4,173,515.80 | I75: 4,256,690.07 | J75: =I75-E75 -> -105,045.71
B76: 40 | D76: Revenus fiscaux | E76: =E77+E78+E79+E80 -> 3,330,906.65 | F76: =F77+F78+F79+F80 -> 2,484,648.45 | G76: 2,612,688.97 | H76: 2,880,010.86 | I76: 3,025,807.96 | J76: -305,098.69
C77: 400 | D77: Impôts directs des personnes physiques | E77: 2,399,050.60 | F77: 2,089,448.20 | G77: 2,262,700.10 | H77: 2,486,627.65 | I77: 2,527,511.91 | J77: 128,461.31
C78: 401 | D78: Impôts directs des personnes morales | E78: 186,863.75 | F78: 99,854.85 | G78: 104,082.17 | H78: 167,849.81 | I78: 189,924.85 | J78: 3,061.10
C79: 402 | D79: Autres impôts directs | E79: 731,404.75 | F79: 281,123.40 | G79: 232,616.50 | H79: 212,821.75 | I79: 294,456.80 | J79: -436,947.95
C80: 403 | D80: Impôts sur la possession et les dépenses | E80: 13,587.55 | F80: 14,222.00 | G80: 13,290.20 | H80: 12,711.65 | I80: 13,914.40 | J80: 326.85
B82: 41 | D82: Revenus de patentes et de concessions | E82: =E83+E84+E85+E86 -> 0.00 | F82: =F83+F84+F85+F86 -> 0.00 | G82: 0.00 | H82: 0.00 | I82: 0.00 | J82: =I82-E82 -> 0.00
C83: 410 | D83: Revenus de patentes | E83: 0.00 | F83: 0.00 | G83: 0.00 | H83: 0.00 | I83: 0.00 | J83: =I83-E83 -> 0.00
C84: 411 | D84: Revenus de la Banque Nationale | E84: 0.00 | F84: 0.00 | G84: 0.00 | H84: 0.00 | I84: 0.00 | J84: =I84-E84 -> 0.00
C85: 412 | D85: Revenus des concessions | E85: 0.00 | F85: 0.00 | G85: 0.00 | H85: 0.00 | I85: 0.00 | J85: =I85-E85 -> 0.00
C86: 413 | D86: Parts des revenus de loterie et paris | E86: 0.00 | F86: 0.00 | G86: 0.00 | H86: 0.00 | I86: 0.00 | J86: =I86-E86 -> 0.00
B88: 42 | D88: Taxes | E88: =E89+E90+E91+E92+E93+E94+E95+E96+E97 -> 643,920.73 | F88: =F89+F90+F91+F92+F93+F94+F95+F96+F97 -> 619,770.70 | G88: 758,551.30 | H88: 726,475.41 | I88: 721,130.67 | J88: =I88-E88 -> 77,209.94
C89: 420 | D89: Taxes d'exemption et de compensation | E89: 36,109.75 | F89: 38,676.55 | G89: 36,366.40 | H89: 37,584.35 | I89: 41,596.15 | J89: 5,486.40
C90: 421 | D90: Emoluments administratif | E90: 11,893.75 | F90: 18,730.75 | G90: 14,767.55 | H90: 12,592.43 | I90: 17,362.57 | J90: 5,468.82
C91: 422 | D91: Taxes et émoluments hospitaliers et médico-sociaux et foyers | E91: 0.00 | F91: 0.00 | G91: 0.00 | H91: 0.00 | I91: 0.00 | J91: 0.00
C92: 423 | D92: Frais d'écolage | E92: 4,080.00 | F92: 2,720.00 | G92: 2,720.00 | H92: 1,360.00 | I92: 1,360.00 | J92: -2,720.00
C93: 424 | D93: Taxes d'utilisation et de prestation de services | E93: 544,175.30 | F93: 517,639.85 | G93: 615,870.45 | H93: 626,477.23 | I93: 602,854.55 | J93: 58,679.25
C94: 425 | D94: Revenus des ventes | E94: 7,424.65 | F94: 10,532.15 | G94: 12,011.40 | H94: 9,021.80 | I94: 8,371.30 | J94: 946.65
C95: 426 | D95: remboursements | E95: 40,017.28 | F95: 31,271.40 | G95: 76,515.50 | H95: 39,139.60 | I95: 49,386.10 | J95: 9,368.82
C96: 427 | D96: Amendes | E96: 220.00 | F96: 200.00 | G96: 300.00 | H96: 300.00 | I96: 200.00 | J96: -20.00
C97: 429 | D97: Autres taxes et compensations | E97: 0.00 | F97: 0.00 | G97: 0.00 | H97: 0.00 | I97: 0.00 | J97: 0.00
B99: 43 | D99: Revenus divers | E99: =E100+E101+E102+E103 -> 0.00 | F99: =F100+F101+F102+F103 -> 0.00 | G99: 0.00 | H99: 0.00 | I99: 0.00 | J99: =I99-E99 -> 0.00
C100: 430 | D100: Revenus divers d'exploitation | E100: 0.00 | F100: 0.00 | G100: 0.00 | H100: 0.00 | I100: 0.00 | J100: =I100-E100 -> 0.00
C101: 431 | D101: Inscriptions de prestations propres portées à l'actif | E101: 0.00 | F101: 0.00 | G101: 0.00 | H101: 0.00 | I101: 0.00 | J101: =I101-E101 -> 0.00
C102: 432 | D102: Variation de stock | E102: 0.00 | F102: 0.00 | G102: 0.00 | H102: 0.00 | I102: 0.00 | J102: =I102-E102 -> 0.00
C103: 439 | D103: Autres revenus divers | E103: 0.00 | F103: 0.00 | G103: 0.00 | H103: 0.00 | I103: 0.00 | J103: =I103-E103 -> 0.00
B105: 44 | D105: Revenus financiers | E105: =E106+E107+E108+E109+E110+E111+E112+E113+E114+E115 -> 47,757.15 | F105: =F106+F107+F108+F109+F110+F111+F112+F113+F114+F115 -> 102,093.46 | G105: 58,184.76 | H105: 67,439.51 | I105: 68,631.02 | J105: =I105-E105 -> 20,873.87
C106: 440 | D106: Revenus des intérets | E106: 23,418.30 | F106: 17,852.91 | G106: 20,774.76 | H106: 41,590.01 | I106: 45,009.97 | J106: 21,591.67
C107: 441 | D107: Gains réalisés du PF | E107: 0.00 | F107: 0.00 | G107: 10,419.90 | H107: 0.00 | I107: 0.00 | J107: 0.00
C108: 442 | D108: Revenus de participations du PF | E108: 60.10 | F108: 39.00 | G108: 177.00 | H108: 1,152.20 | I108: -907.85 | J108: -967.95
C109: 443 | D109: Revenus des biens-fonds, des bâtiments et immeubles du PF | E109: 22,991.50 | F109: 23,061.50 | G109: 23,831.50 | H109: 23,711.50 | I109: 23,511.50 | J109: 520.00
C110: 444 | D110: Réévaluations des immobilisations du PF | E110: 0.00 | F110: 59,653.15 | G110: 0.00 | H110: 0.00 | I110: 0.00 | J110: 0.00
C111: 445 | D111: Revenus financiers de prêts et de participation du PA | E111: 0.00 | F111: 0.00 | G111: 0.00 | H111: 0.00 | I111: 0.00 | J111: 0.00
C112: 446 | D112: Revenus financiers d'entreprises publiques | E112: 0.00 | F112: 0.00 | G112: 0.00 | H112: 0.00 | I112: 0.00 | J112: 0.00
C113: 447 | D113: Revenus des biens-fonds, des bâtiments et immeubles du PA | E113: 1,287.25 | F113: 1,486.90 | G113: 2,981.60 | H113: 985.80 | I113: 1,017.40 | J113: -269.85
C114: 448 | D114: Revenus des biens-fonds loués | E114: 0.00 | F114: 0.00 | G114: 0.00 | H114: 0.00 | I114: 0.00 | J114: 0.00
C115: 449 | D115: Autres revenus financiers | E115: 0.00 | F115: 0.00 | G115: 0.00 | H115: 0.00 | I115: 0.00 | J115: 0.00
B117: 45 | D117: Prélèvements sur les financements spéciaux | E117: =E118+E119 -> 2,612.45 | F117: =F118+F119 -> 46,777.40 | G117: 2,234.60 | H117: 12,959.55 | I117: 11,979.94 | J117: =I117-E117 -> 9,367.49
C118: 450 | D118: Prélèvements sur les financements spéciaux des capitaux de tiers | E118: 2,612.45 | F118: 4,212.00 | G118: 2,234.60 | H118: 5,409.50 | I118: 11,381.65 | J118: =I118-E118 -> 8,769.20
C119: 451 | D119: Prélèvements sur les financements spéciaux du capital propre | E119: 0.00 | F119: 42,565.40 | G119: 0.00 | H119: 7,550.05 | I119: 598.29 | J119: =I119-E119 -> 598.29
B121: 46 | D121: Revenus de transfert | E121: =E122+E123+E124+E125+E126 -> 287,612.80 | F121: =F122+F123+F124+F125+F126 -> 339,566.15 | G121: 412,481.65 | H121: 479,157.60 | I121: 410,940.39 | J121: =I121-E121 -> 123,327.59
C122: 460 | D122: Parts à des revenus des collectivités publiques | E122: 4,183.00 | F122: 8,028.00 | G122: 8,663.00 | H122: 8,846.00 | I122: 9,995.00 | J122: 5,812.00
C123: 461 | D123: Dédommagements des collectivités publiques | E123: 145,642.25 | F123: 275,266.75 | G123: 340,584.05 | H123: 346,531.50 | I123: 214,629.59 | J123: 68,987.34
C124: 462 | D124: Péréquation financière et compensation de charges | E124: 93,242.00 | F124: 0.00 | G124: 0.00 | H124: 21,092.00 | I124: 0.00 | J124: -93,242.00
C125: 463 | D125: Subventions de collectivités publiques et de tiers | E125: 44,349.15 | F125: 56,165.50 | G125: 62,908.70 | H125: 102,435.05 | I125: 185,756.90 | J125: 141,407.75
C126: 469 | D126: Différents revenus et transferts de collectivités publiques et de tiers | E126: 196.40 | F126: 105.90 | G126: 325.90 | H126: 253.05 | I126: 558.90 | J126: 362.50
B128: 47 | D128: Subventions à redistribuer | E128: =E129 -> 0.00 | F128: =F129 -> 0.00 | G128: 0.00 | H128: 0.00 | I128: 0.00 | J128: =I128-E128 -> 0.00
C129: 470 | D129: Subventions à redistribuer des collectivités publiques et de tiers | E129: 0.00 | F129: 0.00 | G129: 0.00 | H129: 0.00 | I129: 0.00 | J129: =I129-E129 -> 0.00
B131: 48 | D131: Revenus extraordinaires | E131: =E132+E133+E134+E135+E136+E137+E138 -> 0.00 | F131: =F132+F133+F134+F135+F136+F137+F138 -> 0.00 | G131: 7,472.67 | H131: 7,472.87 | I131: 18,200.09 | J131: =I131-E131 -> 18,200.09
C132: 481 | D132: Revenus extraordinaires de patentes et de concessions | E132: 0.00 | F132: 0.00 | G132: 0.00 | H132: 0.00 | I132: 0.00 | J132: 0.00
C133: 482 | D133: Contributions extraordinaires | E133: 0.00 | F133: 0.00 | G133: 0.00 | H133: 0.00 | I133: 0.00 | J133: 0.00
C134: 483 | D134: Revenus divers extraordinaires | E134: 0.00 | F134: 0.00 | G134: 0.00 | H134: 0.00 | I134: 0.00 | J134: 0.00
C135: 484 | D135: Revenus financiers extraordinaires | E135: 0.00 | F135: 0.00 | G135: 0.00 | H135: 0.00 | I135: 10,294.80 | J135: 10,294.80
C136: 485 | D136: Prélèvements extraordinaires sur les financements spéciaux | E136: 0.00 | F136: 0.00 | G136: 0.00 | H136: 0.00 | I136: 0.00 | J136: 0.00
C137: 486 | D137: Parts aux revenus extraordinaires de transferts des collectivités et tiers | E137: 0.00 | F137: 0.00 | G137: 0.00 | H137: 0.00 | I137: 0.00 | J137: 0.00
C138: 489 | D138: Prélèvement sur le capital propre | E138: 0.00 | F138: 0.00 | G138: 7,472.67 | H138: 7,472.87 | I138: 7,905.29 | J138: 7,905.29
B140: 49 | D140: Imputations internes | E140: =E141+E142+E143+E144+E145+E146+E147+E148 -> 48,926.00 | F140: =F141+F142+F143+F144+F145+F146+F147+F148 -> 0.00 | G140: 0.00 | H140: 0.00 | I140: 0.00 | J140: =I140-E140 -> -48,926.00
C141: 490 | D141: Approvisionnement en matériel et en marchandises | E141: 0.00 | F141: 0.00 | G141: 0.00 | H141: 0.00 | I141: 0.00 | J141: 0.00
C142: 491 | D142: Prestations de services | E142: 48,926.00 | F142: 0.00 | G142: 0.00 | H142: 0.00 | I142: 0.00 | J142: -48,926.00
C143: 492 | D143: Fermages, loyers et frais d'utilisation | E143: 0.00 | F143: 0.00 | G143: 0.00 | H143: 0.00 | I143: 0.00 | J143: 0.00
C144: 493 | D144: Frais administratifs et d'exploitations | E144: 0.00 | F144: 0.00 | G144: 0.00 | H144: 0.00 | I144: 0.00 | J144: 0.00
C145: 494 | D145: Intérêts et charges financières théoriques | E145: 0.00 | F145: 0.00 | G145: 0.00 | H145: 0.00 | I145: 0.00 | J145: 0.00
C146: 495 | D146: Amortissements planifiés et non planifiés | E146: 0.00 | F146: 0.00 | G146: 0.00 | H146: 0.00 | I146: 0.00 | J146: 0.00
C147: 498 | D147: Virements comptables | E147: 0.00 | F147: 0.00 | G147: 0.00 | H147: 0.00 | I147: 0.00 | J147: 0.00
C148: 499 | D148: Autres imputations internes | E148: 0.00 | F148: 0.00 | G148: 0.00 | H148: 0.00 | I148: 0.00 | J148: 0.00
A152: 9 | D152: Comptes de clôture
B153: 90 | D153: Clôture du compte de résultats | E153: =E154+E155 -> 338,069.00 | F153: =F154+F155 -> 44,928.10 | G153: 116,182.76 | H153: 297,580.15 | I153: 136,335.69 | J153: =I153-E153 -> -201,733.31
C154: 900 | D154: Compte général (+ / -) | E154: 6,015.15 | F154: -157,625.18 | G154: -206,117.81 | H154: 23,179.87 | I154: 32,723.24 | J154: =I154-E154 -> 26,708.09
C155: 901 | D155: Financements spéciaux (+ / -) | E155: 332,053.85 | F155: 202,553.28 | G155: 322,300.57 | H155: 274,400.28 | I155: 103,612.45 | J155: =I155-E155 -> -228,441.40
D157: Résultat global | E157: =E154+E155 -> 338,069.00 | F157: =F154+F155 -> 44,928.10 | G157: 116,182.76 | H157: 297,580.15 | I157: 136,335.69 | J157: =I157-E157 -> -201,733.31
A162: Comptes de résultats par natures | E162: 2020 | F162: 2021 | G162: 2022 | H162: 2023 | I162: =H162+1 -> 2024 | J162: Variation
A163: Bourrignon | E163: 270 | F163: 265 | G163: 258 | H163: 261 | I163: ='Base de données pop.'!C3 -> 263 | J163: =I163-E163 -> -7
E164: Bourrignon | F164: Bourrignon | G164: Bourrignon | H164: Bourrignon | I164: Bourrignon | J164: Bourrignon
A165: 3 | D165: Charges | E165: =E166+E176+E188+E192+E200+E204+E214+E217+E225 -> 1,024,476.59 | F165: =F166+F176+F188+F192+F200+F204+F214+F217+F225 -> 1,104,222.59 | G165: 1,254,678.52 | H165: 1,084,338.13 | I165: 1,233,945.31 | J165: =I165-E165 -> 209,468.72
B166: 30 | D166: Charges du personnel | E166: =E167+E168+E169+E170+E171+E172+E173+E174 -> 52,868.70 | F166: =F167+F168+F169+F170+F171+F172+F173+F174 -> 53,889.40 | G166: 55,628.95 | H166: 51,802.35 | I166: 45,593.75 | J166: -7,274.95
C167: 300 | D167: Autorités et commissions | E167: 20,005.00 | F167: 21,005.75 | G167: 21,132.75 | H167: 18,572.00 | I167: 16,194.50 | J167: -3,810.50
C168: 301 | D168: Personnel administratif et d'exploitation | E168: 29,497.50 | F168: 29,533.75 | G168: 30,302.50 | H168: 29,355.00 | I168: 26,181.25 | J168: -3,316.25
C169: 302 | D169: Enseignants | E169: 0.00 | F169: 0.00 | G169: 0.00 | H169: 0.00 | I169: 0.00 | J169: 0.00
C170: 303 | D170: Personnel temporaire administratif et d'exploitation | E170: 0.00 | F170: 0.00 | G170: 0.00 | H170: 0.00 | I170: 0.00 | J170: 0.00
C171: 304 | D171: Allocations et indemnités | E171: 0.00 | F171: 0.00 | G171: 0.00 | H171: 0.00 | I171: 0.00 | J171: 0.00
C172: 305 | D172: Charges de l'employeur | E172: 3,196.70 | F172: 3,301.80 | G172: 3,616.15 | H172: 3,402.65 | I172: 2,865.10 | J172: -331.60
C173: 306 | D173: Prestations sociales de l'employeur | E173: 0.00 | F173: 0.00 | G173: 0.00 | H173: 0.00 | I173: 0.00 | J173: 0.00
C174: 309 | D174: Autres charges du personnel | E174: 169.50 | F174: 48.10 | G174: 577.55 | H174: 472.70 | I174: 352.90 | J174: 183.40
B176: 31 | D176: Charges de biens et de services et autres charges d'exploitation | E176: =E177+E178+E179+E180+E181+E182+E183+E184+E185+E186 -> 202,592.20 | F176: =F177+F178+F179+F180+F181+F182+F183+F184+F185+F186 -> 254,518.51 | G176: 229,366.63 | H176: 201,802.98 | I176: 209,371.07 | J176: =I176-E176 -> 6,778.87
C177: 310 | D177: Charges de matériel et de marchandises | E177: 17,773.20 | F177: 19,047.05 | G177: 12,786.45 | H177: 11,406.90 | I177: 12,245.80 | J177: -5,527.40
C178: 311 | D178: Immobilisations ne pouvant être portées à l'actif | E178: 3,401.30 | F178: 6,200.00 | G178: 13,356.35 | H178: 1,823.60 | I178: 2,165.65 | J178: -1,235.65
C179: 312 | D179: Alimentations et éliminations des biens-fonds du PA | E179: 52,326.50 | F179: 46,861.55 | G179: 49,190.93 | H179: 47,973.73 | I179: 61,485.51 | J179: 9,159.01
C180: 313 | D180: Prestations de services et honoraires | E180: 80,937.60 | F180: 93,116.79 | G180: 93,087.69 | H180: 88,558.12 | I180: 82,782.07 | J180: 1,844.47
C181: 314 | D181: Gros entretien et entretien courtant du PA | E181: 57,280.00 | F181: 55,885.55 | G181: 37,046.78 | H181: 32,777.74 | I181: 28,990.35 | J181: -28,289.65
C182: 315 | D182: Entretien des biens mobiliers et des immobilisations corporelles du PA | E182: 13,144.00 | F182: 14,158.25 | G182: 13,407.45 | H182: 12,387.10 | I182: 14,484.70 | J182: 1,340.70
C183: 316 | D183: Loyers - crédits-bails (leasing) - baux à fermes - taxes d'utilisation | E183: 2,836.05 | F183: 2,981.40 | G183: 2,753.20 | H183: 3,256.45 | I183: 2,817.40 | J183: -18.65
C184: 317 | D184: Indemnités et dédommagements | E184: 1,752.40 | F184: 2,177.60 | G184: 2,493.50 | H184: 3,238.40 | I184: 3,345.05 | J184: 1,592.65
C185: 318 | D185: Réévaluations de créances | E185: -26,908.85 | F185: 12,688.92 | G185: 4,844.28 | H185: 280.94 | I185: 248.14 | J185: 27,156.99
C186: 319 | D186: Divers charges d'exploitation | E186: 50.00 | F186: 1,401.40 | G186: 400.00 | H186: 100.00 | I186: 806.40 | J186: 756.40
B188: 33 | D188: Amortissements du patrimoine administratif | E188: =E189+E190 -> 79,584.00 | F188: =F189+F190 -> 82,434.00 | G188: 83,034.00 | H188: 89,135.00 | I188: 89,160.00 | J188: =I188-E188 -> 9,576.00
C189: 330 | D189: Amortissements des immobilisations corporelles du PA | E189: 67,904.00 | F189: 70,754.00 | G189: 70,754.00 | H189: 76,855.00 | I189: 76,880.00 | J189: =I189-E189 -> 8,976.00
C190: 332 | D190: Amortissements des immobilisations incorporelles du PA | E190: 11,680.00 | F190: 11,680.00 | G190: 12,280.00 | H190: 12,280.00 | I190: 12,280.00 | J190: =I190-E190 -> 600.00
B192: 34 | D192: Charges financières | E192: =E193+E194+E195+E196+E197+E198 -> 62,765.89 | F192: =F193+F194+F195+F196+F197+F198 -> 47,203.63 | G192: 124,634.59 | H192: 41,407.50 | I192: 36,642.44 | J192: =I192-E192 -> -26,123.45
C193: 340 | D193: Charges d'intérets | E193: 43,881.44 | F193: 37,718.33 | G193: 28,132.15 | H193: 30,817.39 | I193: 29,062.04 | J193: -14,819.40
C194: 341 | D194: Pertes sur les placements financiers et les immobilisations du PF | E194: 0.00 | F194: 0.00 | G194: 0.00 | H194: 0.00 | I194: 0.00 | J194: 0.00
C195: 342 | D195: Frais d'acquisitions des capitaux et frais administratifs | E195: 0.00 | F195: 0.00 | G195: 0.00 | H195: 0.00 | I195: 0.00 | J195: 0.00
C196: 343 | D196: Charges pour les biens-fonds du PF | E196: 18,879.75 | F196: 9,485.30 | G196: 9,181.59 | H196: 10,589.81 | I196: 7,580.30 | J196: -11,299.45
C197: 344 | D197: Réévaluations des immobilisations du PF | E197: 0.00 | F197: 0.00 | G197: 87,320.00 | H197: 0.00 | I197: 0.00 | J197: 0.00
C198: 349 | D198: Autres charges financières | E198: 4.70 | F198: 0.00 | G198: 0.85 | H198: 0.30 | I198: 0.10 | J198: -4.60
B200: 35 | D200: Attributions aux financements spéciaux des capitaux de tiers | E200: =E201+E202 -> 5,654.61 | F200: =F201+F202 -> 15,022.35 | G200: 22,425.32 | H200: 18,787.24 | I200: 53,469.75 | J200: =I200-E200 -> 47,815.14
C201: 350 | D201: Attributions aux financements spéciaux des capitaux de tiers | E201: 0.00 | F201: 0.00 | G201: 0.00 | H201: 0.00 | I201: 0.00 | J201: =I201-E201 -> 0.00
C202: 351 | D202: Attributions aux financements spéciaux du capital propres | E202: 5,654.61 | F202: 15,022.35 | G202: 22,425.32 | H202: 18,787.24 | I202: 53,469.75 | J202: =I202-E202 -> 47,815.14
B204: 36 | D204: Charges de transferts | E204: =E205+E206+E207+E208+E209+E210+E211+E212 -> 589,661.20 | F204: =F205+F206+F207+F208+F209+F210+F211+F212 -> 627,387.05 | G204: 715,593.75 | H204: 654,032.80 | I204: 773,691.40 | J204: =I204-E204 -> 184,030.20
C205: 360 | D205: Parts de revenus destinés à des collectivités publiques | E205: 1,400.00 | F205: 1,560.00 | G205: 1,540.00 | H205: 1,380.00 | I205: 1,360.00 | J205: -40.00
C206: 361 | D206: Dédommagements aux collectivités publiques | E206: 415,740.25 | F206: 426,368.55 | G206: 476,459.45 | H206: 419,258.90 | I206: 586,692.70 | J206: 170,952.45
C207: 362 | D207: Péréquation financière et compensation de charges | E207: 6,500.00 | F207: 6,240.00 | G207: 6,399.00 | H207: 6,832.00 | I207: 6,501.00 | J207: 1.00
C208: 363 | D208: Subventions à des collectivités publiques et des tiers | E208: 164,166.95 | F208: 191,274.50 | G208: 229,359.30 | H208: 224,698.90 | I208: 177,319.70 | J208: 13,152.75
C209: 364 | D209: Réévaluations des prets du PA | E209: 0.00 | F209: 0.00 | G209: 0.00 | H209: 0.00 | I209: 0.00 | J209: 0.00
C210: 365 | D210: Réévaluations des participations du PA | E210: 0.00 | F210: 0.00 | G210: 0.00 | H210: 0.00 | I210: 0.00 | J210: 0.00
C211: 366 | D211: Amortissements des subventions des investissements | E211: 0.00 | F211: 0.00 | G211: 0.00 | H211: 0.00 | I211: 0.00 | J211: 0.00
C212: 369 | D212: Différentes charges de transfert à des collectivités publiques et tiers | E212: 1,854.00 | F212: 1,944.00 | G212: 1,836.00 | H212: 1,863.00 | I212: 1,818.00 | J212: -36.00
B214: 37 | D214: Subventions à redistribuer | E214: =E215 -> 0.00 | F214: =F215 -> 0.00 | G214: 0.00 | H214: 0.00 | I214: 0.00 | J214: =I214-E214 -> 0.00
C215: 370 | D215: Subventions à redistribuer à des collectivités publiques et des tiers | E215: 0.00 | F215: 0.00 | G215: 0.00 | H215: 0.00 | I215: 0.00 | J215: =I215-E215 -> 0.00
B217: 38 | D217: Charges extraordinaires | E217: =E218+E219+E220+E221+E222+E223 -> 0.00 | F217: =F218+F219+F220+F221+F222+F223 -> 0.00 | G217: 0.00 | H217: 0.00 | I217: 0.00 | J217: =I217-E217 -> 0.00
C218: 380 | D218: Charges extraordinaires du personnel administratif et d'exploitation | E218: 0.00 | F218: 0.00 | G218: 0.00 | H218: 0.00 | I218: 0.00 | J218: 0.00
C219: 381 | D219: charges extraordinaires de biens et de services d'exploitation | E219: 0.00 | F219: 0.00 | G219: 0.00 | H219: 0.00 | I219: 0.00 | J219: 0.00
C220: 384 | D220: Charges extraordinaires financières et comptables | E220: 0.00 | F220: 0.00 | G220: 0.00 | H220: 0.00 | I220: 0.00 | J220: 0.00
C221: 385 | D221: Attributions extraordinaires aux financements spéciaux | E221: 0.00 | F221: 0.00 | G221: 0.00 | H221: 0.00 | I221: 0.00 | J221: 0.00
C222: 386 | D222: Charges de transfert extraordinaires au collectivités et aux tiers | E222: 0.00 | F222: 0.00 | G222: 0.00 | H222: 0.00 | I222: 0.00 | J222: 0.00
C223: 389 | D223: Attributions au capital propre | E223: 0.00 | F223: 0.00 | G223: 0.00 | H223: 0.00 | I223: 0.00 | J223: 0.00
B225: 39 | D225: Imputations internes | E225: =E226+E227+E228+E229+E230+E231+E232+E233 -> 31,349.99 | F225: =F226+F227+F228+F229+F230+F231+F232+F233 -> 23,767.65 | G225: 23,995.28 | H225: 27,370.26 | I225: 26,016.90 | J225: =I225-E225 -> -5,333.09
C226: 390 | D226: Approvisionnement en matériel et en marchandises | E226: 200.00 | F226: 200.00 | G226: 200.00 | H226: 200.00 | I226: 200.00 | J226: 0.00
C227: 391 | D227: Prestations de services | E227: 6,201.55 | F227: 2,645.20 | G227: 3,916.80 | H227: 5,207.35 | I227: 5,289.50 | J227: -912.05
C228: 392 | D228: Loyer, baux à ferme et frais d'utilisation | E228: 0.00 | F228: 0.00 | G228: 0.00 | H228: 0.00 | I228: 0.00 | J228: 0.00
C229: 393 | D229: Frais administratifs et d'exploitation | E229: 0.00 | F229: 0.00 | G229: 0.00 | H229: 0.00 | I229: 0.00 | J229: 0.00
C230: 394 | D230: Intérêts et charges financières théoriques | E230: 24,948.44 | F230: 20,922.45 | G230: 19,878.48 | H230: 21,962.91 | I230: 20,527.40 | J230: -4,421.04
C231: 395 | D231: Amortissements planifiés et non planifiés du PA | E231: 0.00 | F231: 0.00 | G231: 0.00 | H231: 0.00 | I231: 0.00 | J231: 0.00
C232: 398 | D232: Virements comptabiles | E232: 0.00 | F232: 0.00 | G232: 0.00 | H232: 0.00 | I232: 0.00 | J232: 0.00
C233: 399 | D233: Autres imputations internes | E233: 0.00 | F233: 0.00 | G233: 0.00 | H233: 0.00 | I233: 0.00 | J233: 0.00
A236: 4 | D236: Revenus | E236: =E237+E243+E249+E260+E266+E278+E282+E289+E292+E301 -> 1,207,844.12 | F236: =F237+F243+F249+F260+F266+F278+F282+F289+F292+F301 -> 1,055,665.27 | G236: 1,053,880.10 | H236: 1,250,774.70 | I236: 1,274,190.09 | J236: =I236-E236 -> 66,345.97
... 7770 more rows

Sheet Résultats réals 2020-2025 (hidden)
A1: Résultats réels des communes 2020-2025
A3: Exercice 2020 | F3: Exercice 2021 | K3: Exercice 2022 | P3: Exercice 2023 | U3: Exercice 2024
A4: Communes | B4: Résultats | C4: Attributions | D4: Prélévements | E4: Total | F4: Communes | G4: Résultats | H4: Attributions | I4: Prélèvements | J4: Total | K4: Communes | L4: Résultats | M4: Attributions | N4: Prélèvements | O4: Total | P4: Communes | Q4: Résultats | R4: Attributions | S4: Prélèvements | T4: Total | U4: Communes | V4: Résultats | W4: Attributions | X4: Prélèvements | Y4: Total
A5: Boécourt | B5: 338,069.00 | C5: 320,000.00 | D5: 0.00 | E5: =B5+C5-D5 -> 658,069.00 | F5: Boécourt | G5: 44,928.10 | H5: 0.00 | I5: 0.00 | J5: =G5+H5-I5 -> 44,928.10 | K5: Boécourt | L5: 116,182.76 | M5: 0.00 | N5: 0.00 | O5: =L5+M5-N5 -> 116,182.76 | P5: Boécourt | Q5: 297,580.15 | R5: 0.00 | S5: 7,472.87 | T5: =Q5+R5-S5 -> 290,107.28 | U5: Boécourt | V5: 136,335.69 | W5: 0.00 | X5: 7,905.29 | Y5: =V5+W5-X5 -> 128,430.40
A6: Bourrignon | B6: 183,367.53 | C6: 0.00 | D6: 0.00 | E6: =B6+C6-D6 -> 183,367.53 | F6: Bourrignon | G6: -48,557.32 | H6: 0.00 | I6: 0.00 | J6: =G6+H6-I6 -> -48,557.32 | K6: Bourrignon | L6: -200,798.42 | M6: 0.00 | N6: 0.00 | O6: =L6+M6-N6 -> -200,798.42 | P6: Bourrignon | Q6: 166,436.57 | R6: 0.00 | S6: 0.00 | T6: =Q6+R6-S6 -> 166,436.57 | U6: Bourrignon | V6: 40,244.78 | W6: 0.00 | X6: 0.00 | Y6: =V6+W6-X6 -> 40,244.78
A7: Châtillon | B7: -29,321.28 | C7: 0.00 | D7: 0.00 | E7: -29,321.28 | F7: Châtillon | G7: -94,828.60 | H7: 0.00 | I7: 0.00 | J7: -94,828.60 | K7: Châtillon | L7: 277,440.62 | M7: 0.00 | N7: 0.00 | O7: 277,440.62 | P7: Châtillon | Q7: 111,420.27 | R7: 0.00 | S7: 0.00 | T7: 111,420.27 | U7: Châtillon | V7: -113,598.50 | W7: 0.00 | X7: 0.00 | Y7: -113,598.50
A8: Courchapoix | B8: 21,653.66 | C8: 201.69 | D8: 0.00 | E8: 21,855.35 | F8: Courchapoix | G8: 106,112.79 | H8: 0.00 | I8: 0.00 | J8: 106,112.79 | K8: Courchapoix | L8: -54,896.01 | M8: 0.00 | N8: 0.00 | O8: -54,896.01 | P8: Courchapoix | Q8: 123,375.73 | R8: 0.00 | S8: 2,572.45 | T8: 120,803.28 | U8: Courchapoix | V8: 21,887.81 | W8: 0.00 | X8: 2,572.45 | Y8: 19,315.36
A9: Courrendlin | B9: 461,623.63 | C9: 0.00 | D9: 300,000.00 | E9: 161,623.63 | F9: Courrendlin | G9: 509,529.57 | H9: 470,000.00 | I9: 0.00 | J9: 979,529.57 | K9: Courrendlin | L9: 166,774.22 | M9: 470,000.00 | N9: 0.00 | O9: 636,774.22 | P9: Courrendlin | Q9: 157,637.65 | R9: 150,000.00 | S9: 164,654.80 | T9: 142,982.85 | U9: Courrendlin | V9: 354,522.49 | W9: 610,000.00 | X9: 14,968.25 | Y9: 949,554.24
A10: Courroux | B10: 1,051,215.94 | C10: 400,000.00 | D10: 0.00 | E10: 1,451,215.94 | F10: Courroux | G10: 355,331.14 | H10: 0.00 | I10: 2,944.95 | J10: 352,386.19 | K10: Courroux | L10: 317,394.89 | M10: 0.00 | N10: 2,944.95 | O10: 314,449.94 | P10: Courroux | Q10: 276,986.37 | R10: 190,359.86 | S10: 0.00 | T10: 467,346.23 | U10: Courroux | V10: 52,103.66 | W10: 0.00 | X10: 0.00 | Y10: 52,103.66
A11: Courtételle | B11: 253,856.48 | C11: 0.00 | D11: 0.00 | E11: 253,856.48 | F11: Courtételle | G11: 521,660.97 | H11: 100,000.00 | I11: 0.00 | J11: 621,660.97 | K11: Courtételle | L11: 469,681.96 | M11: 100,000.00 | N11: 0.00 | O11: 569,681.96 | P11: Courtételle | Q11: 44,346.45 | R11: 900,000.00 | S11: 14,467.75 | T11: 929,878.70 | U11: Courtételle | V11: -32,226.75 | W11: 0.00 | X11: 14,467.75 | Y11: -46,694.50
A12: Delémont | B12: 2,089,673.18 | C12: 0.00 | D12: 1,100,000.00 | E12: 989,673.18 | F12: Delémont | G12: 3,551,526.50 | H12: 0.00 | I12: 1,310,000.00 | J12: 2,241,526.50 | K12: Delémont | L12: -1,042,128.57 | M12: 0.00 | N12: 1,310,000.00 | O12: -2,352,128.57 | P12: Delémont | Q12: -917,826.71 | R12: 0.00 | S12: 1,253,909.00 | T12: -2,171,735.71 | U12: Delémont | V12: 6,546,514.63 | W12: 0.00 | X12: 70,244.00 | Y12: 6,476,270.63
A13: Develier | B13: -1,352.86 | C13: 0.00 | D13: 40,000.00 | E13: -41,352.86 | F13: Develier | G13: 288,258.07 | H13: 0.00 | I13: 0.00 | J13: 288,258.07 | K13: Develier | L13: -113,213.44 | M13: 0.00 | N13: 0.00 | O13: -113,213.44 | P13: Develier | Q13: 236,485.23 | R13: 0.00 | S13: 10,700.00 | T13: 225,785.23 | U13: Develier | V13: -41,527.16 | W13: 0.00 | X13: 0.00 | Y13: -41,527.16
A14: Ederswiler | B14: -63,918.92 | C14: 0.00 | D14: 0.00 | E14: -63,918.92 | F14: Ederswiler | G14: -9,232.12 | H14: 0.00 | I14: 0.00 | J14: -9,232.12 | K14: Ederswiler | L14: 5,101.07 | M14: 0.00 | N14: 0.00 | O14: 5,101.07 | P14: Ederswiler | Q14: -10,368.88 | R14: 0.00 | S14: 0.00 | T14: -10,368.88 | U14: Ederswiler | V14: -9,732.53 | W14: 0.00 | X14: 0.00 | Y14: -9,732.53
A15: Haute-Sorne | B15: -1,177,403.47 | C15: 0.00 | D15: 2,478.30 | E15: -1,179,881.77 | F15: Haute-Sorne | G15: 713,421.97 | H15: 0.00 | I15: 0.00 | J15: 713,421.97 | K15: Haute-Sorne | L15: 1,086,020.80 | M15: 0.00 | N15: 0.00 | O15: 1,086,020.80 | P15: Haute-Sorne | Q15: -386,596.60 | R15: 0.00 | S15: 413,099.54 | T15: -799,696.14 | U15: Haute-Sorne | V15: 1,300,857.85 | W15: 832,100.00 | X15: 63,099.54 | Y15: 2,069,858.31
A16: Mervelier | B16: -93,731.80 | C16: 8,327.56 | D16: 0.00 | E16: -85,404.24 | F16: Mervelier | G16: 98,362.19 | H16: 0.00 | I16: 0.00 | J16: 98,362.19 | K16: Mervelier | L16: -51,921.06 | M16: 0.00 | N16: 0.00 | O16: -51,921.06 | P16: Mervelier | Q16: 194,677.50 | R16: 0.00 | S16: 3,001.30 | T16: 191,676.20 | U16: Mervelier | V16: 160,861.66 | W16: 0.00 | X16: 3,001.30 | Y16: 157,860.36
A17: Mettembert | B17: -9,460.81 | C17: 0.00 | D17: 20,000.00 | E17: -29,460.81 | F17: Mettembert | G17: -4,705.81 | H17: 0.00 | I17: 0.00 | J17: -4,705.81 | K17: Mettembert | L17: 27,333.61 | M17: 0.00 | N17: 0.00 | O17: 27,333.61 | P17: Mettembert | Q17: -15,844.46 | R17: 0.00 | S17: 0.00 | T17: -15,844.46 | U17: Mettembert | V17: -43,476.25 | W17: 0.00 | X17: 15,000.00 | Y17: -58,476.25
A18: Movelier | B18: -16,853.58 | C18: 0.00 | D18: 0.00 | E18: -16,853.58 | F18: Movelier | G18: 43,963.29 | H18: 0.00 | I18: 0.00 | J18: 43,963.29 | K18: Movelier | L18: -53,278.53 | M18: 0.00 | N18: 0.00 | O18: -53,278.53 | P18: Movelier | Q18: 2,715.89 | R18: 130,000.00 | S18: 0.00 | T18: 132,715.89 | U18: Movelier | V18: -185,206.76 | W18: 0.00 | X18: 0.00 | Y18: -185,206.76
A19: Pleigne | B19: -13,071.37 | C19: 0.00 | D19: 0.00 | E19: -13,071.37 | F19: Pleigne | G19: -48,947.22 | H19: 23,651.40 | I19: 0.00 | J19: -25,295.82 | K19: Pleigne | L19: 204,040.50 | M19: 23,651.40 | N19: 0.00 | O19: 227,691.90 | P19: Pleigne | Q19: -63,378.66 | R19: 0.00 | S19: 0.00 | T19: -63,378.66 | U19: Pleigne | V19: 21,486.75 | W19: 450,000.00 | X19: 0.00 | Y19: 471,486.75
A20: Rossemaison | B20: 262,757.42 | C20: 0.00 | D20: 0.00 | E20: 262,757.42 | F20: Rossemaison | G20: 544,010.83 | H20: 0.00 | I20: 0.00 | J20: 544,010.83 | K20: Rossemaison | L20: 269,472.09 | M20: 0.00 | N20: 0.00 | O20: 269,472.09 | P20: Rossemaison | Q20: 119,770.75 | R20: 0.00 | S20: 8,700.00 | T20: 111,070.75 | U20: Rossemaison | V20: 80,334.99 | W20: 1,400,000.00 | X20: 8,700.00 | Y20: 1,471,634.99
A21: Saulcy | B21: 9,048.71 | C21: 0.00 | D21: 0.00 | E21: 9,048.71 | F21: Saulcy | G21: -15,080.91 | H21: 0.00 | I21: 0.00 | J21: -15,080.91 | K21: Saulcy | L21: -52,483.04 | M21: 0.00 | N21: 0.00 | O21: -52,483.04 | P21: Saulcy | Q21: 28,612.84 | R21: 20,000.00 | S21: 667.55 | T21: 47,945.29 | U21: Saulcy | V21: -14,131.11 | W21: 0.00 | X21: 667.55 | Y21: -14,798.66
A22: Soyhières | B22: -152,377.16 | C22: 0.00 | D22: 0.00 | E22: -152,377.16 | F22: Soyhières | G22: -314,421.67 | H22: 0.00 | I22: 0.00 | J22: -314,421.67 | K22: Soyhières | L22: -34,441.11 | M22: 0.00 | N22: 0.00 | O22: -34,441.11 | P22: Soyhières | Q22: 53,215.43 | R22: 30,000.00 | S22: 0.00 | T22: 83,215.43 | U22: Soyhières | V22: 51,773.06 | W22: 30,000.00 | X22: 0.00 | Y22: 81,773.06
A23: Val Terbi | B23: 364,711.41 | C23: 250,000.00 | D23: 0.00 | E23: 614,711.41 | F23: Val Terbi | G23: 456,199.36 | H23: 787,113.60 | I23: 0.00 | J23: 1,243,312.96 | K23: Val Terbi | L23: 418,445.06 | M23: 787,113.60 | N23: 0.00 | O23: 1,205,558.66 | P23: Val Terbi | Q23: 168,872.27 | R23: 500,000.00 | S23: 13,302.80 | T23: 655,569.47 | U23: Val Terbi | V23: 229,987.88 | W23: 695,650.00 | X23: 0.00 | Y23: 925,637.88
A24: Le Bémont | B24: 26,286.14 | C24: 70,000.00 | D24: 0.00 | E24: 96,286.14 | F24: Le Bémont | G24: 138,689.77 | H24: 21,795.38 | I24: 0.00 | J24: 160,485.15 | K24: Le Bémont | L24: 64,094.42 | M24: 21,795.38 | N24: 0.00 | O24: 85,889.80 | P24: Le Bémont | Q24: 59,136.47 | R24: 0.00 | S24: 0.00 | T24: 59,136.47 | U24: Le Bémont | V24: 9,651.33 | W24: 100,000.00 | X24: 0.00 | Y24: 109,651.33
A25: Les Bois | B25: 178,997.68 | C25: 0.00 | D25: 0.00 | E25: 178,997.68 | F25: Les Bois | G25: 1,766,349.46 | H25: 0.00 | I25: 0.00 | J25: 1,766,349.46 | K25: Les Bois | L25: 879,139.75 | M25: 0.00 | N25: 0.00 | O25: 879,139.75 | P25: Les Bois | Q25: 1,087,112.63 | R25: 0.00 | S25: 0.00 | T25: 1,087,112.63 | U25: Les Bois | V25: 1,107,408.63 | W25: 0.00 | X25: 0.00 | Y25: 1,107,408.63
A26: Les Breuleux | B26: 3,517,719.99 | C26: 0.00 | D26: 0.00 | E26: 3,517,719.99 | F26: Les Breuleux | G26: 1,120,099.08 | H26: 51,438.41 | I26: 0.00 | J26: 1,171,537.49 | K26: Les Breuleux | L26: 1,866,501.58 | M26: 51,438.41 | N26: 0.00 | O26: 1,917,939.99 | P26: Les Breuleux | Q26: 2,677,168.89 | R26: 3,397,569.32 | S26: 0.00 | T26: 6,074,738.21 | U26: Les Breuleux | V26: 1,423,923.13 | W26: 1,000,000.00 | X26: 0.00 | Y26: 2,423,923.13
A27: La Chaux-B. | B27: -11,170.27 | C27: 0.00 | D27: 0.00 | E27: -11,170.27 | F27: La Chaux-B. | G27: 10,126.51 | H27: 0.00 | I27: 0.00 | J27: 10,126.51 | K27: La Chaux-B. | L27: -116,577.55 | M27: 0.00 | N27: 0.00 | O27: -116,577.55 | P27: La Chaux-B. | Q27: 0.00 | R27: 0.00 | S27: 0.00 | T27: 0.00 | U27: La Chaux-B. | V27: 0.00 | W27: 0.00 | X27: 0.00 | Y27: 0.00
A28: Les Enfers | B28: 41,421.78 | C28: 0.00 | D28: 0.00 | E28: 41,421.78 | F28: Les Enfers | G28: 1,129.24 | H28: 0.00 | I28: 0.00 | J28: 1,129.24 | K28: Les Enfers | L28: 37,709.21 | M28: 0.00 | N28: 0.00 | O28: 37,709.21 | P28: Les Enfers | Q28: 15,628.25 | R28: 0.00 | S28: 0.00 | T28: 15,628.25 | U28: Les Enfers | V28: 54,749.53 | W28: 65,000.00 | X28: 0.00 | Y28: 119,749.53
A29: Les Genevez | B29: -114,596.97 | C29: 0.00 | D29: 206,471.32 | E29: -321,068.29 | F29: Les Genevez | G29: -297,058.18 | H29: 0.00 | I29: 130,000.00 | J29: -427,058.18 | K29: Les Genevez | L29: 7,337.03 | M29: 0.00 | N29: 130,000.00 | O29: -122,662.97 | P29: Les Genevez | Q29: -260,378.03 | R29: 0.00 | S29: 0.00 | T29: -260,378.03 | U29: Les Genevez | V29: -120,138.51 | W29: 0.00 | X29: 85,000.00 | Y29: -205,138.51
A30: Lajoux | B30: -99,000.46 | C30: 0.00 | D30: 151,133.50 | E30: -250,133.96 | F30: Lajoux | G30: 4,584.96 | H30: 0.00 | I30: 0.00 | J30: 4,584.96 | K30: Lajoux | L30: 54,270.14 | M30: 0.00 | N30: 0.00 | O30: 54,270.14 | P30: Lajoux | Q30: 11,165.65 | R30: 371,205.37 | S30: 0.00 | T30: 382,371.02 | U30: Lajoux | V30: 14,874.09 | W30: 250,000.00 | X30: 0.00 | Y30: 264,874.09
A31: Montfaucon | B31: -194,273.68 | C31: 0.00 | D31: 0.00 | E31: -194,273.68 | F31: Montfaucon | G31: -249,384.18 | H31: 0.00 | I31: 0.00 | J31: -249,384.18 | K31: Montfaucon | L31: -258,305.80 | M31: 0.00 | N31: 0.00 | O31: -258,305.80 | P31: Montfaucon | Q31: -16,548.33 | R31: 0.00 | S31: 0.00 | T31: -16,548.33 | U31: Montfaucon | V31: 265,657.40 | W31: 135,000.00 | X31: 0.00 | Y31: 400,657.40
A32: Muriaux | B32: 122,538.76 | C32: 400,000.00 | D32: 0.00 | E32: 522,538.76 | F32: Muriaux | G32: 76,405.58 | H32: 0.00 | I32: 0.00 | J32: 76,405.58 | K32: Muriaux | L32: -125,962.73 | M32: 0.00 | N32: 0.00 | O32: -125,962.73 | P32: Muriaux | Q32: 78,627.40 | R32: 460,000.00 | S32: 0.00 | T32: 538,627.40 | U32: Muriaux | V32: 9,456.22 | W32: 0.00 | X32: 197,550.65 | Y32: -188,094.43
A33: Le Noirmont | B33: 1,107,210.30 | C33: 0.00 | D33: 0.00 | E33: 1,107,210.30 | F33: Le Noirmont | G33: 904,527.70 | H33: 200,000.00 | I33: 0.00 | J33: 1,104,527.70 | K33: Le Noirmont | L33: 1,150,369.28 | M33: 200,000.00 | N33: 0.00 | O33: 1,350,369.28 | P33: Le Noirmont | Q33: 1,738,725.46 | R33: 0.00 | S33: 0.00 | T33: 1,738,725.46 | U33: Le Noirmont | V33: 2,946,468.15 | W33: 1,000,000.00 | X33: 0.00 | Y33: 3,946,468.15
A34: Saignelégier | B34: 243,887.35 | C34: 150,000.00 | D34: 0.00 | E34: 393,887.35 | F34: Saignelégier | G34: 869,734.76 | H34: 650,000.00 | I34: 0.00 | J34: 1,519,734.76 | K34: Saignelégier | L34: 495,635.45 | M34: 650,000.00 | N34: 0.00 | O34: 1,145,635.45 | P34: Saignelégier | Q34: 577,199.21 | R34: 900,000.00 | S34: 0.00 | T34: 1,477,199.21 | U34: Saignelégier | V34: 837,681.98 | W34: 2,000,000.00 | X34: 0.00 | Y34: 2,837,681.98
A35: Saint-Brais | B35: -5,355.96 | C35: 140,000.00 | D35: 0.00 | E35: 134,644.04 | F35: Saint-Brais | G35: -37,068.90 | H35: 40,000.00 | I35: 0.00 | J35: 2,931.10 | K35: Saint-Brais | L35: 48,632.11 | M35: 40,000.00 | N35: 0.00 | O35: 88,632.11 | P35: Saint-Brais | Q35: 46,554.49 | R35: 0.00 | S35: 0.00 | T35: 46,554.49 | U35: Saint-Brais | V35: -3,077.40 | W35: 0.00 | X35: 0.00 | Y35: -3,077.40
A36: Soubey | B36: 22,586.40 | C36: 0.00 | D36: 0.00 | E36: 22,586.40 | F36: Soubey | G36: 45,606.67 | H36: 0.00 | I36: 0.00 | J36: 45,606.67 | K36: Soubey | L36: 49,352.77 | M36: 0.00 | N36: 0.00 | O36: 49,352.77 | P36: Soubey | Q36: 105,014.54 | R36: 80,000.00 | S36: 0.00 | T36: 185,014.54 | U36: Soubey | V36: 46,184.87 | W36: 15,000.00 | X36: 0.00 | Y36: 61,184.87
A37: Alle | B37: 153,720.00 | C37: 240,000.00 | D37: 0.00 | E37: 393,720.00 | F37: Alle | G37: 571,824.05 | H37: 401,659.89 | I37: 0.00 | J37: 973,483.94 | K37: Alle | L37: 617,262.02 | M37: 401,659.89 | N37: 0.00 | O37: 1,018,921.91 | P37: Alle | Q37: 277,222.27 | R37: 470,300.70 | S37: 0.00 | T37: 747,522.97 | U37: Alle | V37: 258,548.25 | W37: 1,000,000.00 | X37: 0.00 | Y37: 1,258,548.25
A38: La Baroche | B38: -32,824.59 | C38: 208,290.00 | D38: 0.00 | E38: 175,465.41 | F38: La Baroche | G38: 45,087.84 | H38: 493,741.35 | I38: 35,000.00 | J38: 503,829.19 | K38: La Baroche | L38: 100,441.82 | M38: 493,741.35 | N38: 35,000.00 | O38: 559,183.17 | P38: La Baroche | Q38: 18,943.25 | R38: 723,729.20 | S38: 0.00 | T38: 742,672.45 | U38: La Baroche | V38: 20,517.35 | W38: 87,002.46 | X38: 0.00 | Y38: 107,519.81
A39: Basse-Allaine | B39: -5,589.77 | C39: 0.00 | D39: 0.00 | E39: -5,589.77 | F39: Basse-Allaine | G39: 123,768.67 | H39: 100,000.00 | I39: 18,062.26 | J39: 205,706.41 | K39: Basse-Allaine | L39: -22,426.51 | M39: 100,000.00 | N39: 18,062.26 | O39: 59,511.23 | P39: Basse-Allaine | Q39: 73,198.00 | R39: 0.00 | S39: 0.00 | T39: 73,198.00 | U39: Basse-Allaine | V39: 134,239.31 | W39: 350,000.00 | X39: 0.00 | Y39: 484,239.31
A40: Basse-Vendline | B40: 0.00 | C40: 0.00 | D40: 0.00 | E40: 0.00 | F40: =A40 -> Basse-Vendline | G40: 0.00 | H40: 0.00 | I40: 0.00 | J40: 0.00 | K40: =F40 -> Basse-Vendline | L40: 0.00 | M40: 0.00 | N40: 0.00 | O40: 0.00 | P40: Basse-Vendline | Q40: 0.00 | R40: 0.00 | S40: 0.00 | T40: 0.00 | U40: Basse-Vendline | V40: 227,079.47 | W40: 0.00 | X40: 0.00 | Y40: 227,079.47
A41: Beurnevésin | B41: 13,711.05 | C41: 34.12 | D41: 0.00 | E41: 13,745.17 | F41: Beurnevésin | G41: 6,229.74 | H41: 2,106.63 | I41: 5,985.00 | J41: 2,351.37 | K41: Beurnevésin | L41: -9,442.24 | M41: 2,106.63 | N41: 5,985.00 | O41: -13,320.61 | P41: Beurnevésin | Q41: -27,239.48 | R41: 15,690.50 | S41: 607.00 | T41: -12,155.98 | U41: Beurnevésin | V41: 0.00 | W41: 0.00 | X41: 0.00 | Y41: 0.00
A42: Boncourt | B42: 341,994.52 | C42: 0.00 | D42: 0.00 | E42: 341,994.52 | F42: Boncourt | G42: 209,567.68 | H42: 800,000.00 | I42: 0.00 | J42: 1,009,567.68 | K42: Boncourt | L42: 112,659.28 | M42: 800,000.00 | N42: 0.00 | O42: 912,659.28 | P42: Boncourt | Q42: 16,790.87 | R42: 2,170,000.00 | S42: 567.00 | T42: 2,186,223.87 | U42: Boncourt | V42: 552,805.46 | W42: 1,400,000.00 | X42: 0.00 | Y42: 1,952,805.46
A43: Bonfol | B43: 197,653.74 | C43: 300,000.00 | D43: 0.00 | E43: 497,653.74 | F43: Bonfol | G43: 200,305.66 | H43: 0.00 | I43: 0.00 | J43: 200,305.66 | K43: Bonfol | L43: -28,465.24 | M43: 0.00 | N43: 0.00 | O43: -28,465.24 | P43: Bonfol | Q43: -467,314.68 | R43: 0.00 | S43: 0.00 | T43: -467,314.68 | U43: Bonfol | V43: 0.00 | W43: 0.00 | X43: 0.00 | Y43: 0.00
A44: Bure | B44: 23,915.77 | C44: 100,000.00 | D44: 0.00 | E44: 123,915.77 | F44: Bure | G44: 32,981.15 | H44: 0.00 | I44: 0.00 | J44: 32,981.15 | K44: Bure | L44: -105,514.74 | M44: 0.00 | N44: 0.00 | O44: -105,514.74 | P44: Bure | Q44: 56,336.00 | R44: 250,000.00 | S44: 422.00 | T44: 305,914.00 | U44: Bure | V44: 73,531.77 | W44: 110,000.00 | X44: 567.00 | Y44: 182,964.77
A45: Clos du Doubs | B45: 50,671.79 | C45: 520,000.00 | D45: 0.00 | E45: 570,671.79 | F45: Clos du Doubs | G45: 76,558.69 | H45: 270,000.00 | I45: 0.00 | J45: 346,558.69 | K45: Clos du Doubs | L45: 15,301.63 | M45: 270,000.00 | N45: 0.00 | O45: 285,301.63 | P45: Clos du Doubs | Q45: 113,170.76 | R45: 115,000.00 | S45: 0.00 | T45: 228,170.76 | U45: Clos du Doubs | V45: -76,753.30 | W45: 1,000,000.00 | X45: 1,000,000.00 | Y45: -76,753.30
A46: Coeuve | B46: 52,551.10 | C46: 0.00 | D46: 0.00 | E46: 52,551.10 | F46: Coeuve | G46: 1,288.75 | H46: 275,000.00 | I46: 0.00 | J46: 276,288.75 | K46: Coeuve | L46: -163,520.98 | M46: 275,000.00 | N46: 0.00 | O46: 111,479.02 | P46: Coeuve | Q46: -171,344.34 | R46: 217.68 | S46: 0.00 | T46: -171,126.66 | U46: Coeuve | V46: 7,448.95 | W46: 150,000.00 | X46: 0.00 | Y46: 157,448.95
A47: Cornol | B47: 35,118.03 | C47: 0.00 | D47: 50,000.00 | E47: -14,881.97 | F47: Cornol | G47: -3,462.94 | H47: 0.00 | I47: 100,000.00 | J47: -103,462.94 | K47: Cornol | L47: -97,827.58 | M47: 0.00 | N47: 100,000.00 | O47: -197,827.58 | P47: Cornol | Q47: 52,413.52 | R47: 0.00 | S47: 0.00 | T47: 52,413.52 | U47: Cornol | V47: 11,686.37 | W47: 0.00 | X47: 0.00 | Y47: 11,686.37
A48: Courchavon | B48: 112,815.42 | C48: 826,972.20 | D48: 0.00 | E48: 939,787.62 | F48: Courchavon | G48: 47,834.87 | H48: 0.00 | I48: 775,000.00 | J48: -727,165.13 | K48: Courchavon | L48: -213,500.08 | M48: 0.00 | N48: 775,000.00 | O48: -988,500.08 | P48: Courchavon | Q48: 277,298.86 | R48: 300,000.00 | S48: 633.00 | T48: 576,665.86 | U48: Courchavon | V48: 167,924.81 | W48: 220,000.00 | X48: 338.00 | Y48: 387,586.81
A49: Courgenay | B49: -268,507.58 | C49: 0.00 | D49: 425,359.00 | E49: -693,866.58 | F49: Courgenay | G49: 258,416.72 | H49: 100,000.00 | I49: 0.00 | J49: 358,416.72 | K49: Courgenay | L49: 174,735.11 | M49: 100,000.00 | N49: 0.00 | O49: 274,735.11 | P49: Courgenay | Q49: -160,977.50 | R49: 0.00 | S49: 442.00 | T49: -161,419.50 | U49: Courgenay | V49: 279,815.44 | W49: 550,000.00 | X49: 0.00 | Y49: 829,815.44
A50: Courtedoux | B50: -9,064.03 | C50: 0.00 | D50: 0.00 | E50: -9,064.03 | F50: Courtedoux | G50: 82,660.81 | H50: 248,757.85 | I50: 0.00 | J50: 331,418.66 | K50: Courtedoux | L50: 50,458.33 | M50: 248,757.85 | N50: 0.00 | O50: 299,216.18 | P50: Courtedoux | Q50: 44,645.22 | R50: 200,000.00 | S50: 311.00 | T50: 244,334.22 | U50: Courtedoux | V50: -270,413.17 | W50: 0.00 | X50: 633.00 | Y50: -271,046.17
A51: Damphreux | B51: 29,819.60 | C51: 3,985.00 | D51: 20,000.00 | E51: 13,804.60 | F51: Damphreux | G51: -50,574.92 | H51: 0.00 | I51: 0.00 | J51: -50,574.92 | K51: Damphreux | L51: -44,181.13 | M51: 0.00 | N51: 0.00 | O51: -44,181.13 | P51: Damphreux | Q51: 0.00 | R51: 0.00 | S51: 1,597.00 | T51: -1,597.00 | U51: Damphreux | V51: 0.00 | W51: 0.00 | X51: 0.00 | Y51: 0.00
A52: Damphreux-Lugnez | B52: 0.00 | C52: 0.00 | D52: 0.00 | E52: 0.00 | F52: =A52 -> Damphreux-Lugnez | G52: 0.00 | H52: 0.00 | I52: 0.00 | J52: 0.00 | K52: =F52 -> Damphreux-Lugnez | L52: 0.00 | M52: 0.00 | N52: 0.00 | O52: 0.00 | P52: Damphreux-Lugnez | Q52: 435,217.72 | R52: 0.00 | S52: 319.00 | T52: 434,898.72 | U52: Damphreux-Lugnez | V52: -23,696.57 | W52: 0.00 | X52: 442.00 | Y52: -24,138.57
A53: Fahy | B53: 73,689.05 | C53: 58,000.00 | D53: 0.00 | E53: 131,689.05 | F53: Fahy | G53: -46,434.00 | H53: 0.00 | I53: 0.00 | J53: -46,434.00 | K53: Fahy | L53: -87,327.44 | M53: 0.00 | N53: 0.00 | O53: -87,327.44 | P53: Fahy | Q53: -28,207.76 | R53: 0.00 | S53: 1,083.40 | T53: -29,291.16 | U53: Fahy | V53: 179,841.21 | W53: 0.00 | X53: 311.00 | Y53: 179,530.21
A54: Fontenais | B54: 79,042.83 | C54: 150,000.00 | D54: 0.00 | E54: 229,042.83 | F54: Fontenais | G54: 59,877.34 | H54: 200,000.00 | I54: 0.00 | J54: 259,877.34 | K54: Fontenais | L54: 7,224.15 | M54: 200,000.00 | N54: 0.00 | O54: 207,224.15 | P54: Fontenais | Q54: 77,645.30 | R54: 250,000.00 | S54: 0.00 | T54: 327,645.30 | U54: Fontenais | V54: 48,829.85 | W54: 0.00 | X54: 201,597.00 | Y54: -152,767.15
A55: Grandfontaine | B55: 160,878.05 | C55: 200,000.00 | D55: 0.00 | E55: 360,878.05 | F55: Grandfontaine | G55: 122,026.26 | H55: 0.00 | I55: 0.00 | J55: 122,026.26 | K55: Grandfontaine | L55: 131,178.64 | M55: 0.00 | N55: 0.00 | O55: 131,178.64 | P55: Grandfontaine | Q55: 6,331.16 | R55: 0.00 | S55: 590.00 | T55: 5,741.16 | U55: Grandfontaine | V55: 67,470.92 | W55: 50,000.00 | X55: 319.00 | Y55: 117,151.92
A56: Haute-Ajoie | B56: 192,186.95 | C56: 100,000.00 | D56: 0.00 | E56: 292,186.95 | F56: Haute-Ajoie | G56: 134,564.66 | H56: 58,973.21 | I56: 0.00 | J56: 193,537.87 | K56: Haute-Ajoie | L56: 135,911.97 | M56: 58,973.21 | N56: 0.00 | O56: 194,885.18 | P56: Haute-Ajoie | Q56: 56,246.89 | R56: 0.00 | S56: 0.00 | T56: 56,246.89 | U56: Haute-Ajoie | V56: 93,443.73 | W56: 100,000.00 | X56: 1,083.40 | Y56: 192,360.33
A57: Lugnez | B57: -14,911.23 | C57: 0.00 | D57: 1.00 | E57: -14,912.23 | F57: Lugnez | G57: 59,759.93 | H57: 0.00 | I57: 0.00 | J57: 59,759.93 | K57: Lugnez | L57: 1,611.37 | M57: 0.00 | N57: 0.00 | O57: 1,611.37 | P57: Lugnez | Q57: 0.00 | R57: 0.00 | S57: 0.00 | T57: 0.00 | U57: Lugnez | V57: 0.00 | W57: 0.00 | X57: 0.00 | Y57: 0.00
A58: Porrentruy | B58: 1,253,727.51 | C58: 800,000.00 | D58: 0.00 | E58: 2,053,727.51 | F58: Porrentruy | G58: 651,336.63 | H58: 0.00 | I58: 1,000,000.00 | J58: -348,663.37 | K58: Porrentruy | L58: 1,042,023.45 | M58: 0.00 | N58: 1,000,000.00 | O58: 42,023.45 | P58: Porrentruy | Q58: -162,273.98 | R58: 0.00 | S58: 0.00 | T58: -162,273.98 | U58: Porrentruy | V58: 616,995.60 | W58: 3,000,000.00 | X58: 0.00 | Y58: 3,616,995.60
A59: Vendlincourt | B59: 49,199.93 | C59: 0.00 | D59: 0.00 | E59: 49,199.93 | F59: Vendlincourt | G59: 116,013.61 | H59: 60,000.00 | I59: 0.00 | J59: 176,013.61 | K59: Vendlincourt | L59: 65,056.20 | M59: 60,000.00 | N59: 0.00 | O59: 125,056.20 | P59: Vendlincourt | Q59: 108,852.27 | R59: 80,000.00 | S59: 0.00 | T59: 188,852.27 | U59: Vendlincourt | V59: -15,482.67 | W59: 0.00 | X59: 0.00 | Y59: -15,482.67
A60: Totaux | B60: =SUM(B5:B59) -> 10,804,534.91 | C60: =SUM(C5:C59) -> 5,245,810.57 | D60: 2,315,443.12 | E60: 13,734,902.36 | F60: Totaux | G60: =SUM(G5:G59) -> 13,750,904.80 | H60: =SUM(H5:H59) -> 5,354,237.72 | I60: =SUM(I5:I59) -> 3,376,992.21 | J60: =SUM(J5:J59) -> 15,728,150.31 | K60: Totaux | L60: =SUM(L5:L59) -> 7,588,581.09 | M60: =SUM(M5:M59) -> 5,354,237.72 | N60: =SUM(N5:N59) -> 3,376,992.21 | O60: =SUM(O5:O59) -> 9,565,826.60 | P60: Totaux | Q60: =SUM(Q5:Q59) -> 7,304,478.77 | R60: =SUM(R5:R59) -> 11,704,072.63 | S60: =SUM(S5:S59) -> 1,899,119.46 | T60: =SUM(T5:T59) -> 17,109,431.94 | U60: Totaux | V60: =SUM(V5:V59) -> 17,503,684.39 | W60: =SUM(W5:W59) -> 16,599,752.46 | X60: =SUM(X5:X59) -> 1,688,467.18 | Y60: =SUM(Y5:Y59) -> 32,414,969.67
A63: Exercice 2023 | F63: Exercice 2024 | K63: Exercice 2025
A64: Communes | B64: Résultats | C64: Attributions | D64: Prélèvements | E64: Total | F64: Communes | G64: Résultats | H64: Attributions | I64: Prélèvements | J64: Total | K64: Communes | L64: Résultats | M64: Attributions | N64: Prélèvements | O64: Total
A65: Boécourt | B65: 297,580.15 | C65: 0.00 | D65: 7,472.87 | E65: =B65+C65-D65 -> 290,107.28 | F65: Boécourt | G65: 136,335.69 | H65: 0.00 | I65: 7,905.29 | J65: =G65+H65-I65 -> 128,430.40 | K65: Boécourt | O65: =L65+M65-N65 -> 0.00
A66: Bourrignon | B66: 166,436.57 | C66: 0.00 | D66: 0.00 | E66: =B66+C66-D66 -> 166,436.57 | F66: Bourrignon | G66: 40,244.78 | H66: 0.00 | I66: 0.00 | J66: =G66+H66-I66 -> 40,244.78 | K66: Bourrignon | O66: =L66+M66-N66 -> 0.00
A67: Châtillon | B67: 111,420.27 | C67: 0.00 | D67: 0.00 | E67: 111,420.27 | F67: Châtillon | G67: -113,598.50 | H67: 0.00 | I67: 0.00 | J67: -113,598.50 | K67: Châtillon | O67: 0.00
A68: Courchapoix | B68: 123,375.73 | C68: 0.00 | D68: 2,572.45 | E68: 120,803.28 | F68: Courchapoix | G68: 21,887.81 | H68: 0.00 | I68: 2,572.45 | J68: 19,315.36 | K68: Courchapoix | O68: 0.00
A69: Courrendlin | B69: 157,637.65 | C69: 150,000.00 | D69: 164,654.80 | E69: 142,982.85 | F69: Courrendlin | G69: 354,522.49 | H69: 610,000.00 | I69: 14,968.25 | J69: 949,554.24 | K69: Courrendlin | O69: 0.00
A70: Courroux | B70: 276,986.37 | C70: 190,359.86 | D70: 0.00 | E70: 467,346.23 | F70: Courroux | G70: 52,103.66 | H70: 0.00 | I70: 0.00 | J70: 52,103.66 | K70: Courroux | O70: 0.00
A71: Courtételle | B71: 44,346.45 | C71: 900,000.00 | D71: 14,467.75 | E71: 929,878.70 | F71: Courtételle | G71: -32,226.75 | H71: 0.00 | I71: 14,467.75 | J71: -46,694.50 | K71: Courtételle | O71: 0.00
A72: Delémont | B72: -917,826.71 | C72: 0.00 | D72: 1,253,909.00 | E72: -2,171,735.71 | F72: Delémont | G72: 6,546,514.63 | H72: 0.00 | I72: 70,244.00 | J72: 6,476,270.63 | K72: Delémont | O72: 0.00
A73: Develier | B73: 236,485.23 | C73: 0.00 | D73: 10,700.00 | E73: 225,785.23 | F73: Develier | G73: -41,527.16 | H73: 0.00 | I73: 0.00 | J73: -41,527.16 | K73: Develier | O73: 0.00
A74: Ederswiler | B74: -10,368.88 | C74: 0.00 | D74: 0.00 | E74: -10,368.88 | F74: Ederswiler | G74: -9,732.53 | H74: 0.00 | I74: 0.00 | J74: -9,732.53 | K74: Ederswiler | O74: 0.00
A75: Haute-Sorne | B75: -386,596.60 | C75: 0.00 | D75: 413,099.54 | E75: -799,696.14 | F75: Haute-Sorne | G75: 1,300,857.85 | H75: 832,100.00 | I75: 63,099.54 | J75: 2,069,858.31 | K75: Haute-Sorne | O75: 0.00
A76: Mervelier | B76: 194,677.50 | C76: 0.00 | D76: 3,001.30 | E76: 191,676.20 | F76: Mervelier | G76: 160,861.66 | H76: 0.00 | I76: 3,001.30 | J76: 157,860.36 | K76: Mervelier | O76: 0.00
A77: Mettembert | B77: -15,844.46 | C77: 0.00 | D77: 0.00 | E77: -15,844.46 | F77: Mettembert | G77: -43,476.25 | H77: 0.00 | I77: 15,000.00 | J77: -58,476.25 | K77: Mettembert | O77: 0.00
A78: Movelier | B78: 2,715.89 | C78: 130,000.00 | D78: 0.00 | E78: 132,715.89 | F78: Movelier | G78: -185,206.76 | H78: 0.00 | I78: 0.00 | J78: -185,206.76 | K78: Movelier | O78: 0.00
A79: Pleigne | B79: -63,378.66 | C79: 0.00 | D79: 0.00 | E79: -63,378.66 | F79: Pleigne | G79: 21,486.75 | H79: 450,000.00 | I79: 0.00 | J79: 471,486.75 | K79: Pleigne | O79: 0.00
A80: Rossemaison | B80: 119,770.75 | C80: 0.00 | D80: 8,700.00 | E80: 111,070.75 | F80: Rossemaison | G80: 80,334.99 | H80: 1,400,000.00 | I80: 8,700.00 | J80: 1,471,634.99 | K80: Rossemaison | O80: 0.00
A81: Saulcy | B81: 28,612.84 | C81: 20,000.00 | D81: 667.55 | E81: 47,945.29 | F81: Saulcy | G81: -14,131.11 | H81: 0.00 | I81: 667.55 | J81: -14,798.66 | K81: Saulcy | O81: 0.00
A82: Soyhières | B82: 53,215.43 | C82: 30,000.00 | D82: 0.00 | E82: 83,215.43 | F82: Soyhières | G82: 51,773.06 | H82: 30,000.00 | I82: 0.00 | J82: 81,773.06 | K82: Soyhières | O82: 0.00
A83: Val Terbi | B83: 168,872.27 | C83: 500,000.00 | D83: 13,302.80 | E83: 655,569.47 | F83: Val Terbi | G83: 229,987.88 | H83: 695,650.00 | I83: 0.00 | J83: 925,637.88 | K83: Val Terbi | O83: 0.00
A84: Le Bémont | B84: 59,136.47 | C84: 0.00 | D84: 0.00 | E84: 59,136.47 | F84: Le Bémont | G84: 9,651.33 | H84: 100,000.00 | I84: 0.00 | J84: 109,651.33 | K84: Le Bémont | O84: 0.00
A85: Les Bois | B85: 1,087,112.63 | C85: 0.00 | D85: 0.00 | E85: 1,087,112.63 | F85: Les Bois | G85: 1,107,408.63 | H85: 0.00 | I85: 0.00 | J85: 1,107,408.63 | K85: Les Bois | O85: 0.00
A86: Les Breuleux | B86: 2,677,168.89 | C86: 3,397,569.32 | D86: 0.00 | E86: 6,074,738.21 | F86: Les Breuleux | G86: 1,423,923.13 | H86: 1,000,000.00 | I86: 0.00 | J86: 2,423,923.13 | K86: Les Breuleux | O86: 0.00
A87: La Chaux-B. | B87: 0.00 | C87: 0.00 | D87: 0.00 | E87: 0.00 | F87: La Chaux-B. | G87: 0.00 | H87: 0.00 | I87: 0.00 | J87: 0.00 | K87: La Chaux-B. | O87: 0.00
A88: Les Enfers | B88: 15,628.25 | C88: 0.00 | D88: 0.00 | E88: 15,628.25 | F88: Les Enfers | G88: 54,749.53 | H88: 65,000.00 | I88: 0.00 | J88: 119,749.53 | K88: Les Enfers | O88: 0.00
A89: Les Genevez | B89: -260,378.03 | C89: 0.00 | D89: 0.00 | E89: -260,378.03 | F89: Les Genevez | G89: -120,138.51 | H89: 0.00 | I89: 85,000.00 | J89: -205,138.51 | K89: Les Genevez | O89: 0.00
A90: Lajoux | B90: 11,165.65 | C90: 371,205.37 | D90: 0.00 | E90: 382,371.02 | F90: Lajoux | G90: 14,874.09 | H90: 250,000.00 | I90: 0.00 | J90: 264,874.09 | K90: Lajoux | O90: 0.00
A91: Montfaucon | B91: -16,548.33 | C91: 0.00 | D91: 0.00 | E91: -16,548.33 | F91: Montfaucon | G91: 265,657.40 | H91: 135,000.00 | I91: 0.00 | J91: 400,657.40 | K91: Montfaucon | O91: 0.00
A92: Muriaux | B92: 78,627.40 | C92: 460,000.00 | D92: 0.00 | E92: 538,627.40 | F92: Muriaux | G92: 9,456.22 | H92: 0.00 | I92: 197,550.65 | J92: -188,094.43 | K92: Muriaux | O92: 0.00
A93: Le Noirmont | B93: 1,738,725.46 | C93: 0.00 | D93: 0.00 | E93: 1,738,725.46 | F93: Le Noirmont | G93: 2,946,468.15 | H93: 1,000,000.00 | I93: 0.00 | J93: 3,946,468.15 | K93: Le Noirmont | O93: 0.00
A94: Saignelégier | B94: 577,199.21 | C94: 900,000.00 | D94: 0.00 | E94: 1,477,199.21 | F94: Saignelégier | G94: 837,681.98 | H94: 2,000,000.00 | I94: 0.00 | J94: 2,837,681.98 | K94: Saignelégier | O94: 0.00
A95: Saint-Brais | B95: 46,554.49 | C95: 0.00 | D95: 0.00 | E95: 46,554.49 | F95: Saint-Brais | G95: -3,077.40 | H95: 0.00 | I95: 0.00 | J95: -3,077.40 | K95: Saint-Brais | O95: 0.00
A96: Soubey | B96: 105,014.54 | C96: 80,000.00 | D96: 0.00 | E96: 185,014.54 | F96: Soubey | G96: 46,184.87 | H96: 15,000.00 | I96: 0.00 | J96: 61,184.87 | K96: Soubey | O96: 0.00
A97: Alle | B97: 277,222.27 | C97: 470,300.70 | D97: 0.00 | E97: 747,522.97 | F97: Alle | G97: 258,548.25 | H97: 1,000,000.00 | I97: 0.00 | J97: 1,258,548.25 | K97: Alle | O97: 0.00
A98: La Baroche | B98: 18,943.25 | C98: 723,729.20 | D98: 0.00 | E98: 742,672.45 | F98: La Baroche | G98: 20,517.35 | H98: 87,002.46 | I98: 0.00 | J98: 107,519.81 | K98: La Baroche | O98: 0.00
A99: Basse-Allaine | B99: 73,198.00 | C99: 0.00 | D99: 0.00 | E99: 73,198.00 | F99: Basse-Allaine | G99: 134,239.31 | H99: 350,000.00 | I99: 0.00 | J99: 484,239.31 | K99: Basse-Allaine | O99: 0.00
A100: Basse-Vendline | B100: 0.00 | C100: 0.00 | D100: 0.00 | E100: 0.00 | F100: Basse-Vendline | G100: 227,079.47 | H100: 0.00 | I100: 0.00 | J100: 227,079.47 | K100: Basse-Vendline | O100: 0.00
A101: Beurnevésin | B101: -27,239.48 | C101: 15,690.50 | D101: 607.00 | E101: -12,155.98 | F101: Beurnevésin | G101: 0.00 | H101: 0.00 | I101: 0.00 | J101: 0.00 | K101: Beurnevésin | O101: 0.00
A102: Boncourt | B102: 16,790.87 | C102: 2,170,000.00 | D102: 567.00 | E102: 2,186,223.87 | F102: Boncourt | G102: 552,805.46 | H102: 1,400,000.00 | I102: 0.00 | J102: 1,952,805.46 | K102: Boncourt | O102: 0.00
A103: Bonfol | B103: -467,314.68 | C103: 0.00 | D103: 0.00 | E103: -467,314.68 | F103: Bonfol | G103: 0.00 | H103: 0.00 | I103: 0.00 | J103: 0.00 | K103: Bonfol | O103: 0.00
A104: Bure | B104: 56,336.00 | C104: 250,000.00 | D104: 422.00 | E104: 305,914.00 | F104: Bure | G104: 73,531.77 | H104: 110,000.00 | I104: 567.00 | J104: 182,964.77 | K104: Bure | O104: 0.00
A105: Clos du Doubs | B105: 113,170.76 | C105: 115,000.00 | D105: 0.00 | E105: 228,170.76 | F105: Clos du Doubs | G105: -76,753.30 | H105: 1,000,000.00 | I105: 1,000,000.00 | J105: -76,753.30 | K105: Clos du Doubs | O105: 0.00
A106: Coeuve | B106: -171,344.34 | C106: 217.68 | D106: 0.00 | E106: -171,126.66 | F106: Coeuve | G106: 7,448.95 | H106: 150,000.00 | I106: 0.00 | J106: 157,448.95 | K106: Coeuve | O106: 0.00
A107: Cornol | B107: 52,413.52 | C107: 0.00 | D107: 0.00 | E107: 52,413.52 | F107: Cornol | G107: 11,686.37 | H107: 0.00 | I107: 0.00 | J107: 11,686.37 | K107: Cornol | O107: 0.00
A108: Courchavon | B108: 277,298.86 | C108: 300,000.00 | D108: 633.00 | E108: 576,665.86 | F108: Courchavon | G108: 167,924.81 | H108: 220,000.00 | I108: 338.00 | J108: 387,586.81 | K108: Courchavon | O108: 0.00
A109: Courgenay | B109: -160,977.50 | C109: 0.00 | D109: 442.00 | E109: -161,419.50 | F109: Courgenay | G109: 279,815.44 | H109: 550,000.00 | I109: 0.00 | J109: 829,815.44 | K109: Courgenay | O109: 0.00
A110: Courtedoux | B110: 44,645.22 | C110: 200,000.00 | D110: 311.00 | E110: 244,334.22 | F110: Courtedoux | G110: -270,413.17 | H110: 0.00 | I110: 633.00 | J110: -271,046.17 | K110: Courtedoux | O110: 0.00
A111: Damphreux | B111: 0.00 | C111: 0.00 | D111: 1,597.00 | E111: -1,597.00 | F111: Damphreux | G111: 0.00 | H111: 0.00 | I111: 0.00 | J111: 0.00 | K111: Damphreux | O111: 0.00
A112: Damphreux-Lugnez | B112: 435,217.72 | C112: 0.00 | D112: 319.00 | E112: 434,898.72 | F112: Damphreux-Lugnez | G112: -23,696.57 | H112: 0.00 | I112: 442.00 | J112: -24,138.57 | K112: Damphreux-Lugnez | O112: 0.00
A113: Fahy | B113: -28,207.76 | C113: 0.00 | D113: 1,083.40 | E113: -29,291.16 | F113: Fahy | G113: 179,841.21 | H113: 0.00 | I113: 311.00 | J113: 179,530.21 | K113: Fahy | O113: 0.00
A114: Fontenais | B114: 77,645.30 | C114: 250,000.00 | D114: 0.00 | E114: 327,645.30 | F114: Fontenais | G114: 48,829.85 | H114: 0.00 | I114: 201,597.00 | J114: -152,767.15 | K114: Fontenais | O114: 0.00
A115: Grandfontaine | B115: 6,331.16 | C115: 0.00 | D115: 590.00 | E115: 5,741.16 | F115: Grandfontaine | G115: 67,470.92 | H115: 50,000.00 | I115: 319.00 | J115: 117,151.92 | K115: Grandfontaine | O115: 0.00
A116: Haute-Ajoie | B116: 56,246.89 | C116: 0.00 | D116: 0.00 | E116: 56,246.89 | F116: Haute-Ajoie | G116: 93,443.73 | H116: 100,000.00 | I116: 1,083.40 | J116: 192,360.33 | K116: Haute-Ajoie | O116: 0.00
A117: Lugnez | B117: 0.00 | C117: 0.00 | D117: 0.00 | E117: 0.00 | F117: Lugnez | G117: 0.00 | H117: 0.00 | I117: 0.00 | J117: 0.00 | K117: Lugnez | O117: 0.00
A118: Porrentruy | B118: -162,273.98 | C118: 0.00 | D118: 0.00 | E118: -162,273.98 | F118: Porrentruy | G118: 616,995.60 | H118: 3,000,000.00 | I118: 0.00 | J118: 3,616,995.60 | K118: Porrentruy | O118: 0.00
A119: Vendlincourt | B119: 108,852.27 | C119: 80,000.00 | D119: 0.00 | E119: 188,852.27 | F119: Vendlincourt | G119: -15,482.67 | H119: 0.00 | I119: 0.00 | J119: -15,482.67 | K119: Vendlincourt | O119: 0.00
A120: Totaux | B120: =SUM(B65:B119) -> 7,304,478.77 | C120: =SUM(C65:C119) -> 11,704,072.63 | D120: =SUM(D65:D119) -> 1,899,119.46 | E120: =SUM(E65:E119) -> 17,109,431.94 | F120: Totaux | G120: =SUM(G65:G119) -> 17,503,684.39 | H120: =SUM(H65:H119) -> 16,599,752.46 | I120: =SUM(I65:I119) -> 1,688,467.18 | J120: =SUM(J65:J119) -> 32,414,969.67 | K120: Totaux | L120: =SUM(L65:L119) -> 0.00 | M120: =SUM(M65:M119) -> 0.00 | N120: =SUM(N65:N119) -> 0.00 | O120: =SUM(O65:O119) -> 0.00

Sheet Graphique par nature (hidden)
A4: Charges
A5: 30 Charges du personnel | B5: ='4.1 Comptes 2024 natures'!BC6 -> 76,166,990.27
A6: 31 Charges de biens et de services et autres charges d'exploitation | B6: ='4.1 Comptes 2024 natures'!BC16 -> 99,082,948.66
A7: 33 Amortissements du patrimoine administratif | B7: ='4.1 Comptes 2024 natures'!BC28 -> 25,203,082.29
A8: 34 Charges financières | B8: ='4.1 Comptes 2024 natures'!BC32 -> 11,201,412.27
A9: 35 Attributions aux financements spéciaux des capitaux de tiers | B9: ='4.1 Comptes 2024 natures'!BC40 -> 7,624,702.18
A10: 36 Charges de transferts | B10: ='4.1 Comptes 2024 natures'!BC44 -> 207,025,294.29
A11: 37 Subventions à redistribuer | B11: ='4.1 Comptes 2024 natures'!BC54 -> 3,145,141.85
A12: 38 Charges extraordinaires | B12: ='4.1 Comptes 2024 natures'!BC57 -> 16,695,226.21
A13: 39 Imputations internes | B13: ='4.1 Comptes 2024 natures'!BC65 -> 8,298,280.28
A15: Revenus
A16: 40 Revenus fiscaux | B16: ='4.1 Comptes 2024 natures'!BC77 -> 259,321,538.43
A17: 41 Revenus de patentes et de concessions | B17: ='4.1 Comptes 2024 natures'!BC83 -> 1,132,032.10
A18: 42 Taxes | B18: ='4.1 Comptes 2024 natures'!BC89 -> 103,504,571.97
A19: 43 Revenus divers | B19: ='4.1 Comptes 2024 natures'!BC100 -> 4,611,399.65
A20: 44 Revenus financiers | B20: ='4.1 Comptes 2024 natures'!BC106 -> 19,051,461.92
A21: 45 Prélèvements sur les financements spéciaux | B21: ='4.1 Comptes 2024 natures'!BC118 -> 2,709,368.31
A22: 46 Revenus de transfert | B22: ='4.1 Comptes 2024 natures'!BC122 -> 66,464,723.64
A23: 47 Subventions à redistribuer | B23: ='4.1 Comptes 2024 natures'!BC129 -> 3,246,637.50
A24: 48 Revenus extraordinaires | B24: ='4.1 Comptes 2024 natures'!BC132 -> 3,615,148.99
A25: 49 Imputations internes | B25: ='4.1 Comptes 2024 natures'!BC141 -> 8,289,880.18

Sheet Résultats par commune (hidden)
A1: Clôture du compte de résutlats global par commune (90)
A3: Communes | B3: Résultat général | C3: Résultat FS | D3: Résultat global | E3: Résultat par hab. | F3: Attribution R.P.B | G3: Prélèvement R.P.B
B4: Compte 900 | C4: Compte 901 | D4: Compte 90 | E4: Compte 90 par hab. | F4: Compte 389 | G4: Compte 489
A5: Boécourt | B5: ='4.1 Comptes 2024 natures'!E155 -> 32,723.24 | C5: ='4.1 Comptes 2024 natures'!E156 -> 103,612.45 | D5: ='4.1 Comptes 2024 natures'!E154 -> 136,335.69 | E5: ='4.9 Comptes 2024 par habitant'!E154 -> 141.87 | F5: ='4.1 Comptes 2024 natures'!E63 -> 0.00 | G5: ='4.1 Comptes 2024 natures'!E139 -> 7,905.29
A6: Bourrignon | B6: ='4.1 Comptes 2024 natures'!F155 -> -2,170.01 | C6: ='4.1 Comptes 2024 natures'!F156 -> 42,414.79 | D6: ='4.1 Comptes 2024 natures'!F154 -> 40,244.78 | E6: ='4.9 Comptes 2024 par habitant'!F154 -> 153.02 | F6: ='4.1 Comptes 2024 natures'!F63 -> 0.00 | G6: ='4.1 Comptes 2024 natures'!F139 -> 0.00
A7: Châtillon | B7: ='4.1 Comptes 2024 natures'!G155 -> -192,123.55 | C7: ='4.1 Comptes 2024 natures'!G156 -> 78,525.05 | D7: ='4.1 Comptes 2024 natures'!G154 -> -113,598.50 | E7: ='4.9 Comptes 2024 par habitant'!G154 -> -239.15 | F7: ='4.1 Comptes 2024 natures'!G63 -> 0.00 | G7: ='4.1 Comptes 2024 natures'!G139 -> 0.00
A8: Courchapoix | B8: ='4.1 Comptes 2024 natures'!H155 -> 18,230.22 | C8: ='4.1 Comptes 2024 natures'!H156 -> 3,657.59 | D8: ='4.1 Comptes 2024 natures'!H154 -> 21,887.81 | E8: ='4.9 Comptes 2024 par habitant'!H154 -> 48.75 | F8: ='4.1 Comptes 2024 natures'!H63 -> 0.00 | G8: ='4.1 Comptes 2024 natures'!H139 -> 2,572.45
A9: Courrendlin | B9: ='4.1 Comptes 2024 natures'!I155 -> 21,004.33 | C9: ='4.1 Comptes 2024 natures'!I156 -> 333,518.16 | D9: ='4.1 Comptes 2024 natures'!I154 -> 354,522.49 | E9: ='4.9 Comptes 2024 par habitant'!I154 -> 96.15 | F9: ='4.1 Comptes 2024 natures'!I63 -> 610,000.00 | G9: ='4.1 Comptes 2024 natures'!I139 -> 14,968.25
A10: Courroux | B10: ='4.1 Comptes 2024 natures'!J155 -> 162,638.14 | C10: ='4.1 Comptes 2024 natures'!J156 -> -110,534.48 | D10: ='4.1 Comptes 2024 natures'!J154 -> 52,103.66 | E10: ='4.9 Comptes 2024 par habitant'!J154 -> 15.13 | F10: ='4.1 Comptes 2024 natures'!J63 -> 0.00 | G10: ='4.1 Comptes 2024 natures'!J139 -> 0.00
A11: Courtételle | B11: ='4.1 Comptes 2024 natures'!K155 -> -247,867.12 | C11: ='4.1 Comptes 2024 natures'!K156 -> 215,640.37 | D11: ='4.1 Comptes 2024 natures'!K154 -> -32,226.75 | E11: ='4.9 Comptes 2024 par habitant'!K154 -> -11.56 | F11: ='4.1 Comptes 2024 natures'!K63 -> 0.00 | G11: ='4.1 Comptes 2024 natures'!K139 -> 14,467.75
A12: Delémont | B12: ='4.1 Comptes 2024 natures'!L155 -> 5,177,998.41 | C12: ='4.1 Comptes 2024 natures'!L156 -> 1,368,516.22 | D12: ='4.1 Comptes 2024 natures'!L154 -> 6,546,514.63 | E12: ='4.9 Comptes 2024 par habitant'!L154 -> 510.93 | F12: ='4.1 Comptes 2024 natures'!L63 -> 0.00 | G12: ='4.1 Comptes 2024 natures'!L139 -> 70,244.00
A13: Develier | B13: ='4.1 Comptes 2024 natures'!M155 -> -177,051.96 | C13: ='4.1 Comptes 2024 natures'!M156 -> 135,524.80 | D13: ='4.1 Comptes 2024 natures'!M154 -> -41,527.16 | E13: ='4.9 Comptes 2024 par habitant'!M154 -> -29.81 | F13: ='4.1 Comptes 2024 natures'!M63 -> 0.00 | G13: ='4.1 Comptes 2024 natures'!M139 -> 10,700.00
A14: Ederswiler | B14: ='4.1 Comptes 2024 natures'!N155 -> 292.31 | C14: ='4.1 Comptes 2024 natures'!N156 -> -10,024.84 | D14: ='4.1 Comptes 2024 natures'!N154 -> -9,732.53 | E14: ='4.9 Comptes 2024 par habitant'!N154 -> -84.63 | F14: ='4.1 Comptes 2024 natures'!N63 -> 0.00 | G14: ='4.1 Comptes 2024 natures'!N139 -> 0.00
A15: Haute-Sorne | B15: ='4.1 Comptes 2024 natures'!O155 -> 976,090.13 | C15: ='4.1 Comptes 2024 natures'!O156 -> 324,767.72 | D15: ='4.1 Comptes 2024 natures'!O154 -> 1,300,857.85 | E15: ='4.9 Comptes 2024 par habitant'!O154 -> 174.54 | F15: ='4.1 Comptes 2024 natures'!O63 -> 832,100.00 | G15: ='4.1 Comptes 2024 natures'!O139 -> 63,099.54
A16: Mervelier | B16: ='4.1 Comptes 2024 natures'!P155 -> 70,942.47 | C16: ='4.1 Comptes 2024 natures'!P156 -> 89,919.19 | D16: ='4.1 Comptes 2024 natures'!P154 -> 160,861.66 | E16: ='4.9 Comptes 2024 par habitant'!P154 -> 305.82 | F16: ='4.1 Comptes 2024 natures'!P63 -> 0.00 | G16: ='4.1 Comptes 2024 natures'!P139 -> 3,001.30
A17: Mettembert | B17: ='4.1 Comptes 2024 natures'!Q155 -> -53,582.05 | C17: ='4.1 Comptes 2024 natures'!Q156 -> 10,105.80 | D17: ='4.1 Comptes 2024 natures'!Q154 -> -43,476.25 | E17: ='4.9 Comptes 2024 par habitant'!Q154 -> -388.18 | F17: ='4.1 Comptes 2024 natures'!Q63 -> 0.00 | G17: ='4.1 Comptes 2024 natures'!Q139 -> 15,000.00
A18: Movelier | B18: ='4.1 Comptes 2024 natures'!R155 -> -155,034.05 | C18: ='4.1 Comptes 2024 natures'!R156 -> -30,172.71 | D18: ='4.1 Comptes 2024 natures'!R154 -> -185,206.76 | E18: ='4.9 Comptes 2024 par habitant'!R154 -> -447.36 | F18: ='4.1 Comptes 2024 natures'!R63 -> 0.00 | G18: ='4.1 Comptes 2024 natures'!R139 -> 0.00
A19: Pleigne | B19: ='4.1 Comptes 2024 natures'!S155 -> 41,772.67 | C19: ='4.1 Comptes 2024 natures'!S156 -> -20,285.92 | D19: ='4.1 Comptes 2024 natures'!S154 -> 21,486.75 | E19: ='4.9 Comptes 2024 par habitant'!S154 -> 58.87 | F19: ='4.1 Comptes 2024 natures'!S63 -> 450,000.00 | G19: ='4.1 Comptes 2024 natures'!S139 -> 0.00
A20: Rossemaison | B20: ='4.1 Comptes 2024 natures'!T155 -> 50,752.03 | C20: ='4.1 Comptes 2024 natures'!T156 -> 29,582.96 | D20: ='4.1 Comptes 2024 natures'!T154 -> 80,334.99 | E20: ='4.9 Comptes 2024 par habitant'!T154 -> 108.56 | F20: ='4.1 Comptes 2024 natures'!T63 -> 1,400,000.00 | G20: ='4.1 Comptes 2024 natures'!T139 -> 8,700.00
A21: Saulcy | B21: ='4.1 Comptes 2024 natures'!U155 -> -44,574.54 | C21: ='4.1 Comptes 2024 natures'!U156 -> 30,443.43 | D21: ='4.1 Comptes 2024 natures'!U154 -> -14,131.11 | E21: ='4.9 Comptes 2024 par habitant'!U154 -> -51.01 | F21: ='4.1 Comptes 2024 natures'!U63 -> 0.00 | G21: ='4.1 Comptes 2024 natures'!U139 -> 667.55
A22: Soyhières | B22: ='4.1 Comptes 2024 natures'!V155 -> 53,635.71 | C22: ='4.1 Comptes 2024 natures'!V156 -> -1,862.65 | D22: ='4.1 Comptes 2024 natures'!V154 -> 51,773.06 | E22: ='4.9 Comptes 2024 par habitant'!V154 -> 114.29 | F22: ='4.1 Comptes 2024 natures'!V63 -> 30,000.00 | G22: ='4.1 Comptes 2024 natures'!V139 -> 0.00
A23: Val Terbi | B23: ='4.1 Comptes 2024 natures'!W155 -> 62,227.48 | C23: ='4.1 Comptes 2024 natures'!W156 -> 167,760.40 | D23: ='4.1 Comptes 2024 natures'!W154 -> 229,987.88 | E23: ='4.9 Comptes 2024 par habitant'!W154 -> 70.33 | F23: ='4.1 Comptes 2024 natures'!W63 -> 695,650.00 | G23: ='4.1 Comptes 2024 natures'!W139 -> 0.00
A24: Le Bémont | B24: ='4.1 Comptes 2024 natures'!X155 -> 34,361.58 | C24: ='4.1 Comptes 2024 natures'!X156 -> -24,710.25 | D24: ='4.1 Comptes 2024 natures'!X154 -> 9,651.33 | E24: ='4.9 Comptes 2024 par habitant'!X154 -> 31.34 | F24: ='4.1 Comptes 2024 natures'!X63 -> 100,000.00 | G24: ='4.1 Comptes 2024 natures'!X139 -> 0.00
A25: Les Bois | B25: ='4.1 Comptes 2024 natures'!Y155 -> 891,933.95 | C25: ='4.1 Comptes 2024 natures'!Y156 -> 215,474.68 | D25: ='4.1 Comptes 2024 natures'!Y154 -> 1,107,408.63 | E25: ='4.9 Comptes 2024 par habitant'!Y154 -> 890.20 | F25: ='4.1 Comptes 2024 natures'!Y63 -> 0.00 | G25: ='4.1 Comptes 2024 natures'!Y139 -> 0.00
A26: Les Breuleux | B26: ='4.1 Comptes 2024 natures'!Z155 -> 1,228,353.08 | C26: ='4.1 Comptes 2024 natures'!Z156 -> 195,570.05 | D26: ='4.1 Comptes 2024 natures'!Z154 -> 1,423,923.13 | E26: ='4.9 Comptes 2024 par habitant'!Z154 -> 875.18 | F26: ='4.1 Comptes 2024 natures'!Z63 -> 1,000,000.00 | G26: ='4.1 Comptes 2024 natures'!Z139 -> 0.00
A27: Les Enfers | B27: ='4.1 Comptes 2024 natures'!AA155 -> 28,176.98 | C27: ='4.1 Comptes 2024 natures'!AA156 -> 26,572.55 | D27: ='4.1 Comptes 2024 natures'!AA154 -> 54,749.53 | E27: ='4.9 Comptes 2024 par habitant'!AA154 -> 362.58 | F27: ='4.1 Comptes 2024 natures'!AA63 -> 65,000.00 | G27: ='4.1 Comptes 2024 natures'!AA139 -> 0.00
A28: Les Genevez | B28: ='4.1 Comptes 2024 natures'!AB155 -> 0.00 | C28: ='4.1 Comptes 2024 natures'!AB156 -> -120,138.51 | D28: ='4.1 Comptes 2024 natures'!AB154 -> -120,138.51 | E28: ='4.9 Comptes 2024 par habitant'!AB154 -> -232.83 | F28: ='4.1 Comptes 2024 natures'!AB63 -> 0.00 | G28: ='4.1 Comptes 2024 natures'!AB139 -> 85,000.00
A29: Lajoux | B29: ='4.1 Comptes 2024 natures'!AC155 -> -4,960.09 | C29: ='4.1 Comptes 2024 natures'!AC156 -> 19,834.18 | D29: ='4.1 Comptes 2024 natures'!AC154 -> 14,874.09 | E29: ='4.9 Comptes 2024 par habitant'!AC154 -> 20.66 | F29: ='4.1 Comptes 2024 natures'!AC63 -> 250,000.00 | G29: ='4.1 Comptes 2024 natures'!AC139 -> 0.00
A30: Montfaucon | B30: ='4.1 Comptes 2024 natures'!AD155 -> 169,417.60 | C30: ='4.1 Comptes 2024 natures'!AD156 -> 96,239.80 | D30: ='4.1 Comptes 2024 natures'!AD154 -> 265,657.40 | E30: ='4.9 Comptes 2024 par habitant'!AD154 -> 471.02 | F30: ='4.1 Comptes 2024 natures'!AD63 -> 135,000.00 | G30: ='4.1 Comptes 2024 natures'!AD139 -> 0.00
A31: Muriaux | B31: ='4.1 Comptes 2024 natures'!AE155 -> -48,613.72 | C31: ='4.1 Comptes 2024 natures'!AE156 -> 58,069.94 | D31: ='4.1 Comptes 2024 natures'!AE154 -> 9,456.22 | E31: ='4.9 Comptes 2024 par habitant'!AE154 -> 18.26 | F31: ='4.1 Comptes 2024 natures'!AE63 -> 0.00 | G31: ='4.1 Comptes 2024 natures'!AE139 -> 197,550.65
A32: Le Noirmont | B32: ='4.1 Comptes 2024 natures'!AF155 -> 3,148,278.18 | C32: ='4.1 Comptes 2024 natures'!AF156 -> -201,810.03 | D32: ='4.1 Comptes 2024 natures'!AF154 -> 2,946,468.15 | E32: ='4.9 Comptes 2024 par habitant'!AF154 -> 1,523.51 | F32: ='4.1 Comptes 2024 natures'!AF63 -> 1,000,000.00 | G32: ='4.1 Comptes 2024 natures'!AF139 -> 0.00
A33: Saignelégier | B33: ='4.1 Comptes 2024 natures'!AG155 -> 425,728.62 | C33: ='4.1 Comptes 2024 natures'!AG156 -> 411,953.36 | D33: ='4.1 Comptes 2024 natures'!AG154 -> 837,681.98 | E33: ='4.9 Comptes 2024 par habitant'!AG154 -> 330.97 | F33: ='4.1 Comptes 2024 natures'!AG63 -> 2,000,000.00 | G33: ='4.1 Comptes 2024 natures'!AG139 -> 0.00
A34: Saint-Brais | B34: ='4.1 Comptes 2024 natures'!AH155 -> 2,868.61 | C34: ='4.1 Comptes 2024 natures'!AH156 -> -5,946.01 | D34: ='4.1 Comptes 2024 natures'!AH154 -> -3,077.40 | E34: ='4.9 Comptes 2024 par habitant'!AH154 -> -12.98 | F34: ='4.1 Comptes 2024 natures'!AH63 -> 0.00 | G34: ='4.1 Comptes 2024 natures'!AH139 -> 0.00
A35: Soubey | B35: ='4.1 Comptes 2024 natures'!AI155 -> 5,500.12 | C35: ='4.1 Comptes 2024 natures'!AI156 -> 40,684.75 | D35: ='4.1 Comptes 2024 natures'!AI154 -> 46,184.87 | E35: ='4.9 Comptes 2024 par habitant'!AI154 -> 369.48 | F35: ='4.1 Comptes 2024 natures'!AI63 -> 15,000.00 | G35: ='4.1 Comptes 2024 natures'!AI139 -> 0.00
A36: Alle | B36: ='4.1 Comptes 2024 natures'!AJ155 -> 177,079.52 | C36: ='4.1 Comptes 2024 natures'!AJ156 -> 81,468.73 | D36: ='4.1 Comptes 2024 natures'!AJ154 -> 258,548.25 | E36: ='4.9 Comptes 2024 par habitant'!AJ154 -> 132.86 | F36: ='4.1 Comptes 2024 natures'!AJ63 -> 1,000,000.00 | G36: ='4.1 Comptes 2024 natures'!AJ139 -> 0.00
A37: La Baroche | B37: ='4.1 Comptes 2024 natures'!AK155 -> 14,244.46 | C37: ='4.1 Comptes 2024 natures'!AK156 -> 6,272.89 | D37: ='4.1 Comptes 2024 natures'!AK154 -> 20,517.35 | E37: ='4.9 Comptes 2024 par habitant'!AK154 -> 18.08 | F37: ='4.1 Comptes 2024 natures'!AK63 -> 87,002.46 | G37: ='4.1 Comptes 2024 natures'!AK139 -> 0.00
A38: Basse-Allaine | B38: ='4.1 Comptes 2024 natures'!AL155 -> 82,478.11 | C38: ='4.1 Comptes 2024 natures'!AL156 -> 51,761.20 | D38: ='4.1 Comptes 2024 natures'!AL154 -> 134,239.31 | E38: ='4.9 Comptes 2024 par habitant'!AL154 -> 112.15 | F38: ='4.1 Comptes 2024 natures'!AL63 -> 350,000.00 | G38: ='4.1 Comptes 2024 natures'!AL139 -> 0.00
A39: Basse-Vendline | B39: ='4.1 Comptes 2024 natures'!AM155 -> 233,883.72 | C39: ='4.1 Comptes 2024 natures'!AM156 -> -6,804.25 | D39: ='4.1 Comptes 2024 natures'!AM154 -> 227,079.47 | E39: ='4.9 Comptes 2024 par habitant'!AM154 -> 308.53 | F39: ='4.1 Comptes 2024 natures'!AM63 -> 0.00 | G39: ='4.1 Comptes 2024 natures'!AM139 -> 0.00
A40: Boncourt | B40: ='4.1 Comptes 2024 natures'!AN155 -> 450,029.45 | C40: ='4.1 Comptes 2024 natures'!AN156 -> 102,776.01 | D40: ='4.1 Comptes 2024 natures'!AN154 -> 552,805.46 | E40: ='4.9 Comptes 2024 par habitant'!AN154 -> 472.48 | F40: ='4.1 Comptes 2024 natures'!AN63 -> 1,400,000.00 | G40: ='4.1 Comptes 2024 natures'!AN139 -> 0.00
A41: Bure | B41: ='4.1 Comptes 2024 natures'!AO155 -> 137,524.69 | C41: ='4.1 Comptes 2024 natures'!AO156 -> -63,992.92 | D41: ='4.1 Comptes 2024 natures'!AO154 -> 73,531.77 | E41: ='4.9 Comptes 2024 par habitant'!AO154 -> 114.00 | F41: ='4.1 Comptes 2024 natures'!AO63 -> 110,000.00 | G41: ='4.1 Comptes 2024 natures'!AO139 -> 567.00
A42: Clos du Doubs | B42: ='4.1 Comptes 2024 natures'!AP155 -> 22,421.25 | C42: ='4.1 Comptes 2024 natures'!AP156 -> -99,174.55 | D42: ='4.1 Comptes 2024 natures'!AP154 -> -76,753.30 | E42: ='4.9 Comptes 2024 par habitant'!AP154 -> -58.86 | F42: ='4.1 Comptes 2024 natures'!AP63 -> 1,000,000.00 | G42: ='4.1 Comptes 2024 natures'!AP139 -> 1,000,000.00
A43: Coeuve | B43: ='4.1 Comptes 2024 natures'!AQ155 -> 77,138.99 | C43: ='4.1 Comptes 2024 natures'!AQ156 -> -69,690.04 | D43: ='4.1 Comptes 2024 natures'!AQ154 -> 7,448.95 | E43: ='4.9 Comptes 2024 par habitant'!AQ154 -> 10.39 | F43: ='4.1 Comptes 2024 natures'!AQ63 -> 150,000.00 | G43: ='4.1 Comptes 2024 natures'!AQ139 -> 0.00
A44: Cornol | B44: ='4.1 Comptes 2024 natures'!AR155 -> -36,451.42 | C44: ='4.1 Comptes 2024 natures'!AR156 -> 48,137.79 | D44: ='4.1 Comptes 2024 natures'!AR154 -> 11,686.37 | E44: ='4.9 Comptes 2024 par habitant'!AR154 -> 10.79 | F44: ='4.1 Comptes 2024 natures'!AR63 -> 0.00 | G44: ='4.1 Comptes 2024 natures'!AR139 -> 0.00
A45: Courchavon | B45: ='4.1 Comptes 2024 natures'!AS155 -> 118,134.73 | C45: ='4.1 Comptes 2024 natures'!AS156 -> 49,790.08 | D45: ='4.1 Comptes 2024 natures'!AS154 -> 167,924.81 | E45: ='4.9 Comptes 2024 par habitant'!AS154 -> 519.89 | F45: ='4.1 Comptes 2024 natures'!AS63 -> 220,000.00 | G45: ='4.1 Comptes 2024 natures'!AS139 -> 338.00
A46: Courgenay | B46: ='4.1 Comptes 2024 natures'!AT155 -> 172,836.65 | C46: ='4.1 Comptes 2024 natures'!AT156 -> 106,978.79 | D46: ='4.1 Comptes 2024 natures'!AT154 -> 279,815.44 | E46: ='4.9 Comptes 2024 par habitant'!AT154 -> 114.73 | F46: ='4.1 Comptes 2024 natures'!AT63 -> 550,000.00 | G46: ='4.1 Comptes 2024 natures'!AT139 -> 0.00
A47: Courtedoux | B47: ='4.1 Comptes 2024 natures'!AU155 -> -268,688.69 | C47: ='4.1 Comptes 2024 natures'!AU156 -> -1,724.48 | D47: ='4.1 Comptes 2024 natures'!AU154 -> -270,413.17 | E47: ='4.9 Comptes 2024 par habitant'!AU154 -> -355.34 | F47: ='4.1 Comptes 2024 natures'!AU63 -> 0.00 | G47: ='4.1 Comptes 2024 natures'!AU139 -> 633.00
A48: Damphreux-Lugnez | B48: ='4.1 Comptes 2024 natures'!AV155 -> 14,129.83 | C48: ='4.1 Comptes 2024 natures'!AV156 -> -37,826.40 | D48: ='4.1 Comptes 2024 natures'!AV154 -> -23,696.57 | E48: ='4.9 Comptes 2024 par habitant'!AV154 -> -64.04 | F48: ='4.1 Comptes 2024 natures'!AV63 -> 0.00 | G48: ='4.1 Comptes 2024 natures'!AV139 -> 442.00
A49: Fahy | B49: ='4.1 Comptes 2024 natures'!AW155 -> 99,021.92 | C49: ='4.1 Comptes 2024 natures'!AW156 -> 80,819.29 | D49: ='4.1 Comptes 2024 natures'!AW154 -> 179,841.21 | E49: ='4.9 Comptes 2024 par habitant'!AW154 -> 533.65 | F49: ='4.1 Comptes 2024 natures'!AW63 -> 0.00 | G49: ='4.1 Comptes 2024 natures'!AW139 -> 311.00
A50: Fontenais | B50: ='4.1 Comptes 2024 natures'!AX155 -> 17,714.54 | C50: ='4.1 Comptes 2024 natures'!AX156 -> 31,115.31 | D50: ='4.1 Comptes 2024 natures'!AX154 -> 48,829.85 | E50: ='4.9 Comptes 2024 par habitant'!AX154 -> 29.92 | F50: ='4.1 Comptes 2024 natures'!AX63 -> 0.00 | G50: ='4.1 Comptes 2024 natures'!AX139 -> 201,597.00
A51: Grandfontaine | B51: ='4.1 Comptes 2024 natures'!AY155 -> 20,150.17 | C51: ='4.1 Comptes 2024 natures'!AY156 -> 47,320.75 | D51: ='4.1 Comptes 2024 natures'!AY154 -> 67,470.92 | E51: ='4.9 Comptes 2024 par habitant'!AY154 -> 178.49 | F51: ='4.1 Comptes 2024 natures'!AY63 -> 50,000.00 | G51: ='4.1 Comptes 2024 natures'!AY139 -> 319.00
A52: Haute-Ajoie | B52: ='4.1 Comptes 2024 natures'!AZ155 -> 113,129.94 | C52: ='4.1 Comptes 2024 natures'!AZ156 -> -19,686.21 | D52: ='4.1 Comptes 2024 natures'!AZ154 -> 93,443.73 | E52: ='4.9 Comptes 2024 par habitant'!AZ154 -> 87.82 | F52: ='4.1 Comptes 2024 natures'!AZ63 -> 100,000.00 | G52: ='4.1 Comptes 2024 natures'!AZ139 -> 1,083.40
A53: Porrentruy | B53: ='4.1 Comptes 2024 natures'!BA155 -> 304,062.89 | C53: ='4.1 Comptes 2024 natures'!BA156 -> 312,932.71 | D53: ='4.1 Comptes 2024 natures'!BA154 -> 616,995.60 | E53: ='4.9 Comptes 2024 par habitant'!BA154 -> 93.85 | F53: ='4.1 Comptes 2024 natures'!BA63 -> 3,000,000.00 | G53: ='4.1 Comptes 2024 natures'!BA139 -> 0.00
A54: Vendlincourt | B54: ='4.1 Comptes 2024 natures'!BB155 -> 11,261.70 | C54: ='4.1 Comptes 2024 natures'!BB156 -> -26,744.37 | D54: ='4.1 Comptes 2024 natures'!BB154 -> -15,482.67 | E54: ='4.9 Comptes 2024 par habitant'!BB154 -> -27.80 | F54: ='4.1 Comptes 2024 natures'!BB63 -> 0.00 | G54: ='4.1 Comptes 2024 natures'!BB139 -> 0.00
A55: Total | B55: ='4.1 Comptes 2024 natures'!BC155 -> 13,437,051.22 | C55: ='4.1 Comptes 2024 natures'!BC156 -> 4,066,633.17 | D55: ='4.1 Comptes 2024 natures'!BC154 -> 17,503,684.39 | E55: ='4.9 Comptes 2024 par habitant'!BC154 -> 233.88 | F55: ='4.1 Comptes 2024 natures'!BC63 -> 16,599,752.46 | G55: ='4.1 Comptes 2024 natures'!BC139 -> 1,699,167.18
A56: District de Delémont | B56: ='4.1 Comptes 2024 natures'!BD155 -> 5,795,903.86 | C56: ='4.1 Comptes 2024 natures'!BD156 -> 2,761,108.33 | D56: ='4.1 Comptes 2024 natures'!BD154 -> 8,557,012.19 | E56: ='4.9 Comptes 2024 par habitant'!BD154 -> 213.94 | F56: ='4.1 Comptes 2024 natures'!BD63 -> 4,017,750.00 | G56: ='4.1 Comptes 2024 natures'!BD139 -> 211,326.13
A57: District des Franches-Montagnes | B57: ='4.1 Comptes 2024 natures'!BE155 -> 5,881,044.91 | C57: ='4.1 Comptes 2024 natures'!BE156 -> 711,794.51 | D57: ='4.1 Comptes 2024 natures'!BE154 -> 6,592,839.42 | E57: ='4.9 Comptes 2024 par habitant'!BE154 -> 629.39 | F57: ='4.1 Comptes 2024 natures'!BE63 -> 4,565,000.00 | G57: ='4.1 Comptes 2024 natures'!BE139 -> 282,550.65
A58: District de Porrentruy | B58: ='4.1 Comptes 2024 natures'!BF155 -> 1,760,102.45 | C58: ='4.1 Comptes 2024 natures'!BF156 -> 593,730.33 | D58: ='4.1 Comptes 2024 natures'!BF154 -> 2,353,832.78 | E58: ='4.9 Comptes 2024 par habitant'!BF154 -> 96.60 | F58: ='4.1 Comptes 2024 natures'!BF63 -> 8,017,002.46 | G58: ='4.1 Comptes 2024 natures'!BF139 -> 1,205,290.40

Sheet 4.9 Comptes 2024 par habitant (hidden)
A2: Comptes de résultats par natures 2024
E3: ='Base de données pop.'!C2 -> 961 | F3: ='Base de données pop.'!C3 -> 263 | G3: ='Base de données pop.'!C4 -> 475 | H3: ='Base de données pop.'!C5 -> 449 | I3: ='Base de données pop.'!C6 -> 3,687 | J3: ='Base de données pop.'!C7 -> 3,443 | K3: ='Base de données pop.'!C8 -> 2,788 | L3: ='Base de données pop.'!C9 -> 12,813 | M3: ='Base de données pop.'!C10 -> 1,393 | N3: ='Base de données pop.'!C11 -> 115 | O3: ='Base de données pop.'!C12 -> 7,453 | P3: ='Base de données pop.'!C13 -> 526 | Q3: ='Base de données pop.'!C14 -> 112 | R3: ='Base de données pop.'!C15 -> 414 | S3: ='Base de données pop.'!C16 -> 365 | T3: ='Base de données pop.'!C17 -> 740 | U3: ='Base de données pop.'!C18 -> 277 | V3: ='Base de données pop.'!C19 -> 453 | W3: ='Base de données pop.'!C20 -> 3,270 | X3: ='Base de données pop.'!C21 -> 308 | Y3: ='Base de données pop.'!C22 -> 1,244 | Z3: ='Base de données pop.'!C23 -> 1,627 | AA3: ='Base de données pop.'!C24 -> 151 | AB3: ='Base de données pop.'!C25 -> 516 | AC3: ='Base de données pop.'!C26 -> 720 | AD3: ='Base de données pop.'!C27 -> 564 | AE3: ='Base de données pop.'!C28 -> 518 | AF3: ='Base de données pop.'!C29 -> 1,934 | AG3: ='Base de données pop.'!C30 -> 2,531 | AH3: ='Base de données pop.'!C31 -> 237 | AI3: ='Base de données pop.'!C32 -> 125 | AJ3: ='Base de données pop.'!C33 -> 1,946 | AK3: ='Base de données pop.'!C34 -> 1,135 | AL3: ='Base de données pop.'!C35 -> 1,197 | AM3: ='Base de données pop.'!C36 -> 736 | AN3: ='Base de données pop.'!C37 -> 1,170 | AO3: ='Base de données pop.'!C38 -> 645 | AP3: ='Base de données pop.'!C39 -> 1,304 | AQ3: ='Base de données pop.'!C40 -> 717 | AR3: ='Base de données pop.'!C41 -> 1,083 | AS3: ='Base de données pop.'!C42 -> 323 | AT3: ='Base de données pop.'!C43 -> 2,439 | AU3: ='Base de données pop.'!C44 -> 761 | AV3: ='Base de données pop.'!C45 -> 370 | AW3: ='Base de données pop.'!C46 -> 337 | AX3: ='Base de données pop.'!C47 -> 1,632 | AY3: ='Base de données pop.'!C48 -> 378 | AZ3: ='Base de données pop.'!C49 -> 1,064 | BA3: ='Base de données pop.'!C50 -> 6,574 | BB3: ='Base de données pop.'!C51 -> 557 | BC3: =SUM(E3:BB3) -> 74,840 | BD3: =SUM(E3:W3) -> 39,997 | BE3: =SUM(X3:AI3) -> 10,475 | BF3: =SUM(AJ3:BB3) -> 24,368
E4: Boécourt | F4: Bourrignon | G4: Châtillon | H4: Courchapoix | I4: Courrendlin | J4: Courroux | K4: Courtételle | L4: Delémont | M4: Develier | N4: Ederswiler | O4: Haute-Sorne | P4: Mervelier | Q4: Mettembert | R4: Movelier | S4: Pleigne | T4: Rossemaison | U4: Saulcy | V4: Soyhières | W4: Val Terbi | X4: Le Bémont | Y4: Les Bois | Z4: Les Breuleux | AA4: Les Enfers | AB4: Les Genevez | AC4: Lajoux | AD4: Montfaucon | AE4: Muriaux | AF4: Le Noirmont | AG4: Saignelégier | AH4: Saint-Brais | AI4: Soubey | AJ4: Alle | AK4: La Baroche | AL4: Basse-Allaine | AM4: Basse-Vendline | AN4: Boncourt | AO4: Bure | AP4: Clos du Doubs | AQ4: Coeuve | AR4: Cornol | AS4: Courchavon | AT4: Courgenay | AU4: Courtedoux | AV4: Damphreux-Lugnez | AW4: Fahy | AX4: Fontenais | AY4: Grandfontaine | AZ4: Haute-Ajoie | BA4: Porrentruy | BB4: Vendlincourt | BC4: Total | BD4: Delémont | BE4: Franches-Montagnes | BF4: Porrentruy
A5: 3 | D5: Charges | E5: =E6+E16+E28+E32+E40+E44+E54+E57+E65 -> 4,287.57 | F5: =F6+F16+F28+F32+F40+F44+F54+F57+F65 -> 4,691.81 | G5: 3,637.93 | H5: 5,199.96 | I5: 4,843.11 | J5: 4,255.44 | K5: 4,728.86 | L5: 9,521.70 | M5: 6,697.46 | N5: 4,171.80 | O5: 4,277.74 | P5: 3,541.09 | Q5: 3,896.03 | R5: 4,294.23 | S5: 5,410.50 | T5: 6,050.10 | U5: 4,148.94 | V5: 7,058.78 | W5: 4,061.46 | X5: 6,303.48 | Y5: 5,114.89 | Z5: 11,106.28 | AA5: 6,087.24 | AB5: 5,924.05 | AC5: 5,161.36 | AD5: 5,590.25 | AE5: 7,012.24 | AF5: 5,742.23 | AG5: 5,678.43 | AH5: 5,021.83 | AI5: 5,739.88 | AJ5: 4,297.67 | AK5: 5,268.36 | AL5: 5,048.77 | AM5: 7,164.28 | AN5: 8,840.00 | AO5: 5,199.45 | AP5: 6,491.09 | AQ5: 5,183.74 | AR5: 4,400.78 | AS5: 5,288.84 | AT5: 4,653.85 | AU5: 4,823.41 | AV5: 4,235.62 | AW5: 3,937.78 | AX5: 4,660.04 | AY5: 5,114.09 | AZ5: 5,774.09 | BA5: 6,886.29 | BB5: 4,252.15 | BC5: 6,072.20 | BD5: 6,174.43 | BE5: 6,514.27 | BF5: 5,714.36
B6: 30 | D6: Charges du personnel | E6: =E7+E8+E9+E10+E11+E12+E13+E14 -> 530.09 | F6: =F7+F8+F9+F10+F11+F12+F13+F14 -> 173.36 | G6: 300.58 | H6: 734.24 | I6: 804.26 | J6: 937.26 | K6: 474.08 | L6: 1,924.56 | M6: 949.34 | N6: 556.09 | O6: 611.97 | P6: 428.14 | Q6: 588.80 | R6: 575.53 | S6: 403.47 | T6: 502.40 | U6: 426.18 | V6: 769.09 | W6: 776.75 | X6: 506.00 | Y6: 1,228.01 | Z6: 1,295.19 | AA6: 456.92 | AB6: 817.38 | AC6: 687.34 | AD6: 720.09 | AE6: 757.30 | AF6: 584.36 | AG6: 877.96 | AH6: 429.46 | AI6: 629.41 | AJ6: 404.53 | AK6: 578.71 | AL6: 506.66 | AM6: 1,463.94 | AN6: 1,217.18 | AO6: 408.60 | AP6: 1,123.92 | AQ6: 672.60 | AR6: 718.30 | AS6: 417.96 | AT6: 460.63 | AU6: 722.27 | AV6: 290.43 | AW6: 468.46 | AX6: 579.61 | AY6: 355.06 | AZ6: 1,254.31 | BA6: 1,745.16 | BB6: 635.77 | BC6: 1,017.73 | BD6: 1,080.16 | BE6: 869.46 | BF6: 979.00
C7: 300 | D7: Autorités et commissions | E7: ='4.1 Comptes 2024 natures'!E7/'4.1 Comptes 2024 natures'!E3 -> 42.67 | F7: ='4.1 Comptes 2024 natures'!F7/'4.1 Comptes 2024 natures'!F3 -> 61.58 | G7: ='4.1 Comptes 2024 natures'!G7/'4.1 Comptes 2024 natures'!G3 -> 72.37 | H7: ='4.1 Comptes 2024 natures'!H7/'4.1 Comptes 2024 natures'!H3 -> 121.52 | I7: ='4.1 Comptes 2024 natures'!I7/'4.1 Comptes 2024 natures'!I3 -> 40.75 | J7: ='4.1 Comptes 2024 natures'!J7/'4.1 Comptes 2024 natures'!J3 -> 43.18 | K7: ='4.1 Comptes 2024 natures'!K7/'4.1 Comptes 2024 natures'!K3 -> 59.09 | L7: ='4.1 Comptes 2024 natures'!L7/'4.1 Comptes 2024 natures'!L3 -> 53.44 | M7: ='4.1 Comptes 2024 natures'!M7/'4.1 Comptes 2024 natures'!M3 -> 45.29 | N7: ='4.1 Comptes 2024 natures'!N7/'4.1 Comptes 2024 natures'!N3 -> 156.27 | O7: ='4.1 Comptes 2024 natures'!O7/'4.1 Comptes 2024 natures'!O3 -> 55.50 | P7: ='4.1 Comptes 2024 natures'!P7/'4.1 Comptes 2024 natures'!P3 -> 107.16 | Q7: ='4.1 Comptes 2024 natures'!Q7/'4.1 Comptes 2024 natures'!Q3 -> 102.42 | R7: ='4.1 Comptes 2024 natures'!R7/'4.1 Comptes 2024 natures'!R3 -> 51.17 | S7: ='4.1 Comptes 2024 natures'!S7/'4.1 Comptes 2024 natures'!S3 -> 62.66 | T7: ='4.1 Comptes 2024 natures'!T7/'4.1 Comptes 2024 natures'!T3 -> 83.23 | U7: ='4.1 Comptes 2024 natures'!U7/'4.1 Comptes 2024 natures'!U3 -> 54.92 | V7: ='4.1 Comptes 2024 natures'!V7/'4.1 Comptes 2024 natures'!V3 -> 108.73 | W7: ='4.1 Comptes 2024 natures'!W7/'4.1 Comptes 2024 natures'!W3 -> 41.20 | X7: ='4.1 Comptes 2024 natures'!X7/'4.1 Comptes 2024 natures'!X3 -> 214.46 | Y7: ='4.1 Comptes 2024 natures'!Y7/'4.1 Comptes 2024 natures'!Y3 -> 60.42 | Z7: ='4.1 Comptes 2024 natures'!Z7/'4.1 Comptes 2024 natures'!Z3 -> 57.36 | AA7: ='4.1 Comptes 2024 natures'!AA7/'4.1 Comptes 2024 natures'!AA3 -> 74.23 | AB7: ='4.1 Comptes 2024 natures'!AB7/'4.1 Comptes 2024 natures'!AB3 -> 53.69 | AC7: ='4.1 Comptes 2024 natures'!AC7/'4.1 Comptes 2024 natures'!AC3 -> 42.02 | AD7: ='4.1 Comptes 2024 natures'!AD7/'4.1 Comptes 2024 natures'!AD3 -> 90.70 | AE7: ='4.1 Comptes 2024 natures'!AE7/'4.1 Comptes 2024 natures'!AE3 -> 70.12 | AF7: ='4.1 Comptes 2024 natures'!AF7/'4.1 Comptes 2024 natures'!AF3 -> 59.71 | AG7: ='4.1 Comptes 2024 natures'!AG7/'4.1 Comptes 2024 natures'!AG3 -> 44.38 | AH7: ='4.1 Comptes 2024 natures'!AH7/'4.1 Comptes 2024 natures'!AH3 -> 74.92 | AI7: ='4.1 Comptes 2024 natures'!AI7/'4.1 Comptes 2024 natures'!AI3 -> 124.12 | AJ7: ='4.1 Comptes 2024 natures'!AJ7/'4.1 Comptes 2024 natures'!AJ3 -> 47.17 | AK7: ='4.1 Comptes 2024 natures'!AK7/'4.1 Comptes 2024 natures'!AK3 -> 47.55 | AL7: ='4.1 Comptes 2024 natures'!AL7/'4.1 Comptes 2024 natures'!AL3 -> 42.80 | AM7: ='4.1 Comptes 2024 natures'!AM7/'4.1 Comptes 2024 natures'!AM3 -> 80.58 | AN7: ='4.1 Comptes 2024 natures'!AN7/'4.1 Comptes 2024 natures'!AN3 -> 72.77 | AO7: ='4.1 Comptes 2024 natures'!AO7/'4.1 Comptes 2024 natures'!AO3 -> 64.32 | AP7: ='4.1 Comptes 2024 natures'!AP7/'4.1 Comptes 2024 natures'!AP3 -> 60.86 | AQ7: ='4.1 Comptes 2024 natures'!AQ7/'4.1 Comptes 2024 natures'!AQ3 -> 59.83 | AR7: ='4.1 Comptes 2024 natures'!AR7/'4.1 Comptes 2024 natures'!AR3 -> 43.29 | AS7: ='4.1 Comptes 2024 natures'!AS7/'4.1 Comptes 2024 natures'!AS3 -> 51.90 | AT7: ='4.1 Comptes 2024 natures'!AT7/'4.1 Comptes 2024 natures'!AT3 -> 26.24 | AU7: ='4.1 Comptes 2024 natures'!AU7/'4.1 Comptes 2024 natures'!AU3 -> 78.83 | AV7: ='4.1 Comptes 2024 natures'!AV7/'4.1 Comptes 2024 natures'!AV3 -> 43.74 | AW7: ='4.1 Comptes 2024 natures'!AW7/'4.1 Comptes 2024 natures'!AW3 -> 40.07 | AX7: ='4.1 Comptes 2024 natures'!AX7/'4.1 Comptes 2024 natures'!AX3 -> 34.95 | AY7: ='4.1 Comptes 2024 natures'!AY7/'4.1 Comptes 2024 natures'!AY3 -> 49.96 | AZ7: ='4.1 Comptes 2024 natures'!AZ7/'4.1 Comptes 2024 natures'!AZ3 -> 47.53 | BA7: ='4.1 Comptes 2024 natures'!BA7/'4.1 Comptes 2024 natures'!BA3 -> 38.01 | BB7: ='4.1 Comptes 2024 natures'!BB7/'4.1 Comptes 2024 natures'!BB3 -> 48.27 | BC7: ='4.1 Comptes 2024 natures'!BC7/'4.1 Comptes 2024 natures'!BC3 -> 52.65 | BD7: ='4.1 Comptes 2024 natures'!BD7/'4.1 Comptes 2024 natures'!BD3 -> 54.05 | BE7: ='4.1 Comptes 2024 natures'!BE7/'4.1 Comptes 2024 natures'!BE3 -> 62.27 | BF7: ='4.1 Comptes 2024 natures'!BF7/'4.1 Comptes 2024 natures'!BF3 -> 46.20
C8: 301 | D8: Personnel administratif et d'exploitation | E8: ='4.1 Comptes 2024 natures'!E8/'4.1 Comptes 2024 natures'!E3 -> 411.18 | F8: ='4.1 Comptes 2024 natures'!F8/'4.1 Comptes 2024 natures'!F3 -> 99.55 | G8: ='4.1 Comptes 2024 natures'!G8/'4.1 Comptes 2024 natures'!G3 -> 187.77 | H8: ='4.1 Comptes 2024 natures'!H8/'4.1 Comptes 2024 natures'!H3 -> 495.13 | I8: ='4.1 Comptes 2024 natures'!I8/'4.1 Comptes 2024 natures'!I3 -> 614.09 | J8: ='4.1 Comptes 2024 natures'!J8/'4.1 Comptes 2024 natures'!J3 -> 712.93 | K8: ='4.1 Comptes 2024 natures'!K8/'4.1 Comptes 2024 natures'!K3 -> 320.41 | L8: ='4.1 Comptes 2024 natures'!L8/'4.1 Comptes 2024 natures'!L3 -> 1,538.55 | M8: ='4.1 Comptes 2024 natures'!M8/'4.1 Comptes 2024 natures'!M3 -> 751.53 | N8: ='4.1 Comptes 2024 natures'!N8/'4.1 Comptes 2024 natures'!N3 -> 314.82 | O8: ='4.1 Comptes 2024 natures'!O8/'4.1 Comptes 2024 natures'!O3 -> 448.22 | P8: ='4.1 Comptes 2024 natures'!P8/'4.1 Comptes 2024 natures'!P3 -> 272.47 | Q8: ='4.1 Comptes 2024 natures'!Q8/'4.1 Comptes 2024 natures'!Q3 -> 391.99 | R8: ='4.1 Comptes 2024 natures'!R8/'4.1 Comptes 2024 natures'!R3 -> 427.29 | S8: ='4.1 Comptes 2024 natures'!S8/'4.1 Comptes 2024 natures'!S3 -> 277.30 | T8: ='4.1 Comptes 2024 natures'!T8/'4.1 Comptes 2024 natures'!T3 -> 327.27 | U8: ='4.1 Comptes 2024 natures'!U8/'4.1 Comptes 2024 natures'!U3 -> 313.47 | V8: ='4.1 Comptes 2024 natures'!V8/'4.1 Comptes 2024 natures'!V3 -> 536.65 | W8: ='4.1 Comptes 2024 natures'!W8/'4.1 Comptes 2024 natures'!W3 -> 606.67 | X8: ='4.1 Comptes 2024 natures'!X8/'4.1 Comptes 2024 natures'!X3 -> 238.25 | Y8: ='4.1 Comptes 2024 natures'!Y8/'4.1 Comptes 2024 natures'!Y3 -> 969.02 | Z8: ='4.1 Comptes 2024 natures'!Z8/'4.1 Comptes 2024 natures'!Z3 -> 1,015.62 | AA8: ='4.1 Comptes 2024 natures'!AA8/'4.1 Comptes 2024 natures'!AA3 -> 332.17 | AB8: ='4.1 Comptes 2024 natures'!AB8/'4.1 Comptes 2024 natures'!AB3 -> 609.04 | AC8: ='4.1 Comptes 2024 natures'!AC8/'4.1 Comptes 2024 natures'!AC3 -> 554.25 | AD8: ='4.1 Comptes 2024 natures'!AD8/'4.1 Comptes 2024 natures'!AD3 -> 502.93 | AE8: ='4.1 Comptes 2024 natures'!AE8/'4.1 Comptes 2024 natures'!AE3 -> 569.32 | AF8: ='4.1 Comptes 2024 natures'!AF8/'4.1 Comptes 2024 natures'!AF3 -> 407.28 | AG8: ='4.1 Comptes 2024 natures'!AG8/'4.1 Comptes 2024 natures'!AG3 -> 697.62 | AH8: ='4.1 Comptes 2024 natures'!AH8/'4.1 Comptes 2024 natures'!AH3 -> 293.96 | AI8: ='4.1 Comptes 2024 natures'!AI8/'4.1 Comptes 2024 natures'!AI3 -> 424.58 | AJ8: ='4.1 Comptes 2024 natures'!AJ8/'4.1 Comptes 2024 natures'!AJ3 -> 303.60 | AK8: ='4.1 Comptes 2024 natures'!AK8/'4.1 Comptes 2024 natures'!AK3 -> 438.17 | AL8: ='4.1 Comptes 2024 natures'!AL8/'4.1 Comptes 2024 natures'!AL3 -> 386.40 | AM8: ='4.1 Comptes 2024 natures'!AM8/'4.1 Comptes 2024 natures'!AM3 -> 1,159.04 | AN8: ='4.1 Comptes 2024 natures'!AN8/'4.1 Comptes 2024 natures'!AN3 -> 952.04 | AO8: ='4.1 Comptes 2024 natures'!AO8/'4.1 Comptes 2024 natures'!AO3 -> 278.47 | AP8: ='4.1 Comptes 2024 natures'!AP8/'4.1 Comptes 2024 natures'!AP3 -> 885.22 | AQ8: ='4.1 Comptes 2024 natures'!AQ8/'4.1 Comptes 2024 natures'!AQ3 -> 486.60 | AR8: ='4.1 Comptes 2024 natures'!AR8/'4.1 Comptes 2024 natures'!AR3 -> 564.92 | AS8: ='4.1 Comptes 2024 natures'!AS8/'4.1 Comptes 2024 natures'!AS3 -> 311.64 | AT8: ='4.1 Comptes 2024 natures'!AT8/'4.1 Comptes 2024 natures'!AT3 -> 342.64 | AU8: ='4.1 Comptes 2024 natures'!AU8/'4.1 Comptes 2024 natures'!AU3 -> 536.23 | AV8: ='4.1 Comptes 2024 natures'!AV8/'4.1 Comptes 2024 natures'!AV3 -> 199.50 | AW8: ='4.1 Comptes 2024 natures'!AW8/'4.1 Comptes 2024 natures'!AW3 -> 354.05 | AX8: ='4.1 Comptes 2024 natures'!AX8/'4.1 Comptes 2024 natures'!AX3 -> 440.86 | AY8: ='4.1 Comptes 2024 natures'!AY8/'4.1 Comptes 2024 natures'!AY3 -> 243.44 | AZ8: ='4.1 Comptes 2024 natures'!AZ8/'4.1 Comptes 2024 natures'!AZ3 -> 977.80 | BA8: ='4.1 Comptes 2024 natures'!BA8/'4.1 Comptes 2024 natures'!BA3 -> 1,387.65 | BB8: ='4.1 Comptes 2024 natures'!BB8/'4.1 Comptes 2024 natures'!BB3 -> 482.32 | BC8: ='4.1 Comptes 2024 natures'!BC8/'4.1 Comptes 2024 natures'!BC3 -> 788.96 | BD8: ='4.1 Comptes 2024 natures'!BD8/'4.1 Comptes 2024 natures'!BD3 -> 837.64 | BE8: ='4.1 Comptes 2024 natures'!BE8/'4.1 Comptes 2024 natures'!BE3 -> 663.43 | BF8: ='4.1 Comptes 2024 natures'!BF8/'4.1 Comptes 2024 natures'!BF3 -> 763.00
C9: 302 | D9: Enseignants | E9: ='4.1 Comptes 2024 natures'!E9/'4.1 Comptes 2024 natures'!E3 -> 0.00 | F9: ='4.1 Comptes 2024 natures'!F9/'4.1 Comptes 2024 natures'!F3 -> 0.00 | G9: ='4.1 Comptes 2024 natures'!G9/'4.1 Comptes 2024 natures'!G3 -> 0.00 | H9: ='4.1 Comptes 2024 natures'!H9/'4.1 Comptes 2024 natures'!H3 -> 0.00 | I9: ='4.1 Comptes 2024 natures'!I9/'4.1 Comptes 2024 natures'!I3 -> 0.00 | J9: ='4.1 Comptes 2024 natures'!J9/'4.1 Comptes 2024 natures'!J3 -> 0.00 | K9: ='4.1 Comptes 2024 natures'!K9/'4.1 Comptes 2024 natures'!K3 -> 0.00 | L9: ='4.1 Comptes 2024 natures'!L9/'4.1 Comptes 2024 natures'!L3 -> 0.00 | M9: ='4.1 Comptes 2024 natures'!M9/'4.1 Comptes 2024 natures'!M3 -> 0.00 | N9: ='4.1 Comptes 2024 natures'!N9/'4.1 Comptes 2024 natures'!N3 -> 0.00 | O9: ='4.1 Comptes 2024 natures'!O9/'4.1 Comptes 2024 natures'!O3 -> 0.00 | P9: ='4.1 Comptes 2024 natures'!P9/'4.1 Comptes 2024 natures'!P3 -> 0.00 | Q9: ='4.1 Comptes 2024 natures'!Q9/'4.1 Comptes 2024 natures'!Q3 -> 0.00 | R9: ='4.1 Comptes 2024 natures'!R9/'4.1 Comptes 2024 natures'!R3 -> 0.00 | S9: ='4.1 Comptes 2024 natures'!S9/'4.1 Comptes 2024 natures'!S3 -> 0.00 | T9: ='4.1 Comptes 2024 natures'!T9/'4.1 Comptes 2024 natures'!T3 -> 0.00 | U9: ='4.1 Comptes 2024 natures'!U9/'4.1 Comptes 2024 natures'!U3 -> 0.00 | V9: ='4.1 Comptes 2024 natures'!V9/'4.1 Comptes 2024 natures'!V3 -> 110.06 | W9: ='4.1 Comptes 2024 natures'!W9/'4.1 Comptes 2024 natures'!W3 -> 0.00 | X9: ='4.1 Comptes 2024 natures'!X9/'4.1 Comptes 2024 natures'!X3 -> 0.00 | Y9: ='4.1 Comptes 2024 natures'!Y9/'4.1 Comptes 2024 natures'!Y3 -> 0.00 | Z9: ='4.1 Comptes 2024 natures'!Z9/'4.1 Comptes 2024 natures'!Z3 -> 0.00 | AA9: ='4.1 Comptes 2024 natures'!AA9/'4.1 Comptes 2024 natures'!AA3 -> 0.00 | AB9: ='4.1 Comptes 2024 natures'!AB9/'4.1 Comptes 2024 natures'!AB3 -> 0.00 | AC9: ='4.1 Comptes 2024 natures'!AC9/'4.1 Comptes 2024 natures'!AC3 -> 0.00 | AD9: ='4.1 Comptes 2024 natures'!AD9/'4.1 Comptes 2024 natures'!AD3 -> 0.00 | AE9: ='4.1 Comptes 2024 natures'!AE9/'4.1 Comptes 2024 natures'!AE3 -> 0.00 | AF9: ='4.1 Comptes 2024 natures'!AF9/'4.1 Comptes 2024 natures'!AF3 -> 2.70 | AG9: ='4.1 Comptes 2024 natures'!AG9/'4.1 Comptes 2024 natures'!AG3 -> 0.00 | AH9: ='4.1 Comptes 2024 natures'!AH9/'4.1 Comptes 2024 natures'!AH3 -> 0.00 | AI9: ='4.1 Comptes 2024 natures'!AI9/'4.1 Comptes 2024 natures'!AI3 -> 0.00 | AJ9: ='4.1 Comptes 2024 natures'!AJ9/'4.1 Comptes 2024 natures'!AJ3 -> 0.00 | AK9: ='4.1 Comptes 2024 natures'!AK9/'4.1 Comptes 2024 natures'!AK3 -> 0.00 | AL9: ='4.1 Comptes 2024 natures'!AL9/'4.1 Comptes 2024 natures'!AL3 -> 0.00 | AM9: ='4.1 Comptes 2024 natures'!AM9/'4.1 Comptes 2024 natures'!AM3 -> 0.00 | AN9: ='4.1 Comptes 2024 natures'!AN9/'4.1 Comptes 2024 natures'!AN3 -> 0.00 | AO9: ='4.1 Comptes 2024 natures'!AO9/'4.1 Comptes 2024 natures'!AO3 -> 0.00 | AP9: ='4.1 Comptes 2024 natures'!AP9/'4.1 Comptes 2024 natures'!AP3 -> 0.00 | AQ9: ='4.1 Comptes 2024 natures'!AQ9/'4.1 Comptes 2024 natures'!AQ3 -> 0.00 | AR9: ='4.1 Comptes 2024 natures'!AR9/'4.1 Comptes 2024 natures'!AR3 -> 0.00 | AS9: ='4.1 Comptes 2024 natures'!AS9/'4.1 Comptes 2024 natures'!AS3 -> 0.00 | AT9: ='4.1 Comptes 2024 natures'!AT9/'4.1 Comptes 2024 natures'!AT3 -> 0.00 | AU9: ='4.1 Comptes 2024 natures'!AU9/'4.1 Comptes 2024 natures'!AU3 -> 0.00 | AV9: ='4.1 Comptes 2024 natures'!AV9/'4.1 Comptes 2024 natures'!AV3 -> 0.00 | AW9: ='4.1 Comptes 2024 natures'!AW9/'4.1 Comptes 2024 natures'!AW3 -> 0.00 | AX9: ='4.1 Comptes 2024 natures'!AX9/'4.1 Comptes 2024 natures'!AX3 -> 0.00 | AY9: ='4.1 Comptes 2024 natures'!AY9/'4.1 Comptes 2024 natures'!AY3 -> 0.00 | AZ9: ='4.1 Comptes 2024 natures'!AZ9/'4.1 Comptes 2024 natures'!AZ3 -> 0.00 | BA9: ='4.1 Comptes 2024 natures'!BA9/'4.1 Comptes 2024 natures'!BA3 -> 0.00 | BB9: ='4.1 Comptes 2024 natures'!BB9/'4.1 Comptes 2024 natures'!BB3 -> 0.00 | BC9: ='4.1 Comptes 2024 natures'!BC9/'4.1 Comptes 2024 natures'!BC3 -> 0.74 | BD9: ='4.1 Comptes 2024 natures'!BD9/'4.1 Comptes 2024 natures'!BD3 -> 1.25 | BE9: ='4.1 Comptes 2024 natures'!BE9/'4.1 Comptes 2024 natures'!BE3 -> 0.50 | BF9: ='4.1 Comptes 2024 natures'!BF9/'4.1 Comptes 2024 natures'!BF3 -> 0.00
C10: 303 | D10: Personnel temporaire administratif et d'exploitation | E10: ='4.1 Comptes 2024 natures'!E10/'4.1 Comptes 2024 natures'!E3 -> 0.00 | F10: ='4.1 Comptes 2024 natures'!F10/'4.1 Comptes 2024 natures'!F3 -> 0.00 | G10: ='4.1 Comptes 2024 natures'!G10/'4.1 Comptes 2024 natures'!G3 -> 0.00 | H10: ='4.1 Comptes 2024 natures'!H10/'4.1 Comptes 2024 natures'!H3 -> 0.00 | I10: ='4.1 Comptes 2024 natures'!I10/'4.1 Comptes 2024 natures'!I3 -> 0.00 | J10: ='4.1 Comptes 2024 natures'!J10/'4.1 Comptes 2024 natures'!J3 -> 0.00 | K10: ='4.1 Comptes 2024 natures'!K10/'4.1 Comptes 2024 natures'!K3 -> 0.00 | L10: ='4.1 Comptes 2024 natures'!L10/'4.1 Comptes 2024 natures'!L3 -> 0.00 | M10: ='4.1 Comptes 2024 natures'!M10/'4.1 Comptes 2024 natures'!M3 -> 2.57 | N10: ='4.1 Comptes 2024 natures'!N10/'4.1 Comptes 2024 natures'!N3 -> 0.00 | O10: ='4.1 Comptes 2024 natures'!O10/'4.1 Comptes 2024 natures'!O3 -> 1.90 | P10: ='4.1 Comptes 2024 natures'!P10/'4.1 Comptes 2024 natures'!P3 -> 0.00 | Q10: ='4.1 Comptes 2024 natures'!Q10/'4.1 Comptes 2024 natures'!Q3 -> 0.00 | R10: ='4.1 Comptes 2024 natures'!R10/'4.1 Comptes 2024 natures'!R3 -> 0.00 | S10: ='4.1 Comptes 2024 natures'!S10/'4.1 Comptes 2024 natures'!S3 -> 0.14 | T10: ='4.1 Comptes 2024 natures'!T10/'4.1 Comptes 2024 natures'!T3 -> 0.00 | U10: ='4.1 Comptes 2024 natures'!U10/'4.1 Comptes 2024 natures'!U3 -> 0.00 | V10: ='4.1 Comptes 2024 natures'!V10/'4.1 Comptes 2024 natures'!V3 -> 0.00 | W10: ='4.1 Comptes 2024 natures'!W10/'4.1 Comptes 2024 natures'!W3 -> 0.00 | X10: ='4.1 Comptes 2024 natures'!X10/'4.1 Comptes 2024 natures'!X3 -> 0.00 | Y10: ='4.1 Comptes 2024 natures'!Y10/'4.1 Comptes 2024 natures'!Y3 -> 0.00 | Z10: ='4.1 Comptes 2024 natures'!Z10/'4.1 Comptes 2024 natures'!Z3 -> 0.00 | AA10: ='4.1 Comptes 2024 natures'!AA10/'4.1 Comptes 2024 natures'!AA3 -> 0.00 | AB10: ='4.1 Comptes 2024 natures'!AB10/'4.1 Comptes 2024 natures'!AB3 -> 0.00 | AC10: ='4.1 Comptes 2024 natures'!AC10/'4.1 Comptes 2024 natures'!AC3 -> 0.00 | AD10: ='4.1 Comptes 2024 natures'!AD10/'4.1 Comptes 2024 natures'!AD3 -> 0.00 | AE10: ='4.1 Comptes 2024 natures'!AE10/'4.1 Comptes 2024 natures'!AE3 -> 0.00 | AF10: ='4.1 Comptes 2024 natures'!AF10/'4.1 Comptes 2024 natures'!AF3 -> 0.00 | AG10: ='4.1 Comptes 2024 natures'!AG10/'4.1 Comptes 2024 natures'!AG3 -> 0.00 | AH10: ='4.1 Comptes 2024 natures'!AH10/'4.1 Comptes 2024 natures'!AH3 -> 0.00 | AI10: ='4.1 Comptes 2024 natures'!AI10/'4.1 Comptes 2024 natures'!AI3 -> 1.70 | AJ10: ='4.1 Comptes 2024 natures'!AJ10/'4.1 Comptes 2024 natures'!AJ3 -> 0.00 | AK10: ='4.1 Comptes 2024 natures'!AK10/'4.1 Comptes 2024 natures'!AK3 -> 0.00 | AL10: ='4.1 Comptes 2024 natures'!AL10/'4.1 Comptes 2024 natures'!AL3 -> 2.14 | AM10: ='4.1 Comptes 2024 natures'!AM10/'4.1 Comptes 2024 natures'!AM3 -> 0.00 | AN10: ='4.1 Comptes 2024 natures'!AN10/'4.1 Comptes 2024 natures'!AN3 -> 0.00 | AO10: ='4.1 Comptes 2024 natures'!AO10/'4.1 Comptes 2024 natures'!AO3 -> 0.00 | AP10: ='4.1 Comptes 2024 natures'!AP10/'4.1 Comptes 2024 natures'!AP3 -> 0.00 | AQ10: ='4.1 Comptes 2024 natures'!AQ10/'4.1 Comptes 2024 natures'!AQ3 -> 8.35 | AR10: ='4.1 Comptes 2024 natures'!AR10/'4.1 Comptes 2024 natures'!AR3 -> 0.00 | AS10: ='4.1 Comptes 2024 natures'!AS10/'4.1 Comptes 2024 natures'!AS3 -> 0.00 | AT10: ='4.1 Comptes 2024 natures'!AT10/'4.1 Comptes 2024 natures'!AT3 -> 0.00 | AU10: ='4.1 Comptes 2024 natures'!AU10/'4.1 Comptes 2024 natures'!AU3 -> 0.31 | AV10: ='4.1 Comptes 2024 natures'!AV10/'4.1 Comptes 2024 natures'!AV3 -> 0.00 | AW10: ='4.1 Comptes 2024 natures'!AW10/'4.1 Comptes 2024 natures'!AW3 -> 0.00 | AX10: ='4.1 Comptes 2024 natures'!AX10/'4.1 Comptes 2024 natures'!AX3 -> 0.00 | AY10: ='4.1 Comptes 2024 natures'!AY10/'4.1 Comptes 2024 natures'!AY3 -> 0.00 | AZ10: ='4.1 Comptes 2024 natures'!AZ10/'4.1 Comptes 2024 natures'!AZ3 -> 0.00 | BA10: ='4.1 Comptes 2024 natures'!BA10/'4.1 Comptes 2024 natures'!BA3 -> 0.00 | BB10: ='4.1 Comptes 2024 natures'!BB10/'4.1 Comptes 2024 natures'!BB3 -> 0.00 | BC10: ='4.1 Comptes 2024 natures'!BC10/'4.1 Comptes 2024 natures'!BC3 -> 0.36 | BD10: ='4.1 Comptes 2024 natures'!BD10/'4.1 Comptes 2024 natures'!BD3 -> 0.44 | BE10: ='4.1 Comptes 2024 natures'!BE10/'4.1 Comptes 2024 natures'!BE3 -> 0.02 | BF10: ='4.1 Comptes 2024 natures'!BF10/'4.1 Comptes 2024 natures'!BF3 -> 0.36
C11: 304 | D11: Allocations et indemnités | E11: ='4.1 Comptes 2024 natures'!E11/'4.1 Comptes 2024 natures'!E3 -> 0.00 | F11: ='4.1 Comptes 2024 natures'!F11/'4.1 Comptes 2024 natures'!F3 -> 0.00 | G11: ='4.1 Comptes 2024 natures'!G11/'4.1 Comptes 2024 natures'!G3 -> 0.00 | H11: ='4.1 Comptes 2024 natures'!H11/'4.1 Comptes 2024 natures'!H3 -> 0.00 | I11: ='4.1 Comptes 2024 natures'!I11/'4.1 Comptes 2024 natures'!I3 -> 0.00 | J11: ='4.1 Comptes 2024 natures'!J11/'4.1 Comptes 2024 natures'!J3 -> 4.68 | K11: ='4.1 Comptes 2024 natures'!K11/'4.1 Comptes 2024 natures'!K3 -> 0.00 | L11: ='4.1 Comptes 2024 natures'!L11/'4.1 Comptes 2024 natures'!L3 -> 0.00 | M11: ='4.1 Comptes 2024 natures'!M11/'4.1 Comptes 2024 natures'!M3 -> 0.00 | N11: ='4.1 Comptes 2024 natures'!N11/'4.1 Comptes 2024 natures'!N3 -> 0.00 | O11: ='4.1 Comptes 2024 natures'!O11/'4.1 Comptes 2024 natures'!O3 -> 0.00 | P11: ='4.1 Comptes 2024 natures'!P11/'4.1 Comptes 2024 natures'!P3 -> 0.00 | Q11: ='4.1 Comptes 2024 natures'!Q11/'4.1 Comptes 2024 natures'!Q3 -> 0.00 | R11: ='4.1 Comptes 2024 natures'!R11/'4.1 Comptes 2024 natures'!R3 -> 0.00 | S11: ='4.1 Comptes 2024 natures'!S11/'4.1 Comptes 2024 natures'!S3 -> 0.00 | T11: ='4.1 Comptes 2024 natures'!T11/'4.1 Comptes 2024 natures'!T3 -> 0.00 | U11: ='4.1 Comptes 2024 natures'!U11/'4.1 Comptes 2024 natures'!U3 -> 0.00 | V11: ='4.1 Comptes 2024 natures'!V11/'4.1 Comptes 2024 natures'!V3 -> 0.00 | W11: ='4.1 Comptes 2024 natures'!W11/'4.1 Comptes 2024 natures'!W3 -> 0.00 | X11: ='4.1 Comptes 2024 natures'!X11/'4.1 Comptes 2024 natures'!X3 -> 0.00 | Y11: ='4.1 Comptes 2024 natures'!Y11/'4.1 Comptes 2024 natures'!Y3 -> 0.00 | Z11: ='4.1 Comptes 2024 natures'!Z11/'4.1 Comptes 2024 natures'!Z3 -> 0.00 | AA11: ='4.1 Comptes 2024 natures'!AA11/'4.1 Comptes 2024 natures'!AA3 -> 0.00 | AB11: ='4.1 Comptes 2024 natures'!AB11/'4.1 Comptes 2024 natures'!AB3 -> 0.00 | AC11: ='4.1 Comptes 2024 natures'!AC11/'4.1 Comptes 2024 natures'!AC3 -> 0.00 | AD11: ='4.1 Comptes 2024 natures'!AD11/'4.1 Comptes 2024 natures'!AD3 -> 0.00 | AE11: ='4.1 Comptes 2024 natures'!AE11/'4.1 Comptes 2024 natures'!AE3 -> 0.00 | AF11: ='4.1 Comptes 2024 natures'!AF11/'4.1 Comptes 2024 natures'!AF3 -> 0.00 | AG11: ='4.1 Comptes 2024 natures'!AG11/'4.1 Comptes 2024 natures'!AG3 -> -0.59 | AH11: ='4.1 Comptes 2024 natures'!AH11/'4.1 Comptes 2024 natures'!AH3 -> 0.00 | AI11: ='4.1 Comptes 2024 natures'!AI11/'4.1 Comptes 2024 natures'!AI3 -> 0.00 | AJ11: ='4.1 Comptes 2024 natures'!AJ11/'4.1 Comptes 2024 natures'!AJ3 -> 0.00 | AK11: ='4.1 Comptes 2024 natures'!AK11/'4.1 Comptes 2024 natures'!AK3 -> 0.00 | AL11: ='4.1 Comptes 2024 natures'!AL11/'4.1 Comptes 2024 natures'!AL3 -> 0.00 | AM11: ='4.1 Comptes 2024 natures'!AM11/'4.1 Comptes 2024 natures'!AM3 -> 0.00 | AN11: ='4.1 Comptes 2024 natures'!AN11/'4.1 Comptes 2024 natures'!AN3 -> 0.00 | AO11: ='4.1 Comptes 2024 natures'!AO11/'4.1 Comptes 2024 natures'!AO3 -> 0.00 | AP11: ='4.1 Comptes 2024 natures'!AP11/'4.1 Comptes 2024 natures'!AP3 -> 0.00 | AQ11: ='4.1 Comptes 2024 natures'!AQ11/'4.1 Comptes 2024 natures'!AQ3 -> 0.00 | AR11: ='4.1 Comptes 2024 natures'!AR11/'4.1 Comptes 2024 natures'!AR3 -> 1.75 | AS11: ='4.1 Comptes 2024 natures'!AS11/'4.1 Comptes 2024 natures'!AS3 -> 0.00 | AT11: ='4.1 Comptes 2024 natures'!AT11/'4.1 Comptes 2024 natures'!AT3 -> 0.00 | AU11: ='4.1 Comptes 2024 natures'!AU11/'4.1 Comptes 2024 natures'!AU3 -> 0.00 | AV11: ='4.1 Comptes 2024 natures'!AV11/'4.1 Comptes 2024 natures'!AV3 -> 0.00 | AW11: ='4.1 Comptes 2024 natures'!AW11/'4.1 Comptes 2024 natures'!AW3 -> 0.00 | AX11: ='4.1 Comptes 2024 natures'!AX11/'4.1 Comptes 2024 natures'!AX3 -> 0.00 | AY11: ='4.1 Comptes 2024 natures'!AY11/'4.1 Comptes 2024 natures'!AY3 -> 0.00 | AZ11: ='4.1 Comptes 2024 natures'!AZ11/'4.1 Comptes 2024 natures'!AZ3 -> 0.00 | BA11: ='4.1 Comptes 2024 natures'!BA11/'4.1 Comptes 2024 natures'!BA3 -> 0.00 | BB11: ='4.1 Comptes 2024 natures'!BB11/'4.1 Comptes 2024 natures'!BB3 -> 0.00 | BC11: ='4.1 Comptes 2024 natures'!BC11/'4.1 Comptes 2024 natures'!BC3 -> 0.22 | BD11: ='4.1 Comptes 2024 natures'!BD11/'4.1 Comptes 2024 natures'!BD3 -> 0.40 | BE11: ='4.1 Comptes 2024 natures'!BE11/'4.1 Comptes 2024 natures'!BE3 -> -0.14 | BF11: ='4.1 Comptes 2024 natures'!BF11/'4.1 Comptes 2024 natures'!BF3 -> 0.08
C12: 305 | D12: Charges de l'employeur | E12: ='4.1 Comptes 2024 natures'!E12/'4.1 Comptes 2024 natures'!E3 -> 73.67 | F12: ='4.1 Comptes 2024 natures'!F12/'4.1 Comptes 2024 natures'!F3 -> 10.89 | G12: ='4.1 Comptes 2024 natures'!G12/'4.1 Comptes 2024 natures'!G3 -> 34.83 | H12: ='4.1 Comptes 2024 natures'!H12/'4.1 Comptes 2024 natures'!H3 -> 110.12 | I12: ='4.1 Comptes 2024 natures'!I12/'4.1 Comptes 2024 natures'!I3 -> 144.56 | J12: ='4.1 Comptes 2024 natures'!J12/'4.1 Comptes 2024 natures'!J3 -> 170.26 | K12: ='4.1 Comptes 2024 natures'!K12/'4.1 Comptes 2024 natures'!K3 -> 81.24 | L12: ='4.1 Comptes 2024 natures'!L12/'4.1 Comptes 2024 natures'!L3 -> 311.63 | M12: ='4.1 Comptes 2024 natures'!M12/'4.1 Comptes 2024 natures'!M3 -> 128.21 | N12: ='4.1 Comptes 2024 natures'!N12/'4.1 Comptes 2024 natures'!N3 -> 50.14 | O12: ='4.1 Comptes 2024 natures'!O12/'4.1 Comptes 2024 natures'!O3 -> 99.53 | P12: ='4.1 Comptes 2024 natures'!P12/'4.1 Comptes 2024 natures'!P3 -> 41.28 | Q12: ='4.1 Comptes 2024 natures'!Q12/'4.1 Comptes 2024 natures'!Q3 -> 78.50 | R12: ='4.1 Comptes 2024 natures'!R12/'4.1 Comptes 2024 natures'!R3 -> 88.78 | S12: ='4.1 Comptes 2024 natures'!S12/'4.1 Comptes 2024 natures'!S3 -> 55.00 | T12: ='4.1 Comptes 2024 natures'!T12/'4.1 Comptes 2024 natures'!T3 -> 62.28 | U12: ='4.1 Comptes 2024 natures'!U12/'4.1 Comptes 2024 natures'!U3 -> 51.00 | V12: ='4.1 Comptes 2024 natures'!V12/'4.1 Comptes 2024 natures'!V3 -> 0.00 | W12: ='4.1 Comptes 2024 natures'!W12/'4.1 Comptes 2024 natures'!W3 -> 121.24 | X12: ='4.1 Comptes 2024 natures'!X12/'4.1 Comptes 2024 natures'!X3 -> 39.99 | Y12: ='4.1 Comptes 2024 natures'!Y12/'4.1 Comptes 2024 natures'!Y3 -> 170.38 | Z12: ='4.1 Comptes 2024 natures'!Z12/'4.1 Comptes 2024 natures'!Z3 -> 191.73 | AA12: ='4.1 Comptes 2024 natures'!AA12/'4.1 Comptes 2024 natures'!AA3 -> 49.02 | AB12: ='4.1 Comptes 2024 natures'!AB12/'4.1 Comptes 2024 natures'!AB3 -> 130.89 | AC12: ='4.1 Comptes 2024 natures'!AC12/'4.1 Comptes 2024 natures'!AC3 -> 70.27 | AD12: ='4.1 Comptes 2024 natures'!AD12/'4.1 Comptes 2024 natures'!AD3 -> 95.70 | AE12: ='4.1 Comptes 2024 natures'!AE12/'4.1 Comptes 2024 natures'!AE3 -> 102.51 | AF12: ='4.1 Comptes 2024 natures'!AF12/'4.1 Comptes 2024 natures'!AF3 -> 94.84 | AG12: ='4.1 Comptes 2024 natures'!AG12/'4.1 Comptes 2024 natures'!AG3 -> 131.57 | AH12: ='4.1 Comptes 2024 natures'!AH12/'4.1 Comptes 2024 natures'!AH3 -> 48.08 | AI12: ='4.1 Comptes 2024 natures'!AI12/'4.1 Comptes 2024 natures'!AI3 -> 77.19 | AJ12: ='4.1 Comptes 2024 natures'!AJ12/'4.1 Comptes 2024 natures'!AJ3 -> 49.43 | AK12: ='4.1 Comptes 2024 natures'!AK12/'4.1 Comptes 2024 natures'!AK3 -> 88.12 | AL12: ='4.1 Comptes 2024 natures'!AL12/'4.1 Comptes 2024 natures'!AL3 -> 72.23 | AM12: ='4.1 Comptes 2024 natures'!AM12/'4.1 Comptes 2024 natures'!AM3 -> 214.54 | AN12: ='4.1 Comptes 2024 natures'!AN12/'4.1 Comptes 2024 natures'!AN3 -> 180.01 | AO12: ='4.1 Comptes 2024 natures'!AO12/'4.1 Comptes 2024 natures'!AO3 -> 56.33 | AP12: ='4.1 Comptes 2024 natures'!AP12/'4.1 Comptes 2024 natures'!AP3 -> 167.95 | AQ12: ='4.1 Comptes 2024 natures'!AQ12/'4.1 Comptes 2024 natures'!AQ3 -> 114.38 | AR12: ='4.1 Comptes 2024 natures'!AR12/'4.1 Comptes 2024 natures'!AR3 -> 103.78 | AS12: ='4.1 Comptes 2024 natures'!AS12/'4.1 Comptes 2024 natures'!AS3 -> 44.62 | AT12: ='4.1 Comptes 2024 natures'!AT12/'4.1 Comptes 2024 natures'!AT3 -> 85.96 | AU12: ='4.1 Comptes 2024 natures'!AU12/'4.1 Comptes 2024 natures'!AU3 -> 98.97 | AV12: ='4.1 Comptes 2024 natures'!AV12/'4.1 Comptes 2024 natures'!AV3 -> 43.68 | AW12: ='4.1 Comptes 2024 natures'!AW12/'4.1 Comptes 2024 natures'!AW3 -> 69.68 | AX12: ='4.1 Comptes 2024 natures'!AX12/'4.1 Comptes 2024 natures'!AX3 -> 98.17 | AY12: ='4.1 Comptes 2024 natures'!AY12/'4.1 Comptes 2024 natures'!AY3 -> 56.27 | AZ12: ='4.1 Comptes 2024 natures'!AZ12/'4.1 Comptes 2024 natures'!AZ3 -> 208.91 | BA12: ='4.1 Comptes 2024 natures'!BA12/'4.1 Comptes 2024 natures'!BA3 -> 309.15 | BB12: ='4.1 Comptes 2024 natures'!BB12/'4.1 Comptes 2024 natures'!BB3 -> 101.73 | BC12: ='4.1 Comptes 2024 natures'!BC12/'4.1 Comptes 2024 natures'!BC3 -> 162.85 | BD12: ='4.1 Comptes 2024 natures'!BD12/'4.1 Comptes 2024 natures'!BD3 -> 173.73 | BE12: ='4.1 Comptes 2024 natures'!BE12/'4.1 Comptes 2024 natures'!BE3 -> 124.71 | BF12: ='4.1 Comptes 2024 natures'!BF12/'4.1 Comptes 2024 natures'!BF3 -> 161.39
C13: 306 | D13: Prestations sociales de l'employeur | E13: ='4.1 Comptes 2024 natures'!E13/'4.1 Comptes 2024 natures'!E3 -> 0.00 | F13: ='4.1 Comptes 2024 natures'!F13/'4.1 Comptes 2024 natures'!F3 -> 0.00 | G13: ='4.1 Comptes 2024 natures'!G13/'4.1 Comptes 2024 natures'!G3 -> 0.00 | H13: ='4.1 Comptes 2024 natures'!H13/'4.1 Comptes 2024 natures'!H3 -> 0.00 | I13: ='4.1 Comptes 2024 natures'!I13/'4.1 Comptes 2024 natures'!I3 -> 0.20 | J13: ='4.1 Comptes 2024 natures'!J13/'4.1 Comptes 2024 natures'!J3 -> 0.00 | K13: ='4.1 Comptes 2024 natures'!K13/'4.1 Comptes 2024 natures'!K3 -> 0.00 | L13: ='4.1 Comptes 2024 natures'!L13/'4.1 Comptes 2024 natures'!L3 -> 3.34 | M13: ='4.1 Comptes 2024 natures'!M13/'4.1 Comptes 2024 natures'!M3 -> 0.00 | N13: ='4.1 Comptes 2024 natures'!N13/'4.1 Comptes 2024 natures'!N3 -> 0.00 | O13: ='4.1 Comptes 2024 natures'!O13/'4.1 Comptes 2024 natures'!O3 -> 0.00 | P13: ='4.1 Comptes 2024 natures'!P13/'4.1 Comptes 2024 natures'!P3 -> 0.00 | Q13: ='4.1 Comptes 2024 natures'!Q13/'4.1 Comptes 2024 natures'!Q3 -> 0.00 | R13: ='4.1 Comptes 2024 natures'!R13/'4.1 Comptes 2024 natures'!R3 -> 0.00 | S13: ='4.1 Comptes 2024 natures'!S13/'4.1 Comptes 2024 natures'!S3 -> 0.00 | T13: ='4.1 Comptes 2024 natures'!T13/'4.1 Comptes 2024 natures'!T3 -> 0.00 | U13: ='4.1 Comptes 2024 natures'!U13/'4.1 Comptes 2024 natures'!U3 -> 0.00 | V13: ='4.1 Comptes 2024 natures'!V13/'4.1 Comptes 2024 natures'!V3 -> 0.00 | W13: ='4.1 Comptes 2024 natures'!W13/'4.1 Comptes 2024 natures'!W3 -> 0.00 | X13: ='4.1 Comptes 2024 natures'!X13/'4.1 Comptes 2024 natures'!X3 -> 0.00 | Y13: ='4.1 Comptes 2024 natures'!Y13/'4.1 Comptes 2024 natures'!Y3 -> 0.00 | Z13: ='4.1 Comptes 2024 natures'!Z13/'4.1 Comptes 2024 natures'!Z3 -> 0.31 | AA13: ='4.1 Comptes 2024 natures'!AA13/'4.1 Comptes 2024 natures'!AA3 -> 0.00 | AB13: ='4.1 Comptes 2024 natures'!AB13/'4.1 Comptes 2024 natures'!AB3 -> 0.00 | AC13: ='4.1 Comptes 2024 natures'!AC13/'4.1 Comptes 2024 natures'!AC3 -> 0.00 | AD13: ='4.1 Comptes 2024 natures'!AD13/'4.1 Comptes 2024 natures'!AD3 -> 21.28 | AE13: ='4.1 Comptes 2024 natures'!AE13/'4.1 Comptes 2024 natures'!AE3 -> 0.00 | AF13: ='4.1 Comptes 2024 natures'!AF13/'4.1 Comptes 2024 natures'!AF3 -> 0.00 | AG13: ='4.1 Comptes 2024 natures'!AG13/'4.1 Comptes 2024 natures'!AG3 -> 0.00 | AH13: ='4.1 Comptes 2024 natures'!AH13/'4.1 Comptes 2024 natures'!AH3 -> 0.00 | AI13: ='4.1 Comptes 2024 natures'!AI13/'4.1 Comptes 2024 natures'!AI3 -> 0.00 | AJ13: ='4.1 Comptes 2024 natures'!AJ13/'4.1 Comptes 2024 natures'!AJ3 -> 0.00 | AK13: ='4.1 Comptes 2024 natures'!AK13/'4.1 Comptes 2024 natures'!AK3 -> 0.00 | AL13: ='4.1 Comptes 2024 natures'!AL13/'4.1 Comptes 2024 natures'!AL3 -> 0.00 | AM13: ='4.1 Comptes 2024 natures'!AM13/'4.1 Comptes 2024 natures'!AM3 -> 0.00 | AN13: ='4.1 Comptes 2024 natures'!AN13/'4.1 Comptes 2024 natures'!AN3 -> 0.00 | AO13: ='4.1 Comptes 2024 natures'!AO13/'4.1 Comptes 2024 natures'!AO3 -> 0.00 | AP13: ='4.1 Comptes 2024 natures'!AP13/'4.1 Comptes 2024 natures'!AP3 -> 0.00 | AQ13: ='4.1 Comptes 2024 natures'!AQ13/'4.1 Comptes 2024 natures'!AQ3 -> 0.00 | AR13: ='4.1 Comptes 2024 natures'!AR13/'4.1 Comptes 2024 natures'!AR3 -> 0.00 | AS13: ='4.1 Comptes 2024 natures'!AS13/'4.1 Comptes 2024 natures'!AS3 -> 0.00 | AT13: ='4.1 Comptes 2024 natures'!AT13/'4.1 Comptes 2024 natures'!AT3 -> 0.00 | AU13: ='4.1 Comptes 2024 natures'!AU13/'4.1 Comptes 2024 natures'!AU3 -> 0.00 | AV13: ='4.1 Comptes 2024 natures'!AV13/'4.1 Comptes 2024 natures'!AV3 -> 0.00 | AW13: ='4.1 Comptes 2024 natures'!AW13/'4.1 Comptes 2024 natures'!AW3 -> 0.00 | AX13: ='4.1 Comptes 2024 natures'!AX13/'4.1 Comptes 2024 natures'!AX3 -> 0.00 | AY13: ='4.1 Comptes 2024 natures'!AY13/'4.1 Comptes 2024 natures'!AY3 -> 0.00 | AZ13: ='4.1 Comptes 2024 natures'!AZ13/'4.1 Comptes 2024 natures'!AZ3 -> 0.00 | BA13: ='4.1 Comptes 2024 natures'!BA13/'4.1 Comptes 2024 natures'!BA3 -> 0.00 | BB13: ='4.1 Comptes 2024 natures'!BB13/'4.1 Comptes 2024 natures'!BB3 -> 0.00 | BC13: ='4.1 Comptes 2024 natures'!BC13/'4.1 Comptes 2024 natures'!BC3 -> 0.75 | BD13: ='4.1 Comptes 2024 natures'!BD13/'4.1 Comptes 2024 natures'!BD3 -> 1.09 | BE13: ='4.1 Comptes 2024 natures'!BE13/'4.1 Comptes 2024 natures'!BE3 -> 1.19 | BF13: ='4.1 Comptes 2024 natures'!BF13/'4.1 Comptes 2024 natures'!BF3 -> 0.00
C14: 309 | D14: Autres charges du personnel | E14: ='4.1 Comptes 2024 natures'!E14/'4.1 Comptes 2024 natures'!E3 -> 2.57 | F14: ='4.1 Comptes 2024 natures'!F14/'4.1 Comptes 2024 natures'!F3 -> 1.34 | G14: ='4.1 Comptes 2024 natures'!G14/'4.1 Comptes 2024 natures'!G3 -> 5.61 | H14: ='4.1 Comptes 2024 natures'!H14/'4.1 Comptes 2024 natures'!H3 -> 7.48 | I14: ='4.1 Comptes 2024 natures'!I14/'4.1 Comptes 2024 natures'!I3 -> 4.66 | J14: ='4.1 Comptes 2024 natures'!J14/'4.1 Comptes 2024 natures'!J3 -> 6.21 | K14: ='4.1 Comptes 2024 natures'!K14/'4.1 Comptes 2024 natures'!K3 -> 13.33 | L14: ='4.1 Comptes 2024 natures'!L14/'4.1 Comptes 2024 natures'!L3 -> 17.59 | M14: ='4.1 Comptes 2024 natures'!M14/'4.1 Comptes 2024 natures'!M3 -> 21.73 | N14: ='4.1 Comptes 2024 natures'!N14/'4.1 Comptes 2024 natures'!N3 -> 34.87 | O14: ='4.1 Comptes 2024 natures'!O14/'4.1 Comptes 2024 natures'!O3 -> 6.82 | P14: ='4.1 Comptes 2024 natures'!P14/'4.1 Comptes 2024 natures'!P3 -> 7.23 | Q14: ='4.1 Comptes 2024 natures'!Q14/'4.1 Comptes 2024 natures'!Q3 -> 15.89 | R14: ='4.1 Comptes 2024 natures'!R14/'4.1 Comptes 2024 natures'!R3 -> 8.28 | S14: ='4.1 Comptes 2024 natures'!S14/'4.1 Comptes 2024 natures'!S3 -> 8.37 | T14: ='4.1 Comptes 2024 natures'!T14/'4.1 Comptes 2024 natures'!T3 -> 29.63 | U14: ='4.1 Comptes 2024 natures'!U14/'4.1 Comptes 2024 natures'!U3 -> 6.80 | V14: ='4.1 Comptes 2024 natures'!V14/'4.1 Comptes 2024 natures'!V3 -> 13.65 | W14: ='4.1 Comptes 2024 natures'!W14/'4.1 Comptes 2024 natures'!W3 -> 7.64 | X14: ='4.1 Comptes 2024 natures'!X14/'4.1 Comptes 2024 natures'!X3 -> 13.30 | Y14: ='4.1 Comptes 2024 natures'!Y14/'4.1 Comptes 2024 natures'!Y3 -> 28.19 | Z14: ='4.1 Comptes 2024 natures'!Z14/'4.1 Comptes 2024 natures'!Z3 -> 30.17 | AA14: ='4.1 Comptes 2024 natures'!AA14/'4.1 Comptes 2024 natures'!AA3 -> 1.50 | AB14: ='4.1 Comptes 2024 natures'!AB14/'4.1 Comptes 2024 natures'!AB3 -> 23.76 | AC14: ='4.1 Comptes 2024 natures'!AC14/'4.1 Comptes 2024 natures'!AC3 -> 20.80 | AD14: ='4.1 Comptes 2024 natures'!AD14/'4.1 Comptes 2024 natures'!AD3 -> 9.49 | AE14: ='4.1 Comptes 2024 natures'!AE14/'4.1 Comptes 2024 natures'!AE3 -> 15.34 | AF14: ='4.1 Comptes 2024 natures'!AF14/'4.1 Comptes 2024 natures'!AF3 -> 19.83 | AG14: ='4.1 Comptes 2024 natures'!AG14/'4.1 Comptes 2024 natures'!AG3 -> 4.98 | AH14: ='4.1 Comptes 2024 natures'!AH14/'4.1 Comptes 2024 natures'!AH3 -> 12.49 | AI14: ='4.1 Comptes 2024 natures'!AI14/'4.1 Comptes 2024 natures'!AI3 -> 1.81 | AJ14: ='4.1 Comptes 2024 natures'!AJ14/'4.1 Comptes 2024 natures'!AJ3 -> 4.32 | AK14: ='4.1 Comptes 2024 natures'!AK14/'4.1 Comptes 2024 natures'!AK3 -> 4.87 | AL14: ='4.1 Comptes 2024 natures'!AL14/'4.1 Comptes 2024 natures'!AL3 -> 3.08 | AM14: ='4.1 Comptes 2024 natures'!AM14/'4.1 Comptes 2024 natures'!AM3 -> 9.79 | AN14: ='4.1 Comptes 2024 natures'!AN14/'4.1 Comptes 2024 natures'!AN3 -> 12.36 | AO14: ='4.1 Comptes 2024 natures'!AO14/'4.1 Comptes 2024 natures'!AO3 -> 9.48 | AP14: ='4.1 Comptes 2024 natures'!AP14/'4.1 Comptes 2024 natures'!AP3 -> 9.88 | AQ14: ='4.1 Comptes 2024 natures'!AQ14/'4.1 Comptes 2024 natures'!AQ3 -> 3.44 | AR14: ='4.1 Comptes 2024 natures'!AR14/'4.1 Comptes 2024 natures'!AR3 -> 4.55 | AS14: ='4.1 Comptes 2024 natures'!AS14/'4.1 Comptes 2024 natures'!AS3 -> 9.80 | AT14: ='4.1 Comptes 2024 natures'!AT14/'4.1 Comptes 2024 natures'!AT3 -> 5.78 | AU14: ='4.1 Comptes 2024 natures'!AU14/'4.1 Comptes 2024 natures'!AU3 -> 7.93 | AV14: ='4.1 Comptes 2024 natures'!AV14/'4.1 Comptes 2024 natures'!AV3 -> 3.50 | AW14: ='4.1 Comptes 2024 natures'!AW14/'4.1 Comptes 2024 natures'!AW3 -> 4.65 | AX14: ='4.1 Comptes 2024 natures'!AX14/'4.1 Comptes 2024 natures'!AX3 -> 5.63 | AY14: ='4.1 Comptes 2024 natures'!AY14/'4.1 Comptes 2024 natures'!AY3 -> 5.39 | AZ14: ='4.1 Comptes 2024 natures'!AZ14/'4.1 Comptes 2024 natures'!AZ3 -> 20.06 | BA14: ='4.1 Comptes 2024 natures'!BA14/'4.1 Comptes 2024 natures'!BA3 -> 10.35 | BB14: ='4.1 Comptes 2024 natures'!BB14/'4.1 Comptes 2024 natures'!BB3 -> 3.45 | BC14: ='4.1 Comptes 2024 natures'!BC14/'4.1 Comptes 2024 natures'!BC3 -> 11.22 | BD14: ='4.1 Comptes 2024 natures'!BD14/'4.1 Comptes 2024 natures'!BD3 -> 11.55 | BE14: ='4.1 Comptes 2024 natures'!BE14/'4.1 Comptes 2024 natures'!BE3 -> 17.49 | BF14: ='4.1 Comptes 2024 natures'!BF14/'4.1 Comptes 2024 natures'!BF3 -> 7.98
B16: 31 | D16: Charges de biens et de services et autres charges d'exploitation | E16: =E17+E18+E19+E20+E21+E22+E23+E24+E25+E26 -> 591.33 | F16: =F17+F18+F19+F20+F21+F22+F23+F24+F25+F26 -> 796.09 | G16: 423.83 | H16: 1,275.91 | I16: 985.06 | J16: 769.15 | K16: 656.08 | L16: 2,967.60 | M16: 2,392.76 | N16: 781.27 | O16: 676.89 | P16: 657.10 | Q16: 530.09 | R16: 588.66 | S16: 685.34 | T16: 1,098.12 | U16: 796.92 | V16: 1,485.94 | W16: 597.52 | X16: 1,440.89 | Y16: 1,165.33 | Z16: 1,774.66 | AA16: 1,135.07 | AB16: 1,508.05 | AC16: 1,088.06 | AD16: 1,307.05 | AE16: 1,676.00 | AF16: 1,084.50 | AG16: 1,174.06 | AH16: 1,569.01 | AI16: 1,578.28 | AJ16: 658.24 | AK16: 1,329.19 | AL16: 959.30 | AM16: 1,517.37 | AN16: 1,519.86 | AO16: 897.39 | AP16: 1,478.82 | AQ16: 933.45 | AR16: 821.01 | AS16: 1,005.75 | AT16: 745.04 | AU16: 766.21 | AV16: 962.73 | AW16: 970.01 | AX16: 849.91 | AY16: 1,224.56 | AZ16: 1,026.56 | BA16: 1,058.96 | BB16: 723.86 | BC16: 1,323.93 | BD16: 1,517.91 | BE16: 1,313.34 | BF16: 1,010.08
C17: 310 | D17: Charges de matériel et de marchandises | E17: ='4.1 Comptes 2024 natures'!E17/'4.1 Comptes 2024 natures'!E3 -> 61.38 | F17: ='4.1 Comptes 2024 natures'!F17/'4.1 Comptes 2024 natures'!F3 -> 46.56 | G17: ='4.1 Comptes 2024 natures'!G17/'4.1 Comptes 2024 natures'!G3 -> 35.27 | H17: ='4.1 Comptes 2024 natures'!H17/'4.1 Comptes 2024 natures'!H3 -> 73.55 | I17: ='4.1 Comptes 2024 natures'!I17/'4.1 Comptes 2024 natures'!I3 -> 99.39 | J17: ='4.1 Comptes 2024 natures'!J17/'4.1 Comptes 2024 natures'!J3 -> 92.96 | K17: ='4.1 Comptes 2024 natures'!K17/'4.1 Comptes 2024 natures'!K3 -> 72.01 | L17: ='4.1 Comptes 2024 natures'!L17/'4.1 Comptes 2024 natures'!L3 -> 155.77 | M17: ='4.1 Comptes 2024 natures'!M17/'4.1 Comptes 2024 natures'!M3 -> 149.35 | N17: ='4.1 Comptes 2024 natures'!N17/'4.1 Comptes 2024 natures'!N3 -> 21.37 | O17: ='4.1 Comptes 2024 natures'!O17/'4.1 Comptes 2024 natures'!O3 -> 111.26 | P17: ='4.1 Comptes 2024 natures'!P17/'4.1 Comptes 2024 natures'!P3 -> 118.77 | Q17: ='4.1 Comptes 2024 natures'!Q17/'4.1 Comptes 2024 natures'!Q3 -> 56.78 | R17: ='4.1 Comptes 2024 natures'!R17/'4.1 Comptes 2024 natures'!R3 -> 68.18 | S17: ='4.1 Comptes 2024 natures'!S17/'4.1 Comptes 2024 natures'!S3 -> 34.58 | T17: ='4.1 Comptes 2024 natures'!T17/'4.1 Comptes 2024 natures'!T3 -> 77.49 | U17: ='4.1 Comptes 2024 natures'!U17/'4.1 Comptes 2024 natures'!U3 -> 65.88 | V17: ='4.1 Comptes 2024 natures'!V17/'4.1 Comptes 2024 natures'!V3 -> 167.30 | W17: ='4.1 Comptes 2024 natures'!W17/'4.1 Comptes 2024 natures'!W3 -> 91.91 | X17: ='4.1 Comptes 2024 natures'!X17/'4.1 Comptes 2024 natures'!X3 -> 270.23 | Y17: ='4.1 Comptes 2024 natures'!Y17/'4.1 Comptes 2024 natures'!Y3 -> 116.29 | Z17: ='4.1 Comptes 2024 natures'!Z17/'4.1 Comptes 2024 natures'!Z3 -> 180.52 | AA17: ='4.1 Comptes 2024 natures'!AA17/'4.1 Comptes 2024 natures'!AA3 -> 224.60 | AB17: ='4.1 Comptes 2024 natures'!AB17/'4.1 Comptes 2024 natures'!AB3 -> 237.65 | AC17: ='4.1 Comptes 2024 natures'!AC17/'4.1 Comptes 2024 natures'!AC3 -> 98.29 | AD17: ='4.1 Comptes 2024 natures'!AD17/'4.1 Comptes 2024 natures'!AD3 -> 112.26 | AE17: ='4.1 Comptes 2024 natures'!AE17/'4.1 Comptes 2024 natures'!AE3 -> 199.36 | AF17: ='4.1 Comptes 2024 natures'!AF17/'4.1 Comptes 2024 natures'!AF3 -> 149.09 | AG17: ='4.1 Comptes 2024 natures'!AG17/'4.1 Comptes 2024 natures'!AG3 -> 191.69 | AH17: ='4.1 Comptes 2024 natures'!AH17/'4.1 Comptes 2024 natures'!AH3 -> 25.10 | AI17: ='4.1 Comptes 2024 natures'!AI17/'4.1 Comptes 2024 natures'!AI3 -> 383.25 | AJ17: ='4.1 Comptes 2024 natures'!AJ17/'4.1 Comptes 2024 natures'!AJ3 -> 144.52 | AK17: ='4.1 Comptes 2024 natures'!AK17/'4.1 Comptes 2024 natures'!AK3 -> 70.40 | AL17: ='4.1 Comptes 2024 natures'!AL17/'4.1 Comptes 2024 natures'!AL3 -> 56.25 | AM17: ='4.1 Comptes 2024 natures'!AM17/'4.1 Comptes 2024 natures'!AM3 -> 165.44 | AN17: ='4.1 Comptes 2024 natures'!AN17/'4.1 Comptes 2024 natures'!AN3 -> 145.86 | AO17: ='4.1 Comptes 2024 natures'!AO17/'4.1 Comptes 2024 natures'!AO3 -> 28.36 | AP17: ='4.1 Comptes 2024 natures'!AP17/'4.1 Comptes 2024 natures'!AP3 -> 96.40 | AQ17: ='4.1 Comptes 2024 natures'!AQ17/'4.1 Comptes 2024 natures'!AQ3 -> 112.60 | AR17: ='4.1 Comptes 2024 natures'!AR17/'4.1 Comptes 2024 natures'!AR3 -> 106.40 | AS17: ='4.1 Comptes 2024 natures'!AS17/'4.1 Comptes 2024 natures'!AS3 -> 108.51 | AT17: ='4.1 Comptes 2024 natures'!AT17/'4.1 Comptes 2024 natures'!AT3 -> 137.58 | AU17: ='4.1 Comptes 2024 natures'!AU17/'4.1 Comptes 2024 natures'!AU3 -> 41.94 | AV17: ='4.1 Comptes 2024 natures'!AV17/'4.1 Comptes 2024 natures'!AV3 -> 63.34 | AW17: ='4.1 Comptes 2024 natures'!AW17/'4.1 Comptes 2024 natures'!AW3 -> 112.95 | AX17: ='4.1 Comptes 2024 natures'!AX17/'4.1 Comptes 2024 natures'!AX3 -> 45.89 | AY17: ='4.1 Comptes 2024 natures'!AY17/'4.1 Comptes 2024 natures'!AY3 -> 51.19 | AZ17: ='4.1 Comptes 2024 natures'!AZ17/'4.1 Comptes 2024 natures'!AZ3 -> 104.35 | BA17: ='4.1 Comptes 2024 natures'!BA17/'4.1 Comptes 2024 natures'!BA3 -> 123.10 | BB17: ='4.1 Comptes 2024 natures'!BB17/'4.1 Comptes 2024 natures'!BB3 -> 97.97 | BC17: ='4.1 Comptes 2024 natures'!BC17/'4.1 Comptes 2024 natures'!BC3 -> 119.49 | BD17: ='4.1 Comptes 2024 natures'!BD17/'4.1 Comptes 2024 natures'!BD3 -> 115.15 | BE17: ='4.1 Comptes 2024 natures'!BE17/'4.1 Comptes 2024 natures'!BE3 -> 166.38 | BF17: ='4.1 Comptes 2024 natures'!BF17/'4.1 Comptes 2024 natures'!BF3 -> 106.45
C18: 311 | D18: Immobilisation ne pouvant être portées à l'actif | E18: ='4.1 Comptes 2024 natures'!E18/'4.1 Comptes 2024 natures'!E3 -> 56.87 | F18: ='4.1 Comptes 2024 natures'!F18/'4.1 Comptes 2024 natures'!F3 -> 8.23 | G18: ='4.1 Comptes 2024 natures'!G18/'4.1 Comptes 2024 natures'!G3 -> 6.32 | H18: ='4.1 Comptes 2024 natures'!H18/'4.1 Comptes 2024 natures'!H3 -> 21.43 | I18: ='4.1 Comptes 2024 natures'!I18/'4.1 Comptes 2024 natures'!I3 -> 22.42 | J18: ='4.1 Comptes 2024 natures'!J18/'4.1 Comptes 2024 natures'!J3 -> 15.90 | K18: ='4.1 Comptes 2024 natures'!K18/'4.1 Comptes 2024 natures'!K3 -> 13.87 | L18: ='4.1 Comptes 2024 natures'!L18/'4.1 Comptes 2024 natures'!L3 -> 35.86 | M18: ='4.1 Comptes 2024 natures'!M18/'4.1 Comptes 2024 natures'!M3 -> 42.09 | N18: ='4.1 Comptes 2024 natures'!N18/'4.1 Comptes 2024 natures'!N3 -> 123.45 | O18: ='4.1 Comptes 2024 natures'!O18/'4.1 Comptes 2024 natures'!O3 -> 16.97 | P18: ='4.1 Comptes 2024 natures'!P18/'4.1 Comptes 2024 natures'!P3 -> 29.41 | Q18: ='4.1 Comptes 2024 natures'!Q18/'4.1 Comptes 2024 natures'!Q3 -> 9.65 | R18: ='4.1 Comptes 2024 natures'!R18/'4.1 Comptes 2024 natures'!R3 -> 12.77 | S18: ='4.1 Comptes 2024 natures'!S18/'4.1 Comptes 2024 natures'!S3 -> 7.71 | T18: ='4.1 Comptes 2024 natures'!T18/'4.1 Comptes 2024 natures'!T3 -> 74.43 | U18: ='4.1 Comptes 2024 natures'!U18/'4.1 Comptes 2024 natures'!U3 -> 9.74 | V18: ='4.1 Comptes 2024 natures'!V18/'4.1 Comptes 2024 natures'!V3 -> 71.55 | W18: ='4.1 Comptes 2024 natures'!W18/'4.1 Comptes 2024 natures'!W3 -> 22.02 | X18: ='4.1 Comptes 2024 natures'!X18/'4.1 Comptes 2024 natures'!X3 -> 32.45 | Y18: ='4.1 Comptes 2024 natures'!Y18/'4.1 Comptes 2024 natures'!Y3 -> 70.25 | Z18: ='4.1 Comptes 2024 natures'!Z18/'4.1 Comptes 2024 natures'!Z3 -> 69.22 | AA18: ='4.1 Comptes 2024 natures'!AA18/'4.1 Comptes 2024 natures'!AA3 -> 7.23 | AB18: ='4.1 Comptes 2024 natures'!AB18/'4.1 Comptes 2024 natures'!AB3 -> 32.09 | AC18: ='4.1 Comptes 2024 natures'!AC18/'4.1 Comptes 2024 natures'!AC3 -> 47.97 | AD18: ='4.1 Comptes 2024 natures'!AD18/'4.1 Comptes 2024 natures'!AD3 -> 23.64 | AE18: ='4.1 Comptes 2024 natures'!AE18/'4.1 Comptes 2024 natures'!AE3 -> 26.49 | AF18: ='4.1 Comptes 2024 natures'!AF18/'4.1 Comptes 2024 natures'!AF3 -> 49.64 | AG18: ='4.1 Comptes 2024 natures'!AG18/'4.1 Comptes 2024 natures'!AG3 -> 42.65 | AH18: ='4.1 Comptes 2024 natures'!AH18/'4.1 Comptes 2024 natures'!AH3 -> 27.46 | AI18: ='4.1 Comptes 2024 natures'!AI18/'4.1 Comptes 2024 natures'!AI3 -> 10.07 | AJ18: ='4.1 Comptes 2024 natures'!AJ18/'4.1 Comptes 2024 natures'!AJ3 -> 54.05 | AK18: ='4.1 Comptes 2024 natures'!AK18/'4.1 Comptes 2024 natures'!AK3 -> 7.17 | AL18: ='4.1 Comptes 2024 natures'!AL18/'4.1 Comptes 2024 natures'!AL3 -> 22.84 | AM18: ='4.1 Comptes 2024 natures'!AM18/'4.1 Comptes 2024 natures'!AM3 -> 87.17 | AN18: ='4.1 Comptes 2024 natures'!AN18/'4.1 Comptes 2024 natures'!AN3 -> 18.02 | AO18: ='4.1 Comptes 2024 natures'!AO18/'4.1 Comptes 2024 natures'!AO3 -> 26.44 | AP18: ='4.1 Comptes 2024 natures'!AP18/'4.1 Comptes 2024 natures'!AP3 -> 50.09 | AQ18: ='4.1 Comptes 2024 natures'!AQ18/'4.1 Comptes 2024 natures'!AQ3 -> 43.68 | AR18: ='4.1 Comptes 2024 natures'!AR18/'4.1 Comptes 2024 natures'!AR3 -> 56.59 | AS18: ='4.1 Comptes 2024 natures'!AS18/'4.1 Comptes 2024 natures'!AS3 -> 42.66 | AT18: ='4.1 Comptes 2024 natures'!AT18/'4.1 Comptes 2024 natures'!AT3 -> 38.79 | AU18: ='4.1 Comptes 2024 natures'!AU18/'4.1 Comptes 2024 natures'!AU3 -> 19.10 | AV18: ='4.1 Comptes 2024 natures'!AV18/'4.1 Comptes 2024 natures'!AV3 -> 13.24 | AW18: ='4.1 Comptes 2024 natures'!AW18/'4.1 Comptes 2024 natures'!AW3 -> 19.29 | AX18: ='4.1 Comptes 2024 natures'!AX18/'4.1 Comptes 2024 natures'!AX3 -> 45.07 | AY18: ='4.1 Comptes 2024 natures'!AY18/'4.1 Comptes 2024 natures'!AY3 -> 14.46 | AZ18: ='4.1 Comptes 2024 natures'!AZ18/'4.1 Comptes 2024 natures'!AZ3 -> 65.11 | BA18: ='4.1 Comptes 2024 natures'!BA18/'4.1 Comptes 2024 natures'!BA3 -> 18.71 | BB18: ='4.1 Comptes 2024 natures'!BB18/'4.1 Comptes 2024 natures'!BB3 -> 29.94 | BC18: ='4.1 Comptes 2024 natures'!BC18/'4.1 Comptes 2024 natures'!BC3 -> 32.27 | BD18: ='4.1 Comptes 2024 natures'!BD18/'4.1 Comptes 2024 natures'!BD3 -> 27.28 | BE18: ='4.1 Comptes 2024 natures'!BE18/'4.1 Comptes 2024 natures'!BE3 -> 47.82 | BF18: ='4.1 Comptes 2024 natures'!BF18/'4.1 Comptes 2024 natures'!BF3 -> 33.78
